Workbook

Sheet 1427-1525 MHz
B3: Espectro Radioeléctrico
B4: Porcentajes de ocupación del espectro radioeléctrico por sitios en la banda 1 427 - 1 525 MHz
B7: =Hoja1!A1 -> Fecha de publicación: 20 de Febrero de 2015
G11: 2010 | L11: 2011 | X11: 2012 | AJ11: 2013 | AV11: 2014 | BH11: 2015
A12: Nombre | B12: Latitud | C12: Longitud | D12: Cantón | E12: Hsnm(m) | F12: Gráficos | G12: Agosto | H12: Septiembre | I12: Octubre | J12: Noviembre | K12: Diciembre | L12: Enero | M12: Febrero | N12: Marzo | O12: Abril | P12: Mayo | Q12: Junio | R12: Julio | S12: Agosto | T12: Septiembre | U12: Octubre | V12: Noviembre | W12: Diciembre | X12: Enero | Y12: Febrero | Z12: Marzo | AA12: Abril | AB12: Mayo | AC12: Junio | AD12: Julio | AE12: Agosto | AF12: Septiembre | AG12: Octubre | AH12: Noviembre | AI12: Diciembre | AJ12: Enero | AK12: Febrero | AL12: Marzo | AM12: Abril | AN12: Mayo | AO12: Junio | AP12: Julio | AQ12: Agosto | AR12: Septiembre | AS12: Octubre | AT12: Noviembre | AU12: Diciembre | AV12: Enero | AW12: Febrero | AX12: Marzo | AY12: Abril | AZ12: Mayo | BA12: Junio | BB12: Julio | BC12: Agosto | BD12: Septiembre | BE12: Octubre | BF12: Noviembre | BG12: Diciembre | BH12: Enero | BI12: Febrero | BJ12: Marzo | BK12: Abril | BL12: Mayo | BM12: Junio | BN12: Julio | BO12: Agosto | BP12: Septiembre | BQ12: Octubre | BR12: Noviembre | BS12: Diciembre
G13: Ocupacion (%) | H13: Ocupacion (%) | I13: Ocupacion (%) | J13: Ocupacion (%) | K13: Ocupacion (%) | L13: Ocupacion (%) | M13: Ocupacion (%) | N13: Ocupacion (%) | O13: Ocupacion (%) | P13: Ocupacion (%) | Q13: Ocupacion (%) | R13: Ocupacion (%) | S13: Ocupacion (%) | T13: Ocupacion (%) | U13: Ocupacion (%) | V13: Ocupacion (%) | W13: Ocupacion (%) | X13: Ocupacion (%) | Y13: Ocupacion (%) | Z13: Ocupacion (%) | AA13: Ocupacion (%) | AB13: Ocupacion (%) | AC13: Ocupacion (%) | AD13: Ocupacion (%) | AE13: Ocupacion (%) | AF13: Ocupacion (%) | AG13: Ocupacion (%) | AH13: Ocupacion (%) | AI13: Ocupacion (%) | AJ13: Ocupacion (%) | AK13: Ocupacion (%) | AL13: Ocupacion (%) | AM13: Ocupacion (%) | AN13: Ocupacion (%) | AO13: Ocupacion (%) | AP13: Ocupacion (%) | AQ13: Ocupacion (%) | AR13: Ocupacion (%) | AS13: Ocupacion (%) | AT13: Ocupacion (%) | AU13: Ocupacion (%) | AV13: Ocupacion (%) | AW13: Ocupacion (%) | AX13: Ocupacion (%) | AY13: Ocupacion (%) | AZ13: Ocupacion (%) | BA13: Ocupacion (%) | BB13: Ocupacion (%) | BC13: Ocupacion (%) | BD13: Ocupacion (%) | BE13: Ocupacion (%) | BF13: Ocupacion (%) | BG13: Ocupacion (%) | BH13: Ocupacion (%) | BI13: Ocupacion (%) | BJ13: Ocupacion (%) | BK13: Ocupacion (%) | BL13: Ocupacion (%) | BM13: Ocupacion (%) | BN13: Ocupacion (%) | BO13: Ocupacion (%) | BP13: Ocupacion (%) | BQ13: Ocupacion (%) | BR13: Ocupacion (%) | BS13: Ocupacion (%)
A14: Barabon | B14: 02°53'34.40''S | C14: 79°05'15.10''W | D14: Cuenca | E14: 3351 | G14: 0 | H14: 0 | I14: 0 | J14: 0 | K14: 0 | L14: 0 | M14: 0 | N14: 0 | O14: 0 | P14: 0 | Q14: 0 | R14: 0 | S14: 0 | T14: 0 | U14: 0 | V14: 0 | W14: 0 | X14: 0 | Y14: 0 | Z14: 0 | AA14: 0 | AB14: 0 | AC14: 0 | AD14: 0 | AE14: 0 | AF14: 0 | AG14: 0 | AH14: 0 | AI14: 0 | AJ14: 0 | AK14: 0 | AL14: 0 | AM14: 0 | AN14: 0 | AO14: 0 | AP14: 0 | AQ14: 0 | AR14: 0 | AS14: 0 | AT14: 0 | AU14: 0 | AV14: 0 | AW14: 0 | AX14: 0 | AY14: 0 | AZ14: 0 | BA14: 0 | BB14: 0 | BC14: 0 | BD14: 0 | BE14: 0 | BF14: 0 | BG14: 0 | BH14: 0
A15: Cerro Cahuazhun | B15: 02°52'33.40''S | C15: 78°49'01.60''W | D15: Gualaceo | E15: 2999 | G15: 0 | H15: 0 | I15: 0 | J15: 0 | K15: 0 | L15: 0 | M15: 0 | N15: 0 | O15: 0 | P15: 0 | Q15: 0 | R15: 0 | S15: 0 | T15: 0 | U15: 0 | V15: 0 | W15: 0 | X15: 0 | Y15: 0 | Z15: 0 | AA15: 0 | AB15: 0 | AC15: 0 | AD15: 0 | AE15: 0 | AF15: 0 | AG15: 0 | AH15: 0 | AI15: 0 | AJ15: 0 | AK15: 0 | AL15: 0 | AM15: 0 | AN15: 0 | AO15: 0 | AP15: 0 | AQ15: 0 | AR15: 0 | AS15: 0 | AT15: 0 | AU15: 0 | AV15: 0 | AW15: 0 | AX15: 0 | AY15: 0 | AZ15: 0 | BA15: 0 | BB15: 0 | BC15: 0 | BD15: 0 | BE15: 0 | BF15: 0 | BG15: 0 | BH15: 0
A16: Cerro Cochapamba | B16: 02°47'41.10''S | C16: 79°25'39.10''W | D16: Cuenca | E16: 3714 | G16: 0 | H16: 0 | I16: 0 | J16: 0 | K16: 0 | L16: 0 | M16: 0 | N16: 0 | O16: 0 | P16: 0 | Q16: 0 | R16: 0 | S16: 0 | T16: 0 | U16: 0 | V16: 0 | W16: 0 | X16: 0 | Y16: 0 | Z16: 0 | AA16: 0 | AB16: 0 | AC16: 0 | AD16: 0 | AE16: 0 | AF16: 0 | AG16: 0 | AH16: 0 | AI16: 0 | AJ16: 0 | AK16: 0 | AL16: 0 | AM16: 0 | AN16: 0 | AO16: 0 | AP16: 0 | AQ16: 0 | AR16: 0 | AS16: 0 | AT16: 0 | AU16: 0 | AV16: 0 | AW16: 0 | AX16: 0 | AY16: 0 | AZ16: 0 | BA16: 0 | BB16: 0 | BC16: 0 | BD16: 0 | BE16: 0 | BF16: 0 | BG16: 0 | BH16: 0
A17: Cerro Guagualzhumi | B17: 02°53'32.50''S | C17: 78°54'39.60''W | D17: Cuenca | E17: 3079 | G17: 0 | H17: 0 | I17: 0 | J17: 0 | K17: 0 | L17: 0 | M17: 0 | N17: 0 | O17: 0 | P17: 0 | Q17: 0 | R17: 0 | S17: 0 | T17: 0 | U17: 0 | V17: 0 | W17: 0 | X17: 0 | Y17: 0 | Z17: 0 | AA17: 0 | AB17: 0 | AC17: 0 | AD17: 0 | AE17: 0 | AF17: 0 | AG17: 0 | AH17: 0 | AI17: 0 | AJ17: 0 | AK17: 0 | AL17: 0 | AM17: 0 | AN17: 0 | AO17: 0 | AP17: 0 | AQ17: 0 | AR17: 0 | AS17: 0 | AT17: 0 | AU17: 0 | AV17: 0 | AW17: 0 | AX17: 0 | AY17: 0 | AZ17: 0 | BA17: 0 | BB17: 0 | BC17: 0 | BD17: 0 | BE17: 0 | BF17: 0 | BG17: 0 | BH17: 0
A18: Cerro Guallil | B18: 03°04'30.90''S | C18: 78°48'58.70''W | D18: Sigsig | E18: 3284 | G18: 10.20408163 | H18: 10.20408163 | I18: 10.20408163 | J18: 10.20408163 | K18: 10.20408163 | L18: 10.20408163 | M18: 32.14285714 | N18: 32.14285714 | O18: 32.14285714 | P18: 32.14285714 | Q18: 32.14285714 | R18: 32.14285714 | S18: 26.33928571 | T18: 26.33928571 | U18: 26.33928571 | V18: 26.33928571 | W18: 57.58928571 | X18: 57.58928571 | Y18: 57.58928571 | Z18: 57.58928571 | AA18: 57.58928571 | AB18: 57.58928571 | AC18: 57.58928571 | AD18: 57.58928571 | AE18: 57.59 | AF18: 57.59 | AG18: 57.59 | AH18: 57.59 | AI18: 57.59 | AJ18: 57.59 | AK18: 57.59 | AL18: 57.59 | AM18: 57.59 | AN18: 57.59 | AO18: 57.59 | AP18: 57.59 | AQ18: 57.59 | AR18: 57.59 | AS18: 57.59 | AT18: 57.59 | AU18: 57.59 | AV18: 57.59 | AW18: 57.59 | AX18: 57.59 | AY18: 57.59 | AZ18: 57.58928571 | BA18: 57.58928571 | BB18: 57.58928571 | BC18: 57.58928571 | BD18: 32.14285714 | BE18: 32.14285714 | BF18: 32.14285714 | BG18: 32.14285714 | BH18: 32.14285714
A19: Cerro Hito Cruz | B19: 02°55'51.50''S | C19: 78°59'51.70''W | D19: Cuenca | E19: 2847 | G19: 21.42857143 | H19: 21.42857143 | I19: 21.42857143 | J19: 21.42857143 | K19: 21.42857143 | L19: 21.42857143 | M19: 48.88392857 | N19: 48.88392857 | O19: 48.88392857 | P19: 48.88392857 | Q19: 48.88392857 | R19: 48.88392857 | S19: 48.88392857 | T19: 48.88392857 | U19: 48.88392857 | V19: 48.88392857 | W19: 48.88392857 | X19: 48.88392857 | Y19: 48.88392857 | Z19: 48.88392857 | AA19: 48.88392857 | AB19: 48.88392857 | AC19: 48.88392857 | AD19: 48.88392857 | AE19: 48.88 | AF19: 16.29 | AG19: 16.29 | AH19: 16.29 | AI19: 16.29 | AJ19: 16.29 | AK19: 16.29 | AL19: 16.29 | AM19: 16.29 | AN19: 16.29 | AO19: 16.29 | AP19: 16.29 | AQ19: 16.29 | AR19: 16.29 | AS19: 16.29 | AT19: 16.29 | AU19: 16.29 | AV19: 16.29 | AW19: 16.29 | AX19: 16.29 | AY19: 16.29 | AZ19: 23.4375 | BA19: 23.4375 | BB19: 23.4375 | BC19: 23.4375 | BD19: 23.4375 | BE19: 23.4375 | BF19: 23.4375 | BG19: 23.4375 | BH19: 23.4375
A20: Cerro Rayoloma | B20: 02°54'13.00''S | C20: 78°57'59.20''W | D20: Cuenca | E20: 2649 | G20: 3.571428571 | H20: 3.571428571 | I20: 3.571428571 | J20: 3.571428571 | K20: 3.571428571 | L20: 3.571428571 | M20: 16.29464286 | N20: 16.29464286 | O20: 16.29464286 | P20: 16.29464286 | Q20: 16.29464286 | R20: 16.29464286 | S20: 0 | T20: 0 | U20: 0 | V20: 0 | W20: 16.29464286 | X20: 16.29464286 | Y20: 16.29464286 | Z20: 16.29464286 | AA20: 16.29464286 | AB20: 16.29464286 | AC20: 16.29464286 | AD20: 16.29464286 | AE20: 16.29 | AF20: 16.29 | AG20: 16.29 | AH20: 16.29 | AI20: 16.29 | AJ20: 16.29 | AK20: 16.29 | AL20: 16.29 | AM20: 16.29 | AN20: 16.29 | AO20: 16.29 | AP20: 16.29 | AQ20: 16.29 | AR20: 16.29 | AS20: 16.29 | AT20: 16.29 | AU20: 16.29 | AV20: 16.29 | AW20: 16.29 | AX20: 16.29 | AY20: 16.29 | AZ20: 17.85714286 | BA20: 17.85714286 | BB20: 17.85714286 | BC20: 17.85714286 | BD20: 16.29464286 | BE20: 16.29464286 | BF20: 16.29464286 | BG20: 16.29464286 | BH20: 16.29464286
A21: Cerro Rumiloma (Amopungo - Señor Pungo) | B21: 02°48'19.00''S | C21: 78°49'19.30''W | D21: Paute | E21: 3175 | G21: 5.102040816 | H21: 5.102040816 | I21: 5.102040816 | J21: 5.102040816 | K21: 5.102040816 | L21: 5.102040816 | M21: 17.41071429 | N21: 17.41071429 | O21: 17.41071429 | P21: 17.41071429 | Q21: 17.41071429 | R21: 17.41071429 | S21: 0 | T21: 0 | U21: 0 | V21: 0 | W21: 17.41071429 | X21: 17.41071429 | Y21: 17.41071429 | Z21: 17.41071429 | AA21: 17.41071429 | AB21: 17.41071429 | AC21: 17.41071429 | AD21: 17.41071429 | AE21: 17.41 | AF21: 17.41 | AG21: 17.41 | AH21: 17.41 | AI21: 17.41 | AJ21: 17.41 | AK21: 17.41 | AL21: 17.41 | AM21: 17.41 | AN21: 17.41 | AO21: 17.41 | AP21: 17.41 | AQ21: 17.41 | AR21: 17.41 | AS21: 17.41 | AT21: 17.41 | AU21: 17.41 | AV21: 17.41 | AW21: 17.41 | AX21: 17.41 | AY21: 17.41 | AZ21: 17.41071429 | BA21: 17.41071429 | BB21: 17.41071429 | BC21: 17.41071429 | BD21: 17.41071429 | BE21: 17.41071429 | BF21: 17.41071429 | BG21: 17.41071429 | BH21: 17.41071429
A22: Cerro Turi | B22: 02°55'22.90''S | C22: 79°00'32.80''W | D22: Cuenca | E22: 2730 | G22: 0 | H22: 0 | I22: 0 | J22: 0 | K22: 0 | L22: 0 | M22: 0 | N22: 0 | O22: 0 | P22: 0 | Q22: 0 | R22: 0 | S22: 0 | T22: 0 | U22: 0 | V22: 0 | W22: 0 | X22: 0 | Y22: 0 | Z22: 0 | AA22: 0 | AB22: 0 | AC22: 0 | AD22: 0 | AE22: 0 | AF22: 0 | AG22: 0 | AH22: 0 | AI22: 0 | AJ22: 0 | AK22: 0 | AL22: 0 | AM22: 0 | AN22: 0 | AO22: 0 | AP22: 0 | AQ22: 0 | AR22: 0 | AS22: 0 | AT22: 0 | AU22: 0 | AV22: 0 | AW22: 0 | AX22: 0 | AY22: 0 | AZ22: 0 | BA22: 0 | BB22: 0 | BC22: 0 | BD22: 0 | BE22: 0 | BF22: 0 | BG22: 0 | BH22: 0
A23: Sector Nero - Zhuzhun | B23: 02°56'48.30''S | C23: 79°03'46.20''W | D23: Cuenca | E23: 2932 | G23: 0 | H23: 0 | I23: 0 | J23: 0 | K23: 0 | L23: 0 | M23: 0 | N23: 0 | O23: 0 | P23: 0 | Q23: 0 | R23: 0 | S23: 0 | T23: 0 | U23: 0 | V23: 0 | W23: 0 | X23: 0 | Y23: 0 | Z23: 0 | AA23: 0 | AB23: 0 | AC23: 0 | AD23: 0 | AE23: 0 | AF23: 0 | AG23: 0 | AH23: 0 | AI23: 0 | AJ23: 0 | AK23: 0 | AL23: 0 | AM23: 0 | AN23: 0 | AO23: 0 | AP23: 0 | AQ23: 0 | AR23: 0 | AS23: 0 | AT23: 0 | AU23: 0 | AV23: 0 | AW23: 0 | AX23: 0 | AY23: 0 | AZ23: 0 | BA23: 0 | BB23: 0 | BC23: 0 | BD23: 0 | BE23: 0 | BF23: 0 | BG23: 0 | BH23: 0
A24: Tipoloma Alto | B24: 03°08'13.20''S | C24: 79°05'09.70''W | D24: Girón | E24: 3177 | G24: 5.102040816 | H24: 5.102040816 | I24: 5.102040816 | J24: 5.102040816 | K24: 5.102040816 | L24: 5.102040816 | M24: 25 | N24: 25 | O24: 25 | P24: 25 | Q24: 25 | R24: 25 | S24: 0 | T24: 0 | U24: 0 | V24: 0 | W24: 25 | X24: 25 | Y24: 25 | Z24: 25 | AA24: 25 | AB24: 25 | AC24: 25 | AD24: 25 | AE24: 25 | AF24: 25 | AG24: 25 | AH24: 25 | AI24: 25 | AJ24: 25 | AK24: 25 | AL24: 25 | AM24: 25 | AN24: 25 | AO24: 25 | AP24: 25 | AQ24: 25 | AR24: 25 | AS24: 25 | AT24: 25 | AU24: 25 | AV24: 25 | AW24: 25 | AX24: 25 | AY24: 25 | AZ24: 51.33928571 | BA24: 51.33928571 | BB24: 51.33928571 | BC24: 51.33928571 | BD24: 51.33928571 | BE24: 51.33928571 | BF24: 51.33928571 | BG24: 51.33928571 | BH24: 51.33928571
A25: Tipoloma Bajo | B25: 03°07'41.50''S | C25: 79°05'17.90''W | D25: Girón | E25: 3086 | G25: 0 | H25: 0 | I25: 0 | J25: 0 | K25: 0 | L25: 0 | M25: 0 | N25: 0 | O25: 0 | P25: 0 | Q25: 0 | R25: 0 | S25: 0 | T25: 0 | U25: 0 | V25: 0 | W25: 0 | X25: 0 | Y25: 0 | Z25: 0 | AA25: 0 | AB25: 0 | AC25: 0 | AD25: 0 | AE25: 0 | AF25: 0 | AG25: 0 | AH25: 0 | AI25: 0 | AJ25: 0 | AK25: 0 | AL25: 0 | AM25: 0 | AN25: 0 | AO25: 0 | AP25: 0 | AQ25: 0 | AR25: 0 | AS25: 0 | AT25: 0 | AU25: 0 | AV25: 0 | AW25: 0 | AX25: 0 | AY25: 0 | AZ25: 0 | BA25: 0 | BB25: 0 | BC25: 0 | BD25: 0 | BE25: 0 | BF25: 0 | BG25: 0 | BH25: 0
A26: Cerro Paredones | B26: 02°44'38.30''S | C26: 79°26'26.60''W | D26: Cuenca | E26: 3668 | G26: 0 | H26: 0 | I26: 0 | J26: 0 | K26: 0 | L26: 0 | M26: 0 | N26: 0 | O26: 0 | P26: 0 | Q26: 0 | R26: 0 | S26: 0 | T26: 0 | U26: 0 | V26: 0 | W26: 0 | X26: 0 | Y26: 0 | Z26: 0 | AA26: 0 | AB26: 0 | AC26: 0 | AD26: 0 | AE26: 0 | AF26: 0 | AG26: 0 | AH26: 0 | AI26: 0 | AJ26: 0 | AK26: 0 | AL26: 0 | AM26: 0 | AN26: 0 | AO26: 0 | AP26: 0 | AQ26: 0 | AR26: 0 | AS26: 0 | AT26: 0 | AU26: 0 | AV26: 0 | AW26: 0 | AX26: 0 | AY26: 0 | AZ26: 0 | BA26: 0 | BB26: 0 | BC26: 0 | BD26: 0 | BE26: 0 | BF26: 0 | BG26: 0 | BH26: 0
A27: Cuchilla de Paredones | B27: 02°44'10.70''S | C27: 79°26'43.10''W | D27: Cuenca | E27: 3311 | G27: 0 | H27: 0 | I27: 0 | J27: 0 | K27: 0 | L27: 0 | M27: 0 | N27: 0 | O27: 0 | P27: 0 | Q27: 0 | R27: 0 | S27: 0 | T27: 0 | U27: 0 | V27: 0 | W27: 0 | X27: 0 | Y27: 0 | Z27: 0 | AA27: 0 | AB27: 0 | AC27: 0 | AD27: 0 | AE27: 0 | AF27: 0 | AG27: 0 | AH27: 0 | AI27: 0 | AJ27: 0 | AK27: 0 | AL27: 0 | AM27: 0 | AN27: 0 | AO27: 0 | AP27: 0 | AQ27: 0 | AR27: 0 | AS27: 0 | AT27: 0 | AU27: 0 | AV27: 0 | AW27: 0 | AX27: 0 | AY27: 0 | AZ27: 0 | BA27: 0 | BB27: 0 | BC27: 0 | BD27: 0 | BE27: 0 | BF27: 0 | BG27: 0 | BH27: 0
A28: Bilovan | B28: 01°48'09.10''S | C28: 79°06'17.20''W | D28: San Miguel | E28: 2662 | G28: 5.102040816 | H28: 5.102040816 | I28: 5.102040816 | J28: 5.102040816 | K28: 5.102040816 | L28: 5.102040816 | M28: 26.33928571 | N28: 26.33928571 | O28: 26.33928571 | P28: 26.33928571 | Q28: 26.33928571 | R28: 26.33928571 | S28: 26.33928571 | T28: 26.33928571 | U28: 26.33928571 | V28: 26.33928571 | W28: 26.33928571 | X28: 26.33928571 | Y28: 26.33928571 | Z28: 26.33928571 | AA28: 26.33928571 | AB28: 26.33928571 | AC28: 26.33928571 | AD28: 26.33928571 | AE28: 26.34 | AF28: 26.34 | AG28: 26.34 | AH28: 26.34 | AI28: 26.34 | AJ28: 26.34 | AK28: 26.34 | AL28: 26.34 | AM28: 26.34 | AN28: 26.34 | AO28: 26.34 | AP28: 26.34 | AQ28: 26.34 | AR28: 26.34 | AS28: 26.34 | AT28: 26.34 | AU28: 26.34 | AV28: 26.34 | AW28: 26.34 | AX28: 26.34 | AY28: 26.34 | AZ28: 26.33928571 | BA28: 26.33928571 | BB28: 26.33928571 | BC28: 26.33928571 | BD28: 26.33928571 | BE28: 26.33928571 | BF28: 26.33928571 | BG28: 26.33928571 | BH28: 26.33928571
A29: Cerro Capadia Alto | B29: 01°25'24.20''S | C29: 78°57'01.10''W | D29: Guaranda | E29: 4460 | G29: 0 | H29: 0 | I29: 0 | J29: 0 | K29: 0 | L29: 0 | M29: 0 | N29: 0 | O29: 0 | P29: 0 | Q29: 0 | R29: 0 | S29: 0 | T29: 0 | U29: 0 | V29: 0 | W29: 0 | X29: 0 | Y29: 0 | Z29: 0 | AA29: 0 | AB29: 0 | AC29: 0 | AD29: 0 | AE29: 0 | AF29: 0 | AG29: 0 | AH29: 0 | AI29: 0 | AJ29: 0 | AK29: 0 | AL29: 0 | AM29: 0 | AN29: 0 | AO29: 0 | AP29: 0 | AQ29: 0 | AR29: 0 | AS29: 0 | AT29: 0 | AU29: 0 | AV29: 0 | AW29: 0 | AX29: 0 | AY29: 0 | AZ29: 0 | BA29: 0 | BB29: 0 | BC29: 0 | BD29: 0 | BE29: 0 | BF29: 0 | BG29: 0 | BH29: 0
A30: Cerro Capadia Chico | B30: 01°25'54.10''S | C30: 78°56'19.70''W | D30: Guaranda | E30: 4384 | G30: 0 | H30: 0 | I30: 0 | J30: 0 | K30: 0 | L30: 0 | M30: 0 | N30: 0 | O30: 0 | P30: 0 | Q30: 0 | R30: 0 | S30: 0 | T30: 0 | U30: 0 | V30: 0 | W30: 0 | X30: 0 | Y30: 0 | Z30: 0 | AA30: 0 | AB30: 0 | AC30: 0 | AD30: 0 | AE30: 0 | AF30: 0 | AG30: 0 | AH30: 0 | AI30: 0 | AJ30: 0 | AK30: 0 | AL30: 0 | AM30: 0 | AN30: 0 | AO30: 0 | AP30: 0 | AQ30: 0 | AR30: 0 | AS30: 0 | AT30: 0 | AU30: 0 | AV30: 0 | AW30: 0 | AX30: 0 | AY30: 0 | AZ30: 0 | BA30: 0 | BB30: 0 | BC30: 0 | BD30: 0 | BE30: 0 | BF30: 0 | BG30: 0 | BH30: 0
A31: Cerro de la Cocha | B31: 01°50'38.90''S | C31: 79°09'52.80''W | D31: San Miguel | E31: 2496 | G31: 0 | H31: 0 | I31: 0 | J31: 0 | K31: 0 | L31: 0 | M31: 0 | N31: 0 | O31: 0 | P31: 0 | Q31: 0 | R31: 0 | S31: 0 | T31: 0 | U31: 0 | V31: 0 | W31: 0 | X31: 0 | Y31: 0 | Z31: 0 | AA31: 0 | AB31: 0 | AC31: 0 | AD31: 0 | AE31: 0 | AF31: 0 | AG31: 0 | AH31: 0 | AI31: 0 | AJ31: 0 | AK31: 0 | AL31: 0 | AM31: 0 | AN31: 0 | AO31: 0 | AP31: 0 | AQ31: 0 | AR31: 0 | AS31: 0 | AT31: 0 | AU31: 0 | AV31: 0 | AW31: 0 | AX31: 0 | AY31: 0 | AZ31: 0 | BA31: 0 | BB31: 0 | BC31: 0 | BD31: 0 | BE31: 0 | BF31: 0 | BG31: 0 | BH31: 0
A32: Cerro Ilambulo | B32: 01°42'18.60''S | C32: 79°05'32.60''W | D32: San Miguel | E32: 3213 | G32: 7.142857143 | H32: 7.142857143 | I32: 7.142857143 | J32: 7.142857143 | K32: 7.142857143 | L32: 7.142857143 | M32: 16.29464286 | N32: 16.29464286 | O32: 16.29464286 | P32: 16.29464286 | Q32: 16.29464286 | R32: 16.29464286 | S32: 0 | T32: 0 | U32: 0 | V32: 0 | W32: 16.29464286 | X32: 16.29464286 | Y32: 16.29464286 | Z32: 16.29464286 | AA32: 16.29464286 | AB32: 16.29464286 | AC32: 16.29464286 | AD32: 16.29464286 | AE32: 16.29 | AF32: 16.29 | AG32: 16.29 | AH32: 16.29 | AI32: 16.29 | AJ32: 16.29 | AK32: 16.29 | AL32: 16.29 | AM32: 16.29 | AN32: 16.29 | AO32: 16.29 | AP32: 16.29 | AQ32: 16.29 | AR32: 16.29 | AS32: 16.29 | AT32: 16.29 | AU32: 16.29 | AV32: 16.29 | AW32: 16.29 | AX32: 16.29 | AY32: 16.29 | AZ32: 16.29464286 | BA32: 16.29464286 | BB32: 16.29464286 | BC32: 16.29464286 | BD32: 16.29464286 | BE32: 16.29464286 | BF32: 16.29464286 | BG32: 16.29464286 | BH32: 16.29464286
A33: Cerro Pucará | B33: 01°39'04.50''S | C33: 79°06'10.70''W | D33: Chimbo | E33: 3063 | G33: 0 | H33: 0 | I33: 0 | J33: 0 | K33: 0 | L33: 0 | M33: 0 | N33: 0 | O33: 0 | P33: 0 | Q33: 0 | R33: 0 | S33: 0 | T33: 0 | U33: 0 | V33: 0 | W33: 0 | X33: 0 | Y33: 0 | Z33: 0 | AA33: 0 | AB33: 0 | AC33: 0 | AD33: 0 | AE33: 0 | AF33: 0 | AG33: 0 | AH33: 0 | AI33: 0 | AJ33: 0 | AK33: 0 | AL33: 0 | AM33: 0 | AN33: 0 | AO33: 0 | AP33: 0 | AQ33: 0 | AR33: 0 | AS33: 0 | AT33: 0 | AU33: 0 | AV33: 0 | AW33: 0 | AX33: 0 | AY33: 0 | AZ33: 0 | BA33: 0 | BB33: 0 | BC33: 0 | BD33: 0 | BE33: 0 | BF33: 0 | BG33: 0 | BH33: 0
A34: Cochambamba (Chuchi) | B34: 01°41'56.20''S | C34: 79°06'20.60''W | D34: San Miguel | E34: 3072 | G34: 10.20408163 | H34: 10.20408163 | I34: 10.20408163 | J34: 10.20408163 | K34: 10.20408163 | L34: 10.20408163 | M34: 38.61607143 | N34: 38.61607143 | O34: 38.61607143 | P34: 38.61607143 | Q34: 38.61607143 | R34: 38.61607143 | S34: 0 | T34: 0 | U34: 0 | V34: 0 | W34: 0 | X34: 0 | Y34: 0 | Z34: 0 | AA34: 0 | AB34: 0 | AC34: 0 | AD34: 0 | AE34: 0 | AF34: 38.62 | AG34: 38.62 | AH34: 38.62 | AI34: 38.62 | AJ34: 38.62 | AK34: 38.62 | AL34: 38.62 | AM34: 38.62 | AN34: 38.62 | AO34: 38.62 | AP34: 38.62 | AQ34: 38.62 | AR34: 38.62 | AS34: 38.62 | AT34: 38.62 | AU34: 38.62 | AV34: 38.62 | AW34: 38.62 | AX34: 38.62 | AY34: 38.62 | AZ34: 0 | BA34: 0 | BB34: 0 | BC34: 0 | BD34: 0 | BE34: 0 | BF34: 0 | BG34: 0 | BH34: 0
A35: Cochabamba (Tundaloma) | B35: 01°41'35.30''S | C35: 79°06'28.20''W | D35: San Miguel | E35: 3018 | G35: 10.20408163 | H35: 10.20408163 | I35: 10.20408163 | J35: 10.20408163 | K35: 10.20408163 | L35: 10.20408163 | M35: 38.61607143 | N35: 38.61607143 | O35: 38.61607143 | P35: 38.61607143 | Q35: 38.61607143 | R35: 38.61607143 | S35: 0 | T35: 0 | U35: 0 | V35: 0 | W35: 0 | X35: 0 | Y35: 0 | Z35: 0 | AA35: 0 | AB35: 0 | AC35: 0 | AD35: 0 | AE35: 0 | AF35: 38.62 | AG35: 38.62 | AH35: 38.62 | AI35: 38.62 | AJ35: 38.62 | AK35: 38.62 | AL35: 38.62 | AM35: 38.62 | AN35: 38.62 | AO35: 38.62 | AP35: 38.62 | AQ35: 38.62 | AR35: 38.62 | AS35: 38.62 | AT35: 38.62 | AU35: 38.62 | AV35: 38.62 | AW35: 38.62 | AX35: 38.62 | AY35: 38.62 | AZ35: 0 | BA35: 0 | BB35: 0 | BC35: 0 | BD35: 0 | BE35: 0 | BF35: 0 | BG35: 0 | BH35: 0
A36: Loma de Lourdes | B36: 01°42'19.70''S | C36: 79°04'49.20''W | D36: San Miguel | E36: 3281 | G36: 10.20408163 | H36: 10.20408163 | I36: 10.20408163 | J36: 10.20408163 | K36: 10.20408163 | L36: 10.20408163 | M36: 42.85714286 | N36: 42.85714286 | O36: 42.85714286 | P36: 42.85714286 | Q36: 42.85714286 | R36: 42.85714286 | S36: 0 | T36: 0 | U36: 0 | V36: 0 | W36: 42.85714286 | X36: 42.85714286 | Y36: 42.85714286 | Z36: 42.85714286 | AA36: 42.85714286 | AB36: 42.85714286 | AC36: 42.85714286 | AD36: 42.85714286 | AE36: 42.86 | AF36: 42.86 | AG36: 42.86 | AH36: 42.86 | AI36: 42.86 | AJ36: 42.86 | AK36: 42.86 | AL36: 42.86 | AM36: 42.86 | AN36: 42.86 | AO36: 42.86 | AP36: 42.86 | AQ36: 42.86 | AR36: 42.86 | AS36: 42.86 | AT36: 42.86 | AU36: 42.86 | AV36: 42.86 | AW36: 42.86 | AX36: 42.86 | AY36: 42.86 | AZ36: 42.85714286 | BA36: 42.85714286 | BB36: 42.85714286 | BC36: 42.85714286 | BD36: 42.85714286 | BE36: 42.85714286 | BF36: 42.85714286 | BG36: 42.85714286 | BH36: 42.85714286
A37: Loma Susanga | B37: 01°40'23.00''S | C37: 79°01'08.80''W | D37: Chimbo | E37: 2879 | G37: 10.20408163 | H37: 10.20408163 | I37: 10.20408163 | J37: 10.20408163 | K37: 10.20408163 | L37: 10.20408163 | M37: 32.14285714 | N37: 32.14285714 | O37: 32.14285714 | P37: 32.14285714 | Q37: 32.14285714 | R37: 32.14285714 | S37: 26.33928571 | T37: 26.33928571 | U37: 26.33928571 | V37: 26.33928571 | W37: 32.14285714 | X37: 32.14285714 | Y37: 32.14285714 | Z37: 32.14285714 | AA37: 32.14285714 | AB37: 32.14285714 | AC37: 32.14285714 | AD37: 32.14285714 | AE37: 32.14 | AF37: 32.14 | AG37: 32.14 | AH37: 32.14 | AI37: 32.14 | AJ37: 32.14 | AK37: 32.14 | AL37: 32.14 | AM37: 32.14 | AN37: 32.14 | AO37: 32.14 | AP37: 32.14 | AQ37: 32.14 | AR37: 32.14 | AS37: 32.14 | AT37: 32.14 | AU37: 32.14 | AV37: 32.14 | AW37: 32.14 | AX37: 32.14 | AY37: 32.14 | AZ37: 32.14285714 | BA37: 32.14285714 | BB37: 32.14285714 | BC37: 32.14285714 | BD37: 32.14285714 | BE37: 32.14285714 | BF37: 32.14285714 | BG37: 32.14285714 | BH37: 32.14285714
A38: Padre Urcu | B38: 01°42'21.80''S | C38: 79°05'45.70''W | D38: San Miguel | E38: 3181 | G38: 7.142857143 | H38: 7.142857143 | I38: 7.142857143 | J38: 7.142857143 | K38: 7.142857143 | L38: 7.142857143 | M38: 16.29464286 | N38: 16.29464286 | O38: 16.29464286 | P38: 16.29464286 | Q38: 16.29464286 | R38: 16.29464286 | S38: 0 | T38: 0 | U38: 0 | V38: 0 | W38: 16.29464286 | X38: 16.29464286 | Y38: 16.29464286 | Z38: 16.29464286 | AA38: 16.29464286 | AB38: 16.29464286 | AC38: 16.29464286 | AD38: 16.29464286 | AE38: 16.29 | AF38: 16.29 | AG38: 16.29 | AH38: 16.29 | AI38: 16.29 | AJ38: 16.29 | AK38: 16.29 | AL38: 16.29 | AM38: 16.29 | AN38: 16.29 | AO38: 16.29 | AP38: 16.29 | AQ38: 16.29 | AR38: 16.29 | AS38: 16.29 | AT38: 16.29 | AU38: 16.29 | AV38: 16.29 | AW38: 16.29 | AX38: 16.29 | AY38: 16.29 | AZ38: 16.29464286 | BA38: 16.29464286 | BB38: 16.29464286 | BC38: 16.29464286 | BD38: 16.29464286 | BE38: 16.29464286 | BF38: 16.29464286 | BG38: 16.29464286 | BH38: 16.29464286
A39: Tiuguinal | B39: 01°22'00.30''S | C39: 79°00'25.10''W | D39: Guaranda | E39: 4126 | G39: 0 | H39: 0 | I39: 0 | J39: 0 | K39: 0 | L39: 0 | M39: 0 | N39: 0 | O39: 0 | P39: 0 | Q39: 0 | R39: 0 | S39: 0 | T39: 0 | U39: 0 | V39: 0 | W39: 0 | X39: 0 | Y39: 0 | Z39: 0 | AA39: 0 | AB39: 0 | AC39: 0 | AD39: 0 | AE39: 0 | AF39: 0 | AG39: 0 | AH39: 0 | AI39: 0 | AJ39: 0 | AK39: 0 | AL39: 0 | AM39: 0 | AN39: 0 | AO39: 0 | AP39: 0 | AQ39: 0 | AR39: 0 | AS39: 0 | AT39: 0 | AU39: 0 | AV39: 0 | AW39: 0 | AX39: 0 | AY39: 0 | AZ39: 0 | BA39: 0 | BB39: 0 | BC39: 0 | BD39: 0 | BE39: 0 | BF39: 0 | BG39: 0 | BH39: 0
A40: Biblian (Sagrado Corazón) | B40: 02°43'07.70''S | C40: 78°52'53.40''W | D40: Biblián | E40: 2878 | G40: 0 | H40: 0 | I40: 0 | J40: 0 | K40: 0 | L40: 0 | M40: 0 | N40: 0 | O40: 0 | P40: 0 | Q40: 0 | R40: 0 | S40: 0 | T40: 0 | U40: 0 | V40: 0 | W40: 0 | X40: 0 | Y40: 0 | Z40: 0 | AA40: 0 | AB40: 0 | AC40: 0 | AD40: 0 | AE40: 0 | AF40: 0 | AG40: 0 | AH40: 0 | AI40: 0 | AJ40: 0 | AK40: 0 | AL40: 0 | AM40: 0 | AN40: 0 | AO40: 0 | AP40: 0 | AQ40: 0 | AR40: 0 | AS40: 0 | AT40: 0 | AU40: 0 | AV40: 0 | AW40: 0 | AX40: 0 | AY40: 0 | AZ40: 0 | BA40: 0 | BB40: 0 | BC40: 0 | BD40: 0 | BE40: 0 | BF40: 0 | BG40: 0 | BH40: 0
A41: Cerro Altar Urcu | B41: 02°28'48.90''S | C41: 78°59'36.30''W | D41: Cañar | E41: 3215 | G41: 10.20408163 | H41: 10.20408163 | I41: 10.20408163 | J41: 10.20408163 | K41: 10.20408163 | L41: 10.20408163 | M41: 32.58928571 | N41: 32.58928571 | O41: 32.58928571 | P41: 32.58928571 | Q41: 32.58928571 | R41: 32.58928571 | S41: 26.33928571 | T41: 26.33928571 | U41: 26.33928571 | V41: 26.33928571 | W41: 32.58928571 | X41: 32.58928571 | Y41: 32.58928571 | Z41: 32.58928571 | AA41: 32.58928571 | AB41: 32.58928571 | AC41: 32.58928571 | AD41: 32.58928571 | AE41: 32.59 | AF41: 0 | AG41: 0 | AH41: 0 | AI41: 0 | AJ41: 0 | AK41: 0 | AL41: 0 | AM41: 0 | AN41: 0 | AO41: 0 | AP41: 0 | AQ41: 0 | AR41: 0 | AS41: 0 | AT41: 0 | AU41: 0 | AV41: 0 | AW41: 0 | AX41: 0 | AY41: 0 | AZ41: 0 | BA41: 0 | BB41: 0 | BC41: 0 | BD41: 0 | BE41: 0 | BF41: 0 | BG41: 0 | BH41: 0
A42: Cerro Buerán | B42: 02°36'31.10''S | C42: 78°55'50.90''W | D42: Biblián | E42: 3816 | G42: 10.20408163 | H42: 10.20408163 | I42: 10.20408163 | J42: 10.20408163 | K42: 10.20408163 | L42: 10.20408163 | M42: 25.89285714 | N42: 25.89285714 | O42: 25.89285714 | P42: 25.89285714 | Q42: 25.89285714 | R42: 25.89285714 | S42: 0 | T42: 0 | U42: 0 | V42: 0 | W42: 25.89285714 | X42: 25.89285714 | Y42: 25.89285714 | Z42: 25.89285714 | AA42: 25.89285714 | AB42: 25.89285714 | AC42: 25.89285714 | AD42: 25.89285714 | AE42: 25.89 | AF42: 25.89 | AG42: 25.89 | AH42: 25.89 | AI42: 25.89 | AJ42: 25.89 | AK42: 25.89 | AL42: 25.89 | AM42: 25.89 | AN42: 25.89 | AO42: 25.89 | AP42: 25.89 | AQ42: 25.89 | AR42: 25.89 | AS42: 25.89 | AT42: 25.89 | AU42: 25.89 | AV42: 25.89 | AW42: 25.89 | AX42: 25.89 | AY42: 25.89 | AZ42: 25.89285714 | BA42: 25.89285714 | BB42: 25.89285714 | BC42: 25.89285714 | BD42: 25.89285714 | BE42: 25.89285714 | BF42: 25.89285714 | BG42: 25.89285714 | BH42: 25.89285714
A43: Cerro Buerán(Tierras Negras) | B43: 02°35'59.40''S | C43: 78°55'44.40''W | D43: Biblián | E43: 3828 | G43: 10.20408163 | H43: 10.20408163 | I43: 10.20408163 | J43: 10.20408163 | K43: 10.20408163 | L43: 10.20408163 | M43: 25.89285714 | N43: 25.89285714 | O43: 25.89285714 | P43: 25.89285714 | Q43: 25.89285714 | R43: 25.89285714 | S43: 0 | T43: 0 | U43: 0 | V43: 0 | W43: 25.89285714 | X43: 25.89285714 | Y43: 25.89285714 | Z43: 25.89285714 | AA43: 25.89285714 | AB43: 25.89285714 | AC43: 25.89285714 | AD43: 25.89285714 | AE43: 25.89 | AF43: 25.89 | AG43: 25.89 | AH43: 25.89 | AI43: 25.89 | AJ43: 25.89 | AK43: 25.89 | AL43: 25.89 | AM43: 25.89 | AN43: 25.89 | AO43: 25.89 | AP43: 25.89 | AQ43: 25.89 | AR43: 25.89 | AS43: 25.89 | AT43: 25.89 | AU43: 25.89 | AV43: 25.89 | AW43: 25.89 | AX43: 25.89 | AY43: 25.89 | AZ43: 25.89285714 | BA43: 25.89285714 | BB43: 25.89285714 | BC43: 25.89285714 | BD43: 25.89285714 | BE43: 25.89285714 | BF43: 25.89285714 | BG43: 25.89285714 | BH43: 25.89285714
A44: Cerro Carshao | B44: 02°26'23.20''S | C44: 78°57'03.80''W | D44: Cañar | E44: 4017 | G44: 15.30612245 | H44: 15.30612245 | I44: 15.30612245 | J44: 15.30612245 | K44: 15.30612245 | L44: 15.30612245 | M44: 40.17857143 | N44: 40.17857143 | O44: 40.17857143 | P44: 40.17857143 | Q44: 40.17857143 | R44: 40.17857143 | S44: 26.33928571 | T44: 26.33928571 | U44: 26.33928571 | V44: 26.33928571 | W44: 40.17857143 | X44: 40.17857143 | Y44: 40.17857143 | Z44: 40.17857143 | AA44: 40.17857143 | AB44: 40.17857143 | AC44: 40.17857143 | AD44: 40.17857143 | AE44: 40.18 | AF44: 38.62 | AG44: 38.62 | AH44: 38.62 | AI44: 38.62 | AJ44: 38.62 | AK44: 38.62 | AL44: 38.62 | AM44: 38.62 | AN44: 38.62 | AO44: 38.62 | AP44: 38.62 | AQ44: 38.62 | AR44: 38.62 | AS44: 38.62 | AT44: 38.62 | AU44: 38.62 | AV44: 38.62 | AW44: 38.62 | AX44: 38.62 | AY44: 38.62 | AZ44: 38.61607143 | BA44: 38.61607143 | BB44: 38.61607143 | BC44: 38.61607143 | BD44: 38.61607143 | BE44: 38.61607143 | BF44: 38.61607143 | BG44: 38.61607143 | BH44: 38.61607143
A45: Cerro Carshao Bajo | B45: 02°26'08.10''S | C45: 78°56'52.20''W | D45: Cañar | E45: 4003 | G45: 15.30612245 | H45: 15.30612245 | I45: 15.30612245 | J45: 15.30612245 | K45: 15.30612245 | L45: 15.30612245 | M45: 40.17857143 | N45: 40.17857143 | O45: 40.17857143 | P45: 40.17857143 | Q45: 40.17857143 | R45: 40.17857143 | S45: 26.33928571 | T45: 26.33928571 | U45: 26.33928571 | V45: 26.33928571 | W45: 40.17857143 | X45: 40.17857143 | Y45: 40.17857143 | Z45: 40.17857143 | AA45: 40.17857143 | AB45: 40.17857143 | AC45: 40.17857143 | AD45: 40.17857143 | AE45: 40.18 | AF45: 38.62 | AG45: 38.62 | AH45: 38.62 | AI45: 38.62 | AJ45: 38.62 | AK45: 38.62 | AL45: 38.62 | AM45: 38.62 | AN45: 38.62 | AO45: 38.62 | AP45: 38.62 | AQ45: 38.62 | AR45: 38.62 | AS45: 38.62 | AT45: 38.62 | AU45: 38.62 | AV45: 38.62 | AW45: 38.62 | AX45: 38.62 | AY45: 38.62 | AZ45: 38.61607143 | BA45: 38.61607143 | BB45: 38.61607143 | BC45: 38.61607143 | BD45: 38.61607143 | BE45: 38.61607143 | BF45: 38.61607143 | BG45: 38.61607143 | BH45: 38.61607143
A46: Cerro Cojitambo | B46: 02°45'40.70''S | C46: 78°53'16.40''W | D46: Azoguez | E46: 3106 | G46: 0 | H46: 0 | I46: 0 | J46: 0 | K46: 0 | L46: 0 | M46: 0 | N46: 0 | O46: 0 | P46: 0 | Q46: 0 | R46: 0 | S46: 0 | T46: 0 | U46: 0 | V46: 0 | W46: 0 | X46: 0 | Y46: 0 | Z46: 0 | AA46: 0 | AB46: 0 | AC46: 0 | AD46: 0 | AE46: 0 | AF46: 0 | AG46: 0 | AH46: 0 | AI46: 0 | AJ46: 0 | AK46: 0 | AL46: 0 | AM46: 0 | AN46: 0 | AO46: 0 | AP46: 0 | AQ46: 0 | AR46: 0 | AS46: 0 | AT46: 0 | AU46: 0 | AV46: 0 | AW46: 0 | AX46: 0 | AY46: 0 | AZ46: 0 | BA46: 0 | BB46: 0 | BC46: 0 | BD46: 0 | BE46: 0 | BF46: 0 | BG46: 0 | BH46: 0
A47: Cerro Villaflor | B47: 02°49'44.60''S | C47: 78°48'12.30''W | D47: Azoguez | E47: 3042 | G47: 0 | H47: 0 | I47: 0 | J47: 0 | K47: 0 | L47: 0 | M47: 0 | N47: 0 | O47: 0 | P47: 0 | Q47: 0 | R47: 0 | S47: 0 | T47: 0 | U47: 0 | V47: 0 | W47: 0 | X47: 0 | Y47: 0 | Z47: 0 | AA47: 0 | AB47: 0 | AC47: 0 | AD47: 0 | AE47: 0 | AF47: 0 | AG47: 0 | AH47: 0 | AI47: 0 | AJ47: 0 | AK47: 0 | AL47: 0 | AM47: 0 | AN47: 0 | AO47: 0 | AP47: 0 | AQ47: 0 | AR47: 0 | AS47: 0 | AT47: 0 | AU47: 0 | AV47: 0 | AW47: 0 | AX47: 0 | AY47: 0 | AZ47: 0 | BA47: 0 | BB47: 0 | BC47: 0 | BD47: 0 | BE47: 0 | BF47: 0 | BG47: 0 | BH47: 0
A48: Cerro Troya | B48: 00°44'24.50''N | C48: 77°41'48.70''W | D48: Tulcán | E48: 3529 | G48: 10.20408163 | H48: 10.20408163 | I48: 10.20408163 | J48: 10.20408163 | K48: 10.20408163 | L48: 10.20408163 | M48: 51.78571429 | N48: 51.78571429 | O48: 51.78571429 | P48: 51.78571429 | Q48: 51.78571429 | R48: 51.78571429 | S48: 26.33928571 | T48: 26.33928571 | U48: 26.33928571 | V48: 26.33928571 | W48: 51.78571429 | X48: 51.78571429 | Y48: 51.78571429 | Z48: 51.78571429 | AA48: 51.78571429 | AB48: 51.78571429 | AC48: 51.78571429 | AD48: 51.78571429 | AE48: 51.79 | AF48: 0 | AG48: 0 | AH48: 0 | AI48: 0 | AJ48: 0 | AK48: 0 | AL48: 0 | AM48: 0 | AN48: 0 | AO48: 0 | AP48: 0 | AQ48: 0 | AR48: 0 | AS48: 0 | AT48: 0 | AU48: 0 | AV48: 0 | AW48: 0 | AX48: 0 | AY48: 0 | AZ48: 51.78571429 | BA48: 51.78571429 | BB48: 51.78571429 | BC48: 51.78571429 | BD48: 51.78571429 | BE48: 51.78571429 | BF48: 51.78571429 | BG48: 51.78571429 | BH48: 51.78571429
A49: Cerro Troya Bajo | B49: 00°44'09.50''N | C49: 77°42'22.80''W | D49: Tulcán | E49: 3418 | G49: 0 | H49: 0 | I49: 0 | J49: 0 | K49: 0 | L49: 0 | M49: 0 | N49: 0 | O49: 0 | P49: 0 | Q49: 0 | R49: 0 | S49: 0 | T49: 0 | U49: 0 | V49: 0 | W49: 0 | X49: 0 | Y49: 0 | Z49: 0 | AA49: 0 | AB49: 0 | AC49: 0 | AD49: 0 | AE49: 0 | AF49: 0 | AG49: 0 | AH49: 0 | AI49: 0 | AJ49: 0 | AK49: 0 | AL49: 0 | AM49: 0 | AN49: 0 | AO49: 0 | AP49: 0 | AQ49: 0 | AR49: 0 | AS49: 0 | AT49: 0 | AU49: 0 | AV49: 0 | AW49: 0 | AX49: 0 | AY49: 0 | AZ49: 0 | BA49: 0 | BB49: 0 | BC49: 0 | BD49: 0 | BE49: 0 | BF49: 0 | BG49: 0 | BH49: 0
A50: Cerro Cabras | B50: 00°28'15.00''N | C50: 77°57'50.70''W | D50: Bolívar | E50: 2904 | G50: 10.20408163 | H50: 10.20408163 | I50: 10.20408163 | J50: 10.20408163 | K50: 10.20408163 | L50: 10.20408163 | M50: 51.78571429 | N50: 51.78571429 | O50: 51.78571429 | P50: 51.78571429 | Q50: 51.78571429 | R50: 51.78571429 | S50: 0 | T50: 0 | U50: 0 | V50: 0 | W50: 51.78571429 | X50: 51.78571429 | Y50: 51.78571429 | Z50: 51.78571429 | AA50: 51.78571429 | AB50: 51.78571429 | AC50: 51.78571429 | AD50: 51.78571429 | AE50: 51.79 | AF50: 0 | AG50: 0 | AH50: 0 | AI50: 0 | AJ50: 0 | AK50: 0 | AL50: 0 | AM50: 0 | AN50: 0 | AO50: 0 | AP50: 0 | AQ50: 0 | AR50: 0 | AS50: 0 | AT50: 0 | AU50: 0 | AV50: 0 | AW50: 0 | AX50: 0 | AY50: 0 | AZ50: 51.78571429 | BA50: 51.78571429 | BB50: 51.78571429 | BC50: 51.78571429 | BD50: 26.33928571 | BE50: 26.33928571 | BF50: 26.33928571 | BG50: 26.33928571 | BH50: 26.33928571
A51: Cerro Chiles Alto | B51: 00°35'14.40''N | C51: 77°51'04.00''W | D51: Montúfar | E51: 3093 | G51: 0 | H51: 0 | I51: 0 | J51: 0 | K51: 0 | L51: 0 | M51: 0 | N51: 0 | O51: 0 | P51: 0 | Q51: 0 | R51: 0 | S51: 0 | T51: 0 | U51: 0 | V51: 0 | W51: 0 | X51: 0 | Y51: 0 | Z51: 0 | AA51: 0 | AB51: 0 | AC51: 0 | AD51: 0 | AE51: 0 | AF51: 0 | AG51: 0 | AH51: 0 | AI51: 0 | AJ51: 0 | AK51: 0 | AL51: 0 | AM51: 0 | AN51: 0 | AO51: 0 | AP51: 0 | AQ51: 0 | AR51: 0 | AS51: 0 | AT51: 0 | AU51: 0 | AV51: 0 | AW51: 0 | AX51: 0 | AY51: 0 | AZ51: 0 | BA51: 0 | BB51: 0 | BC51: 0 | BD51: 0 | BE51: 0 | BF51: 0 | BG51: 0 | BH51: 0
A52: Agua Santa | B52: 01°41'46.80''S | C52: 78°39'59.80''W | D52: Riobamba | E52: 3006 | G52: 0 | H52: 0 | I52: 0 | J52: 0 | K52: 0 | L52: 0 | M52: 0 | N52: 0 | O52: 0 | P52: 0 | Q52: 0 | R52: 0 | S52: 0 | T52: 0 | U52: 0 | V52: 0 | W52: 0 | X52: 0 | Y52: 0 | Z52: 0 | AA52: 0 | AB52: 0 | AC52: 0 | AD52: 0 | AE52: 0 | AF52: 1.34 | AG52: 1.34 | AH52: 1.34 | AI52: 1.34 | AJ52: 1.34 | AK52: 1.34 | AL52: 1.34 | AM52: 1.34 | AN52: 1.34 | AO52: 1.34 | AP52: 1.34 | AQ52: 1.34 | AR52: 1.34 | AS52: 1.34 | AT52: 1.34 | AU52: 1.34 | AV52: 1.34 | AW52: 1.34 | AX52: 1.34 | AY52: 1.34 | AZ52: 1.339285714 | BA52: 1.339285714 | BB52: 1.339285714 | BC52: 1.339285714 | BD52: 1.339285714 | BE52: 1.339285714 | BF52: 1.339285714 | BG52: 1.339285714 | BH52: 1.339285714
A53: Cerro Amula Rayoloma | B53: 01°41'22.10''S | C53: 78°43'45.70''W | D53: Colta | E53: 3485 | G53: 0 | H53: 0 | I53: 0 | J53: 0 | K53: 0 | L53: 0 | M53: 0 | N53: 0 | O53: 0 | P53: 0 | Q53: 0 | R53: 0 | S53: 0 | T53: 0 | U53: 0 | V53: 0 | W53: 0 | X53: 0 | Y53: 0 | Z53: 0 | AA53: 0 | AB53: 0 | AC53: 0 | AD53: 0 | AE53: 0 | AF53: 0 | AG53: 0 | AH53: 0 | AI53: 0 | AJ53: 0 | AK53: 0 | AL53: 0 | AM53: 0 | AN53: 0 | AO53: 0 | AP53: 0 | AQ53: 0 | AR53: 0 | AS53: 0 | AT53: 0 | AU53: 0 | AV53: 0 | AW53: 0 | AX53: 0 | AY53: 0 | AZ53: 0 | BA53: 0 | BB53: 0 | BC53: 0 | BD53: 0 | BE53: 0 | BF53: 0 | BG53: 0 | BH53: 0
A54: Cerro Gatazo Grande | B54: 01°39'41.30''S | C54: 78°45'00.80''W | D54: Colta | E54: 3188 | G54: 0 | H54: 0 | I54: 0 | J54: 0 | K54: 0 | L54: 0 | M54: 0 | N54: 0 | O54: 0 | P54: 0 | Q54: 0 | R54: 0 | S54: 0 | T54: 0 | U54: 0 | V54: 0 | W54: 0 | X54: 0 | Y54: 0 | Z54: 0 | AA54: 0 | AB54: 0 | AC54: 0 | AD54: 0 | AE54: 0 | AF54: 0 | AG54: 0 | AH54: 0 | AI54: 0 | AJ54: 0 | AK54: 0 | AL54: 0 | AM54: 0 | AN54: 0 | AO54: 0 | AP54: 0 | AQ54: 0 | AR54: 0 | AS54: 0 | AT54: 0 | AU54: 0 | AV54: 0 | AW54: 0 | AX54: 0 | AY54: 0 | AZ54: 0 | BA54: 0 | BB54: 0 | BC54: 0 | BD54: 0 | BE54: 0 | BF54: 0 | BG54: 0 | BH54: 0
A55: Cerro Higno Cacha | B55: 01°41'31.90''S | C55: 78°42'58.60''W | D55: Riobamba | E55: 3567 | G55: 0 | H55: 0 | I55: 0 | J55: 0 | K55: 0 | L55: 0 | M55: 0 | N55: 0 | O55: 0 | P55: 0 | Q55: 0 | R55: 0 | S55: 0 | T55: 0 | U55: 0 | V55: 0 | W55: 0 | X55: 0 | Y55: 0 | Z55: 0 | AA55: 0 | AB55: 0 | AC55: 0 | AD55: 0 | AE55: 0 | AF55: 0 | AG55: 0 | AH55: 0 | AI55: 0 | AJ55: 0 | AK55: 0 | AL55: 0 | AM55: 0 | AN55: 0 | AO55: 0 | AP55: 0 | AQ55: 0 | AR55: 0 | AS55: 0 | AT55: 0 | AU55: 0 | AV55: 0 | AW55: 0 | AX55: 0 | AY55: 0 | AZ55: 0 | BA55: 0 | BB55: 0 | BC55: 0 | BD55: 0 | BE55: 0 | BF55: 0 | BG55: 0 | BH55: 0
A56: Cerro La Mira | B56: 01°30'32.70''S | C56: 78°35'05.20''W | D56: Guano | E56: 3881 | G56: 15.30612245 | H56: 15.30612245 | I56: 15.30612245 | J56: 15.30612245 | K56: 15.30612245 | L56: 15.30612245 | M56: 71.875 | N56: 71.875 | O56: 71.875 | P56: 71.875 | Q56: 71.875 | R56: 71.875 | S56: 26.33928571 | T56: 26.33928571 | U56: 26.33928571 | V56: 26.33928571 | W56: 71.875 | X56: 71.875 | Y56: 71.875 | Z56: 71.875 | AA56: 71.875 | AB56: 71.875 | AC56: 71.875 | AD56: 71.875 | AE56: 71.88 | AF56: 71.88 | AG56: 71.88 | AH56: 71.88 | AI56: 71.88 | AJ56: 71.88 | AK56: 71.88 | AL56: 71.88 | AM56: 71.88 | AN56: 71.88 | AO56: 71.88 | AP56: 71.88 | AQ56: 71.88 | AR56: 71.88 | AS56: 71.88 | AT56: 71.88 | AU56: 71.88 | AV56: 71.88 | AW56: 71.88 | AX56: 71.88 | AY56: 71.88 | AZ56: 71.875 | BA56: 71.875 | BB56: 71.875 | BC56: 71.875 | BD56: 71.875 | BE56: 71.875 | BF56: 71.875 | BG56: 71.875 | BH56: 71.875
A57: Cerro La Mira (Senincahuan) | B57: 01°41'31.90''S | C57: 78°42'58.60''W | D57: Riobamba | E57: 3947 | G57: 0 | H57: 0 | I57: 0 | J57: 0 | K57: 0 | L57: 0 | M57: 0 | N57: 0 | O57: 0 | P57: 0 | Q57: 0 | R57: 0 | S57: 0 | T57: 0 | U57: 0 | V57: 0 | W57: 0 | X57: 0 | Y57: 0 | Z57: 0 | AA57: 0 | AB57: 0 | AC57: 0 | AD57: 0 | AE57: 0 | AF57: 0 | AG57: 0 | AH57: 0 | AI57: 0 | AJ57: 0 | AK57: 0 | AL57: 0 | AM57: 0 | AN57: 0 | AO57: 0 | AP57: 0 | AQ57: 0 | AR57: 0 | AS57: 0 | AT57: 0 | AU57: 0 | AV57: 0 | AW57: 0 | AX57: 0 | AY57: 0 | AZ57: 0 | BA57: 0 | BB57: 0 | BC57: 0 | BD57: 0 | BE57: 0 | BF57: 0 | BG57: 0 | BH57: 0
A58: Cerro Achayandi | B58: 00°57'07.70''S | C58: 78°55'32.90''W | D58: Pujulí | E58: 4102 | G58: 5.102040816 | H58: 5.102040816 | I58: 5.102040816 | J58: 5.102040816 | K58: 5.102040816 | L58: 5.102040816 | M58: 26.33928571 | N58: 26.33928571 | O58: 26.33928571 | P58: 26.33928571 | Q58: 26.33928571 | R58: 26.33928571 | S58: 0 | T58: 0 | U58: 0 | V58: 0 | W58: 26.33928571 | X58: 26.33928571 | Y58: 26.33928571 | Z58: 26.33928571 | AA58: 26.33928571 | AB58: 26.33928571 | AC58: 26.33928571 | AD58: 26.33928571 | AE58: 26.34 | AF58: 51.79 | AG58: 51.79 | AH58: 51.79 | AI58: 51.79 | AJ58: 51.79 | AK58: 51.79 | AL58: 51.79 | AM58: 51.79 | AN58: 51.79 | AO58: 51.79 | AP58: 51.79 | AQ58: 51.79 | AR58: 51.79 | AS58: 51.79 | AT58: 51.79 | AU58: 51.79 | AV58: 51.79 | AW58: 51.79 | AX58: 51.79 | AY58: 51.79 | AZ58: 26.33928571 | BA58: 26.33928571 | BB58: 26.33928571 | BC58: 26.33928571 | BD58: 26.33928571 | BE58: 26.33928571 | BF58: 26.33928571 | BG58: 26.33928571 | BH58: 26.33928571
A59: Cerro Apagua | B59: 00°58'32.00''S | C59: 78°56'58.00''W | D59: Pujulí | E59: 4032 | G59: 0 | H59: 0 | I59: 0 | J59: 0 | K59: 0 | L59: 0 | M59: 0 | N59: 0 | O59: 0 | P59: 0 | Q59: 0 | R59: 0 | S59: 0 | T59: 0 | U59: 0 | V59: 0 | W59: 0 | X59: 0 | Y59: 0 | Z59: 0 | AA59: 0 | AB59: 0 | AC59: 0 | AD59: 0 | AE59: 0 | AF59: 0 | AG59: 0 | AH59: 0 | AI59: 0 | AJ59: 0 | AK59: 0 | AL59: 0 | AM59: 0 | AN59: 0 | AO59: 0 | AP59: 0 | AQ59: 0 | AR59: 0 | AS59: 0 | AT59: 0 | AU59: 0 | AV59: 0 | AW59: 0 | AX59: 0 | AY59: 0 | AZ59: 0 | BA59: 0 | BB59: 0 | BC59: 0 | BD59: 0 | BE59: 0 | BF59: 0 | BG59: 0 | BH59: 0
A60: Cerro Putzalagua | B60: 00°57'56.00''S | C60: 78°33'42.70''W | D60: Latacunga | E60: 3531 | G60: 0 | H60: 0 | I60: 0 | J60: 0 | K60: 0 | L60: 0 | M60: 0 | N60: 0 | O60: 0 | P60: 0 | Q60: 0 | R60: 0 | S60: 0 | T60: 0 | U60: 0 | V60: 0 | W60: 0 | X60: 0 | Y60: 0 | Z60: 0 | AA60: 0 | AB60: 0 | AC60: 0 | AD60: 0 | AE60: 0 | AF60: 0 | AG60: 0 | AH60: 0 | AI60: 0 | AJ60: 0 | AK60: 0 | AL60: 0 | AM60: 0 | AN60: 0 | AO60: 0 | AP60: 0 | AQ60: 0 | AR60: 0 | AS60: 0 | AT60: 0 | AU60: 0 | AV60: 0 | AW60: 0 | AX60: 0 | AY60: 0 | AZ60: 0 | BA60: 0 | BB60: 0 | BC60: 0 | BD60: 0 | BE60: 0 | BF60: 0 | BG60: 0 | BH60: 0
A61: Chasqui | B61: 00°37'15.30''S | C61: 78°35'37.20''W | D61: Latacunga | E61: 3532 | G61: 0 | H61: 0 | I61: 0 | J61: 0 | K61: 0 | L61: 0 | M61: 0 | N61: 0 | O61: 0 | P61: 0 | Q61: 0 | R61: 0 | S61: 0 | T61: 0 | U61: 0 | V61: 0 | W61: 0 | X61: 0 | Y61: 0 | Z61: 0 | AA61: 0 | AB61: 0 | AC61: 0 | AD61: 0 | AE61: 0 | AF61: 0 | AG61: 0 | AH61: 0 | AI61: 0 | AJ61: 0 | AK61: 0 | AL61: 0 | AM61: 0 | AN61: 0 | AO61: 0 | AP61: 0 | AQ61: 0 | AR61: 0 | AS61: 0 | AT61: 0 | AU61: 0 | AV61: 0 | AW61: 0 | AX61: 0 | AY61: 0 | AZ61: 0 | BA61: 0 | BB61: 0 | BC61: 0 | BD61: 0 | BE61: 0 | BF61: 0 | BG61: 0 | BH61: 0
A62: Cerro Chilla | B62: 03°29'09.70''S | C62: 79°36'04.70''W | D62: Chilla | E62: 3450 | G62: 0 | H62: 0 | I62: 0 | J62: 0 | K62: 0 | L62: 0 | M62: 0 | N62: 0 | O62: 0 | P62: 0 | Q62: 0 | R62: 0 | S62: 0 | T62: 0 | U62: 0 | V62: 0 | W62: 0 | X62: 0 | Y62: 0 | Z62: 0 | AA62: 0 | AB62: 0 | AC62: 0 | AD62: 0 | AE62: 0 | AF62: 0 | AG62: 0 | AH62: 0 | AI62: 0 | AJ62: 0 | AK62: 0 | AL62: 0 | AM62: 0 | AN62: 0 | AO62: 0 | AP62: 0 | AQ62: 0 | AR62: 0 | AS62: 0 | AT62: 0 | AU62: 0 | AV62: 0 | AW62: 0 | AX62: 0 | AY62: 0 | AZ62: 0 | BA62: 0 | BB62: 0 | BC62: 0 | BD62: 0 | BE62: 0 | BF62: 0 | BG62: 0 | BH62: 0
A63: Cerro Chilola | B63: 03°30'00.90''S | C63: 79°37'52.50''W | D63: Chilla | E63: 3596 | G63: 0 | H63: 0 | I63: 0 | J63: 0 | K63: 0 | L63: 0 | M63: 0 | N63: 0 | O63: 0 | P63: 0 | Q63: 0 | R63: 0 | S63: 0 | T63: 0 | U63: 0 | V63: 0 | W63: 0 | X63: 0 | Y63: 0 | Z63: 0 | AA63: 0 | AB63: 0 | AC63: 0 | AD63: 0 | AE63: 0 | AF63: 0 | AG63: 0 | AH63: 0 | AI63: 0 | AJ63: 0 | AK63: 0 | AL63: 0 | AM63: 0 | AN63: 0 | AO63: 0 | AP63: 0 | AQ63: 0 | AR63: 0 | AS63: 0 | AT63: 0 | AU63: 0 | AV63: 0 | AW63: 0 | AX63: 0 | AY63: 0 | AZ63: 0 | BA63: 0 | BB63: 0 | BC63: 0 | BD63: 0 | BE63: 0 | BF63: 0 | BG63: 0 | BH63: 0
A64: Cerro El Trigal | B64: 03°41'23.20''S | C64: 79°39'33.90''W | D64: Piñas | E64: 1292 | G64: 0 | H64: 0 | I64: 0 | J64: 0 | K64: 0 | L64: 0 | M64: 0 | N64: 0 | O64: 0 | P64: 0 | Q64: 0 | R64: 0 | S64: 0 | T64: 0 | U64: 0 | V64: 0 | W64: 0 | X64: 0 | Y64: 0 | Z64: 0 | AA64: 0 | AB64: 0 | AC64: 0 | AD64: 0 | AE64: 0 | AF64: 0 | AG64: 0 | AH64: 0 | AI64: 0 | AJ64: 0 | AK64: 0 | AL64: 0 | AM64: 0 | AN64: 0 | AO64: 0 | AP64: 0 | AQ64: 0 | AR64: 0 | AS64: 0 | AT64: 0 | AU64: 0 | AV64: 0 | AW64: 0 | AX64: 0 | AY64: 0 | AZ64: 0 | BA64: 0 | BB64: 0 | BC64: 0 | BD64: 0 | BE64: 0 | BF64: 0 | BG64: 0 | BH64: 0
A65: Cerro Guirillio | B65: 03°09'57.50''S | C65: 79°36'20.40''W | D65: El Guabo | E65: 3192 | G65: 0 | H65: 0 | I65: 0 | J65: 0 | K65: 0 | L65: 0 | M65: 0 | N65: 0 | O65: 0 | P65: 0 | Q65: 0 | R65: 0 | S65: 0 | T65: 0 | U65: 0 | V65: 0 | W65: 0 | X65: 0 | Y65: 0 | Z65: 0 | AA65: 0 | AB65: 0 | AC65: 0 | AD65: 0 | AE65: 0 | AF65: 0 | AG65: 0 | AH65: 0 | AI65: 0 | AJ65: 0 | AK65: 0 | AL65: 0 | AM65: 0 | AN65: 0 | AO65: 0 | AP65: 0 | AQ65: 0 | AR65: 0 | AS65: 0 | AT65: 0 | AU65: 0 | AV65: 0 | AW65: 0 | AX65: 0 | AY65: 0 | AZ65: 0 | BA65: 0 | BB65: 0 | BC65: 0 | BD65: 0 | BE65: 0 | BF65: 0 | BG65: 0 | BH65: 0
A66: Cerro La Chuva | B66: 03°43'03.00''S | C66: 79°39'11.30''W | D66: Piñas | E66: 1282 | G66: 0 | H66: 0 | I66: 0 | J66: 0 | K66: 0 | L66: 0 | M66: 0 | N66: 0 | O66: 0 | P66: 0 | Q66: 0 | R66: 0 | S66: 0 | T66: 0 | U66: 0 | V66: 0 | W66: 13.16964286 | X66: 13.16964286 | Y66: 13.16964286 | Z66: 13.16964286 | AA66: 13.16964286 | AB66: 13.16964286 | AC66: 13.16964286 | AD66: 13.16964286 | AE66: 13.17 | AF66: 13.17 | AG66: 13.17 | AH66: 13.17 | AI66: 13.17 | AJ66: 13.17 | AK66: 13.17 | AL66: 13.17 | AM66: 13.17 | AN66: 13.17 | AO66: 13.17 | AP66: 13.17 | AQ66: 13.17 | AR66: 13.17 | AS66: 13.17 | AT66: 13.17 | AU66: 13.17 | AV66: 13.17 | AW66: 13.17 | AX66: 13.17 | AY66: 13.17 | AZ66: 13.16964286 | BA66: 13.16964286 | BB66: 13.16964286 | BC66: 13.16964286 | BD66: 13.16964286 | BE66: 13.16964286 | BF66: 13.16964286 | BG66: 13.16964286 | BH66: 13.16964286
A67: Cerro Repen | B67: 03°33'01.80''S | C67: 79°41'02.70''W | D67: Atahualpa | E67: 2369 | G67: 5.102040816 | H67: 5.102040816 | I67: 5.102040816 | J67: 5.102040816 | K67: 5.102040816 | L67: 5.102040816 | M67: 26.33928571 | N67: 26.33928571 | O67: 26.33928571 | P67: 26.33928571 | Q67: 26.33928571 | R67: 26.33928571 | S67: 26.33928571 | T67: 26.33928571 | U67: 26.33928571 | V67: 26.33928571 | W67: 51.33928571 | X67: 51.33928571 | Y67: 51.33928571 | Z67: 51.33928571 | AA67: 51.33928571 | AB67: 51.33928571 | AC67: 51.33928571 | AD67: 51.33928571 | AE67: 51.34 | AF67: 51.34 | AG67: 51.34 | AH67: 51.34 | AI67: 51.34 | AJ67: 51.34 | AK67: 51.34 | AL67: 51.34 | AM67: 51.34 | AN67: 51.34 | AO67: 51.34 | AP67: 51.34 | AQ67: 51.34 | AR67: 51.34 | AS67: 51.34 | AT67: 51.34 | AU67: 51.34 | AV67: 51.34 | AW67: 51.34 | AX67: 51.34 | AY67: 51.34 | AZ67: 51.33928571 | BA67: 51.33928571 | BB67: 51.33928571 | BC67: 51.33928571 | BD67: 51.33928571 | BE67: 51.33928571 | BF67: 51.33928571 | BG67: 51.33928571 | BH67: 51.33928571
A68: Cerro Balao (Esmeraldas) | B68: 00°57'41.30''N | C68: 79°41'25.70''W | D68: Esmeraldas | E68: 192 | G68: 0 | H68: 0 | I68: 0 | J68: 0 | K68: 0 | L68: 0 | M68: 0 | N68: 0 | O68: 0 | P68: 0 | Q68: 0 | R68: 0 | S68: 0 | T68: 0 | U68: 0 | V68: 0 | W68: 0 | X68: 0 | Y68: 0 | Z68: 0 | AA68: 0 | AB68: 0 | AC68: 0 | AD68: 0 | AE68: 0 | AF68: 0 | AG68: 0 | AH68: 0 | AI68: 0 | AJ68: 0 | AK68: 0 | AL68: 0 | AM68: 0 | AN68: 0 | AO68: 0 | AP68: 0 | AQ68: 0 | AR68: 0 | AS68: 0 | AT68: 0 | AU68: 0 | AV68: 0 | AW68: 0 | AX68: 0 | AY68: 0 | AZ68: 0 | BA68: 0 | BB68: 0 | BC68: 0 | BD68: 0 | BE68: 0 | BF68: 0 | BG68: 0 | BH68: 0
A69: Cerro Don Juan | B69: 00°50'51.20''N | C69: 79°53'52.40''W | D69: Atacames | E69: 262 | G69: 15.30612245 | H69: 15.30612245 | I69: 15.30612245 | J69: 15.30612245 | K69: 15.30612245 | L69: 15.30612245 | M69: 72.76785714 | N69: 72.76785714 | O69: 72.76785714 | P69: 72.76785714 | Q69: 72.76785714 | R69: 72.76785714 | S69: 51.33928571 | T69: 51.33928571 | U69: 51.33928571 | V69: 51.33928571 | W69: 72.76785714 | X69: 72.76785714 | Y69: 72.76785714 | Z69: 72.76785714 | AA69: 72.76785714 | AB69: 72.76785714 | AC69: 72.76785714 | AD69: 72.76785714 | AE69: 72.77 | AF69: 0 | AG69: 0 | AH69: 0 | AI69: 0 | AJ69: 0 | AK69: 0 | AL69: 0 | AM69: 0 | AN69: 0 | AO69: 0 | AP69: 0 | AQ69: 0 | AR69: 0 | AS69: 0 | AT69: 0 | AU69: 0 | AV69: 0 | AW69: 0 | AX69: 0 | AY69: 0 | AZ69: 72.76785714 | BA69: 72.76785714 | BB69: 72.76785714 | BC69: 72.76785714 | BD69: 72.76785714 | BE69: 72.76785714 | BF69: 72.76785714 | BG69: 72.76785714 | BH69: 72.76785714
A70: Cerro Gatazo | B70: 00°56'38.40''N | C70: 79°39'29.70''W | D70: Esmeraldas | E70: 271 | G70: 5.102040816 | H70: 5.102040816 | I70: 5.102040816 | J70: 5.102040816 | K70: 5.102040816 | L70: 5.102040816 | M70: 17.41071429 | N70: 17.41071429 | O70: 17.41071429 | P70: 17.41071429 | Q70: 17.41071429 | R70: 17.41071429 | S70: 0 | T70: 0 | U70: 0 | V70: 0 | W70: 38.61607143 | X70: 38.61607143 | Y70: 38.61607143 | Z70: 38.61607143 | AA70: 38.61607143 | AB70: 38.61607143 | AC70: 38.61607143 | AD70: 38.61607143 | AE70: 38.62 | AF70: 8.93 | AG70: 8.93 | AH70: 8.93 | AI70: 8.93 | AJ70: 8.93 | AK70: 8.93 | AL70: 8.93 | AM70: 8.93 | AN70: 8.93 | AO70: 8.93 | AP70: 8.93 | AQ70: 8.93 | AR70: 8.93 | AS70: 8.93 | AT70: 8.93 | AU70: 8.93 | AV70: 8.93 | AW70: 8.93 | AX70: 8.93 | AY70: 8.93 | AZ70: 38.61607143 | BA70: 38.61607143 | BB70: 38.61607143 | BC70: 38.61607143 | BD70: 26.33928571 | BE70: 26.33928571 | BF70: 26.33928571 | BG70: 26.33928571 | BH70: 26.33928571
A71: Cerro La Juanita | B71: 00°28'02.20''N | C71: 79°34'40.50''W | D71: Quinindé | E71: 502 | G71: 10.20408163 | H71: 10.20408163 | I71: 10.20408163 | J71: 10.20408163 | K71: 10.20408163 | L71: 10.20408163 | M71: 39.50892857 | N71: 39.50892857 | O71: 39.50892857 | P71: 39.50892857 | Q71: 39.50892857 | R71: 39.50892857 | S71: 26.33928571 | T71: 26.33928571 | U71: 26.33928571 | V71: 26.33928571 | W71: 39.50892857 | X71: 39.50892857 | Y71: 39.50892857 | Z71: 39.50892857 | AA71: 39.50892857 | AB71: 39.50892857 | AC71: 39.50892857 | AD71: 39.50892857 | AE71: 39.51 | AF71: 0 | AG71: 0 | AH71: 0 | AI71: 0 | AJ71: 0 | AK71: 0 | AL71: 0 | AM71: 0 | AN71: 0 | AO71: 0 | AP71: 0 | AQ71: 0 | AR71: 0 | AS71: 0 | AT71: 0 | AU71: 0 | AV71: 0 | AW71: 0 | AX71: 0 | AY71: 0 | AZ71: 39.50892857 | BA71: 39.50892857 | BB71: 39.50892857 | BC71: 39.50892857 | BD71: 39.50892857 | BE71: 39.50892857 | BF71: 39.50892857 | BG71: 39.50892857 | BH71: 39.50892857
A72: Cerro Zapallo | B72: 00°53'05.30''N | C72: 79°31'52.20''W | D72: Esmeraldas | E72: 690 | G72: 15.30612245 | H72: 15.30612245 | I72: 15.30612245 | J72: 15.30612245 | K72: 15.30612245 | L72: 15.30612245 | M72: 53.34821429 | N72: 53.34821429 | O72: 53.34821429 | P72: 53.34821429 | Q72: 53.34821429 | R72: 53.34821429 | S72: 51.78571429 | T72: 51.78571429 | U72: 51.78571429 | V72: 51.78571429 | W72: 53.34821429 | X72: 53.34821429 | Y72: 53.34821429 | Z72: 53.34821429 | AA72: 53.34821429 | AB72: 53.34821429 | AC72: 53.34821429 | AD72: 53.34821429 | AE72: 53.35 | AF72: 0 | AG72: 0 | AH72: 0 | AI72: 0 | AJ72: 0 | AK72: 0 | AL72: 0 | AM72: 0 | AN72: 0 | AO72: 0 | AP72: 0 | AQ72: 0 | AR72: 0 | AS72: 0 | AT72: 0 | AU72: 0 | AV72: 0 | AW72: 0 | AX72: 0 | AY72: 0 | AZ72: 51.78571429 | BA72: 51.78571429 | BB72: 51.78571429 | BC72: 51.78571429 | BD72: 51.78571429 | BE72: 51.78571429 | BF72: 51.78571429 | BG72: 51.78571429 | BH72: 51.78571429
A73: Cerro Animas | B73: 02°28'28.20''S | C73: 80°28'03.40''W | D73: Guayaquil | E73: 427 | G73: 33.67346939 | H73: 33.67346939 | I73: 33.67346939 | J73: 33.67346939 | K73: 33.67346939 | L73: 33.67346939 | M73: 82.58928571 | N73: 82.58928571 | O73: 82.58928571 | P73: 82.58928571 | Q73: 82.58928571 | R73: 82.58928571 | S73: 26.33928571 | T73: 26.33928571 | U73: 26.33928571 | V73: 26.33928571 | W73: 82.58928571 | X73: 82.58928571 | Y73: 82.58928571 | Z73: 82.58928571 | AA73: 82.58928571 | AB73: 82.58928571 | AC73: 82.14285714 | AD73: 82.14285714 | AE73: 82.14 | AF73: 82.14 | AG73: 82.14 | AH73: 82.14 | AI73: 82.14 | AJ73: 82.14 | AK73: 82.14 | AL73: 82.14 | AM73: 82.14 | AN73: 82.14 | AO73: 82.14 | AP73: 82.14 | AQ73: 82.14 | AR73: 82.14 | AS73: 82.14 | AT73: 82.14 | AU73: 82.14 | AV73: 82.14 | AW73: 82.14 | AX73: 82.14 | AY73: 82.14 | AZ73: 70.53571429 | BA73: 70.53571429 | BB73: 70.53571429 | BC73: 70.53571429 | BD73: 70.53571429 | BE73: 70.53571429 | BF73: 70.53571429 | BG73: 70.53571429 | BH73: 70.53571429
A74: Cerro Azul | B74: 02°09'57.40''S | C74: 79°57'24.80''W | D74: Guayaquil | E74: 324 | G74: 48.21428571 | H74: 48.21428571 | I74: 48.21428571 | J74: 48.21428571 | K74: 48.21428571 | L74: 48.21428571 | M74: 85.04464286 | N74: 85.04464286 | O74: 85.04464286 | P74: 85.04464286 | Q74: 85.04464286 | R74: 85.04464286 | S74: 38.16964286 | T74: 38.16964286 | U74: 38.16964286 | V74: 38.16964286 | W74: 97.09821429 | X74: 97.09821429 | Y74: 97.09821429 | Z74: 97.09821429 | AA74: 97.09821429 | AB74: 97.09821429 | AC74: 97.54464286 | AD74: 97.54464286 | AE74: 97.54 | AF74: 81.47 | AG74: 81.47 | AH74: 81.47 | AI74: 81.47 | AJ74: 81.47 | AK74: 81.47 | AL74: 81.47 | AM74: 81.47 | AN74: 81.47 | AO74: 81.47 | AP74: 81.47 | AQ74: 81.47 | AR74: 81.47 | AS74: 81.47 | AT74: 81.47 | AU74: 81.47 | AV74: 81.47 | AW74: 81.47 | AX74: 81.47 | AY74: 81.47 | AZ74: 92.85714286 | BA74: 92.85714286 | BB74: 92.85714286 | BC74: 92.85714286 | BD74: 81.47321429 | BE74: 81.47321429 | BF74: 81.47321429 | BG74: 81.47321429 | BH74: 81.47321429
A75: Cerro Azul Alto (507) | B75: 02°09'05.10''S | C75: 79°59'01.80''W | D75: Guayaquil | E75: 398 | G75: 0 | H75: 0 | I75: 0 | J75: 0 | K75: 0 | L75: 0 | M75: 0 | N75: 0 | O75: 0 | P75: 0 | Q75: 0 | R75: 0 | S75: 0 | T75: 0 | U75: 0 | V75: 0 | W75: 0 | X75: 0 | Y75: 0 | Z75: 0 | AA75: 0 | AB75: 0 | AC75: 0 | AD75: 0 | AE75: 0 | AF75: 0 | AG75: 0 | AH75: 0 | AI75: 0 | AJ75: 0 | AK75: 0 | AL75: 0 | AM75: 0 | AN75: 0 | AO75: 0 | AP75: 0 | AQ75: 0 | AR75: 0 | AS75: 0 | AT75: 0 | AU75: 0 | AV75: 0 | AW75: 0 | AX75: 0 | AY75: 0 | AZ75: 0 | BA75: 0 | BB75: 0 | BC75: 0 | BD75: 0 | BE75: 0 | BF75: 0 | BG75: 0 | BH75: 0
A76: Cerro Balao | B76: 02°45'58.90''S | C76: 79°39'52.90''W | D76: Naranjal | E76: 490 | G76: 15.30612245 | H76: 15.30612245 | I76: 15.30612245 | J76: 15.30612245 | K76: 15.30612245 | L76: 15.30612245 | M76: 48.88392857 | N76: 48.88392857 | O76: 48.88392857 | P76: 48.88392857 | Q76: 48.88392857 | R76: 48.88392857 | S76: 26.33928571 | T76: 26.33928571 | U76: 26.33928571 | V76: 26.33928571 | W76: 48.88392857 | X76: 48.88392857 | Y76: 48.88392857 | Z76: 48.88392857 | AA76: 48.88392857 | AB76: 48.88392857 | AC76: 48.88392857 | AD76: 48.88392857 | AE76: 48.88 | AF76: 48.88 | AG76: 48.88 | AH76: 48.88 | AI76: 48.88 | AJ76: 48.88 | AK76: 48.88 | AL76: 48.88 | AM76: 48.88 | AN76: 48.88 | AO76: 48.88 | AP76: 48.88 | AQ76: 48.88 | AR76: 48.88 | AS76: 48.88 | AT76: 48.88 | AU76: 48.88 | AV76: 48.88 | AW76: 48.88 | AX76: 48.88 | AY76: 48.88 | AZ76: 47.32142857 | BA76: 47.32142857 | BB76: 47.32142857 | BC76: 47.32142857 | BD76: 47.32142857 | BE76: 47.32142857 | BF76: 47.32142857 | BG76: 47.32142857 | BH76: 47.32142857
A77: Cerro Bellavista | B77: 02°10'57.10''S | C77: 79°54'51.30''W | D77: Guayaquil | E77: 100 | G77: 10.20408163 | H77: 10.20408163 | I77: 10.20408163 | J77: 10.20408163 | K77: 10.20408163 | L77: 10.20408163 | M77: 26.33928571 | N77: 26.33928571 | O77: 26.33928571 | P77: 26.33928571 | Q77: 26.33928571 | R77: 26.33928571 | S77: 16.29464286 | T77: 16.29464286 | U77: 16.29464286 | V77: 16.29464286 | W77: 26.33928571 | X77: 26.33928571 | Y77: 26.33928571 | Z77: 26.33928571 | AA77: 26.33928571 | AB77: 26.33928571 | AC77: 26.33928571 | AD77: 26.33928571 | AE77: 26.34 | AF77: 10.04 | AG77: 10.04 | AH77: 10.04 | AI77: 10.04 | AJ77: 10.04 | AK77: 10.04 | AL77: 10.04 | AM77: 10.04 | AN77: 10.04 | AO77: 10.04 | AP77: 10.04 | AQ77: 10.04 | AR77: 10.04 | AS77: 10.04 | AT77: 10.04 | AU77: 10.04 | AV77: 10.04 | AW77: 10.04 | AX77: 10.04 | AY77: 10.04 | AZ77: 10.04464286 | BA77: 10.04464286 | BB77: 10.04464286 | BC77: 10.04464286 | BD77: 0 | BE77: 0 | BF77: 0 | BG77: 0 | BH77: 0
A78: Cerro El Carmen | B78: 02°10'47.60''S | C78: 79°52'50.00''W | D78: Guayaquil | E78: 80 | G78: 24.48979592 | H78: 24.48979592 | I78: 24.48979592 | J78: 24.48979592 | K78: 24.48979592 | L78: 24.48979592 | M78: 47.32142857 | N78: 47.32142857 | O78: 47.32142857 | P78: 47.32142857 | Q78: 47.32142857 | R78: 47.32142857 | S78: 38.16964286 | T78: 38.16964286 | U78: 38.16964286 | V78: 38.16964286 | W78: 47.32142857 | X78: 47.32142857 | Y78: 47.32142857 | Z78: 47.32142857 | AA78: 47.32142857 | AB78: 47.32142857 | AC78: 58.25892857 | AD78: 58.25892857 | AE78: 58.26 | AF78: 43.08 | AG78: 43.08 | AH78: 43.08 | AI78: 43.08 | AJ78: 43.08 | AK78: 43.08 | AL78: 43.08 | AM78: 43.08 | AN78: 43.08 | AO78: 43.08 | AP78: 43.08 | AQ78: 43.08 | AR78: 43.08 | AS78: 43.08 | AT78: 43.08 | AU78: 43.08 | AV78: 43.08 | AW78: 43.08 | AX78: 43.08 | AY78: 43.08 | AZ78: 54.01785714 | BA78: 54.01785714 | BB78: 54.01785714 | BC78: 54.01785714 | BD78: 43.08035714 | BE78: 43.08035714 | BF78: 43.08035714 | BG78: 43.08035714 | BH78: 43.08035714
A79: Cerro González | B79: 02°20'57.30''S | C79: 80°32'36.70''W | D79: Guayaquil | E79: 296 | G79: 10.20408163 | H79: 10.20408163 | I79: 10.20408163 | J79: 10.20408163 | K79: 10.20408163 | L79: 10.20408163 | M79: 39.50892857 | N79: 39.50892857 | O79: 39.50892857 | P79: 39.50892857 | Q79: 39.50892857 | R79: 39.50892857 | S79: 0 | T79: 0 | U79: 0 | V79: 0 | W79: 39.50892857 | X79: 39.50892857 | Y79: 39.50892857 | Z79: 39.50892857 | AA79: 39.50892857 | AB79: 39.50892857 | AC79: 39.50892857 | AD79: 39.50892857 | AE79: 39.51 | AF79: 26.34 | AG79: 26.34 | AH79: 26.34 | AI79: 26.34 | AJ79: 26.34 | AK79: 26.34 | AL79: 26.34 | AM79: 26.34 | AN79: 26.34 | AO79: 26.34 | AP79: 26.34 | AQ79: 26.34 | AR79: 26.34 | AS79: 26.34 | AT79: 26.34 | AU79: 26.34 | AV79: 26.34 | AW79: 26.34 | AX79: 26.34 | AY79: 26.34 | AZ79: 39.50892857 | BA79: 39.50892857 | BB79: 39.50892857 | BC79: 39.50892857 | BD79: 39.50892857 | BE79: 39.50892857 | BF79: 39.50892857 | BG79: 39.50892857 | BH79: 39.50892857
A80: Cerro Mapasingue | B80: 02°08'49.80''S | C80: 79°55'40.80''W | D80: Guayaquil | E80: 120 | G80: 14.28571429 | H80: 14.28571429 | I80: 14.28571429 | J80: 14.28571429 | K80: 14.28571429 | L80: 14.28571429 | M80: 27.23214286 | N80: 27.23214286 | O80: 27.23214286 | P80: 27.23214286 | Q80: 27.23214286 | R80: 27.23214286 | S80: 0 | T80: 0 | U80: 0 | V80: 0 | W80: 27.23214286 | X80: 27.23214286 | Y80: 27.23214286 | Z80: 27.23214286 | AA80: 27.23214286 | AB80: 27.23214286 | AC80: 27.23214286 | AD80: 27.23214286 | AE80: 27.23 | AF80: 1.34 | AG80: 1.34 | AH80: 1.34 | AI80: 1.34 | AJ80: 1.34 | AK80: 1.34 | AL80: 1.34 | AM80: 1.34 | AN80: 1.34 | AO80: 1.34 | AP80: 1.34 | AQ80: 1.34 | AR80: 1.34 | AS80: 1.34 | AT80: 1.34 | AU80: 1.34 | AV80: 1.34 | AW80: 1.34 | AX80: 1.34 | AY80: 1.34 | AZ80: 27.23214286 | BA80: 27.23214286 | BB80: 27.23214286 | BC80: 27.23214286 | BD80: 0 | BE80: 0 | BF80: 0 | BG80: 0 | BH80: 0
A81: Cerro San Eduardo | B81: 02°10'28.00''S | C81: 79°55'07.30''W | D81: Guayaquil | E81: 160 | G81: 3.06122449 | H81: 3.06122449 | I81: 3.06122449 | J81: 3.06122449 | K81: 3.06122449 | L81: 3.06122449 | M81: 10.04464286 | N81: 10.04464286 | O81: 10.04464286 | P81: 10.04464286 | Q81: 10.04464286 | R81: 10.04464286 | S81: 0 | T81: 0 | U81: 0 | V81: 0 | W81: 10.04464286 | X81: 10.04464286 | Y81: 10.04464286 | Z81: 10.04464286 | AA81: 10.04464286 | AB81: 10.04464286 | AC81: 10.04464286 | AD81: 10.04464286 | AE81: 10.04 | AF81: 11.38 | AG81: 11.38 | AH81: 11.38 | AI81: 11.38 | AJ81: 11.38 | AK81: 11.38 | AL81: 11.38 | AM81: 11.38 | AN81: 11.38 | AO81: 11.38 | AP81: 11.38 | AQ81: 11.38 | AR81: 11.38 | AS81: 11.38 | AT81: 11.38 | AU81: 11.38 | AV81: 11.38 | AW81: 11.38 | AX81: 11.38 | AY81: 11.38 | AZ81: 10.04464286 | BA81: 10.04464286 | BB81: 10.04464286 | BC81: 10.04464286 | BD81: 0 | BE81: 0 | BF81: 0 | BG81: 0 | BH81: 0
A82: Cerro Santa Ana | B82: 01°55'45.30''S | C82: 79°45'50.10''W | D82: San Borondón | E82: 300 | G82: 25.51020408 | H82: 25.51020408 | I82: 25.51020408 | J82: 25.51020408 | K82: 25.51020408 | L82: 25.51020408 | M82: 73.4375 | N82: 73.4375 | O82: 73.4375 | P82: 73.4375 | Q82: 73.4375 | R82: 73.4375 | S82: 26.33928571 | T82: 26.33928571 | U82: 26.33928571 | V82: 26.33928571 | W82: 73.4375 | X82: 73.4375 | Y82: 73.4375 | Z82: 73.4375 | AA82: 73.4375 | AB82: 73.4375 | AC82: 73.4375 | AD82: 73.4375 | AE82: 73.44 | AF82: 73.44 | AG82: 73.44 | AH82: 73.44 | AI82: 73.44 | AJ82: 73.44 | AK82: 73.44 | AL82: 73.44 | AM82: 73.44 | AN82: 73.44 | AO82: 73.44 | AP82: 73.44 | AQ82: 73.44 | AR82: 73.44 | AS82: 73.44 | AT82: 73.44 | AU82: 73.44 | AV82: 73.44 | AW82: 73.44 | AX82: 73.44 | AY82: 73.44 | AZ82: 65.84821429 | BA82: 65.84821429 | BB82: 65.84821429 | BC82: 65.84821429 | BD82: 65.84821429 | BE82: 65.84821429 | BF82: 65.84821429 | BG82: 65.84821429 | BH82: 65.84821429
A83: Cerro Tanzarte (Cruz Loma) | B83: 02°45'17.90''S | C83: 79°23'59.80''W | D83: Naranjal | E83: 2894 | G83: 4.081632653 | H83: 4.081632653 | I83: 4.081632653 | J83: 4.081632653 | K83: 4.081632653 | L83: 4.081632653 | M83: 13.39285714 | N83: 13.39285714 | O83: 13.39285714 | P83: 13.39285714 | Q83: 13.39285714 | R83: 13.39285714 | S83: 0 | T83: 0 | U83: 0 | V83: 0 | W83: 13.39285714 | X83: 13.39285714 | Y83: 13.39285714 | Z83: 13.39285714 | AA83: 13.39285714 | AB83: 13.39285714 | AC83: 13.39285714 | AD83: 13.39285714 | AE83: 13.39 | AF83: 13.39 | AG83: 13.39 | AH83: 13.39 | AI83: 13.39 | AJ83: 13.39 | AK83: 13.39 | AL83: 13.39 | AM83: 13.39 | AN83: 13.39 | AO83: 13.39 | AP83: 13.39 | AQ83: 13.39 | AR83: 13.39 | AS83: 13.39 | AT83: 13.39 | AU83: 13.39 | AV83: 13.39 | AW83: 13.39 | AX83: 13.39 | AY83: 13.39 | AZ83: 13.39285714 | BA83: 13.39285714 | BB83: 13.39285714 | BC83: 13.39285714 | BD83: 13.39285714 | BE83: 13.39285714 | BF83: 13.39285714 | BG83: 13.39285714 | BH83: 13.39285714
A84: Cerro Blanco | B84: 00°12'33.70''N | C84: 78°20'16.40''W | D84: Otavalo | E84: 3545 | G84: 12.24489796 | H84: 12.24489796 | I84: 12.24489796 | J84: 12.24489796 | K84: 12.24489796 | L84: 12.24489796 | M84: 39.28571429 | N84: 39.28571429 | O84: 39.28571429 | P84: 39.28571429 | Q84: 39.28571429 | R84: 39.28571429 | S84: 0 | T84: 0 | U84: 0 | V84: 0 | W84: 39.28571429 | X84: 39.28571429 | Y84: 39.28571429 | Z84: 39.28571429 | AA84: 39.28571429 | AB84: 39.28571429 | AC84: 39.28571429 | AD84: 39.28571429 | AE84: 39.29 | AF84: 0 | AG84: 0 | AH84: 0 | AI84: 0 | AJ84: 0 | AK84: 0 | AL84: 0 | AM84: 0 | AN84: 0 | AO84: 0 | AP84: 0 | AQ84: 0 | AR84: 0 | AS84: 0 | AT84: 0 | AU84: 0 | AV84: 0 | AW84: 0 | AX84: 0 | AY84: 0 | AZ84: 39.28571429 | BA84: 39.28571429 | BB84: 39.28571429 | BC84: 39.28571429 | BD84: 34.15178571 | BE84: 34.15178571 | BF84: 34.15178571 | BG84: 34.15178571 | BH84: 34.15178571
A85: Cerro Cotacachi | B85: 00°19'57.30''N | C85: 78°20'24.60''W | D85: Cotacachi | E85: 4047 | G85: 7.142857143 | H85: 7.142857143 | I85: 7.142857143 | J85: 7.142857143 | K85: 7.142857143 | L85: 7.142857143 | M85: 16.29464286 | N85: 16.29464286 | O85: 16.29464286 | P85: 16.29464286 | Q85: 16.29464286 | R85: 16.29464286 | S85: 0 | T85: 0 | U85: 0 | V85: 0 | W85: 16.29464286 | X85: 16.29464286 | Y85: 16.29464286 | Z85: 16.29464286 | AA85: 16.29464286 | AB85: 16.29464286 | AC85: 16.29464286 | AD85: 16.29464286 | AE85: 16.29 | AF85: 0 | AG85: 0 | AH85: 0 | AI85: 0 | AJ85: 0 | AK85: 0 | AL85: 0 | AM85: 0 | AN85: 0 | AO85: 0 | AP85: 0 | AQ85: 0 | AR85: 0 | AS85: 0 | AT85: 0 | AU85: 0 | AV85: 0 | AW85: 0 | AX85: 0 | AY85: 0 | AZ85: 16.29464286 | BA85: 16.29464286 | BB85: 16.29464286 | BC85: 16.29464286 | BD85: 0 | BE85: 0 | BF85: 0 | BG85: 0 | BH85: 0
A86: Cerro Calvario (Loja) | B86: 04°02'47.00''S | C86: 79°39'05.80''W | D86: Paltas | E86: 1935 | G86: 0 | H86: 0 | I86: 0 | J86: 0 | K86: 0 | L86: 0 | M86: 0 | N86: 0 | O86: 0 | P86: 0 | Q86: 0 | R86: 0 | S86: 0 | T86: 0 | U86: 0 | V86: 0 | W86: 0 | X86: 0 | Y86: 0 | Z86: 0 | AA86: 0 | AB86: 0 | AC86: 0 | AD86: 0 | AE86: 0 | AF86: 0 | AG86: 0 | AH86: 0 | AI86: 0 | AJ86: 0 | AK86: 0 | AL86: 0 | AM86: 0 | AN86: 0 | AO86: 0 | AP86: 0 | AQ86: 0 | AR86: 0 | AS86: 0 | AT86: 0 | AU86: 0 | AV86: 0 | AW86: 0 | AX86: 0 | AY86: 0 | AZ86: 0 | BA86: 0 | BB86: 0 | BC86: 0 | BD86: 0 | BE86: 0 | BF86: 0 | BG86: 0 | BH86: 0
A87: Cerro Colambo | B87: 04°14'14.60''S | C87: 79°23'45.40''W | D87: Gonzanamá | E87: 3103 | G87: 0 | H87: 0 | I87: 0 | J87: 0 | K87: 0 | L87: 0 | M87: 0 | N87: 0 | O87: 0 | P87: 0 | Q87: 0 | R87: 0 | S87: 0 | T87: 0 | U87: 0 | V87: 0 | W87: 0 | X87: 0 | Y87: 0 | Z87: 0 | AA87: 0 | AB87: 0 | AC87: 0 | AD87: 0 | AE87: 0 | AF87: 0 | AG87: 0 | AH87: 0 | AI87: 0 | AJ87: 0 | AK87: 0 | AL87: 0 | AM87: 0 | AN87: 0 | AO87: 0 | AP87: 0 | AQ87: 0 | AR87: 0 | AS87: 0 | AT87: 0 | AU87: 0 | AV87: 0 | AW87: 0 | AX87: 0 | AY87: 0 | AZ87: 0 | BA87: 0 | BB87: 0 | BC87: 0 | BD87: 0 | BE87: 0 | BF87: 0 | BG87: 0 | BH87: 0
A88: Cerro Guachaurco | B88: 04°02'11.70''S | C88: 79°52'19.40''W | D88: Paltas | E88: 3102 | G88: 0 | H88: 0 | I88: 0 | J88: 0 | K88: 0 | L88: 0 | M88: 0 | N88: 0 | O88: 0 | P88: 0 | Q88: 0 | R88: 0 | S88: 0 | T88: 0 | U88: 0 | V88: 0 | W88: 0 | X88: 0 | Y88: 0 | Z88: 0 | AA88: 0 | AB88: 0 | AC88: 0 | AD88: 0 | AE88: 0 | AF88: 0 | AG88: 0 | AH88: 0 | AI88: 0 | AJ88: 0 | AK88: 0 | AL88: 0 | AM88: 0 | AN88: 0 | AO88: 0 | AP88: 0 | AQ88: 0 | AR88: 0 | AS88: 0 | AT88: 0 | AU88: 0 | AV88: 0 | AW88: 0 | AX88: 0 | AY88: 0 | AZ88: 0 | BA88: 0 | BB88: 0 | BC88: 0 | BD88: 0 | BE88: 0 | BF88: 0 | BG88: 0 | BH88: 0
A89: Cerro Guanchuro | B89: 04°04'28.80''S | C89: 79°38'54.90''W | D89: Paltas | E89: 2446 | G89: 0 | H89: 0 | I89: 0 | J89: 0 | K89: 0 | L89: 0 | M89: 0 | N89: 0 | O89: 0 | P89: 0 | Q89: 0 | R89: 0 | S89: 0 | T89: 0 | U89: 0 | V89: 0 | W89: 0 | X89: 0 | Y89: 0 | Z89: 0 | AA89: 0 | AB89: 0 | AC89: 0 | AD89: 0 | AE89: 0 | AF89: 0 | AG89: 0 | AH89: 0 | AI89: 0 | AJ89: 0 | AK89: 0 | AL89: 0 | AM89: 0 | AN89: 0 | AO89: 0 | AP89: 0 | AQ89: 0 | AR89: 0 | AS89: 0 | AT89: 0 | AU89: 0 | AV89: 0 | AW89: 0 | AX89: 0 | AY89: 0 | AZ89: 0 | BA89: 0 | BB89: 0 | BC89: 0 | BD89: 0 | BE89: 0 | BF89: 0 | BG89: 0 | BH89: 0
A90: Cerro Huanchinchambo | B90: 04°01'25.20''S | C90: 79°14'45.90''W | D90: Catamayo | E90: 2849 | G90: 0 | H90: 0 | I90: 0 | J90: 0 | K90: 0 | L90: 0 | M90: 0 | N90: 0 | O90: 0 | P90: 0 | Q90: 0 | R90: 0 | S90: 0 | T90: 0 | U90: 0 | V90: 0 | W90: 0 | X90: 0 | Y90: 0 | Z90: 0 | AA90: 0 | AB90: 0 | AC90: 0 | AD90: 0 | AE90: 0 | AF90: 0 | AG90: 0 | AH90: 0 | AI90: 0 | AJ90: 0 | AK90: 0 | AL90: 0 | AM90: 0 | AN90: 0 | AO90: 0 | AP90: 0 | AQ90: 0 | AR90: 0 | AS90: 0 | AT90: 0 | AU90: 0 | AV90: 0 | AW90: 0 | AX90: 0 | AY90: 0 | AZ90: 0 | BA90: 0 | BB90: 0 | BC90: 0 | BD90: 0 | BE90: 0 | BF90: 0 | BG90: 0 | BH90: 0
A91: Cerro Motilon | B91: 04°04'57.10''S | C91: 79°56'22.20''W | D91: Celica | E91: 2663 | G91: 0 | H91: 0 | I91: 0 | J91: 0 | K91: 0 | L91: 0 | M91: 0 | N91: 0 | O91: 0 | P91: 0 | Q91: 0 | R91: 0 | S91: 0 | T91: 0 | U91: 0 | V91: 0 | W91: 0 | X91: 0 | Y91: 0 | Z91: 0 | AA91: 0 | AB91: 0 | AC91: 0 | AD91: 0 | AE91: 0 | AF91: 0 | AG91: 0 | AH91: 0 | AI91: 0 | AJ91: 0 | AK91: 0 | AL91: 0 | AM91: 0 | AN91: 0 | AO91: 0 | AP91: 0 | AQ91: 0 | AR91: 0 | AS91: 0 | AT91: 0 | AU91: 0 | AV91: 0 | AW91: 0 | AX91: 0 | AY91: 0 | AZ91: 0 | BA91: 0 | BB91: 0 | BC91: 0 | BD91: 0 | BE91: 0 | BF91: 0 | BG91: 0 | BH91: 0
A92: Cerro Ventanas | B92: 04°01'54.10''S | C92: 79°14'39.00''W | D92: Catamayo | E92: 2870 | G92: 0 | H92: 0 | I92: 0 | J92: 0 | K92: 0 | L92: 0 | M92: 0 | N92: 0 | O92: 0 | P92: 0 | Q92: 0 | R92: 0 | S92: 0 | T92: 0 | U92: 0 | V92: 0 | W92: 0 | X92: 0 | Y92: 0 | Z92: 0 | AA92: 0 | AB92: 0 | AC92: 0 | AD92: 0 | AE92: 0 | AF92: 0 | AG92: 0 | AH92: 0 | AI92: 0 | AJ92: 0 | AK92: 0 | AL92: 0 | AM92: 0 | AN92: 0 | AO92: 0 | AP92: 0 | AQ92: 0 | AR92: 0 | AS92: 0 | AT92: 0 | AU92: 0 | AV92: 0 | AW92: 0 | AX92: 0 | AY92: 0 | AZ92: 0 | BA92: 0 | BB92: 0 | BC92: 0 | BD92: 0 | BE92: 0 | BF92: 0 | BG92: 0 | BH92: 0
A93: Cerro Villonaco Alto | B93: 03°59'18.70''S | C93: 79°16'06.30''W | D93: Catamayo | E93: 2952 | G93: 0 | H93: 0 | I93: 0 | J93: 0 | K93: 0 | L93: 0 | M93: 0 | N93: 0 | O93: 0 | P93: 0 | Q93: 0 | R93: 0 | S93: 0 | T93: 0 | U93: 0 | V93: 0 | W93: 0 | X93: 0 | Y93: 0 | Z93: 0 | AA93: 0 | AB93: 0 | AC93: 0 | AD93: 0 | AE93: 0 | AF93: 0 | AG93: 0 | AH93: 0 | AI93: 0 | AJ93: 0 | AK93: 0 | AL93: 0 | AM93: 0 | AN93: 0 | AO93: 0 | AP93: 0 | AQ93: 0 | AR93: 0 | AS93: 0 | AT93: 0 | AU93: 0 | AV93: 0 | AW93: 0 | AX93: 0 | AY93: 0 | AZ93: 0 | BA93: 0 | BB93: 0 | BC93: 0 | BD93: 0 | BE93: 0 | BF93: 0 | BG93: 0 | BH93: 0
A94: Pucará | B94: 04°05'47.80''S | C94: 79°56'17.70''W | D94: Celica | E94: 2479 | G94: 0 | H94: 0 | I94: 0 | J94: 0 | K94: 0 | L94: 0 | M94: 0 | N94: 0 | O94: 0 | P94: 0 | Q94: 0 | R94: 0 | S94: 0 | T94: 0 | U94: 0 | V94: 0 | W94: 0 | X94: 0 | Y94: 0 | Z94: 0 | AA94: 0 | AB94: 0 | AC94: 0 | AD94: 0 | AE94: 0 | AF94: 0 | AG94: 0 | AH94: 0 | AI94: 0 | AJ94: 0 | AK94: 0 | AL94: 0 | AM94: 0 | AN94: 0 | AO94: 0 | AP94: 0 | AQ94: 0 | AR94: 0 | AS94: 0 | AT94: 0 | AU94: 0 | AV94: 0 | AW94: 0 | AX94: 0 | AY94: 0 | AZ94: 0 | BA94: 0 | BB94: 0 | BC94: 0 | BD94: 0 | BE94: 0 | BF94: 0 | BG94: 0 | BH94: 0
A95: Saraguro | B95: 03°37'55.20''S | C95: 79°14'37.50''W | D95: Saraguro | E95: 2740 | G95: 0 | H95: 0 | I95: 0 | J95: 0 | K95: 0 | L95: 0 | M95: 0 | N95: 0 | O95: 0 | P95: 0 | Q95: 0 | R95: 0 | S95: 0 | T95: 0 | U95: 0 | V95: 0 | W95: 0 | X95: 0 | Y95: 0 | Z95: 0 | AA95: 0 | AB95: 0 | AC95: 0 | AD95: 0 | AE95: 0 | AF95: 0 | AG95: 0 | AH95: 0 | AI95: 0 | AJ95: 0 | AK95: 0 | AL95: 0 | AM95: 0 | AN95: 0 | AO95: 0 | AP95: 0 | AQ95: 0 | AR95: 0 | AS95: 0 | AT95: 0 | AU95: 0 | AV95: 0 | AW95: 0 | AX95: 0 | AY95: 0 | AZ95: 0 | BA95: 0 | BB95: 0 | BC95: 0 | BD95: 0 | BE95: 0 | BF95: 0 | BG95: 0 | BH95: 0
A96: Cerro Corozo | B96: 01°29'23.10''S | C96: 80°31'27.00''W | D96: Jipijapa | E96: 774 | G96: 15.30612245 | H96: 15.30612245 | I96: 15.30612245 | J96: 15.30612245 | K96: 15.30612245 | L96: 15.30612245 | M96: 52.45535714 | N96: 52.45535714 | O96: 52.45535714 | P96: 52.45535714 | Q96: 52.45535714 | R96: 52.45535714 | S96: 26.33928571 | T96: 26.33928571 | U96: 26.33928571 | V96: 26.33928571 | W96: 52.45535714 | X96: 52.45535714 | Y96: 52.45535714 | Z96: 52.45535714 | AA96: 52.45535714 | AB96: 52.45535714 | AC96: 52.45535714 | AD96: 52.45535714 | AE96: 52.46 | AF96: 52.46 | AG96: 52.46 | AH96: 52.46 | AI96: 52.46 | AJ96: 52.46 | AK96: 52.46 | AL96: 52.46 | AM96: 52.46 | AN96: 52.46 | AO96: 52.46 | AP96: 52.46 | AQ96: 52.46 | AR96: 52.46 | AS96: 52.46 | AT96: 52.46 | AU96: 52.46 | AV96: 52.46 | AW96: 52.46 | AX96: 52.46 | AY96: 52.46 | AZ96: 52.45535714 | BA96: 52.45535714 | BB96: 52.45535714 | BC96: 52.45535714 | BD96: 52.45535714 | BE96: 52.45535714 | BF96: 52.45535714 | BG96: 52.45535714 | BH96: 52.45535714
A97: Cerro de Hojas | B97: 01°02'40.10''S | C97: 80°32'38.50''W | D97: Portoviejo | E97: 674 | G97: 43.36734694 | H97: 43.36734694 | I97: 43.36734694 | J97: 43.36734694 | K97: 43.36734694 | L97: 43.36734694 | M97: 90.625 | N97: 90.625 | O97: 90.625 | P97: 90.625 | Q97: 90.625 | R97: 90.625 | S97: 61.38392857 | T97: 61.38392857 | U97: 61.38392857 | V97: 61.38392857 | W97: 93.97321429 | X97: 93.97321429 | Y97: 93.97321429 | Z97: 93.97321429 | AA97: 93.97321429 | AB97: 93.97321429 | AC97: 93.97321429 | AD97: 93.97321429 | AE97: 93.97 | AF97: 61.83 | AG97: 61.83 | AH97: 61.83 | AI97: 61.83 | AJ97: 61.83 | AK97: 61.83 | AL97: 61.83 | AM97: 61.83 | AN97: 61.83 | AO97: 61.83 | AP97: 61.83 | AQ97: 61.83 | AR97: 61.83 | AS97: 61.83 | AT97: 61.83 | AU97: 61.83 | AV97: 61.83 | AW97: 61.83 | AX97: 61.83 | AY97: 61.83 | AZ97: 73.21428571 | BA97: 73.21428571 | BB97: 73.21428571 | BC97: 73.21428571 | BD97: 60.04464286 | BE97: 60.04464286 | BF97: 60.04464286 | BG97: 60.04464286 | BH97: 60.04464286
A98: Cerro Guayas | B98: 00°41'18.10''S | C98: 80°05'27.90''W | D98: Chone | E98: 128 | G98: 0 | H98: 0 | I98: 0 | J98: 0 | K98: 0 | L98: 0 | M98: 0 | N98: 0 | O98: 0 | P98: 0 | Q98: 0 | R98: 0 | S98: 0 | T98: 0 | U98: 0 | V98: 0 | W98: 0 | X98: 0 | Y98: 0 | Z98: 0 | AA98: 0 | AB98: 0 | AC98: 0 | AD98: 0 | AE98: 0 | AF98: 0 | AG98: 0 | AH98: 0 | AI98: 0 | AJ98: 0 | AK98: 0 | AL98: 0 | AM98: 0 | AN98: 0 | AO98: 0 | AP98: 0 | AQ98: 0 | AR98: 0 | AS98: 0 | AT98: 0 | AU98: 0 | AV98: 0 | AW98: 0 | AX98: 0 | AY98: 0 | AZ98: 0 | BA98: 0 | BB98: 0 | BC98: 0 | BD98: 0 | BE98: 0 | BF98: 0 | BG98: 0 | BH98: 0
A99: Cerro Jama 1 | B99: 00°12'29.40''S | C99: 80°16'08.70''W | D99: Jama | E99: 93 | G99: 0 | H99: 0 | I99: 0 | J99: 0 | K99: 0 | L99: 0 | M99: 0 | N99: 0 | O99: 0 | P99: 0 | Q99: 0 | R99: 0 | S99: 0 | T99: 0 | U99: 0 | V99: 0 | W99: 0 | X99: 0 | Y99: 0 | Z99: 0 | AA99: 0 | AB99: 0 | AC99: 0 | AD99: 0 | AE99: 0 | AF99: 0 | AG99: 0 | AH99: 0 | AI99: 0 | AJ99: 0 | AK99: 0 | AL99: 0 | AM99: 0 | AN99: 0 | AO99: 0 | AP99: 0 | AQ99: 0 | AR99: 0 | AS99: 0 | AT99: 0 | AU99: 0 | AV99: 0 | AW99: 0 | AX99: 0 | AY99: 0 | AZ99: 0 | BA99: 0 | BB99: 0 | BC99: 0 | BD99: 0 | BE99: 0 | BF99: 0 | BG99: 0 | BH99: 0
A100: Cerro Jama 2 | B100: 00°12'58.90''S | C100: 80°16'44.50''W | D100: Jama | E100: 140 | G100: 0 | H100: 0 | I100: 0 | J100: 0 | K100: 0 | L100: 0 | M100: 0 | N100: 0 | O100: 0 | P100: 0 | Q100: 0 | R100: 0 | S100: 0 | T100: 0 | U100: 0 | V100: 0 | W100: 0 | X100: 0 | Y100: 0 | Z100: 0 | AA100: 0 | AB100: 0 | AC100: 0 | AD100: 0 | AE100: 0 | AF100: 0 | AG100: 0 | AH100: 0 | AI100: 0 | AJ100: 0 | AK100: 0 | AL100: 0 | AM100: 0 | AN100: 0 | AO100: 0 | AP100: 0 | AQ100: 0 | AR100: 0 | AS100: 0 | AT100: 0 | AU100: 0 | AV100: 0 | AW100: 0 | AX100: 0 | AY100: 0 | AZ100: 0 | BA100: 0 | BB100: 0 | BC100: 0 | BD100: 0 | BE100: 0 | BF100: 0 | BG100: 0 | BH100: 0
A101: Cerro La Crespa | B101: 00°20'07.10''S | C101: 79°45'34.70''W | D101: Flavio Alfaro | E101: 480 | G101: 5.102040816 | H101: 5.102040816 | I101: 5.102040816 | J101: 5.102040816 | K101: 5.102040816 | L101: 5.102040816 | M101: 26.33928571 | N101: 26.33928571 | O101: 26.33928571 | P101: 26.33928571 | Q101: 26.33928571 | R101: 26.33928571 | S101: 26.33928571 | T101: 26.33928571 | U101: 26.33928571 | V101: 26.33928571 | W101: 26.33928571 | X101: 26.33928571 | Y101: 26.33928571 | Z101: 26.33928571 | AA101: 26.33928571 | AB101: 26.33928571 | AC101: 26.33928571 | AD101: 26.33928571 | AE101: 26.34 | AF101: 0 | AG101: 0 | AH101: 0 | AI101: 0 | AJ101: 0 | AK101: 0 | AL101: 0 | AM101: 0 | AN101: 0 | AO101: 0 | AP101: 0 | AQ101: 0 | AR101: 0 | AS101: 0 | AT101: 0 | AU101: 0 | AV101: 0 | AW101: 0 | AX101: 0 | AY101: 0 | AZ101: 0 | BA101: 0 | BB101: 0 | BC101: 0 | BD101: 0 | BE101: 0 | BF101: 0 | BG101: 0 | BH101: 0
A102: Cerro Nueve | B102: 00°16'05.30''S | C102: 80°12'29.90''W | D102: Jama | E102: 652 | G102: 10.20408163 | H102: 10.20408163 | I102: 10.20408163 | J102: 10.20408163 | K102: 10.20408163 | L102: 10.20408163 | M102: 39.50892857 | N102: 39.50892857 | O102: 39.50892857 | P102: 39.50892857 | Q102: 39.50892857 | R102: 39.50892857 | S102: 0 | T102: 0 | U102: 0 | V102: 0 | W102: 39.50892857 | X102: 39.50892857 | Y102: 39.50892857 | Z102: 39.50892857 | AA102: 39.50892857 | AB102: 39.50892857 | AC102: 39.50892857 | AD102: 39.50892857 | AE102: 39.51 | AF102: 13.17 | AG102: 13.17 | AH102: 13.17 | AI102: 13.17 | AJ102: 13.17 | AK102: 13.17 | AL102: 13.17 | AM102: 13.17 | AN102: 13.17 | AO102: 13.17 | AP102: 13.17 | AQ102: 13.17 | AR102: 13.17 | AS102: 13.17 | AT102: 13.17 | AU102: 13.17 | AV102: 13.17 | AW102: 13.17 | AX102: 13.17 | AY102: 13.17 | AZ102: 0 | BA102: 0 | BB102: 0 | BC102: 0 | BD102: 0 | BE102: 0 | BF102: 0 | BG102: 0 | BH102: 0
A103: Cerro Puerto Alto | B103: 00°21'36.30''S | C103: 79°52'00.40''W | D103: Flavio Alfaro | E103: 410 | G103: 0 | H103: 0 | I103: 0 | J103: 0 | K103: 0 | L103: 0 | M103: 0 | N103: 0 | O103: 0 | P103: 0 | Q103: 0 | R103: 0 | S103: 0 | T103: 0 | U103: 0 | V103: 0 | W103: 0 | X103: 0 | Y103: 0 | Z103: 0 | AA103: 0 | AB103: 0 | AC103: 0 | AD103: 0 | AE103: 0 | AF103: 0 | AG103: 0 | AH103: 0 | AI103: 0 | AJ103: 0 | AK103: 0 | AL103: 0 | AM103: 0 | AN103: 0 | AO103: 0 | AP103: 0 | AQ103: 0 | AR103: 0 | AS103: 0 | AT103: 0 | AU103: 0 | AV103: 0 | AW103: 0 | AX103: 0 | AY103: 0 | AZ103: 0 | BA103: 0 | BB103: 0 | BC103: 0 | BD103: 0 | BE103: 0 | BF103: 0 | BG103: 0 | BH103: 0
A104: Loma de Viento | B104: 00°42'28.10''S | C104: 80°24'28.80''W | D104: Sucre | E104: 402 | G104: 15.30612245 | H104: 15.30612245 | I104: 15.30612245 | J104: 15.30612245 | K104: 15.30612245 | L104: 15.30612245 | M104: 52.45535714 | N104: 52.45535714 | O104: 52.45535714 | P104: 52.45535714 | Q104: 52.45535714 | R104: 52.45535714 | S104: 26.33928571 | T104: 26.33928571 | U104: 26.33928571 | V104: 26.33928571 | W104: 52.45535714 | X104: 52.45535714 | Y104: 52.45535714 | Z104: 52.45535714 | AA104: 52.45535714 | AB104: 52.45535714 | AC104: 52.45535714 | AD104: 52.45535714 | AE104: 52.46 | AF104: 52.46 | AG104: 52.46 | AH104: 52.46 | AI104: 52.46 | AJ104: 52.46 | AK104: 52.46 | AL104: 52.46 | AM104: 52.46 | AN104: 52.46 | AO104: 52.46 | AP104: 52.46 | AQ104: 52.46 | AR104: 52.46 | AS104: 52.46 | AT104: 52.46 | AU104: 52.46 | AV104: 52.46 | AW104: 52.46 | AX104: 52.46 | AY104: 52.46 | AZ104: 51.33928571 | BA104: 51.33928571 | BB104: 51.33928571 | BC104: 51.33928571 | BD104: 51.33928571 | BE104: 51.33928571 | BF104: 51.33928571 | BG104: 51.33928571 | BH104: 51.33928571
A105: Mirador de Bahía de Caráquez | B105: 00°36'28.00''S | C105: 80°25'34.70''W | D105: Sucre | E105: 102 | G105: 0 | H105: 0 | I105: 0 | J105: 0 | K105: 0 | L105: 0 | M105: 0 | N105: 0 | O105: 0 | P105: 0 | Q105: 0 | R105: 0 | S105: 0 | T105: 0 | U105: 0 | V105: 0 | W105: 0 | X105: 0 | Y105: 0 | Z105: 0 | AA105: 0 | AB105: 0 | AC105: 0 | AD105: 0 | AE105: 0 | AF105: 0 | AG105: 0 | AH105: 0 | AI105: 0 | AJ105: 0 | AK105: 0 | AL105: 0 | AM105: 0 | AN105: 0 | AO105: 0 | AP105: 0 | AQ105: 0 | AR105: 0 | AS105: 0 | AT105: 0 | AU105: 0 | AV105: 0 | AW105: 0 | AX105: 0 | AY105: 0 | AZ105: 0 | BA105: 0 | BB105: 0 | BC105: 0 | BD105: 0 | BE105: 0 | BF105: 0 | BG105: 0 | BH105: 0
A106: Cerro Bosco | B106: 03°00'01.00''S | C106: 78°30'34.90''W | D106: Limón Indanza | E106: 2404 | G106: 5.102040816 | H106: 5.102040816 | I106: 5.102040816 | J106: 5.102040816 | K106: 5.102040816 | L106: 5.102040816 | M106: 26.33928571 | N106: 26.33928571 | O106: 26.33928571 | P106: 26.33928571 | Q106: 26.33928571 | R106: 26.33928571 | S106: 0 | T106: 0 | U106: 0 | V106: 0 | W106: 26.33928571 | X106: 26.33928571 | Y106: 26.33928571 | Z106: 26.33928571 | AA106: 26.33928571 | AB106: 26.33928571 | AC106: 26.33928571 | AD106: 26.33928571 | AE106: 26.34 | AF106: 0 | AG106: 0 | AH106: 0 | AI106: 0 | AJ106: 0 | AK106: 0 | AL106: 0 | AM106: 0 | AN106: 0 | AO106: 0 | AP106: 0 | AQ106: 0 | AR106: 0 | AS106: 0 | AT106: 0 | AU106: 0 | AV106: 0 | AW106: 0 | AX106: 0 | AY106: 0 | AZ106: 26.33928571 | BA106: 26.33928571 | BB106: 26.33928571 | BC106: 26.33928571 | BD106: 26.33928571 | BE106: 26.33928571 | BF106: 26.33928571 | BG106: 26.33928571 | BH106: 26.33928571
A107: Cerro Quilamo | B107: 02°18'14.40''S | C107: 78°08'26.80''W | D107: Morona | E107: 1461 | G107: 0 | H107: 0 | I107: 0 | J107: 0 | K107: 0 | L107: 0 | M107: 0 | N107: 0 | O107: 0 | P107: 0 | Q107: 0 | R107: 0 | S107: 0 | T107: 0 | U107: 0 | V107: 0 | W107: 0 | X107: 0 | Y107: 0 | Z107: 0 | AA107: 0 | AB107: 0 | AC107: 0 | AD107: 0 | AE107: 0 | AF107: 0 | AG107: 0 | AH107: 0 | AI107: 0 | AJ107: 0 | AK107: 0 | AL107: 0 | AM107: 0 | AN107: 0 | AO107: 0 | AP107: 0 | AQ107: 0 | AR107: 0 | AS107: 0 | AT107: 0 | AU107: 0 | AV107: 0 | AW107: 0 | AX107: 0 | AY107: 0 | AZ107: 0 | BA107: 0 | BB107: 0 | BC107: 0 | BD107: 0 | BE107: 0 | BF107: 0 | BG107: 0 | BH107: 0
A108: Cerro Condijua | B108: 00°29'01.60''S | C108: 77°54'06.90''W | D108: Quijos | E108: 2526 | G108: 5.102040816 | H108: 5.102040816 | I108: 5.102040816 | J108: 5.102040816 | K108: 5.102040816 | L108: 5.102040816 | M108: 17.41071429 | N108: 17.41071429 | O108: 17.41071429 | P108: 17.41071429 | Q108: 17.41071429 | R108: 17.41071429 | S108: 0 | T108: 0 | U108: 0 | V108: 0 | W108: 17.41071429 | X108: 17.41071429 | Y108: 17.41071429 | Z108: 17.41071429 | AA108: 17.41071429 | AB108: 17.41071429 | AC108: 17.41071429 | AD108: 17.41071429 | AE108: 17.41 | AF108: 17.41 | AG108: 17.41 | AH108: 17.41 | AI108: 17.41 | AJ108: 17.41 | AK108: 17.41 | AL108: 17.41 | AM108: 17.41 | AN108: 17.41 | AO108: 17.41 | AP108: 17.41 | AQ108: 17.41 | AR108: 17.41 | AS108: 17.41 | AT108: 17.41 | AU108: 17.41 | AV108: 17.41 | AW108: 17.41 | AX108: 17.41 | AY108: 17.41 | AZ108: 17.41071429 | BA108: 17.41071429 | BB108: 17.41071429 | BC108: 17.41071429 | BD108: 17.41071429 | BE108: 17.41071429 | BF108: 17.41071429 | BG108: 17.41071429 | BH108: 17.41071429
A109: Cerro Huacamayos | B109: 00°37'26.06''S | C109: 77°50'28.60''W | D109: Archidona | E109: 2300 | G109: 0 | H109: 0 | I109: 0 | J109: 0 | K109: 0 | L109: 0 | M109: 0 | N109: 0 | O109: 0 | P109: 0 | Q109: 0 | R109: 0 | S109: 0 | T109: 0 | U109: 0 | V109: 0 | W109: 0 | X109: 0 | Y109: 0 | Z109: 0 | AA109: 0 | AB109: 0 | AC109: 0 | AD109: 0 | AE109: 0 | AF109: 0 | AG109: 0 | AH109: 0 | AI109: 0 | AJ109: 0 | AK109: 0 | AL109: 0 | AM109: 0 | AN109: 0 | AO109: 0 | AP109: 0 | AQ109: 0 | AR109: 0 | AS109: 0 | AT109: 0 | AU109: 0 | AV109: 0 | AW109: 0 | AX109: 0 | AY109: 0 | AZ109: 0 | BA109: 0 | BB109: 0 | BC109: 0 | BD109: 0 | BE109: 0 | BF109: 0 | BG109: 0 | BH109: 0
A110: Cerro Tres Cruces | B110: 00°16'22.60''S | C110: 77°45'53.80''W | D110: El Chaco | E110: 1980 | G110: 0 | H110: 0 | I110: 0 | J110: 0 | K110: 0 | L110: 0 | M110: 0 | N110: 0 | O110: 0 | P110: 0 | Q110: 0 | R110: 0 | S110: 0 | T110: 0 | U110: 0 | V110: 0 | W110: 0 | X110: 0 | Y110: 0 | Z110: 0 | AA110: 0 | AB110: 0 | AC110: 0 | AD110: 0 | AE110: 0 | AF110: 0 | AG110: 0 | AH110: 0 | AI110: 0 | AJ110: 0 | AK110: 0 | AL110: 0 | AM110: 0 | AN110: 0 | AO110: 0 | AP110: 0 | AQ110: 0 | AR110: 0 | AS110: 0 | AT110: 0 | AU110: 0 | AV110: 0 | AW110: 0 | AX110: 0 | AY110: 0 | AZ110: 0 | BA110: 0 | BB110: 0 | BC110: 0 | BD110: 0 | BE110: 0 | BF110: 0 | BG110: 0 | BH110: 0
A111: Papallacta | B111: 00°22'43.70''S | C111: 78°08'48.60''W | D111: Quijos | E111: 3373 | G111: 0 | H111: 0 | I111: 0 | J111: 0 | K111: 0 | L111: 0 | M111: 0 | N111: 0 | O111: 0 | P111: 0 | Q111: 0 | R111: 0 | S111: 0 | T111: 0 | U111: 0 | V111: 0 | W111: 0 | X111: 0 | Y111: 0 | Z111: 0 | AA111: 0 | AB111: 0 | AC111: 0 | AD111: 0 | AE111: 0 | AF111: 0 | AG111: 0 | AH111: 0 | AI111: 0 | AJ111: 0 | AK111: 0 | AL111: 0 | AM111: 0 | AN111: 0 | AO111: 0 | AP111: 0 | AQ111: 0 | AR111: 0 | AS111: 0 | AT111: 0 | AU111: 0 | AV111: 0 | AW111: 0 | AX111: 0 | AY111: 0 | AZ111: 0 | BA111: 0 | BB111: 0 | BC111: 0 | BD111: 0 | BE111: 0 | BF111: 0 | BG111: 0 | BH111: 0
A112: Cerro Lumbaqui Alto | B112: 00°00'30.40''N | C112: 77°19'15.80''W | D112: Orellana | E112: 1088 | G112: 20.40816327 | H112: 20.40816327 | I112: 20.40816327 | J112: 20.40816327 | K112: 20.40816327 | L112: 20.40816327 | M112: 72.32142857 | N112: 72.32142857 | O112: 72.32142857 | P112: 51.33928571 | Q112: 51.33928571 | R112: 51.33928571 | S112: 51.33928571 | T112: 51.33928571 | U112: 51.33928571 | V112: 51.33928571 | W112: 51.33928571 | X112: 51.33928571 | Y112: 51.33928571 | Z112: 51.33928571 | AA112: 51.33928571 | AB112: 51.33928571 | AC112: 51.33928571 | AD112: 51.33928571 | AE112: 51.34 | AF112: 0 | AG112: 0 | AH112: 0 | AI112: 0 | AJ112: 0 | AK112: 0 | AL112: 0 | AM112: 0 | AN112: 0 | AO112: 0 | AP112: 0 | AQ112: 0 | AR112: 0 | AS112: 0 | AT112: 0 | AU112: 0 | AV112: 0 | AW112: 0 | AX112: 0 | AY112: 0 | AZ112: 25.89285714 | BA112: 25.89285714 | BB112: 25.89285714 | BC112: 25.89285714 | BD112: 25.89285714 | BE112: 25.89285714 | BF112: 25.89285714 | BG112: 25.89285714 | BH112: 25.89285714
A113: Cerro Lumbaqui Bajo | B113: 00°01'47.70''N | C113: 77°19'07.90''W | D113: Orellana | E113: 998 | G113: 0 | H113: 0 | I113: 0 | J113: 0 | K113: 0 | L113: 0 | M113: 0 | N113: 0 | O113: 0 | P113: 0 | Q113: 0 | R113: 0 | S113: 0 | T113: 0 | U113: 0 | V113: 0 | W113: 0 | X113: 0 | Y113: 0 | Z113: 0 | AA113: 0 | AB113: 0 | AC113: 0 | AD113: 0 | AE113: 0 | AF113: 0 | AG113: 0 | AH113: 0 | AI113: 0 | AJ113: 0 | AK113: 0 | AL113: 0 | AM113: 0 | AN113: 0 | AO113: 0 | AP113: 0 | AQ113: 0 | AR113: 0 | AS113: 0 | AT113: 0 | AU113: 0 | AV113: 0 | AW113: 0 | AX113: 0 | AY113: 0 | AZ113: 0 | BA113: 0 | BB113: 0 | BC113: 0 | BD113: 0 | BE113: 0 | BF113: 0 | BG113: 0 | BH113: 0
A114: Cerro Abitagua | B114: 01°24'53.90''S | C114: 78°08'31.00''W | D114: Mera | E114: 2250 | G114: 10.20408163 | H114: 10.20408163 | I114: 10.20408163 | J114: 10.20408163 | K114: 10.20408163 | L114: 10.20408163 | M114: 39.73214286 | N114: 39.73214286 | O114: 39.73214286 | P114: 39.73214286 | Q114: 39.73214286 | R114: 39.73214286 | S114: 0 | T114: 0 | U114: 0 | V114: 0 | W114: 39.73214286 | X114: 39.73214286 | Y114: 39.73214286 | Z114: 39.73214286 | AA114: 39.73214286 | AB114: 39.73214286 | AC114: 39.73214286 | AD114: 39.73214286 | AE114: 39.73 | AF114: 26.34 | AG114: 26.34 | AH114: 26.34 | AI114: 26.34 | AJ114: 26.34 | AK114: 26.34 | AL114: 26.34 | AM114: 26.34 | AN114: 26.34 | AO114: 26.34 | AP114: 26.34 | AQ114: 26.34 | AR114: 26.34 | AS114: 26.34 | AT114: 26.34 | AU114: 26.34 | AV114: 26.34 | AW114: 26.34 | AX114: 26.34 | AY114: 26.34 | AZ114: 0 | BA114: 0 | BB114: 0 | BC114: 0 | BD114: 0 | BE114: 0 | BF114: 0 | BG114: 0 | BH114: 0
A115: Cerro Calvario | B115: 01°31'14.30''S | C115: 77°54'28.50''W | D115: Pastaza | E115: 1171 | G115: 10.20408163 | H115: 10.20408163 | I115: 10.20408163 | J115: 10.20408163 | K115: 10.20408163 | L115: 10.20408163 | M115: 32.14285714 | N115: 32.14285714 | O115: 32.14285714 | P115: 32.14285714 | Q115: 32.14285714 | R115: 32.14285714 | S115: 26.33928571 | T115: 26.33928571 | U115: 26.33928571 | V115: 26.33928571 | W115: 32.14285714 | X115: 32.14285714 | Y115: 32.14285714 | Z115: 32.14285714 | AA115: 32.14285714 | AB115: 32.14285714 | AC115: 32.14285714 | AD115: 32.14285714 | AE115: 32.14 | AF115: 32.14 | AG115: 32.14 | AH115: 32.14 | AI115: 32.14 | AJ115: 32.14 | AK115: 32.14 | AL115: 32.14 | AM115: 32.14 | AN115: 32.14 | AO115: 32.14 | AP115: 32.14 | AQ115: 32.14 | AR115: 32.14 | AS115: 32.14 | AT115: 32.14 | AU115: 32.14 | AV115: 32.14 | AW115: 32.14 | AX115: 32.14 | AY115: 32.14 | AZ115: 32.14285714 | BA115: 32.14285714 | BB115: 32.14285714 | BC115: 32.14285714 | BD115: 32.14285714 | BE115: 32.14285714 | BF115: 32.14285714 | BG115: 32.14285714 | BH115: 32.14285714
A116: Santa Clara(Km.35 Vía Puyo - Tena) | B116: 01°17'29.30''S | C116: 77°52'36.80''W | D116: Santa Clara | E116: 1080 | G116: 10.20408163 | H116: 10.20408163 | I116: 10.20408163 | J116: 10.20408163 | K116: 10.20408163 | L116: 10.20408163 | M116: 42.85714286 | N116: 42.85714286 | O116: 42.85714286 | P116: 42.85714286 | Q116: 42.85714286 | R116: 42.85714286 | S116: 0 | T116: 0 | U116: 0 | V116: 0 | W116: 42.85714286 | X116: 42.85714286 | Y116: 42.85714286 | Z116: 42.85714286 | AA116: 42.85714286 | AB116: 42.85714286 | AC116: 42.85714286 | AD116: 42.85714286 | AE116: 42.86 | AF116: 42.86 | AG116: 42.86 | AH116: 42.86 | AI116: 42.86 | AJ116: 42.86 | AK116: 42.86 | AL116: 42.86 | AM116: 42.86 | AN116: 42.86 | AO116: 42.86 | AP116: 42.86 | AQ116: 42.86 | AR116: 42.86 | AS116: 42.86 | AT116: 42.86 | AU116: 42.86 | AV116: 42.86 | AW116: 42.86 | AX116: 42.86 | AY116: 42.86 | AZ116: 42.85714286 | BA116: 42.85714286 | BB116: 42.85714286 | BC116: 42.85714286 | BD116: 42.85714286 | BE116: 42.85714286 | BF116: 42.85714286 | BG116: 42.85714286 | BH116: 42.85714286
A117: Cerro Cayambe | B117: 00°03'58.00''N | C117: 77°59'25.80''W | D117: Cayambe | E117: 4216 | G117: 0 | H117: 0 | I117: 0 | J117: 0 | K117: 0 | L117: 0 | M117: 0 | N117: 0 | O117: 0 | P117: 0 | Q117: 0 | R117: 0 | S117: 0 | T117: 0 | U117: 0 | V117: 0 | W117: 0 | X117: 0 | Y117: 0 | Z117: 0 | AA117: 0 | AB117: 0 | AC117: 0 | AD117: 0 | AE117: 0 | AF117: 0 | AG117: 0 | AH117: 0 | AI117: 0 | AJ117: 0 | AK117: 0 | AL117: 0 | AM117: 0 | AN117: 0 | AO117: 0 | AP117: 0 | AQ117: 0 | AR117: 0 | AS117: 0 | AT117: 0 | AU117: 0 | AV117: 0 | AW117: 0 | AX117: 0 | AY117: 0 | AZ117: 0 | BA117: 0 | BB117: 0 | BC117: 0 | BD117: 0 | BE117: 0 | BF117: 0 | BG117: 0 | BH117: 0
A118: Cerro Cruz Loma | B118: 00°11'17.50''S | C118: 78°32'06.70''W | D118: Quito | E118: 3990 | G118: 30.6122449 | H118: 30.6122449 | I118: 30.6122449 | J118: 30.6122449 | K118: 30.6122449 | L118: 30.6122449 | M118: 92.1875 | N118: 92.1875 | O118: 92.1875 | P118: 92.1875 | Q118: 92.1875 | R118: 92.1875 | S118: 51.33928571 | T118: 51.33928571 | U118: 51.33928571 | V118: 51.33928571 | W118: 92.1875 | X118: 92.1875 | Y118: 92.1875 | Z118: 92.1875 | AA118: 92.1875 | AB118: 92.1875 | AC118: 92.1875 | AD118: 92.1875 | AE118: 92.19 | AF118: 0 | AG118: 0 | AH118: 0 | AI118: 0 | AJ118: 0 | AK118: 0 | AL118: 0 | AM118: 0 | AN118: 0 | AO118: 0 | AP118: 0 | AQ118: 0 | AR118: 0 | AS118: 0 | AT118: 0 | AU118: 0 | AV118: 0 | AW118: 0 | AX118: 0 | AY118: 0 | AZ118: 92.1875 | BA118: 92.1875 | BB118: 92.1875 | BC118: 92.1875 | BD118: 92.1875 | BE118: 92.1875 | BF118: 92.1875 | BG118: 92.1875 | BH118: 92.1875
A119: Cerro Ilumbisi | B119: 00°13'40.60''S | C119: 78°28'25.70''W | D119: Quito | E119: 3040 | G119: 17.34693878 | H119: 17.34693878 | I119: 17.34693878 | J119: 17.34693878 | K119: 17.34693878 | L119: 17.34693878 | M119: 45.98214286 | N119: 45.98214286 | O119: 45.98214286 | P119: 45.98214286 | Q119: 45.98214286 | R119: 45.98214286 | S119: 27.23214286 | T119: 27.23214286 | U119: 27.23214286 | V119: 27.23214286 | W119: 45.98214286 | X119: 45.98214286 | Y119: 45.98214286 | Z119: 45.98214286 | AA119: 45.98214286 | AB119: 45.98214286 | AC119: 45.98214286 | AD119: 45.98214286 | AE119: 45.98 | AF119: 0 | AG119: 0 | AH119: 0 | AI119: 0 | AJ119: 0 | AK119: 0 | AL119: 0 | AM119: 0 | AN119: 0 | AO119: 0 | AP119: 0 | AQ119: 0 | AR119: 0 | AS119: 0 | AT119: 0 | AU119: 0 | AV119: 0 | AW119: 0 | AX119: 0 | AY119: 0 | AZ119: 18.75 | BA119: 18.75 | BB119: 18.75 | BC119: 18.75 | BD119: 18.75 | BE119: 18.75 | BF119: 18.75 | BG119: 18.75 | BH119: 18.75
A120: Cerro La Virgen | B120: 00°19'06.90''S | C120: 78°11'27.60''W | D120: Quito | E120: 4412 | G120: 0 | H120: 0 | I120: 0 | J120: 0 | K120: 0 | L120: 0 | M120: 0 | N120: 0 | O120: 0 | P120: 0 | Q120: 0 | R120: 0 | S120: 0 | T120: 0 | U120: 0 | V120: 0 | W120: 0 | X120: 0 | Y120: 0 | Z120: 0 | AA120: 0 | AB120: 0 | AC120: 0 | AD120: 0 | AE120: 0 | AF120: 0 | AG120: 0 | AH120: 0 | AI120: 0 | AJ120: 0 | AK120: 0 | AL120: 0 | AM120: 0 | AN120: 0 | AO120: 0 | AP120: 0 | AQ120: 0 | AR120: 0 | AS120: 0 | AT120: 0 | AU120: 0 | AV120: 0 | AW120: 0 | AX120: 0 | AY120: 0 | AZ120: 0 | BA120: 0 | BB120: 0 | BC120: 0 | BD120: 0 | BE120: 0 | BF120: 0 | BG120: 0 | BH120: 0
A121: Cerro Puengasí | B121: 00°14'43.40''S | C121: 78°29'59.70''W | D121: Quito | E121: 3085 | G121: 0 | H121: 0 | I121: 0 | J121: 0 | K121: 0 | L121: 0 | M121: 0 | N121: 0 | O121: 0 | P121: 0 | Q121: 0 | R121: 0 | S121: 0 | T121: 0 | U121: 0 | V121: 0 | W121: 0 | X121: 0 | Y121: 0 | Z121: 0 | AA121: 0 | AB121: 0 | AC121: 0 | AD121: 0 | AE121: 0 | AF121: 0 | AG121: 0 | AH121: 0 | AI121: 0 | AJ121: 0 | AK121: 0 | AL121: 0 | AM121: 0 | AN121: 0 | AO121: 0 | AP121: 0 | AQ121: 0 | AR121: 0 | AS121: 0 | AT121: 0 | AU121: 0 | AV121: 0 | AW121: 0 | AX121: 0 | AY121: 0 | AZ121: 0 | BA121: 0 | BB121: 0 | BC121: 0 | BD121: 0 | BE121: 0 | BF121: 0 | BG121: 0 | BH121: 0
A122: Mojanda | B122: 00°04'47.30''N | C122: 78°13'43.20''W | D122: Pedro Moncayo | E122: 3241 | G122: 3.571428571 | H122: 3.571428571 | I122: 3.571428571 | J122: 3.571428571 | K122: 3.571428571 | L122: 3.571428571 | M122: 16.29464286 | N122: 16.29464286 | O122: 16.29464286 | P122: 17.85714286 | Q122: 17.85714286 | R122: 17.85714286 | S122: 0 | T122: 0 | U122: 0 | V122: 0 | W122: 17.85714286 | X122: 17.85714286 | Y122: 17.85714286 | Z122: 17.85714286 | AA122: 17.85714286 | AB122: 17.85714286 | AC122: 17.85714286 | AD122: 17.85714286 | AE122: 17.86 | AF122: 17.86 | AG122: 17.86 | AH122: 17.86 | AI122: 17.86 | AJ122: 17.86 | AK122: 17.86 | AL122: 17.86 | AM122: 17.86 | AN122: 17.86 | AO122: 17.86 | AP122: 17.86 | AQ122: 17.86 | AR122: 17.86 | AS122: 17.86 | AT122: 17.86 | AU122: 17.86 | AV122: 17.86 | AW122: 17.86 | AX122: 17.86 | AY122: 17.86 | AZ122: 17.85714286 | BA122: 17.85714286 | BB122: 17.85714286 | BC122: 17.85714286 | BD122: 17.85714286 | BE122: 17.85714286 | BF122: 17.85714286 | BG122: 17.85714286 | BH122: 17.85714286
A123: Sector Ferroviaria y la Florestal | B123: 00°15'48.00''S | C123: 78°30'25.00''W | D123: Quito | E123: 3179 | G123: 6.12244898 | H123: 6.12244898 | I123: 6.12244898 | J123: 6.12244898 | K123: 6.12244898 | L123: 6.12244898 | M123: 20.08928571 | N123: 20.08928571 | O123: 20.08928571 | P123: 10.04464286 | Q123: 10.04464286 | R123: 10.04464286 | S123: 0 | T123: 0 | U123: 0 | V123: 0 | W123: 10.04464286 | X123: 10.04464286 | Y123: 10.04464286 | Z123: 10.04464286 | AA123: 10.04464286 | AB123: 10.04464286 | AC123: 10.04464286 | AD123: 10.04464286 | AE123: 10.04 | AF123: 10.04 | AG123: 10.04 | AH123: 10.04 | AI123: 10.04 | AJ123: 10.04 | AK123: 10.04 | AL123: 10.04 | AM123: 10.04 | AN123: 10.04 | AO123: 10.04 | AP123: 10.04 | AQ123: 10.04 | AR123: 10.04 | AS123: 10.04 | AT123: 10.04 | AU123: 10.04 | AV123: 10.04 | AW123: 10.04 | AX123: 10.04 | AY123: 10.04 | AZ123: 25.44642857 | BA123: 25.44642857 | BB123: 25.44642857 | BC123: 25.44642857 | BD123: 16.29464286 | BE123: 16.29464286 | BF123: 16.29464286 | BG123: 16.29464286 | BH123: 16.29464286
A124: Cerro Condorcocha | B124: 00°02'19.10''S | C124: 78°30'41.00''W | D124: Quito | E124: 3586 | G124: 3.06122449 | H124: 3.06122449 | I124: 3.06122449 | J124: 3.06122449 | K124: 3.06122449 | L124: 3.06122449 | M124: 18.75 | N124: 18.75 | O124: 18.75 | P124: 18.75 | Q124: 18.75 | R124: 18.75 | S124: 0 | T124: 0 | U124: 0 | V124: 0 | W124: 18.75 | X124: 18.75 | Y124: 18.75 | Z124: 18.75 | AA124: 18.75 | AB124: 18.75 | AC124: 18.75 | AD124: 18.75 | AE124: 18.75 | AF124: 0 | AG124: 0 | AH124: 0 | AI124: 0 | AJ124: 0 | AK124: 0 | AL124: 0 | AM124: 0 | AN124: 0 | AO124: 0 | AP124: 0 | AQ124: 0 | AR124: 0 | AS124: 0 | AT124: 0 | AU124: 0 | AV124: 0 | AW124: 0 | AX124: 0 | AY124: 0 | AZ124: 18.75 | BA124: 18.75 | BB124: 18.75 | BC124: 18.75 | BD124: 18.75 | BE124: 18.75 | BF124: 18.75 | BG124: 18.75 | BH124: 18.75
A125: Cerro San Francisco | B125: 00°23'24.89''S | C125: 78°37'06.79''W | D125: Mejía | E125: 4097 | G125: 0 | H125: 0 | I125: 0 | J125: 0 | K125: 0 | L125: 0 | M125: 0 | N125: 0 | O125: 0 | P125: 0 | Q125: 0 | R125: 0 | S125: 0 | T125: 0 | U125: 0 | V125: 0 | W125: 0 | X125: 0 | Y125: 0 | Z125: 0 | AA125: 0 | AB125: 0 | AC125: 0 | AD125: 0 | AE125: 0 | AF125: 0 | AG125: 0 | AH125: 0 | AI125: 0 | AJ125: 0 | AK125: 0 | AL125: 0 | AM125: 0 | AN125: 0 | AO125: 0 | AP125: 0 | AQ125: 0 | AR125: 0 | AS125: 0 | AT125: 0 | AU125: 0 | AV125: 0 | AW125: 0 | AX125: 0 | AY125: 0 | AZ125: 0 | BA125: 0 | BB125: 0 | BC125: 0 | BD125: 0 | BE125: 0 | BF125: 0 | BG125: 0 | BH125: 0
A126: Cerro Tinajero | B126: 00°22'53.08''S | C126: 78°36'36.19''W | D126: Mejía | E126: 4082 | G126: 0 | H126: 0 | I126: 0 | J126: 0 | K126: 0 | L126: 0 | M126: 0 | N126: 0 | O126: 0 | P126: 0 | Q126: 0 | R126: 0 | S126: 0 | T126: 0 | U126: 0 | V126: 0 | W126: 0 | X126: 0 | Y126: 0 | Z126: 0 | AA126: 0 | AB126: 0 | AC126: 0 | AD126: 0 | AE126: 0 | AF126: 0 | AG126: 0 | AH126: 0 | AI126: 0 | AJ126: 0 | AK126: 0 | AL126: 0 | AM126: 0 | AN126: 0 | AO126: 0 | AP126: 0 | AQ126: 0 | AR126: 0 | AS126: 0 | AT126: 0 | AU126: 0 | AV126: 0 | AW126: 0 | AX126: 0 | AY126: 0 | AZ126: 0 | BA126: 0 | BB126: 0 | BC126: 0 | BD126: 0 | BE126: 0 | BF126: 0 | BG126: 0 | BH126: 0
A127: Cerro La Viudita | B127: 00°24'50.70''S | C127: 78°36'27.00''W | D127: Mejía | E127: 3751 | G127: 0 | H127: 0 | I127: 0 | J127: 0 | K127: 0 | L127: 0 | M127: 0 | N127: 0 | O127: 0 | P127: 0 | Q127: 0 | R127: 0 | S127: 0 | T127: 0 | U127: 0 | V127: 0 | W127: 0 | X127: 0 | Y127: 0 | Z127: 0 | AA127: 0 | AB127: 0 | AC127: 0 | AD127: 0 | AE127: 0 | AF127: 0 | AG127: 0 | AH127: 0 | AI127: 0 | AJ127: 0 | AK127: 0 | AL127: 0 | AM127: 0 | AN127: 0 | AO127: 0 | AP127: 0 | AQ127: 0 | AR127: 0 | AS127: 0 | AT127: 0 | AU127: 0 | AV127: 0 | AW127: 0 | AX127: 0 | AY127: 0 | AZ127: 0 | BA127: 0 | BB127: 0 | BC127: 0 | BD127: 0 | BE127: 0 | BF127: 0 | BG127: 0 | BH127: 0
A128: Cerro Hacda El Rosario | B128: 00°26'14.60''S | C128: 78°32'12.50''W | D128: Mejía | E128: 2981 | G128: 5.102040816 | H128: 5.102040816 | I128: 5.102040816 | J128: 5.102040816 | K128: 5.102040816 | L128: 5.102040816 | M128: 13.16964286 | N128: 13.16964286 | O128: 13.16964286 | P128: 13.16964286 | Q128: 13.16964286 | R128: 13.16964286 | S128: 0 | T128: 0 | U128: 0 | V128: 0 | W128: 13.16964286 | X128: 13.16964286 | Y128: 13.16964286 | Z128: 13.16964286 | AA128: 13.16964286 | AB128: 13.16964286 | AC128: 13.16964286 | AD128: 13.16964286 | AE128: 13.17 | AF128: 0 | AG128: 0 | AH128: 0 | AI128: 0 | AJ128: 0 | AK128: 0 | AL128: 0 | AM128: 0 | AN128: 0 | AO128: 0 | AP128: 0 | AQ128: 0 | AR128: 0 | AS128: 0 | AT128: 0 | AU128: 0 | AV128: 0 | AW128: 0 | AX128: 0 | AY128: 0 | AZ128: 13.16964286 | BA128: 13.16964286 | BB128: 13.16964286 | BC128: 13.16964286 | BD128: 13.16964286 | BE128: 13.16964286 | BF128: 13.16964286 | BG128: 13.16964286 | BH128: 13.16964286
A129: Cerro Atacazo Alto | B129: 00°21'22.20''S | C129: 78°37'09.10''W | D129: Quito | E129: 4474 | G129: 0 | H129: 0 | I129: 0 | J129: 0 | K129: 0 | L129: 0 | M129: 0 | N129: 0 | O129: 0 | P129: 0 | Q129: 0 | R129: 0 | S129: 0 | T129: 0 | U129: 0 | V129: 0 | W129: 0 | X129: 0 | Y129: 0 | Z129: 0 | AA129: 0 | AB129: 0 | AC129: 0 | AD129: 0 | AE129: 0 | AF129: 0 | AG129: 0 | AH129: 0 | AI129: 0 | AJ129: 0 | AK129: 0 | AL129: 0 | AM129: 0 | AN129: 0 | AO129: 0 | AP129: 0 | AQ129: 0 | AR129: 0 | AS129: 0 | AT129: 0 | AU129: 0 | AV129: 0 | AW129: 0 | AX129: 0 | AY129: 0 | AZ129: 0 | BA129: 0 | BB129: 0 | BC129: 0 | BD129: 0 | BE129: 0 | BF129: 0 | BG129: 0 | BH129: 0
A130: Cerro Atacazo Bajo | B130: 00°19'05.10''S | C130: 78°36'08.10''W | D130: Quito | E130: 3893 | G130: 0 | H130: 0 | I130: 0 | J130: 0 | K130: 0 | L130: 0 | M130: 0 | N130: 0 | O130: 0 | P130: 0 | Q130: 0 | R130: 0 | S130: 0 | T130: 0 | U130: 0 | V130: 0 | W130: 0 | X130: 0 | Y130: 0 | Z130: 0 | AA130: 0 | AB130: 0 | AC130: 0 | AD130: 0 | AE130: 0 | AF130: 0 | AG130: 0 | AH130: 0 | AI130: 0 | AJ130: 0 | AK130: 0 | AL130: 0 | AM130: 0 | AN130: 0 | AO130: 0 | AP130: 0 | AQ130: 0 | AR130: 0 | AS130: 0 | AT130: 0 | AU130: 0 | AV130: 0 | AW130: 0 | AX130: 0 | AY130: 0 | AZ130: 0 | BA130: 0 | BB130: 0 | BC130: 0 | BD130: 0 | BE130: 0 | BF130: 0 | BG130: 0 | BH130: 0
A131: Cerro Pichincha | B131: 00°09'57.03''S | C131: 78°31'39.19''W | D131: Quito | E131: 3901 | G131: 16.32653061 | H131: 16.32653061 | I131: 16.32653061 | J131: 16.32653061 | K131: 16.32653061 | L131: 16.32653061 | M131: 35.71428571 | N131: 35.71428571 | O131: 35.71428571 | P131: 35.71428571 | Q131: 35.71428571 | R131: 35.71428571 | S131: 35.71428571 | T131: 35.71428571 | U131: 35.71428571 | V131: 35.71428571 | W131: 35.71428571 | X131: 35.71428571 | Y131: 35.71428571 | Z131: 35.71428571 | AA131: 35.71428571 | AB131: 35.71428571 | AC131: 35.71428571 | AD131: 35.71428571 | AE131: 35.71 | AF131: 16.29 | AG131: 16.29 | AH131: 16.29 | AI131: 16.29 | AJ131: 16.29 | AK131: 16.29 | AL131: 16.29 | AM131: 16.29 | AN131: 16.29 | AO131: 16.29 | AP131: 16.29 | AQ131: 16.29 | AR131: 16.29 | AS131: 16.29 | AT131: 16.29 | AU131: 16.29 | AV131: 16.29 | AW131: 16.29 | AX131: 16.29 | AY131: 16.29 | AZ131: 16.29464286 | BA131: 16.29464286 | BB131: 16.29464286 | BC131: 16.29464286 | BD131: 0 | BE131: 0 | BF131: 0 | BG131: 0 | BH131: 0
A132: Cerro Capáes | B132: 02°12'32.40''S | C132: 80°51'47.50''W | D132: Santa Elena | E132: 102 | G132: 0 | H132: 0 | I132: 0 | J132: 0 | K132: 0 | L132: 0 | M132: 0 | N132: 0 | O132: 0 | P132: 0 | Q132: 0 | R132: 0 | S132: 0 | T132: 0 | U132: 0 | V132: 0 | W132: 0 | X132: 0 | Y132: 0 | Z132: 0 | AA132: 0 | AB132: 0 | AC132: 0 | AD132: 0 | AE132: 0 | AF132: 0 | AG132: 0 | AH132: 0 | AI132: 0 | AJ132: 0 | AK132: 0 | AL132: 0 | AM132: 0 | AN132: 0 | AO132: 0 | AP132: 0 | AQ132: 0 | AR132: 0 | AS132: 0 | AT132: 0 | AU132: 0 | AV132: 0 | AW132: 0 | AX132: 0 | AY132: 0 | AZ132: 0 | BA132: 0 | BB132: 0 | BC132: 0 | BD132: 0 | BE132: 0 | BF132: 0 | BG132: 0 | BH132: 0
A133: Cerro Bijagual | B133: 00°39'28.70''S | C133: 79°17'41.00''W | D133: Sto Domingo | E133: 798 | G133: 10.20408163 | H133: 10.20408163 | I133: 10.20408163 | J133: 10.20408163 | K133: 10.20408163 | L133: 10.20408163 | M133: 32.14285714 | N133: 32.14285714 | O133: 32.14285714 | P133: 32.14285714 | Q133: 32.14285714 | R133: 32.14285714 | S133: 0 | T133: 0 | U133: 0 | V133: 0 | W133: 39.50892857 | X133: 39.50892857 | Y133: 39.50892857 | Z133: 39.50892857 | AA133: 39.50892857 | AB133: 39.50892857 | AC133: 39.50892857 | AD133: 39.50892857 | AE133: 39.51 | AF133: 39.51 | AG133: 39.51 | AH133: 39.51 | AI133: 39.51 | AJ133: 39.51 | AK133: 39.51 | AL133: 39.51 | AM133: 39.51 | AN133: 39.51 | AO133: 39.51 | AP133: 39.51 | AQ133: 39.51 | AR133: 39.51 | AS133: 39.51 | AT133: 39.51 | AU133: 39.51 | AV133: 39.51 | AW133: 39.51 | AX133: 39.51 | AY133: 39.51 | AZ133: 53.34821429 | BA133: 53.34821429 | BB133: 53.34821429 | BC133: 53.34821429 | BD133: 51.78571429 | BE133: 51.78571429 | BF133: 51.78571429 | BG133: 51.78571429 | BH133: 51.78571429
A134: Cerro Bomboli | B134: 00°14'48.20''S | C134: 79°11'31.30''W | D134: Sto Domingo | E134: 636 | G134: 37.75510204 | H134: 37.75510204 | I134: 37.75510204 | J134: 37.75510204 | K134: 37.75510204 | L134: 37.75510204 | M134: 83.92857143 | N134: 83.92857143 | O134: 83.92857143 | P134: 83.92857143 | Q134: 83.92857143 | R134: 83.92857143 | S134: 13.61607143 | T134: 13.61607143 | U134: 13.61607143 | V134: 13.61607143 | W134: 83.92857143 | X134: 83.92857143 | Y134: 83.92857143 | Z134: 83.92857143 | AA134: 83.92857143 | AB134: 83.92857143 | AC134: 83.92857143 | AD134: 83.92857143 | AE134: 83.93 | AF134: 70.31 | AG134: 70.31 | AH134: 70.31 | AI134: 70.31 | AJ134: 70.31 | AK134: 70.31 | AL134: 70.31 | AM134: 70.31 | AN134: 70.31 | AO134: 70.31 | AP134: 70.31 | AQ134: 70.31 | AR134: 70.31 | AS134: 70.31 | AT134: 70.31 | AU134: 70.31 | AV134: 70.31 | AW134: 70.31 | AX134: 70.31 | AY134: 70.31 | AZ134: 70.3125 | BA134: 70.3125 | BB134: 70.3125 | BC134: 70.3125 | BD134: 70.3125 | BE134: 70.3125 | BF134: 70.3125 | BG134: 70.3125 | BH134: 70.3125
A135: Cerro Chiguilpe Alto | B135: 00°17'44.70''S | C135: 79°05'12.10''W | D135: Sto Domingo | E135: 1172 | G135: 0 | H135: 0 | I135: 0 | J135: 0 | K135: 0 | L135: 0 | M135: 0 | N135: 0 | O135: 0 | P135: 0 | Q135: 0 | R135: 0 | S135: 0 | T135: 0 | U135: 0 | V135: 0 | W135: 0 | X135: 0 | Y135: 0 | Z135: 0 | AA135: 0 | AB135: 0 | AC135: 0 | AD135: 0 | AE135: 0 | AF135: 0 | AG135: 0 | AH135: 0 | AI135: 0 | AJ135: 0 | AK135: 0 | AL135: 0 | AM135: 0 | AN135: 0 | AO135: 0 | AP135: 0 | AQ135: 0 | AR135: 0 | AS135: 0 | AT135: 0 | AU135: 0 | AV135: 0 | AW135: 0 | AX135: 0 | AY135: 0 | AZ135: 0 | BA135: 0 | BB135: 0 | BC135: 0 | BD135: 0 | BE135: 0 | BF135: 0 | BG135: 0 | BH135: 0
A136: Cerro Chiguilpe Bajo | B136: 00°16'51.30''S | C136: 79°05'26.40''W | D136: Sto Domingo | E136: 801 | G136: 0 | H136: 0 | I136: 0 | J136: 0 | K136: 0 | L136: 0 | M136: 0 | N136: 0 | O136: 0 | P136: 0 | Q136: 0 | R136: 0 | S136: 0 | T136: 0 | U136: 0 | V136: 0 | W136: 0 | X136: 0 | Y136: 0 | Z136: 0 | AA136: 0 | AB136: 0 | AC136: 0 | AD136: 0 | AE136: 0 | AF136: 0 | AG136: 0 | AH136: 0 | AI136: 0 | AJ136: 0 | AK136: 0 | AL136: 0 | AM136: 0 | AN136: 0 | AO136: 0 | AP136: 0 | AQ136: 0 | AR136: 0 | AS136: 0 | AT136: 0 | AU136: 0 | AV136: 0 | AW136: 0 | AX136: 0 | AY136: 0 | AZ136: 0 | BA136: 0 | BB136: 0 | BC136: 0 | BD136: 0 | BE136: 0 | BF136: 0 | BG136: 0 | BH136: 0
A137: Cerro San Luis | B137: 00°35'10.70''S | C137: 79°19'18.80''W | D137: Sto Domingo | E137: 412 | G137: 0 | H137: 0 | I137: 0 | J137: 0 | K137: 0 | L137: 0 | M137: 0 | N137: 0 | O137: 0 | P137: 0 | Q137: 0 | R137: 0 | S137: 0 | T137: 0 | U137: 0 | V137: 0 | W137: 0 | X137: 0 | Y137: 0 | Z137: 0 | AA137: 0 | AB137: 0 | AC137: 0 | AD137: 0 | AE137: 0 | AF137: 0 | AG137: 0 | AH137: 0 | AI137: 0 | AJ137: 0 | AK137: 0 | AL137: 0 | AM137: 0 | AN137: 0 | AO137: 0 | AP137: 0 | AQ137: 0 | AR137: 0 | AS137: 0 | AT137: 0 | AU137: 0 | AV137: 0 | AW137: 0 | AX137: 0 | AY137: 0 | AZ137: 0 | BA137: 0 | BB137: 0 | BC137: 0 | BD137: 0 | BE137: 0 | BF137: 0 | BG137: 0 | BH137: 0
A138: Cerro Bermejo | B138: 00°08'09.10''N | C138: 77°19'39.90''W | D138: Cascales | E138: 994 | G138: 0 | H138: 0 | I138: 0 | J138: 0 | K138: 0 | L138: 0 | M138: 0 | N138: 0 | O138: 0 | P138: 0 | Q138: 0 | R138: 0 | S138: 0 | T138: 0 | U138: 0 | V138: 0 | W138: 0 | X138: 0 | Y138: 0 | Z138: 0 | AA138: 0 | AB138: 0 | AC138: 0 | AD138: 0 | AE138: 0 | AF138: 0 | AG138: 0 | AH138: 0 | AI138: 0 | AJ138: 0 | AK138: 0 | AL138: 0 | AM138: 0 | AN138: 0 | AO138: 0 | AP138: 0 | AQ138: 0 | AR138: 0 | AS138: 0 | AT138: 0 | AU138: 0 | AV138: 0 | AW138: 0 | AX138: 0 | AY138: 0 | AZ138: 0 | BA138: 0 | BB138: 0 | BC138: 0 | BD138: 0 | BE138: 0 | BF138: 0 | BG138: 0 | BH138: 0
A139: Cerro Reventador | B139: 00°02'33.90''S | C139: 77°31'44.10''W | D139: Gonzalo Pizarro | E139: 1600 | G139: 5.102040816 | H139: 5.102040816 | I139: 5.102040816 | J139: 5.102040816 | K139: 5.102040816 | L139: 5.102040816 | M139: 13.16964286 | N139: 13.16964286 | O139: 13.16964286 | P139: 0 | Q139: 0 | R139: 0 | S139: 0 | T139: 0 | U139: 0 | V139: 0 | W139: 0 | X139: 0 | Y139: 0 | Z139: 0 | AA139: 0 | AB139: 0 | AC139: 0 | AD139: 0 | AE139: 0 | AF139: 13.17 | AG139: 13.17 | AH139: 13.17 | AI139: 13.17 | AJ139: 13.17 | AK139: 13.17 | AL139: 13.17 | AM139: 13.17 | AN139: 13.17 | AO139: 13.17 | AP139: 13.17 | AQ139: 13.17 | AR139: 13.17 | AS139: 13.17 | AT139: 13.17 | AU139: 13.17 | AV139: 13.17 | AW139: 13.17 | AX139: 13.17 | AY139: 13.17 | AZ139: 0 | BA139: 0 | BB139: 0 | BC139: 0 | BD139: 0 | BE139: 0 | BF139: 0 | BG139: 0 | BH139: 0
A140: Cerro Niton | B140: 01°16'41.60''S | C140: 78°32'10.20''W | D140: San Pedro de Pelileo | E140: 3079 | G140: 0 | H140: 0 | I140: 0 | J140: 0 | K140: 0 | L140: 0 | M140: 0 | N140: 0 | O140: 0 | P140: 0 | Q140: 0 | R140: 0 | S140: 0 | T140: 0 | U140: 0 | V140: 0 | W140: 0 | X140: 0 | Y140: 0 | Z140: 0 | AA140: 0 | AB140: 0 | AC140: 0 | AD140: 0 | AE140: 0 | AF140: 0 | AG140: 0 | AH140: 0 | AI140: 0 | AJ140: 0 | AK140: 0 | AL140: 0 | AM140: 0 | AN140: 0 | AO140: 0 | AP140: 0 | AQ140: 0 | AR140: 0 | AS140: 0 | AT140: 0 | AU140: 0 | AV140: 0 | AW140: 0 | AX140: 0 | AY140: 0 | AZ140: 0 | BA140: 0 | BB140: 0 | BC140: 0 | BD140: 0 | BE140: 0 | BF140: 0 | BG140: 0 | BH140: 0
A141: Cerro Pilisurco o Saguatoa | B141: 01°09'17.20''S | C141: 78°39'58.00''W | D141: Ambato | E141: 4154 | G141: 0 | H141: 0 | I141: 0 | J141: 0 | K141: 0 | L141: 0 | M141: 0 | N141: 0 | O141: 0 | P141: 0 | Q141: 0 | R141: 0 | S141: 0 | T141: 0 | U141: 0 | V141: 0 | W141: 0 | X141: 0 | Y141: 0 | Z141: 0 | AA141: 0 | AB141: 0 | AC141: 0 | AD141: 0 | AE141: 0 | AF141: 0 | AG141: 0 | AH141: 0 | AI141: 0 | AJ141: 0 | AK141: 0 | AL141: 0 | AM141: 0 | AN141: 0 | AO141: 0 | AP141: 0 | AQ141: 0 | AR141: 0 | AS141: 0 | AT141: 0 | AU141: 0 | AV141: 0 | AW141: 0 | AX141: 0 | AY141: 0 | AZ141: 0 | BA141: 0 | BB141: 0 | BC141: 0 | BD141: 0 | BE141: 0 | BF141: 0 | BG141: 0 | BH141: 0
A142: Cerro Salvación (Lligua) | B142: 01°22'44.90''S | C142: 78°26'11.80''W | D142: Baños | E142: 2696 | G142: 0 | H142: 0 | I142: 0 | J142: 0 | K142: 0 | L142: 0 | M142: 0 | N142: 0 | O142: 0 | P142: 0 | Q142: 0 | R142: 0 | S142: 0 | T142: 0 | U142: 0 | V142: 0 | W142: 0 | X142: 0 | Y142: 0 | Z142: 0 | AA142: 0 | AB142: 0 | AC142: 0 | AD142: 0 | AE142: 0 | AF142: 0 | AG142: 0 | AH142: 0 | AI142: 0 | AJ142: 0 | AK142: 0 | AL142: 0 | AM142: 0 | AN142: 0 | AO142: 0 | AP142: 0 | AQ142: 0 | AR142: 0 | AS142: 0 | AT142: 0 | AU142: 0 | AV142: 0 | AW142: 0 | AX142: 0 | AY142: 0 | AZ142: 0 | BA142: 0 | BB142: 0 | BC142: 0 | BD142: 0 | BE142: 0 | BF142: 0 | BG142: 0 | BH142: 0
A143: Llantantoma | B143: 01°09'56.40''S | C143: 78°37'53.90''W | D143: Ambato | E143: 3450 | G143: 0 | H143: 0 | I143: 0 | J143: 0 | K143: 0 | L143: 0 | M143: 0 | N143: 0 | O143: 0 | P143: 0 | Q143: 0 | R143: 0 | S143: 0 | T143: 0 | U143: 0 | V143: 0 | W143: 0 | X143: 0 | Y143: 0 | Z143: 0 | AA143: 0 | AB143: 0 | AC143: 0 | AD143: 0 | AE143: 0 | AF143: 0 | AG143: 0 | AH143: 0 | AI143: 0 | AJ143: 0 | AK143: 0 | AL143: 0 | AM143: 0 | AN143: 0 | AO143: 0 | AP143: 0 | AQ143: 0 | AR143: 0 | AS143: 0 | AT143: 0 | AU143: 0 | AV143: 0 | AW143: 0 | AX143: 0 | AY143: 0 | AZ143: 0 | BA143: 0 | BB143: 0 | BC143: 0 | BD143: 0 | BE143: 0 | BF143: 0 | BG143: 0 | BH143: 0

Sheet 3800-4200 MHz
B3: Espectro Radioeléctrico
B4: Porcentajes de ocupación del espectro radioeléctrico por sitios en la banda 3800 4200 MHz
B7: =Hoja1!A1 -> Fecha de publicación: 20 de Febrero de 2015
G11: 2013 | R11: 2014 | AD11: 2015
A12: Nombre | B12: Latitud | C12: Longitud | D12: Cantón | E12: Hsnm(m) | F12: Gráficos | G12: Febrero | H12: Marzo | I12: Abril | J12: Mayo | K12: Junio | L12: Julio | M12: Agosto | N12: Septiembre | O12: Octubre | P12: Noviembre | Q12: Diciembre | R12: Enero | S12: Febrero | T12: Marzo | U12: Abril | V12: Mayo | W12: Junio | X12: Julio | Y12: Agosto | Z12: Septiembre | AA12: Octubre | AB12: Noviembre | AC12: Diciembre | AD12: Enero | AE12: Febrero | AF12: Marzo | AG12: Abril | AH12: Mayo | AI12: Junio | AJ12: Julio | AK12: Agosto | AL12: Septiembre | AM12: Octubre | AN12: Noviembre | AO12: Diciembre
G13: Ocupacion (%) | H13: Ocupacion (%) | I13: Ocupacion (%) | J13: Ocupacion (%) | K13: Ocupacion (%) | L13: Ocupacion (%) | M13: Ocupacion (%) | N13: Ocupacion (%) | O13: Ocupacion (%) | P13: Ocupacion (%) | Q13: Ocupacion (%) | R13: Ocupacion (%) | S13: Ocupacion (%) | T13: Ocupacion (%) | U13: Ocupacion (%) | V13: Ocupacion (%) | W13: Ocupacion (%) | X13: Ocupacion (%) | Y13: Ocupacion (%) | Z13: Ocupacion (%) | AA13: Ocupacion (%) | AB13: Ocupacion (%) | AC13: Ocupacion (%) | AD13: Ocupacion (%) | AE13: Ocupacion (%) | AF13: Ocupacion (%) | AG13: Ocupacion (%) | AH13: Ocupacion (%) | AI13: Ocupacion (%) | AJ13: Ocupacion (%) | AK13: Ocupacion (%) | AL13: Ocupacion (%) | AM13: Ocupacion (%) | AN13: Ocupacion (%) | AO13: Ocupacion (%)
A14: Barabon | B14: 02°53'34.40''S | C14: 79°05'15.10''W | D14: Cuenca | E14: 3351 | G14: 0 | H14: 0 | I14: 0 | J14: 0 | K14: 0 | L14: 0 | M14: 0 | N14: 0 | O14: 0 | P14: 0 | Q14: 0 | R14: 0 | S14: 0 | T14: 0 | U14: 0 | V14: 0 | W14: 0 | X14: 0 | Y14: 0 | Z14: 0 | AA14: 0 | AB14: 0 | AC14: 0 | AD14: 0
A15: Cerro Cahuazhun | B15: 02°52'33.40''S | C15: 78°49'01.60''W | D15: Gualaceo | E15: 2999 | G15: 0 | H15: 0 | I15: 0 | J15: 0 | K15: 0 | L15: 0 | M15: 0 | N15: 0 | O15: 0 | P15: 0 | Q15: 0 | R15: 0 | S15: 0 | T15: 0 | U15: 0 | V15: 0 | W15: 0 | X15: 0 | Y15: 0 | Z15: 0 | AA15: 0 | AB15: 0 | AC15: 0 | AD15: 0
A16: Cerro Cochapamba | B16: 02°47'41.10''S | C16: 79°25'39.10''W | D16: Cuenca | E16: 3714 | G16: 0 | H16: 0 | I16: 0 | J16: 0 | K16: 0 | L16: 0 | M16: 0 | N16: 0 | O16: 0 | P16: 0 | Q16: 0 | R16: 0 | S16: 0 | T16: 0 | U16: 0 | V16: 0 | W16: 0 | X16: 0 | Y16: 0 | Z16: 0 | AA16: 0 | AB16: 0 | AC16: 0 | AD16: 0
A17: Cerro Guagualzhumi | B17: 02°53'32.50''S | C17: 78°54'39.60''W | D17: Cuenca | E17: 3079 | G17: 0 | H17: 0 | I17: 0 | J17: 0 | K17: 0 | L17: 0 | M17: 0 | N17: 0 | O17: 0 | P17: 0 | Q17: 0 | R17: 0 | S17: 0 | T17: 0 | U17: 0 | V17: 0 | W17: 0 | X17: 0 | Y17: 0 | Z17: 0 | AA17: 0 | AB17: 0 | AC17: 0 | AD17: 0
A18: Cerro Guallil | B18: 03°04'30.90''S | C18: 78°48'58.70''W | D18: Sigsig | E18: 3284 | G18: 0 | H18: 0 | I18: 0 | J18: 0 | K18: 0 | L18: 0 | M18: 0 | N18: 0 | O18: 0 | P18: 0 | Q18: 0 | R18: 0 | S18: 0 | T18: 0 | U18: 0 | V18: 0 | W18: 0 | X18: 0 | Y18: 0 | Z18: 0 | AA18: 0 | AB18: 0 | AC18: 0 | AD18: 0
A19: Cerro Hito Cruz | B19: 02°55'51.50''S | C19: 78°59'51.70''W | D19: Cuenca | E19: 2847 | G19: 33.33333333 | H19: 33.33333333 | I19: 33.33333333 | J19: 33.33333333 | K19: 33.33333333 | L19: 33.33333333 | M19: 33.33333333 | N19: 33.33333333 | O19: 33.33333333 | P19: 33.33333333 | Q19: 33.33333333 | R19: 33.33333333 | S19: 33.33333333 | T19: 33.33333333 | U19: 33.33333333 | V19: 33.33333333 | W19: 33.33333333 | X19: 33.33333333 | Y19: 33.33333333 | Z19: 33.33333333 | AA19: 33.33333333 | AB19: 33.33333333 | AC19: 33.33333333 | AD19: 33.33333333
A20: Cerro Rayoloma | B20: 02°54'13.00''S | C20: 78°57'59.20''W | D20: Cuenca | E20: 2649 | G20: 0 | H20: 0 | I20: 0 | J20: 0 | K20: 0 | L20: 0 | M20: 0 | N20: 0 | O20: 0 | P20: 0 | Q20: 0 | R20: 0 | S20: 0 | T20: 0 | U20: 0 | V20: 0 | W20: 0 | X20: 0 | Y20: 0 | Z20: 0 | AA20: 0 | AB20: 0 | AC20: 0 | AD20: 0
A21: Cerro Rumiloma (Amopungo - Señor Pungo) | B21: 02°48'19.00''S | C21: 78°49'19.30''W | D21: Paute | E21: 3175 | G21: 100 | H21: 100 | I21: 100 | J21: 100 | K21: 100 | L21: 100 | M21: 100 | N21: 100 | O21: 100 | P21: 100 | Q21: 100 | R21: 100 | S21: 100 | T21: 100 | U21: 100 | V21: 100 | W21: 100 | X21: 100 | Y21: 100 | Z21: 100 | AA21: 100 | AB21: 100 | AC21: 100 | AD21: 100
A22: Cerro Turi | B22: 02°55'22.90''S | C22: 79°00'32.80''W | D22: Cuenca | E22: 2730 | G22: 0 | H22: 0 | I22: 0 | J22: 0 | K22: 0 | L22: 0 | M22: 0 | N22: 0 | O22: 0 | P22: 0 | Q22: 0 | R22: 0 | S22: 0 | T22: 0 | U22: 0 | V22: 0 | W22: 0 | X22: 0 | Y22: 0 | Z22: 0 | AA22: 0 | AB22: 0 | AC22: 0 | AD22: 0
A23: Sector Nero - Zhuzhun | B23: 02°56'48.30''S | C23: 79°03'46.20''W | D23: Cuenca | E23: 2932 | G23: 0 | H23: 0 | I23: 0 | J23: 0 | K23: 0 | L23: 0 | M23: 0 | N23: 0 | O23: 0 | P23: 0 | Q23: 0 | R23: 0 | S23: 0 | T23: 0 | U23: 0 | V23: 0 | W23: 0 | X23: 0 | Y23: 0 | Z23: 0 | AA23: 0 | AB23: 0 | AC23: 0 | AD23: 0
A24: Tipoloma Alto | B24: 03°08'13.20''S | C24: 79°05'09.70''W | D24: Girón | E24: 3177 | G24: 100 | H24: 100 | I24: 100 | J24: 100 | K24: 100 | L24: 100 | M24: 100 | N24: 100 | O24: 100 | P24: 100 | Q24: 100 | R24: 100 | S24: 100 | T24: 100 | U24: 100 | V24: 100 | W24: 100 | X24: 100 | Y24: 100 | Z24: 100 | AA24: 100 | AB24: 100 | AC24: 100 | AD24: 100
A25: Tipoloma Bajo | B25: 03°07'41.50''S | C25: 79°05'17.90''W | D25: Girón | E25: 3086 | G25: 0 | H25: 0 | I25: 0 | J25: 0 | K25: 0 | L25: 0 | M25: 0 | N25: 0 | O25: 0 | P25: 0 | Q25: 0 | R25: 0 | S25: 0 | T25: 0 | U25: 0 | V25: 0 | W25: 0 | X25: 0 | Y25: 0 | Z25: 0 | AA25: 0 | AB25: 0 | AC25: 0 | AD25: 0
A26: Cerro Paredones | B26: 02°44'38.30''S | C26: 79°26'26.60''W | D26: Cuenca | E26: 3668 | G26: 0 | H26: 0 | I26: 0 | J26: 0 | K26: 0 | L26: 0 | M26: 0 | N26: 0 | O26: 0 | P26: 0 | Q26: 0 | R26: 0 | S26: 0 | T26: 0 | U26: 0 | V26: 0 | W26: 0 | X26: 0 | Y26: 0 | Z26: 0 | AA26: 0 | AB26: 0 | AC26: 0 | AD26: 0
A27: Cuchilla de Paredones | B27: 02°44'10.70''S | C27: 79°26'43.10''W | D27: Cuenca | E27: 3311 | G27: 0 | H27: 0 | I27: 0 | J27: 0 | K27: 0 | L27: 0 | M27: 0 | N27: 0 | O27: 0 | P27: 0 | Q27: 0 | R27: 0 | S27: 0 | T27: 0 | U27: 0 | V27: 0 | W27: 0 | X27: 0 | Y27: 0 | Z27: 0 | AA27: 0 | AB27: 0 | AC27: 0 | AD27: 0
A28: Bilovan | B28: 01°48'09.10''S | C28: 79°06'17.20''W | D28: San Miguel | E28: 2662 | G28: 0 | H28: 0 | I28: 0 | J28: 0 | K28: 0 | L28: 0 | M28: 0 | N28: 0 | O28: 0 | P28: 0 | Q28: 0 | R28: 0 | S28: 0 | T28: 0 | U28: 0 | V28: 0 | W28: 0 | X28: 0 | Y28: 0 | Z28: 0 | AA28: 0 | AB28: 0 | AC28: 0 | AD28: 0
A29: Cerro Capadia Alto | B29: 01°25'24.20''S | C29: 78°57'01.10''W | D29: Guaranda | E29: 4460 | G29: 0 | H29: 0 | I29: 0 | J29: 0 | K29: 0 | L29: 0 | M29: 0 | N29: 0 | O29: 0 | P29: 0 | Q29: 0 | R29: 0 | S29: 0 | T29: 0 | U29: 0 | V29: 0 | W29: 0 | X29: 0 | Y29: 0 | Z29: 0 | AA29: 0 | AB29: 0 | AC29: 0 | AD29: 0
A30: Cerro Capadia Chico | B30: 01°25'54.10''S | C30: 78°56'19.70''W | D30: Guaranda | E30: 4384 | G30: 66.66666667 | H30: 66.66666667 | I30: 66.66666667 | J30: 66.66666667 | K30: 66.66666667 | L30: 66.66666667 | M30: 66.66666667 | N30: 66.66666667 | O30: 66.66666667 | P30: 66.66666667 | Q30: 66.66666667 | R30: 66.66666667 | S30: 66.66666667 | T30: 66.66666667 | U30: 66.66666667 | V30: 66.66666667 | W30: 66.66666667 | X30: 66.66666667 | Y30: 66.66666667 | Z30: 66.66666667 | AA30: 66.66666667 | AB30: 66.66666667 | AC30: 66.66666667 | AD30: 66.66666667
A31: Cerro de la Cocha | B31: 01°50'38.90''S | C31: 79°09'52.80''W | D31: San Miguel | E31: 2496 | G31: 0 | H31: 0 | I31: 0 | J31: 0 | K31: 0 | L31: 0 | M31: 0 | N31: 0 | O31: 0 | P31: 0 | Q31: 0 | R31: 0 | S31: 0 | T31: 0 | U31: 0 | V31: 0 | W31: 0 | X31: 0 | Y31: 0 | Z31: 0 | AA31: 0 | AB31: 0 | AC31: 0 | AD31: 0
A32: Cerro Ilambulo | B32: 01°42'18.60''S | C32: 79°05'32.60''W | D32: San Miguel | E32: 3213 | G32: 0 | H32: 0 | I32: 0 | J32: 0 | K32: 0 | L32: 0 | M32: 0 | N32: 0 | O32: 0 | P32: 0 | Q32: 0 | R32: 0 | S32: 0 | T32: 0 | U32: 0 | V32: 0 | W32: 0 | X32: 0 | Y32: 0 | Z32: 0 | AA32: 0 | AB32: 0 | AC32: 0 | AD32: 0
A33: Cerro Pucará | B33: 01°39'04.50''S | C33: 79°06'10.70''W | D33: Chimbo | E33: 3063 | G33: 0 | H33: 0 | I33: 0 | J33: 0 | K33: 0 | L33: 0 | M33: 0 | N33: 0 | O33: 0 | P33: 0 | Q33: 0 | R33: 0 | S33: 0 | T33: 0 | U33: 0 | V33: 0 | W33: 0 | X33: 0 | Y33: 0 | Z33: 0 | AA33: 0 | AB33: 0 | AC33: 0 | AD33: 0
A34: Cochambamba (Chuchi) | B34: 01°41'56.20''S | C34: 79°06'20.60''W | D34: San Miguel | E34: 3072 | G34: 0 | H34: 0 | I34: 0 | J34: 0 | K34: 0 | L34: 0 | M34: 0 | N34: 0 | O34: 0 | P34: 0 | Q34: 0 | R34: 0 | S34: 0 | T34: 0 | U34: 0 | V34: 0 | W34: 0 | X34: 0 | Y34: 0 | Z34: 0 | AA34: 0 | AB34: 0 | AC34: 0 | AD34: 0
A35: Cochabamba (Tundaloma) | B35: 01°41'35.30''S | C35: 79°06'28.20''W | D35: San Miguel | E35: 3018 | G35: 0 | H35: 0 | I35: 0 | J35: 0 | K35: 0 | L35: 0 | M35: 0 | N35: 0 | O35: 0 | P35: 0 | Q35: 0 | R35: 0 | S35: 0 | T35: 0 | U35: 0 | V35: 0 | W35: 0 | X35: 0 | Y35: 0 | Z35: 0 | AA35: 0 | AB35: 0 | AC35: 0 | AD35: 0
A36: Loma de Lourdes | B36: 01°42'19.70''S | C36: 79°04'49.20''W | D36: San Miguel | E36: 3281 | G36: 0 | H36: 0 | I36: 0 | J36: 0 | K36: 0 | L36: 0 | M36: 0 | N36: 0 | O36: 0 | P36: 0 | Q36: 0 | R36: 0 | S36: 0 | T36: 0 | U36: 0 | V36: 0 | W36: 0 | X36: 0 | Y36: 0 | Z36: 0 | AA36: 0 | AB36: 0 | AC36: 0 | AD36: 0
A37: Loma Susanga | B37: 01°40'23.00''S | C37: 79°01'08.80''W | D37: Chimbo | E37: 2879 | G37: 0 | H37: 0 | I37: 0 | J37: 0 | K37: 0 | L37: 0 | M37: 0 | N37: 0 | O37: 0 | P37: 0 | Q37: 0 | R37: 0 | S37: 0 | T37: 0 | U37: 0 | V37: 0 | W37: 0 | X37: 0 | Y37: 0 | Z37: 0 | AA37: 0 | AB37: 0 | AC37: 0 | AD37: 0
A38: Padre Urcu | B38: 01°42'21.80''S | C38: 79°05'45.70''W | D38: San Miguel | E38: 3181 | G38: 0 | H38: 0 | I38: 0 | J38: 0 | K38: 0 | L38: 0 | M38: 0 | N38: 0 | O38: 0 | P38: 0 | Q38: 0 | R38: 0 | S38: 0 | T38: 0 | U38: 0 | V38: 0 | W38: 0 | X38: 0 | Y38: 0 | Z38: 0 | AA38: 0 | AB38: 0 | AC38: 0 | AD38: 0
A39: Tiuguinal | B39: 01°22'00.30''S | C39: 79°00'25.10''W | D39: Guaranda | E39: 4126 | G39: 0 | H39: 0 | I39: 0 | J39: 0 | K39: 0 | L39: 0 | M39: 0 | N39: 0 | O39: 0 | P39: 0 | Q39: 0 | R39: 0 | S39: 0 | T39: 0 | U39: 0 | V39: 0 | W39: 0 | X39: 0 | Y39: 0 | Z39: 0 | AA39: 0 | AB39: 0 | AC39: 0 | AD39: 0
A40: Biblian (Sagrado Corazón) | B40: 02°43'07.70''S | C40: 78°52'53.40''W | D40: Biblián | E40: 2878 | G40: 0 | H40: 0 | I40: 0 | J40: 0 | K40: 0 | L40: 0 | M40: 0 | N40: 0 | O40: 0 | P40: 0 | Q40: 0 | R40: 0 | S40: 0 | T40: 0 | U40: 0 | V40: 0 | W40: 0 | X40: 0 | Y40: 0 | Z40: 0 | AA40: 0 | AB40: 0 | AC40: 0 | AD40: 0
A41: Cerro Altar Urcu | B41: 02°28'48.90''S | C41: 78°59'36.30''W | D41: Cañar | E41: 3215 | G41: 33.33333333 | H41: 33.33333333 | I41: 33.33333333 | J41: 33.33333333 | K41: 33.33333333 | L41: 33.33333333 | M41: 33.33333333 | N41: 33.33333333 | O41: 33.33333333 | P41: 33.33333333 | Q41: 33.33333333 | R41: 33.33333333 | S41: 33.33333333 | T41: 33.33333333 | U41: 33.33333333 | V41: 33.33333333 | W41: 33.33333333 | X41: 33.33333333 | Y41: 33.33333333 | Z41: 33.33333333 | AA41: 33.33333333 | AB41: 33.33333333 | AC41: 33.33333333 | AD41: 33.33333333
A42: Cerro Buerán | B42: 02°36'31.10''S | C42: 78°55'50.90''W | D42: Biblián | E42: 3816 | G42: 100 | H42: 100 | I42: 100 | J42: 100 | K42: 100 | L42: 100 | M42: 100 | N42: 100 | O42: 100 | P42: 100 | Q42: 100 | R42: 100 | S42: 100 | T42: 100 | U42: 100 | V42: 100 | W42: 100 | X42: 100 | Y42: 100 | Z42: 100 | AA42: 100 | AB42: 100 | AC42: 100 | AD42: 100
A43: Cerro Buerán(Tierras Negras) | B43: 02°35'59.40''S | C43: 78°55'44.40''W | D43: Biblián | E43: 3828 | G43: 100 | H43: 100 | I43: 100 | J43: 100 | K43: 100 | L43: 100 | M43: 100 | N43: 100 | O43: 100 | P43: 100 | Q43: 100 | R43: 100 | S43: 100 | T43: 100 | U43: 100 | V43: 100 | W43: 100 | X43: 100 | Y43: 100 | Z43: 100 | AA43: 100 | AB43: 100 | AC43: 100 | AD43: 100
A44: Cerro Carshao | B44: 02°26'23.20''S | C44: 78°57'03.80''W | D44: Cañar | E44: 4017 | G44: 100 | H44: 100 | I44: 100 | J44: 100 | K44: 100 | L44: 100 | M44: 100 | N44: 100 | O44: 100 | P44: 100 | Q44: 100 | R44: 100 | S44: 100 | T44: 100 | U44: 100 | V44: 100 | W44: 100 | X44: 100 | Y44: 100 | Z44: 100 | AA44: 100 | AB44: 100 | AC44: 100 | AD44: 100
A45: Cerro Carshao Bajo | B45: 02°26'08.10''S | C45: 78°56'52.20''W | D45: Cañar | E45: 4003 | G45: 100 | H45: 100 | I45: 100 | J45: 100 | K45: 100 | L45: 100 | M45: 100 | N45: 100 | O45: 100 | P45: 100 | Q45: 100 | R45: 100 | S45: 100 | T45: 100 | U45: 100 | V45: 100 | W45: 100 | X45: 100 | Y45: 100 | Z45: 100 | AA45: 100 | AB45: 100 | AC45: 100 | AD45: 100
A46: Cerro Cojitambo | B46: 02°45'40.70''S | C46: 78°53'16.40''W | D46: Azoguez | E46: 3106 | G46: 0 | H46: 0 | I46: 0 | J46: 0 | K46: 0 | L46: 0 | M46: 0 | N46: 0 | O46: 0 | P46: 0 | Q46: 0 | R46: 0 | S46: 0 | T46: 0 | U46: 0 | V46: 0 | W46: 0 | X46: 0 | Y46: 0 | Z46: 0 | AA46: 0 | AB46: 0 | AC46: 0 | AD46: 0
A47: Cerro Villaflor | B47: 02°49'44.60''S | C47: 78°48'12.30''W | D47: Azoguez | E47: 3042 | G47: 0 | H47: 0 | I47: 0 | J47: 0 | K47: 0 | L47: 0 | M47: 0 | N47: 0 | O47: 0 | P47: 0 | Q47: 0 | R47: 0 | S47: 0 | T47: 0 | U47: 0 | V47: 0 | W47: 0 | X47: 0 | Y47: 0 | Z47: 0 | AA47: 0 | AB47: 0 | AC47: 0 | AD47: 0
A48: Cerro Troya | B48: 00°44'24.50''N | C48: 77°41'48.70''W | D48: Tulcán | E48: 3529 | G48: 100 | H48: 100 | I48: 100 | J48: 100 | K48: 100 | L48: 100 | M48: 100 | N48: 100 | O48: 100 | P48: 100 | Q48: 100 | R48: 100 | S48: 100 | T48: 100 | U48: 100 | V48: 100 | W48: 100 | X48: 100 | Y48: 100 | Z48: 100 | AA48: 100 | AB48: 100 | AC48: 100 | AD48: 100
A49: Cerro Troya Bajo | B49: 00°44'09.50''N | C49: 77°42'22.80''W | D49: Tulcán | E49: 3418 | G49: 0 | H49: 0 | I49: 0 | J49: 0 | K49: 0 | L49: 0 | M49: 0 | N49: 0 | O49: 0 | P49: 0 | Q49: 0 | R49: 0 | S49: 0 | T49: 0 | U49: 0 | V49: 0 | W49: 0 | X49: 0 | Y49: 0 | Z49: 0 | AA49: 0 | AB49: 0 | AC49: 0 | AD49: 0
A50: Cerro Cabras | B50: 00°28'15.00''N | C50: 77°57'50.70''W | D50: Bolívar | E50: 2904 | G50: 100 | H50: 100 | I50: 100 | J50: 100 | K50: 100 | L50: 100 | M50: 100 | N50: 100 | O50: 100 | P50: 100 | Q50: 100 | R50: 100 | S50: 100 | T50: 100 | U50: 100 | V50: 100 | W50: 100 | X50: 100 | Y50: 100 | Z50: 100 | AA50: 100 | AB50: 100 | AC50: 100 | AD50: 100
A51: Cerro Chiles Alto | B51: 00°35'14.40''N | C51: 77°51'04.00''W | D51: Montúfar | E51: 3093 | G51: 0 | H51: 0 | I51: 0 | J51: 0 | K51: 0 | L51: 0 | M51: 0 | N51: 0 | O51: 0 | P51: 0 | Q51: 0 | R51: 0 | S51: 0 | T51: 0 | U51: 0 | V51: 0 | W51: 0 | X51: 0 | Y51: 0 | Z51: 0 | AA51: 0 | AB51: 0 | AC51: 0 | AD51: 0
A52: Agua Santa | B52: 01°41'46.80''S | C52: 78°39'59.80''W | D52: Riobamba | E52: 3006 | G52: 0 | H52: 0 | I52: 0 | J52: 0 | K52: 0 | L52: 0 | M52: 0 | N52: 0 | O52: 0 | P52: 0 | Q52: 0 | R52: 0 | S52: 0 | T52: 0 | U52: 0 | V52: 0 | W52: 0 | X52: 0 | Y52: 0 | Z52: 0 | AA52: 0 | AB52: 0 | AC52: 0 | AD52: 0
A53: Cerro Amula Rayoloma | B53: 01°41'22.10''S | C53: 78°43'45.70''W | D53: Colta | E53: 3485 | G53: 0 | H53: 0 | I53: 0 | J53: 0 | K53: 0 | L53: 0 | M53: 0 | N53: 0 | O53: 0 | P53: 0 | Q53: 0 | R53: 0 | S53: 0 | T53: 0 | U53: 0 | V53: 0 | W53: 0 | X53: 0 | Y53: 0 | Z53: 0 | AA53: 0 | AB53: 0 | AC53: 0 | AD53: 0
A54: Cerro Gatazo Grande | B54: 01°39'41.30''S | C54: 78°45'00.80''W | D54: Colta | E54: 3188 | G54: 0 | H54: 0 | I54: 0 | J54: 0 | K54: 0 | L54: 0 | M54: 0 | N54: 0 | O54: 0 | P54: 0 | Q54: 0 | R54: 0 | S54: 0 | T54: 0 | U54: 0 | V54: 0 | W54: 0 | X54: 0 | Y54: 0 | Z54: 0 | AA54: 0 | AB54: 0 | AC54: 0 | AD54: 0
A55: Cerro Higno Cacha | B55: 01°41'31.90''S | C55: 78°42'58.60''W | D55: Riobamba | E55: 3567 | G55: 0 | H55: 0 | I55: 0 | J55: 0 | K55: 0 | L55: 0 | M55: 0 | N55: 0 | O55: 0 | P55: 0 | Q55: 0 | R55: 0 | S55: 0 | T55: 0 | U55: 0 | V55: 0 | W55: 0 | X55: 0 | Y55: 0 | Z55: 0 | AA55: 0 | AB55: 0 | AC55: 0 | AD55: 0
A56: Cerro La Mira | B56: 01°30'32.70''S | C56: 78°35'05.20''W | D56: Guano | E56: 3881 | G56: 100 | H56: 100 | I56: 100 | J56: 100 | K56: 100 | L56: 100 | M56: 100 | N56: 100 | O56: 100 | P56: 100 | Q56: 100 | R56: 100 | S56: 100 | T56: 100 | U56: 100 | V56: 100 | W56: 100 | X56: 100 | Y56: 100 | Z56: 100 | AA56: 100 | AB56: 100 | AC56: 100 | AD56: 100
A57: Cerro La Mira (Senincahuan) | B57: 01°41'31.90''S | C57: 78°42'58.60''W | D57: Riobamba | E57: 3947 | G57: 0 | H57: 0 | I57: 0 | J57: 0 | K57: 0 | L57: 0 | M57: 0 | N57: 0 | O57: 0 | P57: 0 | Q57: 0 | R57: 0 | S57: 0 | T57: 0 | U57: 0 | V57: 0 | W57: 0 | X57: 0 | Y57: 0 | Z57: 0 | AA57: 0 | AB57: 0 | AC57: 0 | AD57: 0
A58: Cerro Achayandi | B58: 00°57'07.70''S | C58: 78°55'32.90''W | D58: Pujulí | E58: 4102 | G58: 0 | H58: 0 | I58: 0 | J58: 0 | K58: 0 | L58: 0 | M58: 0 | N58: 0 | O58: 0 | P58: 0 | Q58: 0 | R58: 0 | S58: 0 | T58: 0 | U58: 0 | V58: 0 | W58: 0 | X58: 0 | Y58: 0 | Z58: 0 | AA58: 0 | AB58: 0 | AC58: 0 | AD58: 0
A59: Cerro Apagua | B59: 00°58'32.00''S | C59: 78°56'58.00''W | D59: Pujulí | E59: 4032 | G59: 0 | H59: 0 | I59: 0 | J59: 0 | K59: 0 | L59: 0 | M59: 0 | N59: 0 | O59: 0 | P59: 0 | Q59: 0 | R59: 0 | S59: 0 | T59: 0 | U59: 0 | V59: 0 | W59: 0 | X59: 0 | Y59: 0 | Z59: 0 | AA59: 0 | AB59: 0 | AC59: 0 | AD59: 0
A60: Cerro Putzalagua | B60: 00°57'56.00''S | C60: 78°33'42.70''W | D60: Latacunga | E60: 3531 | G60: 0 | H60: 0 | I60: 0 | J60: 0 | K60: 0 | L60: 0 | M60: 0 | N60: 0 | O60: 0 | P60: 0 | Q60: 0 | R60: 0 | S60: 0 | T60: 0 | U60: 0 | V60: 0 | W60: 0 | X60: 0 | Y60: 0 | Z60: 0 | AA60: 0 | AB60: 0 | AC60: 0 | AD60: 0
A61: Chasqui | B61: 00°37'15.30''S | C61: 78°35'37.20''W | D61: Latacunga | E61: 3532 | G61: 100 | H61: 100 | I61: 100 | J61: 100 | K61: 100 | L61: 100 | M61: 100 | N61: 100 | O61: 100 | P61: 100 | Q61: 100 | R61: 100 | S61: 100 | T61: 100 | U61: 100 | V61: 100 | W61: 100 | X61: 100 | Y61: 100 | Z61: 100 | AA61: 100 | AB61: 100 | AC61: 100 | AD61: 100
A62: Cerro Chilla | B62: 03°29'09.70''S | C62: 79°36'04.70''W | D62: Chilla | E62: 3450 | G62: 0 | H62: 0 | I62: 0 | J62: 0 | K62: 0 | L62: 0 | M62: 0 | N62: 0 | O62: 0 | P62: 0 | Q62: 0 | R62: 0 | S62: 0 | T62: 0 | U62: 0 | V62: 0 | W62: 0 | X62: 0 | Y62: 0 | Z62: 0 | AA62: 0 | AB62: 0 | AC62: 0 | AD62: 0
A63: Cerro Chilola | B63: 03°30'00.90''S | C63: 79°37'52.50''W | D63: Chilla | E63: 3596 | G63: 0 | H63: 0 | I63: 0 | J63: 0 | K63: 0 | L63: 0 | M63: 0 | N63: 0 | O63: 0 | P63: 0 | Q63: 0 | R63: 0 | S63: 0 | T63: 0 | U63: 0 | V63: 0 | W63: 0 | X63: 0 | Y63: 0 | Z63: 0 | AA63: 0 | AB63: 0 | AC63: 0 | AD63: 0
A64: Cerro El Trigal | B64: 03°41'23.20''S | C64: 79°39'33.90''W | D64: Piñas | E64: 1292 | G64: 0 | H64: 0 | I64: 0 | J64: 0 | K64: 0 | L64: 0 | M64: 0 | N64: 0 | O64: 0 | P64: 0 | Q64: 0 | R64: 0 | S64: 0 | T64: 0 | U64: 0 | V64: 0 | W64: 0 | X64: 0 | Y64: 0 | Z64: 0 | AA64: 0 | AB64: 0 | AC64: 0 | AD64: 0
A65: Cerro Guirillio | B65: 03°09'57.50''S | C65: 79°36'20.40''W | D65: El Guabo | E65: 3192 | G65: 0 | H65: 0 | I65: 0 | J65: 0 | K65: 0 | L65: 0 | M65: 0 | N65: 0 | O65: 0 | P65: 0 | Q65: 0 | R65: 0 | S65: 0 | T65: 0 | U65: 0 | V65: 0 | W65: 0 | X65: 0 | Y65: 0 | Z65: 0 | AA65: 0 | AB65: 0 | AC65: 0 | AD65: 0
A66: Cerro La Chuva | B66: 03°43'03.00''S | C66: 79°39'11.30''W | D66: Piñas | E66: 1282 | G66: 0 | H66: 0 | I66: 0 | J66: 0 | K66: 0 | L66: 0 | M66: 0 | N66: 0 | O66: 0 | P66: 0 | Q66: 0 | R66: 0 | S66: 0 | T66: 0 | U66: 0 | V66: 0 | W66: 0 | X66: 0 | Y66: 0 | Z66: 0 | AA66: 0 | AB66: 0 | AC66: 0 | AD66: 0
A67: Cerro Repen | B67: 03°33'01.80''S | C67: 79°41'02.70''W | D67: Atahualpa | E67: 2369 | G67: 0 | H67: 0 | I67: 0 | J67: 0 | K67: 0 | L67: 0 | M67: 0 | N67: 0 | O67: 0 | P67: 0 | Q67: 0 | R67: 0 | S67: 0 | T67: 0 | U67: 0 | V67: 0 | W67: 0 | X67: 0 | Y67: 0 | Z67: 0 | AA67: 0 | AB67: 0 | AC67: 0 | AD67: 0
A68: Cerro Balao (Esmeraldas) | B68: 00°57'41.30''N | C68: 79°41'25.70''W | D68: Esmeraldas | E68: 192 | G68: 0 | H68: 0 | I68: 0 | J68: 0 | K68: 0 | L68: 0 | M68: 0 | N68: 0 | O68: 0 | P68: 0 | Q68: 0 | R68: 0 | S68: 0 | T68: 0 | U68: 0 | V68: 0 | W68: 0 | X68: 0 | Y68: 0 | Z68: 0 | AA68: 0 | AB68: 0 | AC68: 0 | AD68: 0
A69: Cerro Don Juan | B69: 00°50'51.20''N | C69: 79°53'52.40''W | D69: Atacames | E69: 262 | G69: 0 | H69: 0 | I69: 0 | J69: 0 | K69: 0 | L69: 0 | M69: 0 | N69: 0 | O69: 0 | P69: 0 | Q69: 0 | R69: 0 | S69: 0 | T69: 0 | U69: 0 | V69: 0 | W69: 0 | X69: 0 | Y69: 0 | Z69: 0 | AA69: 0 | AB69: 0 | AC69: 0 | AD69: 0
A70: Cerro Gatazo | B70: 00°56'38.40''N | C70: 79°39'29.70''W | D70: Esmeraldas | E70: 271 | G70: 0 | H70: 0 | I70: 0 | J70: 0 | K70: 0 | L70: 0 | M70: 0 | N70: 0 | O70: 0 | P70: 0 | Q70: 0 | R70: 0 | S70: 0 | T70: 0 | U70: 0 | V70: 0 | W70: 0 | X70: 0 | Y70: 0 | Z70: 0 | AA70: 0 | AB70: 0 | AC70: 0 | AD70: 0
A71: Cerro La Juanita | B71: 00°28'02.20''N | C71: 79°34'40.50''W | D71: Quinindé | E71: 502 | G71: 0 | H71: 0 | I71: 0 | J71: 0 | K71: 0 | L71: 0 | M71: 0 | N71: 0 | O71: 0 | P71: 0 | Q71: 0 | R71: 0 | S71: 0 | T71: 0 | U71: 0 | V71: 0 | W71: 0 | X71: 0 | Y71: 0 | Z71: 0 | AA71: 0 | AB71: 0 | AC71: 0 | AD71: 0
A72: Cerro Zapallo | B72: 00°53'05.30''N | C72: 79°31'52.20''W | D72: Esmeraldas | E72: 690 | G72: 0 | H72: 0 | I72: 0 | J72: 0 | K72: 0 | L72: 0 | M72: 0 | N72: 0 | O72: 0 | P72: 0 | Q72: 0 | R72: 0 | S72: 0 | T72: 0 | U72: 0 | V72: 0 | W72: 0 | X72: 0 | Y72: 0 | Z72: 0 | AA72: 0 | AB72: 0 | AC72: 0 | AD72: 0
A73: Cerro Animas | B73: 02°28'28.20''S | C73: 80°28'03.40''W | D73: Guayaquil | E73: 427 | G73: 16.66666667 | H73: 16.66666667 | I73: 16.66666667 | J73: 16.66666667 | K73: 16.66666667 | L73: 16.66666667 | M73: 16.66666667 | N73: 16.66666667 | O73: 16.66666667 | P73: 16.66666667 | Q73: 16.66666667 | R73: 16.66666667 | S73: 16.66666667 | T73: 16.66666667 | U73: 16.66666667 | V73: 16.66666667 | W73: 16.66666667 | X73: 16.66666667 | Y73: 16.66666667 | Z73: 16.66666667 | AA73: 16.66666667 | AB73: 16.66666667 | AC73: 16.66666667 | AD73: 16.66666667
A74: Cerro Azul | B74: 02°09'57.40''S | C74: 79°57'24.80''W | D74: Guayaquil | E74: 324 | G74: 100 | H74: 100 | I74: 100 | J74: 100 | K74: 100 | L74: 100 | M74: 100 | N74: 100 | O74: 100 | P74: 100 | Q74: 100 | R74: 100 | S74: 100 | T74: 100 | U74: 100 | V74: 100 | W74: 100 | X74: 100 | Y74: 100 | Z74: 100 | AA74: 100 | AB74: 100 | AC74: 100 | AD74: 100
A75: Cerro Azul Alto (507) | B75: 02°09'05.10''S | C75: 79°59'01.80''W | D75: Guayaquil | E75: 398 | G75: 0 | H75: 0 | I75: 0 | J75: 0 | K75: 0 | L75: 0 | M75: 0 | N75: 0 | O75: 0 | P75: 0 | Q75: 0 | R75: 0 | S75: 0 | T75: 0 | U75: 0 | V75: 0 | W75: 0 | X75: 0 | Y75: 0 | Z75: 0 | AA75: 0 | AB75: 0 | AC75: 0 | AD75: 0
A76: Cerro Balao | B76: 02°45'58.90''S | C76: 79°39'52.90''W | D76: Naranjal | E76: 490 | G76: 33.33333333 | H76: 33.33333333 | I76: 33.33333333 | J76: 33.33333333 | K76: 33.33333333 | L76: 33.33333333 | M76: 33.33333333 | N76: 33.33333333 | O76: 33.33333333 | P76: 33.33333333 | Q76: 33.33333333 | R76: 33.33333333 | S76: 33.33333333 | T76: 33.33333333 | U76: 33.33333333 | V76: 33.33333333 | W76: 33.33333333 | X76: 33.33333333 | Y76: 33.33333333 | Z76: 33.33333333 | AA76: 33.33333333 | AB76: 33.33333333 | AC76: 33.33333333 | AD76: 33.33333333
A77: Cerro Bellavista | B77: 02°10'57.10''S | C77: 79°54'51.30''W | D77: Guayaquil | E77: 100 | G77: 0 | H77: 0 | I77: 0 | J77: 0 | K77: 0 | L77: 0 | M77: 0 | N77: 0 | O77: 0 | P77: 0 | Q77: 0 | R77: 0 | S77: 0 | T77: 0 | U77: 0 | V77: 0 | W77: 0 | X77: 0 | Y77: 0 | Z77: 0 | AA77: 0 | AB77: 0 | AC77: 0 | AD77: 0
A78: Cerro El Carmen | B78: 02°10'47.60''S | C78: 79°52'50.00''W | D78: Guayaquil | E78: 80 | G78: 0 | H78: 0 | I78: 0 | J78: 0 | K78: 0 | L78: 0 | M78: 0 | N78: 0 | O78: 0 | P78: 0 | Q78: 0 | R78: 0 | S78: 0 | T78: 0 | U78: 0 | V78: 0 | W78: 0 | X78: 0 | Y78: 0 | Z78: 0 | AA78: 0 | AB78: 0 | AC78: 0 | AD78: 0
A79: Cerro González | B79: 02°20'57.30''S | C79: 80°32'36.70''W | D79: Guayaquil | E79: 296 | G79: 100 | H79: 100 | I79: 100 | J79: 100 | K79: 100 | L79: 100 | M79: 100 | N79: 100 | O79: 100 | P79: 100 | Q79: 100 | R79: 100 | S79: 100 | T79: 100 | U79: 100 | V79: 100 | W79: 100 | X79: 100 | Y79: 100 | Z79: 100 | AA79: 100 | AB79: 100 | AC79: 100 | AD79: 100
A80: Cerro Mapasingue | B80: 02°08'49.80''S | C80: 79°55'40.80''W | D80: Guayaquil | E80: 120 | G80: 0 | H80: 0 | I80: 0 | J80: 0 | K80: 0 | L80: 0 | M80: 0 | N80: 0 | O80: 0 | P80: 0 | Q80: 0 | R80: 0 | S80: 0 | T80: 0 | U80: 0 | V80: 0 | W80: 0 | X80: 0 | Y80: 0 | Z80: 0 | AA80: 0 | AB80: 0 | AC80: 0 | AD80: 0
A81: Cerro San Eduardo | B81: 02°10'28.00''S | C81: 79°55'07.30''W | D81: Guayaquil | E81: 160 | G81: 0 | H81: 0 | I81: 0 | J81: 0 | K81: 0 | L81: 0 | M81: 0 | N81: 0 | O81: 0 | P81: 0 | Q81: 0 | R81: 0 | S81: 0 | T81: 0 | U81: 0 | V81: 0 | W81: 0 | X81: 0 | Y81: 0 | Z81: 0 | AA81: 0 | AB81: 0 | AC81: 0 | AD81: 0
A82: Cerro Santa Ana | B82: 01°55'45.30''S | C82: 79°45'50.10''W | D82: San Borondón | E82: 300 | G82: 100 | H82: 100 | I82: 100 | J82: 100 | K82: 100 | L82: 100 | M82: 100 | N82: 100 | O82: 100 | P82: 100 | Q82: 100 | R82: 100 | S82: 100 | T82: 100 | U82: 100 | V82: 100 | W82: 100 | X82: 100 | Y82: 100 | Z82: 100 | AA82: 100 | AB82: 100 | AC82: 100 | AD82: 100
A83: Cerro Tanzarte (Cruz Loma) | B83: 02°45'17.90''S | C83: 79°23'59.80''W | D83: Naranjal | E83: 2894 | G83: 0 | H83: 0 | I83: 0 | J83: 0 | K83: 0 | L83: 0 | M83: 0 | N83: 0 | O83: 0 | P83: 0 | Q83: 0 | R83: 0 | S83: 0 | T83: 0 | U83: 0 | V83: 0 | W83: 0 | X83: 0 | Y83: 0 | Z83: 0 | AA83: 0 | AB83: 0 | AC83: 0 | AD83: 0
A84: Cerro Blanco | B84: 00°12'33.70''N | C84: 78°20'16.40''W | D84: Otavalo | E84: 3545 | G84: 100 | H84: 100 | I84: 100 | J84: 100 | K84: 100 | L84: 100 | M84: 100 | N84: 100 | O84: 100 | P84: 100 | Q84: 100 | R84: 100 | S84: 100 | T84: 100 | U84: 100 | V84: 100 | W84: 100 | X84: 100 | Y84: 100 | Z84: 100 | AA84: 100 | AB84: 100 | AC84: 100 | AD84: 100
A85: Cerro Cotacachi | B85: 00°19'57.30''N | C85: 78°20'24.60''W | D85: Cotacachi | E85: 4047 | G85: 16.66666667 | H85: 16.66666667 | I85: 16.66666667 | J85: 16.66666667 | K85: 16.66666667 | L85: 16.66666667 | M85: 16.66666667 | N85: 16.66666667 | O85: 16.66666667 | P85: 16.66666667 | Q85: 16.66666667 | R85: 16.66666667 | S85: 16.66666667 | T85: 16.66666667 | U85: 16.66666667 | V85: 16.66666667 | W85: 16.66666667 | X85: 16.66666667 | Y85: 16.66666667 | Z85: 16.66666667 | AA85: 16.66666667 | AB85: 16.66666667 | AC85: 16.66666667 | AD85: 16.66666667
A86: Cerro Calvario (Loja) | B86: 04°02'47.00''S | C86: 79°39'05.80''W | D86: Paltas | E86: 1935 | G86: 0 | H86: 0 | I86: 0 | J86: 0 | K86: 0 | L86: 0 | M86: 0 | N86: 0 | O86: 0 | P86: 0 | Q86: 0 | R86: 0 | S86: 0 | T86: 0 | U86: 0 | V86: 0 | W86: 0 | X86: 0 | Y86: 0 | Z86: 0 | AA86: 0 | AB86: 0 | AC86: 0 | AD86: 0
A87: Cerro Colambo | B87: 04°14'14.60''S | C87: 79°23'45.40''W | D87: Gonzanamá | E87: 3103 | G87: 100 | H87: 100 | I87: 100 | J87: 100 | K87: 100 | L87: 100 | M87: 100 | N87: 100 | O87: 100 | P87: 100 | Q87: 100 | R87: 100 | S87: 100 | T87: 100 | U87: 100 | V87: 100 | W87: 100 | X87: 100 | Y87: 100 | Z87: 100 | AA87: 100 | AB87: 100 | AC87: 100 | AD87: 100
A88: Cerro Guachaurco | B88: 04°02'11.70''S | C88: 79°52'19.40''W | D88: Paltas | E88: 3102 | G88: 0 | H88: 0 | I88: 0 | J88: 0 | K88: 0 | L88: 0 | M88: 0 | N88: 0 | O88: 0 | P88: 0 | Q88: 0 | R88: 0 | S88: 0 | T88: 0 | U88: 0 | V88: 0 | W88: 0 | X88: 0 | Y88: 0 | Z88: 0 | AA88: 0 | AB88: 0 | AC88: 0 | AD88: 0
A89: Cerro Guanchuro | B89: 04°04'28.80''S | C89: 79°38'54.90''W | D89: Paltas | E89: 2446 | G89: 0 | H89: 0 | I89: 0 | J89: 0 | K89: 0 | L89: 0 | M89: 0 | N89: 0 | O89: 0 | P89: 0 | Q89: 0 | R89: 0 | S89: 0 | T89: 0 | U89: 0 | V89: 0 | W89: 0 | X89: 0 | Y89: 0 | Z89: 0 | AA89: 0 | AB89: 0 | AC89: 0 | AD89: 0
A90: Cerro Huanchinchambo | B90: 04°01'25.20''S | C90: 79°14'45.90''W | D90: Catamayo | E90: 2849 | G90: 100 | H90: 100 | I90: 100 | J90: 100 | K90: 100 | L90: 100 | M90: 100 | N90: 100 | O90: 100 | P90: 100 | Q90: 100 | R90: 100 | S90: 100 | T90: 100 | U90: 100 | V90: 100 | W90: 100 | X90: 100 | Y90: 100 | Z90: 100 | AA90: 100 | AB90: 100 | AC90: 100 | AD90: 100
A91: Cerro Motilon | B91: 04°04'57.10''S | C91: 79°56'22.20''W | D91: Celica | E91: 2663 | G91: 0 | H91: 0 | I91: 0 | J91: 0 | K91: 0 | L91: 0 | M91: 0 | N91: 0 | O91: 0 | P91: 0 | Q91: 0 | R91: 0 | S91: 0 | T91: 0 | U91: 0 | V91: 0 | W91: 0 | X91: 0 | Y91: 0 | Z91: 0 | AA91: 0 | AB91: 0 | AC91: 0 | AD91: 0
A92: Cerro Ventanas | B92: 04°01'54.10''S | C92: 79°14'39.00''W | D92: Catamayo | E92: 2870 | G92: 100 | H92: 100 | I92: 100 | J92: 100 | K92: 100 | L92: 100 | M92: 100 | N92: 100 | O92: 100 | P92: 100 | Q92: 100 | R92: 100 | S92: 100 | T92: 100 | U92: 100 | V92: 100 | W92: 100 | X92: 100 | Y92: 100 | Z92: 100 | AA92: 100 | AB92: 100 | AC92: 100 | AD92: 100
A93: Cerro Villonaco Alto | B93: 03°59'18.70''S | C93: 79°16'06.30''W | D93: Catamayo | E93: 2952 | G93: 0 | H93: 0 | I93: 0 | J93: 0 | K93: 0 | L93: 0 | M93: 0 | N93: 0 | O93: 0 | P93: 0 | Q93: 0 | R93: 0 | S93: 0 | T93: 0 | U93: 0 | V93: 0 | W93: 0 | X93: 0 | Y93: 0 | Z93: 0 | AA93: 0 | AB93: 0 | AC93: 0 | AD93: 0
A94: Pucará | B94: 04°05'47.80''S | C94: 79°56'17.70''W | D94: Celica | E94: 2479 | G94: 0 | H94: 0 | I94: 0 | J94: 0 | K94: 0 | L94: 0 | M94: 0 | N94: 0 | O94: 0 | P94: 0 | Q94: 0 | R94: 0 | S94: 0 | T94: 0 | U94: 0 | V94: 0 | W94: 0 | X94: 0 | Y94: 0 | Z94: 0 | AA94: 0 | AB94: 0 | AC94: 0 | AD94: 0
A95: Saraguro | B95: 03°37'55.20''S | C95: 79°14'37.50''W | D95: Saraguro | E95: 2740 | G95: 0 | H95: 0 | I95: 0 | J95: 0 | K95: 0 | L95: 0 | M95: 0 | N95: 0 | O95: 0 | P95: 0 | Q95: 0 | R95: 0 | S95: 0 | T95: 0 | U95: 0 | V95: 0 | W95: 0 | X95: 0 | Y95: 0 | Z95: 0 | AA95: 0 | AB95: 0 | AC95: 0 | AD95: 0
A96: Cerro Corozo | B96: 01°29'23.10''S | C96: 80°31'27.00''W | D96: Jipijapa | E96: 774 | G96: 100 | H96: 100 | I96: 100 | J96: 100 | K96: 100 | L96: 100 | M96: 100 | N96: 100 | O96: 100 | P96: 100 | Q96: 100 | R96: 100 | S96: 100 | T96: 100 | U96: 100 | V96: 100 | W96: 100 | X96: 100 | Y96: 100 | Z96: 100 | AA96: 100 | AB96: 100 | AC96: 100 | AD96: 100
A97: Cerro de Hojas | B97: 01°02'40.10''S | C97: 80°32'38.50''W | D97: Portoviejo | E97: 674 | G97: 100 | H97: 100 | I97: 100 | J97: 100 | K97: 100 | L97: 100 | M97: 100 | N97: 100 | O97: 100 | P97: 100 | Q97: 100 | R97: 100 | S97: 100 | T97: 100 | U97: 100 | V97: 100 | W97: 100 | X97: 100 | Y97: 100 | Z97: 100 | AA97: 100 | AB97: 100 | AC97: 100 | AD97: 100
A98: Cerro Guayas | B98: 00°41'18.10''S | C98: 80°05'27.90''W | D98: Chone | E98: 128 | G98: 0 | H98: 0 | I98: 0 | J98: 0 | K98: 0 | L98: 0 | M98: 0 | N98: 0 | O98: 0 | P98: 0 | Q98: 0 | R98: 0 | S98: 0 | T98: 0 | U98: 0 | V98: 0 | W98: 0 | X98: 0 | Y98: 0 | Z98: 0 | AA98: 0 | AB98: 0 | AC98: 0 | AD98: 0
A99: Cerro Jama 1 | B99: 00°12'29.40''S | C99: 80°16'08.70''W | D99: Jama | E99: 93 | G99: 0 | H99: 0 | I99: 0 | J99: 0 | K99: 0 | L99: 0 | M99: 0 | N99: 0 | O99: 0 | P99: 0 | Q99: 0 | R99: 0 | S99: 0 | T99: 0 | U99: 0 | V99: 0 | W99: 0 | X99: 0 | Y99: 0 | Z99: 0 | AA99: 0 | AB99: 0 | AC99: 0 | AD99: 0
A100: Cerro Jama 2 | B100: 00°12'58.90''S | C100: 80°16'44.50''W | D100: Jama | E100: 140 | G100: 0 | H100: 0 | I100: 0 | J100: 0 | K100: 0 | L100: 0 | M100: 0 | N100: 0 | O100: 0 | P100: 0 | Q100: 0 | R100: 0 | S100: 0 | T100: 0 | U100: 0 | V100: 0 | W100: 0 | X100: 0 | Y100: 0 | Z100: 0 | AA100: 0 | AB100: 0 | AC100: 0 | AD100: 0
A101: Cerro La Crespa | B101: 00°20'07.10''S | C101: 79°45'34.70''W | D101: Flavio Alfaro | E101: 480 | G101: 66.66666667 | H101: 66.66666667 | I101: 66.66666667 | J101: 66.66666667 | K101: 66.66666667 | L101: 66.66666667 | M101: 66.66666667 | N101: 66.66666667 | O101: 66.66666667 | P101: 66.66666667 | Q101: 66.66666667 | R101: 66.66666667 | S101: 66.66666667 | T101: 66.66666667 | U101: 66.66666667 | V101: 66.66666667 | W101: 66.66666667 | X101: 66.66666667 | Y101: 66.66666667 | Z101: 66.66666667 | AA101: 66.66666667 | AB101: 66.66666667 | AC101: 66.66666667 | AD101: 66.66666667
A102: Cerro Nueve | B102: 00°16'05.30''S | C102: 80°12'29.90''W | D102: Jama | E102: 652 | G102: 66.66666667 | H102: 66.66666667 | I102: 66.66666667 | J102: 66.66666667 | K102: 66.66666667 | L102: 66.66666667 | M102: 66.66666667 | N102: 66.66666667 | O102: 66.66666667 | P102: 66.66666667 | Q102: 66.66666667 | R102: 66.66666667 | S102: 66.66666667 | T102: 66.66666667 | U102: 66.66666667 | V102: 66.66666667 | W102: 66.66666667 | X102: 66.66666667 | Y102: 66.66666667 | Z102: 66.66666667 | AA102: 66.66666667 | AB102: 66.66666667 | AC102: 66.66666667 | AD102: 66.66666667
A103: Cerro Puerto Alto | B103: 00°21'36.30''S | C103: 79°52'00.40''W | D103: Flavio Alfaro | E103: 410 | G103: 0 | H103: 0 | I103: 0 | J103: 0 | K103: 0 | L103: 0 | M103: 0 | N103: 0 | O103: 0 | P103: 0 | Q103: 0 | R103: 0 | S103: 0 | T103: 0 | U103: 0 | V103: 0 | W103: 0 | X103: 0 | Y103: 0 | Z103: 0 | AA103: 0 | AB103: 0 | AC103: 0 | AD103: 0
A104: Loma de Viento | B104: 00°42'28.10''S | C104: 80°24'28.80''W | D104: Sucre | E104: 402 | G104: 33.33333333 | H104: 33.33333333 | I104: 33.33333333 | J104: 33.33333333 | K104: 33.33333333 | L104: 33.33333333 | M104: 33.33333333 | N104: 33.33333333 | O104: 33.33333333 | P104: 33.33333333 | Q104: 33.33333333 | R104: 33.33333333 | S104: 33.33333333 | T104: 33.33333333 | U104: 33.33333333 | V104: 33.33333333 | W104: 33.33333333 | X104: 33.33333333 | Y104: 33.33333333 | Z104: 33.33333333 | AA104: 33.33333333 | AB104: 33.33333333 | AC104: 33.33333333 | AD104: 33.33333333
A105: Mirador de Bahía de Caráquez | B105: 00°36'28.00''S | C105: 80°25'34.70''W | D105: Sucre | E105: 102 | G105: 0 | H105: 0 | I105: 0 | J105: 0 | K105: 0 | L105: 0 | M105: 0 | N105: 0 | O105: 0 | P105: 0 | Q105: 0 | R105: 0 | S105: 0 | T105: 0 | U105: 0 | V105: 0 | W105: 0 | X105: 0 | Y105: 0 | Z105: 0 | AA105: 0 | AB105: 0 | AC105: 0 | AD105: 0
A106: Cerro Bosco | B106: 03°00'01.00''S | C106: 78°30'34.90''W | D106: Limón Indanza | E106: 2404 | G106: 0 | H106: 0 | I106: 0 | J106: 0 | K106: 0 | L106: 0 | M106: 0 | N106: 0 | O106: 0 | P106: 0 | Q106: 0 | R106: 0 | S106: 0 | T106: 0 | U106: 0 | V106: 0 | W106: 0 | X106: 0 | Y106: 0 | Z106: 0 | AA106: 0 | AB106: 0 | AC106: 0 | AD106: 0
A107: Cerro Quilamo | B107: 02°18'14.40''S | C107: 78°08'26.80''W | D107: Morona | E107: 1461 | G107: 0 | H107: 0 | I107: 0 | J107: 0 | K107: 0 | L107: 0 | M107: 0 | N107: 0 | O107: 0 | P107: 0 | Q107: 0 | R107: 0 | S107: 0 | T107: 0 | U107: 0 | V107: 0 | W107: 0 | X107: 0 | Y107: 0 | Z107: 0 | AA107: 0 | AB107: 0 | AC107: 0 | AD107: 0
A108: Cerro Condijua | B108: 00°29'01.60''S | C108: 77°54'06.90''W | D108: Quijos | E108: 2526 | G108: 33.33333333 | H108: 33.33333333 | I108: 33.33333333 | J108: 33.33333333 | K108: 33.33333333 | L108: 33.33333333 | M108: 33.33333333 | N108: 33.33333333 | O108: 33.33333333 | P108: 33.33333333 | Q108: 33.33333333 | R108: 33.33333333 | S108: 33.33333333 | T108: 33.33333333 | U108: 33.33333333 | V108: 33.33333333 | W108: 33.33333333 | X108: 33.33333333 | Y108: 33.33333333 | Z108: 33.33333333 | AA108: 33.33333333 | AB108: 33.33333333 | AC108: 33.33333333 | AD108: 33.33333333
A109: Cerro Huacamayos | B109: 00°37'26.06''S | C109: 77°50'28.60''W | D109: Archidona | E109: 2300 | G109: 0 | H109: 0 | I109: 0 | J109: 0 | K109: 0 | L109: 0 | M109: 0 | N109: 0 | O109: 0 | P109: 0 | Q109: 0 | R109: 0 | S109: 0 | T109: 0 | U109: 0 | V109: 0 | W109: 0 | X109: 0 | Y109: 0 | Z109: 0 | AA109: 0 | AB109: 0 | AC109: 0 | AD109: 0
A110: Cerro Tres Cruces | B110: 00°16'22.60''S | C110: 77°45'53.80''W | D110: El Chaco | E110: 1980 | G110: 0 | H110: 0 | I110: 0 | J110: 0 | K110: 0 | L110: 0 | M110: 0 | N110: 0 | O110: 0 | P110: 0 | Q110: 0 | R110: 0 | S110: 0 | T110: 0 | U110: 0 | V110: 0 | W110: 0 | X110: 0 | Y110: 0 | Z110: 0 | AA110: 0 | AB110: 0 | AC110: 0 | AD110: 0
A111: Papallacta | B111: 00°22'43.70''S | C111: 78°08'48.60''W | D111: Quijos | E111: 3373 | G111: 0 | H111: 0 | I111: 0 | J111: 0 | K111: 0 | L111: 0 | M111: 0 | N111: 0 | O111: 0 | P111: 0 | Q111: 0 | R111: 0 | S111: 0 | T111: 0 | U111: 0 | V111: 0 | W111: 0 | X111: 0 | Y111: 0 | Z111: 0 | AA111: 0 | AB111: 0 | AC111: 0 | AD111: 0
A112: Cerro Lumbaqui Alto | B112: 00°00'30.40''N | C112: 77°19'15.80''W | D112: Orellana | E112: 1088 | G112: 0 | H112: 0 | I112: 0 | J112: 0 | K112: 0 | L112: 0 | M112: 0 | N112: 0 | O112: 0 | P112: 0 | Q112: 0 | R112: 0 | S112: 0 | T112: 0 | U112: 0 | V112: 0 | W112: 0 | X112: 0 | Y112: 0 | Z112: 0 | AA112: 0 | AB112: 0 | AC112: 0 | AD112: 0
A113: Cerro Lumbaqui Bajo | B113: 00°01'47.70''N | C113: 77°19'07.90''W | D113: Orellana | E113: 998 | G113: 0 | H113: 0 | I113: 0 | J113: 0 | K113: 0 | L113: 0 | M113: 0 | N113: 0 | O113: 0 | P113: 0 | Q113: 0 | R113: 0 | S113: 0 | T113: 0 | U113: 0 | V113: 0 | W113: 0 | X113: 0 | Y113: 0 | Z113: 0 | AA113: 0 | AB113: 0 | AC113: 0 | AD113: 0
A114: Cerro Abitagua | B114: 01°24'53.90''S | C114: 78°08'31.00''W | D114: Mera | E114: 2250 | G114: 66.66666667 | H114: 66.66666667 | I114: 66.66666667 | J114: 66.66666667 | K114: 66.66666667 | L114: 66.66666667 | M114: 66.66666667 | N114: 66.66666667 | O114: 66.66666667 | P114: 66.66666667 | Q114: 66.66666667 | R114: 66.66666667 | S114: 66.66666667 | T114: 66.66666667 | U114: 66.66666667 | V114: 66.66666667 | W114: 66.66666667 | X114: 66.66666667 | Y114: 66.66666667 | Z114: 66.66666667 | AA114: 66.66666667 | AB114: 66.66666667 | AC114: 66.66666667 | AD114: 66.66666667
A115: Cerro Calvario | B115: 01°31'14.30''S | C115: 77°54'28.50''W | D115: Pastaza | E115: 1171 | G115: 33.33333333 | H115: 33.33333333 | I115: 33.33333333 | J115: 33.33333333 | K115: 33.33333333 | L115: 33.33333333 | M115: 33.33333333 | N115: 33.33333333 | O115: 33.33333333 | P115: 33.33333333 | Q115: 33.33333333 | R115: 33.33333333 | S115: 33.33333333 | T115: 33.33333333 | U115: 33.33333333 | V115: 33.33333333 | W115: 33.33333333 | X115: 33.33333333 | Y115: 33.33333333 | Z115: 33.33333333 | AA115: 33.33333333 | AB115: 33.33333333 | AC115: 33.33333333 | AD115: 33.33333333
A116: Santa Clara(Km.35 Vía Puyo - Tena) | B116: 01°17'29.30''S | C116: 77°52'36.80''W | D116: Santa Clara | E116: 1080 | G116: 66.66666667 | H116: 66.66666667 | I116: 66.66666667 | J116: 66.66666667 | K116: 66.66666667 | L116: 66.66666667 | M116: 66.66666667 | N116: 66.66666667 | O116: 66.66666667 | P116: 66.66666667 | Q116: 66.66666667 | R116: 66.66666667 | S116: 66.66666667 | T116: 66.66666667 | U116: 66.66666667 | V116: 66.66666667 | W116: 66.66666667 | X116: 66.66666667 | Y116: 66.66666667 | Z116: 66.66666667 | AA116: 66.66666667 | AB116: 66.66666667 | AC116: 66.66666667 | AD116: 66.66666667
A117: Cerro Cayambe | B117: 00°03'58.00''N | C117: 77°59'25.80''W | D117: Cayambe | E117: 4216 | G117: 0 | H117: 0 | I117: 0 | J117: 0 | K117: 0 | L117: 0 | M117: 0 | N117: 0 | O117: 0 | P117: 0 | Q117: 0 | R117: 0 | S117: 0 | T117: 0 | U117: 0 | V117: 0 | W117: 0 | X117: 0 | Y117: 0 | Z117: 0 | AA117: 0 | AB117: 0 | AC117: 0 | AD117: 0
A118: Cerro Cruz Loma | B118: 00°11'17.50''S | C118: 78°32'06.70''W | D118: Quito | E118: 3990 | G118: 50 | H118: 50 | I118: 50 | J118: 50 | K118: 50 | L118: 50 | M118: 50 | N118: 50 | O118: 50 | P118: 50 | Q118: 50 | R118: 50 | S118: 50 | T118: 50 | U118: 50 | V118: 50 | W118: 50 | X118: 50 | Y118: 50 | Z118: 50 | AA118: 50 | AB118: 50 | AC118: 50 | AD118: 50
A119: Cerro Ilumbisi | B119: 00°13'40.60''S | C119: 78°28'25.70''W | D119: Quito | E119: 3040 | G119: 0 | H119: 0 | I119: 0 | J119: 0 | K119: 0 | L119: 0 | M119: 0 | N119: 0 | O119: 0 | P119: 0 | Q119: 0 | R119: 0 | S119: 0 | T119: 0 | U119: 0 | V119: 0 | W119: 0 | X119: 0 | Y119: 0 | Z119: 0 | AA119: 0 | AB119: 0 | AC119: 0 | AD119: 0
A120: Cerro La Virgen | B120: 00°19'06.90''S | C120: 78°11'27.60''W | D120: Quito | E120: 4412 | G120: 33.33333333 | H120: 33.33333333 | I120: 33.33333333 | J120: 33.33333333 | K120: 33.33333333 | L120: 33.33333333 | M120: 33.33333333 | N120: 33.33333333 | O120: 33.33333333 | P120: 33.33333333 | Q120: 33.33333333 | R120: 33.33333333 | S120: 33.33333333 | T120: 33.33333333 | U120: 33.33333333 | V120: 33.33333333 | W120: 33.33333333 | X120: 33.33333333 | Y120: 33.33333333 | Z120: 33.33333333 | AA120: 33.33333333 | AB120: 33.33333333 | AC120: 33.33333333 | AD120: 33.33333333
A121: Cerro Puengasí | B121: 00°14'43.40''S | C121: 78°29'59.70''W | D121: Quito | E121: 3085 | G121: 0 | H121: 0 | I121: 0 | J121: 0 | K121: 0 | L121: 0 | M121: 0 | N121: 0 | O121: 0 | P121: 0 | Q121: 0 | R121: 0 | S121: 0 | T121: 0 | U121: 0 | V121: 0 | W121: 0 | X121: 0 | Y121: 0 | Z121: 0 | AA121: 0 | AB121: 0 | AC121: 0 | AD121: 0
A122: Mojanda | B122: 00°04'47.30''N | C122: 78°13'43.20''W | D122: Pedro Moncayo | E122: 3241 | G122: 0 | H122: 0 | I122: 0 | J122: 0 | K122: 0 | L122: 0 | M122: 0 | N122: 0 | O122: 0 | P122: 0 | Q122: 0 | R122: 0 | S122: 0 | T122: 0 | U122: 0 | V122: 0 | W122: 0 | X122: 0 | Y122: 0 | Z122: 0 | AA122: 0 | AB122: 0 | AC122: 0 | AD122: 0
A123: Sector Ferroviaria y la Florestal | B123: 00°15'48.00''S | C123: 78°30'25.00''W | D123: Quito | E123: 3179 | G123: 33.33333333 | H123: 33.33333333 | I123: 33.33333333 | J123: 33.33333333 | K123: 33.33333333 | L123: 33.33333333 | M123: 33.33333333 | N123: 33.33333333 | O123: 33.33333333 | P123: 33.33333333 | Q123: 33.33333333 | R123: 33.33333333 | S123: 33.33333333 | T123: 33.33333333 | U123: 33.33333333 | V123: 33.33333333 | W123: 33.33333333 | X123: 33.33333333 | Y123: 33.33333333 | Z123: 33.33333333 | AA123: 33.33333333 | AB123: 33.33333333 | AC123: 33.33333333 | AD123: 33.33333333
A124: Cerro Condorcocha | B124: 00°02'19.10''S | C124: 78°30'41.00''W | D124: Quito | E124: 3586 | G124: 0 | H124: 0 | I124: 0 | J124: 0 | K124: 0 | L124: 0 | M124: 0 | N124: 0 | O124: 0 | P124: 0 | Q124: 0 | R124: 0 | S124: 0 | T124: 0 | U124: 0 | V124: 0 | W124: 0 | X124: 0 | Y124: 0 | Z124: 0 | AA124: 0 | AB124: 0 | AC124: 0 | AD124: 0
A125: Cerro San Francisco | B125: 00°23'24.89''S | C125: 78°37'06.79''W | D125: Mejía | E125: 4097 | G125: 0 | H125: 0 | I125: 0 | J125: 0 | K125: 0 | L125: 0 | M125: 0 | N125: 0 | O125: 0 | P125: 0 | Q125: 0 | R125: 0 | S125: 0 | T125: 0 | U125: 0 | V125: 0 | W125: 0 | X125: 0 | Y125: 0 | Z125: 0 | AA125: 0 | AB125: 0 | AC125: 0 | AD125: 0
A126: Cerro Tinajero | B126: 00°22'53.08''S | C126: 78°36'36.19''W | D126: Mejía | E126: 4082 | G126: 0 | H126: 0 | I126: 0 | J126: 0 | K126: 0 | L126: 0 | M126: 0 | N126: 0 | O126: 0 | P126: 0 | Q126: 0 | R126: 0 | S126: 0 | T126: 0 | U126: 0 | V126: 0 | W126: 0 | X126: 0 | Y126: 0 | Z126: 0 | AA126: 0 | AB126: 0 | AC126: 0 | AD126: 0
A127: Cerro La Viudita | B127: 00°24'50.70''S | C127: 78°36'27.00''W | D127: Mejía | E127: 3751 | G127: 0 | H127: 0 | I127: 0 | J127: 0 | K127: 0 | L127: 0 | M127: 0 | N127: 0 | O127: 0 | P127: 0 | Q127: 0 | R127: 0 | S127: 0 | T127: 0 | U127: 0 | V127: 0 | W127: 0 | X127: 0 | Y127: 0 | Z127: 0 | AA127: 0 | AB127: 0 | AC127: 0 | AD127: 0
A128: Cerro Hacda El Rosario | B128: 00°26'14.60''S | C128: 78°32'12.50''W | D128: Mejía | E128: 2981 | G128: 0 | H128: 0 | I128: 0 | J128: 0 | K128: 0 | L128: 0 | M128: 0 | N128: 0 | O128: 0 | P128: 0 | Q128: 0 | R128: 0 | S128: 0 | T128: 0 | U128: 0 | V128: 0 | W128: 0 | X128: 0 | Y128: 0 | Z128: 0 | AA128: 0 | AB128: 0 | AC128: 0 | AD128: 0
A129: Cerro Atacazo Alto | B129: 00°21'22.20''S | C129: 78°37'09.10''W | D129: Quito | E129: 4474 | G129: 0 | H129: 0 | I129: 0 | J129: 0 | K129: 0 | L129: 0 | M129: 0 | N129: 0 | O129: 0 | P129: 0 | Q129: 0 | R129: 0 | S129: 0 | T129: 0 | U129: 0 | V129: 0 | W129: 0 | X129: 0 | Y129: 0 | Z129: 0 | AA129: 0 | AB129: 0 | AC129: 0 | AD129: 0
A130: Cerro Atacazo Bajo | B130: 00°19'05.10''S | C130: 78°36'08.10''W | D130: Quito | E130: 3893 | G130: 66.66666667 | H130: 66.66666667 | I130: 66.66666667 | J130: 66.66666667 | K130: 66.66666667 | L130: 66.66666667 | M130: 66.66666667 | N130: 66.66666667 | O130: 66.66666667 | P130: 66.66666667 | Q130: 66.66666667 | R130: 66.66666667 | S130: 66.66666667 | T130: 66.66666667 | U130: 66.66666667 | V130: 66.66666667 | W130: 66.66666667 | X130: 66.66666667 | Y130: 66.66666667 | Z130: 66.66666667 | AA130: 66.66666667 | AB130: 66.66666667 | AC130: 66.66666667 | AD130: 66.66666667
A131: Cerro Pichincha | B131: 00°09'57.03''S | C131: 78°31'39.19''W | D131: Quito | E131: 3901 | G131: 16.66666667 | H131: 16.66666667 | I131: 16.66666667 | J131: 16.66666667 | K131: 16.66666667 | L131: 16.66666667 | M131: 16.66666667 | N131: 16.66666667 | O131: 16.66666667 | P131: 16.66666667 | Q131: 16.66666667 | R131: 16.66666667 | S131: 16.66666667 | T131: 16.66666667 | U131: 16.66666667 | V131: 16.66666667 | W131: 16.66666667 | X131: 16.66666667 | Y131: 16.66666667 | Z131: 16.66666667 | AA131: 16.66666667 | AB131: 16.66666667 | AC131: 16.66666667 | AD131: 16.66666667
A132: Cerro Capáes | B132: 02°12'32.40''S | C132: 80°51'47.50''W | D132: Santa Elena | E132: 102 | G132: 16.66666667 | H132: 16.66666667 | I132: 16.66666667 | J132: 16.66666667 | K132: 16.66666667 | L132: 16.66666667 | M132: 16.66666667 | N132: 16.66666667 | O132: 16.66666667 | P132: 16.66666667 | Q132: 16.66666667 | R132: 16.66666667 | S132: 16.66666667 | T132: 16.66666667 | U132: 16.66666667 | V132: 16.66666667 | W132: 16.66666667 | X132: 16.66666667 | Y132: 16.66666667 | Z132: 16.66666667 | AA132: 16.66666667 | AB132: 16.66666667 | AC132: 16.66666667 | AD132: 16.66666667
A133: Cerro Bijagual | B133: 00°39'28.70''S | C133: 79°17'41.00''W | D133: Sto Domingo | E133: 798 | G133: 0 | H133: 0 | I133: 0 | J133: 0 | K133: 0 | L133: 0 | M133: 0 | N133: 0 | O133: 0 | P133: 0 | Q133: 0 | R133: 0 | S133: 0 | T133: 0 | U133: 0 | V133: 0 | W133: 0 | X133: 0 | Y133: 0 | Z133: 0 | AA133: 0 | AB133: 0 | AC133: 0 | AD133: 0
A134: Cerro Bomboli | B134: 00°14'48.20''S | C134: 79°11'31.30''W | D134: Sto Domingo | E134: 636 | G134: 0 | H134: 0 | I134: 0 | J134: 0 | K134: 0 | L134: 0 | M134: 0 | N134: 0 | O134: 0 | P134: 0 | Q134: 0 | R134: 0 | S134: 0 | T134: 0 | U134: 0 | V134: 0 | W134: 0 | X134: 0 | Y134: 0 | Z134: 0 | AA134: 0 | AB134: 0 | AC134: 0 | AD134: 0
A135: Cerro Chiguilpe Alto | B135: 00°17'44.70''S | C135: 79°05'12.10''W | D135: Sto Domingo | E135: 1172 | G135: 66.66666667 | H135: 66.66666667 | I135: 66.66666667 | J135: 66.66666667 | K135: 66.66666667 | L135: 66.66666667 | M135: 66.66666667 | N135: 66.66666667 | O135: 66.66666667 | P135: 66.66666667 | Q135: 66.66666667 | R135: 66.66666667 | S135: 66.66666667 | T135: 66.66666667 | U135: 66.66666667 | V135: 66.66666667 | W135: 66.66666667 | X135: 66.66666667 | Y135: 66.66666667 | Z135: 66.66666667 | AA135: 66.66666667 | AB135: 66.66666667 | AC135: 66.66666667 | AD135: 66.66666667
A136: Cerro Chiguilpe Bajo | B136: 00°16'51.30''S | C136: 79°05'26.40''W | D136: Sto Domingo | E136: 801 | G136: 0 | H136: 0 | I136: 0 | J136: 0 | K136: 0 | L136: 0 | M136: 0 | N136: 0 | O136: 0 | P136: 0 | Q136: 0 | R136: 0 | S136: 0 | T136: 0 | U136: 0 | V136: 0 | W136: 0 | X136: 0 | Y136: 0 | Z136: 0 | AA136: 0 | AB136: 0 | AC136: 0 | AD136: 0
A137: Cerro San Luis | B137: 00°35'10.70''S | C137: 79°19'18.80''W | D137: Sto Domingo | E137: 412 | G137: 33.33333333 | H137: 33.33333333 | I137: 33.33333333 | J137: 33.33333333 | K137: 33.33333333 | L137: 33.33333333 | M137: 33.33333333 | N137: 33.33333333 | O137: 33.33333333 | P137: 33.33333333 | Q137: 33.33333333 | R137: 33.33333333 | S137: 33.33333333 | T137: 33.33333333 | U137: 33.33333333 | V137: 33.33333333 | W137: 33.33333333 | X137: 33.33333333 | Y137: 33.33333333 | Z137: 33.33333333 | AA137: 33.33333333 | AB137: 33.33333333 | AC137: 33.33333333 | AD137: 33.33333333
A138: Cerro Bermejo | B138: 00°08'09.10''N | C138: 77°19'39.90''W | D138: Cascales | E138: 994 | G138: 0 | H138: 0 | I138: 0 | J138: 0 | K138: 0 | L138: 0 | M138: 0 | N138: 0 | O138: 0 | P138: 0 | Q138: 0 | R138: 0 | S138: 0 | T138: 0 | U138: 0 | V138: 0 | W138: 0 | X138: 0 | Y138: 0 | Z138: 0 | AA138: 0 | AB138: 0 | AC138: 0 | AD138: 0
A139: Cerro Reventador | B139: 00°02'33.90''S | C139: 77°31'44.10''W | D139: Gonzalo Pizarro | E139: 1600 | G139: 33.33333333 | H139: 33.33333333 | I139: 33.33333333 | J139: 33.33333333 | K139: 33.33333333 | L139: 33.33333333 | M139: 33.33333333 | N139: 33.33333333 | O139: 33.33333333 | P139: 33.33333333 | Q139: 33.33333333 | R139: 33.33333333 | S139: 33.33333333 | T139: 33.33333333 | U139: 33.33333333 | V139: 33.33333333 | W139: 33.33333333 | X139: 33.33333333 | Y139: 33.33333333 | Z139: 33.33333333 | AA139: 33.33333333 | AB139: 33.33333333 | AC139: 33.33333333 | AD139: 33.33333333
A140: Cerro Niton | B140: 01°16'41.60''S | C140: 78°32'10.20''W | D140: San Pedro de Pelileo | E140: 3079 | G140: 0 | H140: 0 | I140: 0 | J140: 0 | K140: 0 | L140: 0 | M140: 0 | N140: 0 | O140: 0 | P140: 0 | Q140: 0 | R140: 0 | S140: 0 | T140: 0 | U140: 0 | V140: 0 | W140: 0 | X140: 0 | Y140: 0 | Z140: 0 | AA140: 0 | AB140: 0 | AC140: 0 | AD140: 0
A141: Cerro Pilisurco o Saguatoa | B141: 01°09'17.20''S | C141: 78°39'58.00''W | D141: Ambato | E141: 4154 | G141: 50 | H141: 50 | I141: 50 | J141: 50 | K141: 50 | L141: 50 | M141: 50 | N141: 50 | O141: 50 | P141: 50 | Q141: 50 | R141: 50 | S141: 50 | T141: 50 | U141: 50 | V141: 50 | W141: 50 | X141: 50 | Y141: 50 | Z141: 50 | AA141: 50 | AB141: 50 | AC141: 50 | AD141: 50
A142: Cerro Salvación (Lligua) | B142: 01°22'44.90''S | C142: 78°26'11.80''W | D142: Baños | E142: 2696 | G142: 33.33333333 | H142: 33.33333333 | I142: 33.33333333 | J142: 33.33333333 | K142: 33.33333333 | L142: 33.33333333 | M142: 33.33333333 | N142: 33.33333333 | O142: 33.33333333 | P142: 33.33333333 | Q142: 33.33333333 | R142: 33.33333333 | S142: 33.33333333 | T142: 33.33333333 | U142: 33.33333333 | V142: 33.33333333 | W142: 33.33333333 | X142: 33.33333333 | Y142: 33.33333333 | Z142: 33.33333333 | AA142: 33.33333333 | AB142: 33.33333333 | AC142: 33.33333333 | AD142: 33.33333333
A143: Llantantoma | B143: 01°09'56.40''S | C143: 78°37'53.90''W | D143: Ambato | E143: 3450 | G143: 0 | H143: 0 | I143: 0 | J143: 0 | K143: 0 | L143: 0 | M143: 0 | N143: 0 | O143: 0 | P143: 0 | Q143: 0 | R143: 0 | S143: 0 | T143: 0 | U143: 0 | V143: 0 | W143: 0 | X143: 0 | Y143: 0 | Z143: 0 | AA143: 0 | AB143: 0 | AC143: 0 | AD143: 0

Sheet 5925-6425 MHz
B3: Espectro Radioeléctrico
B4: Porcentajes de ocupación del espectro radioeléctrico por sitios en la banda 5 925 - 6 425 MHz
B7: =Hoja1!A1 -> Fecha de publicación: 20 de Febrero de 2015
G11: 2010 | L11: 2011 | X11: 2012 | AJ11: 2013 | AV11: 2014 | BH11: 2015
A12: Nombre | B12: Latitud | C12: Longitud | D12: Cantón | E12: Hsnm(m) | F12: Gráficos | G12: Agosto | H12: Septiembre | I12: Octubre | J12: Noviembre | K12: Diciembre | L12: Enero | M12: Febrero | N12: Marzo | O12: Abril | P12: Mayo | Q12: Junio | R12: Julio | S12: Agosto | T12: Septiembre | U12: Octubre | V12: Noviembre | W12: Diciembre | X12: Enero | Y12: Febrero | Z12: Marzo | AA12: Abril | AB12: Mayo | AC12: Junio | AD12: Julio | AE12: Agosto | AF12: Septiembre | AG12: Octubre | AH12: Noviembre | AI12: Diciembre | AJ12: Enero | AK12: Febrero | AL12: Marzo | AM12: Abril | AN12: Mayo | AO12: Junio | AP12: Julio | AQ12: Agosto | AR12: Septiembre | AS12: Octubre | AT12: Noviembre | AU12: Diciembre | AV12: Enero | AW12: Febrero | AX12: Marzo | AY12: Abril | AZ12: Mayo | BA12: Junio | BB12: Julio | BC12: Agosto | BD12: Septiembre | BE12: Octubre | BF12: Noviembre | BG12: Diciembre | BH12: Enero | BI12: Febrero | BJ12: Marzo | BK12: Abril | BL12: Mayo | BM12: Junio | BN12: Julio | BO12: Agosto | BP12: Septiembre | BQ12: Octubre | BR12: Noviembre | BS12: Diciembre
G13: Ocupacion (%) | H13: Ocupacion (%) | I13: Ocupacion (%) | J13: Ocupacion (%) | K13: Ocupacion (%) | L13: Ocupacion (%) | M13: Ocupacion (%) | N13: Ocupacion (%) | O13: Ocupacion (%) | P13: Ocupacion (%) | Q13: Ocupacion (%) | R13: Ocupacion (%) | S13: Ocupacion (%) | T13: Ocupacion (%) | U13: Ocupacion (%) | V13: Ocupacion (%) | W13: Ocupacion (%) | X13: Ocupacion (%) | Y13: Ocupacion (%) | Z13: Ocupacion (%) | AA13: Ocupacion (%) | AB13: Ocupacion (%) | AC13: Ocupacion (%) | AD13: Ocupacion (%) | AE13: Ocupacion (%) | AF13: Ocupacion (%) | AG13: Ocupacion (%) | AH13: Ocupacion (%) | AI13: Ocupacion (%) | AJ13: Ocupacion (%) | AK13: Ocupacion (%) | AL13: Ocupacion (%) | AM13: Ocupacion (%) | AN13: Ocupacion (%) | AO13: Ocupacion (%) | AP13: Ocupacion (%) | AQ13: Ocupacion (%) | AR13: Ocupacion (%) | AS13: Ocupacion (%) | AT13: Ocupacion (%) | AU13: Ocupacion (%) | AV13: Ocupacion (%) | AW13: Ocupacion (%) | AX13: Ocupacion (%) | AY13: Ocupacion (%) | AZ13: Ocupacion (%) | BA13: Ocupacion (%) | BB13: Ocupacion (%) | BC13: Ocupacion (%) | BD13: Ocupacion (%) | BE13: Ocupacion (%) | BF13: Ocupacion (%) | BG13: Ocupacion (%) | BH13: Ocupacion (%) | BI13: Ocupacion (%) | BJ13: Ocupacion (%) | BK13: Ocupacion (%) | BL13: Ocupacion (%) | BM13: Ocupacion (%) | BN13: Ocupacion (%) | BO13: Ocupacion (%) | BP13: Ocupacion (%) | BQ13: Ocupacion (%) | BR13: Ocupacion (%) | BS13: Ocupacion (%)
A14: Barabon | B14: 02°53'34.40''S | C14: 79°05'15.10''W | D14: Cuenca | E14: 3351 | G14: 0 | H14: 0 | I14: 0 | J14: 0 | K14: 0 | L14: 0 | M14: 0 | N14: 0 | O14: 0 | P14: 0 | Q14: 0 | R14: 0 | S14: 0 | T14: 0 | U14: 0 | V14: 0 | W14: 0 | X14: 0 | Y14: 0 | Z14: 0 | AA14: 0 | AB14: 0 | AC14: 0 | AD14: 0 | AE14: 0 | AF14: 0 | AG14: 0 | AH14: 0 | AI14: 0 | AJ14: 0 | AK14: 0 | AL14: 0 | AM14: 0 | AN14: 0 | AO14: 0 | AP14: 0 | AQ14: 0 | AR14: 0 | AS14: 0 | AT14: 0 | AU14: 0 | AV14: 0 | AW14: 0 | AX14: 0 | AY14: 0 | AZ14: 0 | BA14: 0 | BB14: 0 | BC14: 0 | BD14: 0 | BE14: 0 | BF14: 0 | BG14: 0 | BH14: 0
A15: Cerro Cahuazhun | B15: 02°52'33.40''S | C15: 78°49'01.60''W | D15: Gualaceo | E15: 2999 | G15: 0 | H15: 0 | I15: 0 | J15: 0 | K15: 0 | L15: 0 | M15: 0 | N15: 0 | O15: 0 | P15: 0 | Q15: 0 | R15: 0 | S15: 0 | T15: 0 | U15: 0 | V15: 0 | W15: 0 | X15: 0 | Y15: 0 | Z15: 0 | AA15: 0 | AB15: 0 | AC15: 0 | AD15: 0 | AE15: 0 | AF15: 0 | AG15: 0 | AH15: 25 | AI15: 25 | AJ15: 0 | AK15: 0 | AL15: 0 | AM15: 0 | AN15: 0 | AO15: 0 | AP15: 0 | AQ15: 0 | AR15: 0 | AS15: 0 | AT15: 0 | AU15: 0 | AV15: 0 | AW15: 0 | AX15: 0 | AY15: 0 | AZ15: 0 | BA15: 0 | BB15: 0 | BC15: 0 | BD15: 0 | BE15: 0 | BF15: 0 | BG15: 0 | BH15: 0
A16: Cerro Cochapamba | B16: 02°47'41.10''S | C16: 79°25'39.10''W | D16: Cuenca | E16: 3714 | G16: 0 | H16: 0 | I16: 0 | J16: 0 | K16: 0 | L16: 0 | M16: 0 | N16: 0 | O16: 0 | P16: 0 | Q16: 0 | R16: 0 | S16: 0 | T16: 0 | U16: 0 | V16: 0 | W16: 0 | X16: 0 | Y16: 0 | Z16: 0 | AA16: 0 | AB16: 0 | AC16: 0 | AD16: 0 | AE16: 0 | AF16: 0 | AG16: 0 | AH16: 50 | AI16: 50 | AJ16: 0 | AK16: 0 | AL16: 0 | AM16: 0 | AN16: 0 | AO16: 0 | AP16: 0 | AQ16: 0 | AR16: 0 | AS16: 0 | AT16: 0 | AU16: 0 | AV16: 0 | AW16: 0 | AX16: 0 | AY16: 0 | AZ16: 0 | BA16: 0 | BB16: 0 | BC16: 0 | BD16: 0 | BE16: 0 | BF16: 0 | BG16: 0 | BH16: 0
A17: Cerro Guagualzhumi | B17: 02°53'32.50''S | C17: 78°54'39.60''W | D17: Cuenca | E17: 3079 | G17: 12.8971922 | H17: 12.8971922 | I17: 12.8971922 | J17: 12.8971922 | K17: 12.8971922 | L17: 12.8971922 | M17: 12.5 | N17: 12.5 | O17: 12.5 | P17: 12.5 | Q17: 12.5 | R17: 12.5 | S17: 12.5 | T17: 12.5 | U17: 12.5 | V17: 12.5 | W17: 12.5 | X17: 12.5 | Y17: 12.5 | Z17: 12.5 | AA17: 12.5 | AB17: 12.5 | AC17: 12.5 | AD17: 12.5 | AE17: 12.5 | AF17: 12.5 | AG17: 12.5 | AH17: 100 | AI17: 100 | AJ17: 12.5 | AK17: 12.5 | AL17: 12.5 | AM17: 12.5 | AN17: 12.5 | AO17: 12.5 | AP17: 12.5 | AQ17: 12.5 | AR17: 12.5 | AS17: 12.5 | AT17: 12.5 | AU17: 12.5 | AV17: 12.5 | AW17: 12.5 | AX17: 12.5 | AY17: 12.5 | AZ17: 12.5 | BA17: 12.5 | BB17: 13.5 | BC17: 13.5 | BD17: 12.5 | BE17: 12.5 | BF17: 12.5 | BG17: 12.5 | BH17: 12.5
A18: Cerro Guallil | B18: 03°04'30.90''S | C18: 78°48'58.70''W | D18: Sigsig | E18: 3284 | G18: 0 | H18: 0 | I18: 0 | J18: 0 | K18: 0 | L18: 0 | M18: 0 | N18: 0 | O18: 0 | P18: 0 | Q18: 0 | R18: 0 | S18: 0 | T18: 0 | U18: 0 | V18: 0 | W18: 0 | X18: 0 | Y18: 0 | Z18: 25 | AA18: 25 | AB18: 25 | AC18: 25 | AD18: 25 | AE18: 25 | AF18: 25 | AG18: 25 | AH18: 37.5 | AI18: 37.5 | AJ18: 25 | AK18: 25 | AL18: 25 | AM18: 25 | AN18: 25 | AO18: 25 | AP18: 25 | AQ18: 25 | AR18: 25 | AS18: 25 | AT18: 25 | AU18: 25 | AV18: 25 | AW18: 25 | AX18: 25 | AY18: 25 | AZ18: 25 | BA18: 25 | BB18: 25.5 | BC18: 25.5 | BD18: 25 | BE18: 25 | BF18: 25 | BG18: 25 | BH18: 25
A19: Cerro Hito Cruz | B19: 02°55'51.50''S | C19: 78°59'51.70''W | D19: Cuenca | E19: 2847 | G19: 22.03179712 | H19: 22.57008634 | I19: 22.57008634 | J19: 22.57008634 | K19: 22.57008634 | L19: 22.57008634 | M19: 25 | N19: 25 | O19: 25 | P19: 25 | Q19: 25 | R19: 25 | S19: 25 | T19: 25 | U19: 25 | V19: 25 | W19: 25 | X19: 25 | Y19: 25 | Z19: 25 | AA19: 25 | AB19: 25 | AC19: 25 | AD19: 25 | AE19: 25 | AF19: 25 | AG19: 25 | AH19: 100 | AI19: 100 | AJ19: 25 | AK19: 25 | AL19: 25 | AM19: 25 | AN19: 25 | AO19: 25 | AP19: 25 | AQ19: 25 | AR19: 25 | AS19: 25 | AT19: 25 | AU19: 25 | AV19: 25 | AW19: 25 | AX19: 25 | AY19: 25 | AZ19: 25 | BA19: 25 | BB19: 25.5 | BC19: 25.5 | BD19: 37.5 | BE19: 37.5 | BF19: 37.5 | BG19: 37.5 | BH19: 37.5
A20: Cerro Rayoloma | B20: 02°54'13.00''S | C20: 78°57'59.20''W | D20: Cuenca | E20: 2649 | G20: 0 | H20: 0 | I20: 0 | J20: 0 | K20: 0 | L20: 0 | M20: 0 | N20: 0 | O20: 0 | P20: 0 | Q20: 0 | R20: 0 | S20: 0 | T20: 0 | U20: 0 | V20: 0 | W20: 0 | X20: 0 | Y20: 0 | Z20: 0 | AA20: 0 | AB20: 0 | AC20: 0 | AD20: 0 | AE20: 0 | AF20: 0 | AG20: 0 | AH20: 0 | AI20: 0 | AJ20: 0 | AK20: 0 | AL20: 0 | AM20: 0 | AN20: 0 | AO20: 0 | AP20: 0 | AQ20: 0 | AR20: 0 | AS20: 0 | AT20: 0 | AU20: 0 | AV20: 0 | AW20: 0 | AX20: 0 | AY20: 0 | AZ20: 0 | BA20: 0 | BB20: 0 | BC20: 0 | BD20: 0 | BE20: 0 | BF20: 0 | BG20: 0 | BH20: 0
A21: Cerro Rumiloma (Amopungo - Señor Pungo) | B21: 02°48'19.00''S | C21: 78°49'19.30''W | D21: Paute | E21: 3175 | G21: 58.080863 | H21: 58.080863 | I21: 58.080863 | J21: 58.080863 | K21: 58.080863 | L21: 58.080863 | M21: 62.5 | N21: 62.5 | O21: 62.5 | P21: 62.5 | Q21: 62.5 | R21: 62.5 | S21: 62.5 | T21: 62.5 | U21: 62.5 | V21: 62.5 | W21: 62.5 | X21: 62.5 | Y21: 62.5 | Z21: 87.5 | AA21: 87.5 | AB21: 87.5 | AC21: 87.5 | AD21: 87.5 | AE21: 87.5 | AF21: 87.5 | AG21: 87.5 | AH21: 62.5 | AI21: 62.5 | AJ21: 87.5 | AK21: 87.5 | AL21: 87.5 | AM21: 87.5 | AN21: 87.5 | AO21: 87.5 | AP21: 87.5 | AQ21: 87.5 | AR21: 87.5 | AS21: 87.5 | AT21: 87.5 | AU21: 87.5 | AV21: 87.5 | AW21: 87.5 | AX21: 87.5 | AY21: 87.5 | AZ21: 87.5 | BA21: 87.5 | BB21: 83 | BC21: 83 | BD21: 87.5 | BE21: 87.5 | BF21: 87.5 | BG21: 87.5 | BH21: 87.5
A22: Cerro Turi | B22: 02°55'22.90''S | C22: 79°00'32.80''W | D22: Cuenca | E22: 2730 | G22: 0 | H22: 0 | I22: 0 | J22: 0 | K22: 0 | L22: 0 | M22: 0 | N22: 0 | O22: 0 | P22: 0 | Q22: 0 | R22: 0 | S22: 0 | T22: 0 | U22: 0 | V22: 0 | W22: 0 | X22: 0 | Y22: 0 | Z22: 0 | AA22: 0 | AB22: 0 | AC22: 0 | AD22: 0 | AE22: 0 | AF22: 0 | AG22: 0 | AH22: 50 | AI22: 50 | AJ22: 0 | AK22: 0 | AL22: 0 | AM22: 0 | AN22: 0 | AO22: 0 | AP22: 0 | AQ22: 0 | AR22: 0 | AS22: 0 | AT22: 0 | AU22: 0 | AV22: 0 | AW22: 0 | AX22: 0 | AY22: 0 | AZ22: 0 | BA22: 0 | BB22: 0 | BC22: 0 | BD22: 0 | BE22: 0 | BF22: 0 | BG22: 0 | BH22: 0
A23: Sector Nero - Zhuzhun | B23: 02°56'48.30''S | C23: 79°03'46.20''W | D23: Cuenca | E23: 2932 | G23: 0 | H23: 0 | I23: 0 | J23: 0 | K23: 0 | L23: 0 | M23: 0 | N23: 0 | O23: 0 | P23: 0 | Q23: 0 | R23: 0 | S23: 0 | T23: 0 | U23: 0 | V23: 0 | W23: 0 | X23: 0 | Y23: 0 | Z23: 0 | AA23: 0 | AB23: 0 | AC23: 0 | AD23: 0 | AE23: 0 | AF23: 0 | AG23: 0 | AH23: 75 | AI23: 75 | AJ23: 0 | AK23: 0 | AL23: 0 | AM23: 0 | AN23: 0 | AO23: 0 | AP23: 0 | AQ23: 0 | AR23: 0 | AS23: 0 | AT23: 0 | AU23: 0 | AV23: 0 | AW23: 0 | AX23: 0 | AY23: 0 | AZ23: 0 | BA23: 0 | BB23: 0 | BC23: 0 | BD23: 0 | BE23: 0 | BF23: 0 | BG23: 0 | BH23: 0
A24: Tipoloma Alto | B24: 03°08'13.20''S | C24: 79°05'09.70''W | D24: Girón | E24: 3177 | G24: 48.36447074 | H24: 48.36447074 | I24: 48.36447074 | J24: 48.36447074 | K24: 48.36447074 | L24: 48.36447074 | M24: 50 | N24: 50 | O24: 50 | P24: 50 | Q24: 50 | R24: 50 | S24: 50 | T24: 50 | U24: 50 | V24: 50 | W24: 50 | X24: 50 | Y24: 50 | Z24: 87.5 | AA24: 87.5 | AB24: 87.5 | AC24: 87.5 | AD24: 87.5 | AE24: 87.5 | AF24: 87.5 | AG24: 87.5 | AH24: 87.5 | AI24: 87.5 | AJ24: 87.5 | AK24: 87.5 | AL24: 87.5 | AM24: 87.5 | AN24: 87.5 | AO24: 87.5 | AP24: 87.5 | AQ24: 87.5 | AR24: 87.5 | AS24: 87.5 | AT24: 87.5 | AU24: 87.5 | AV24: 87.5 | AW24: 87.5 | AX24: 87.5 | AY24: 87.5 | AZ24: 87.5 | BA24: 87.5 | BB24: 87.5 | BC24: 87.5 | BD24: 75 | BE24: 75 | BF24: 75 | BG24: 75 | BH24: 75
A25: Tipoloma Bajo | B25: 03°07'41.50''S | C25: 79°05'17.90''W | D25: Girón | E25: 3086 | G25: 0 | H25: 0 | I25: 0 | J25: 0 | K25: 0 | L25: 0 | M25: 0 | N25: 0 | O25: 0 | P25: 0 | Q25: 0 | R25: 0 | S25: 0 | T25: 0 | U25: 0 | V25: 0 | W25: 0 | X25: 0 | Y25: 0 | Z25: 0 | AA25: 0 | AB25: 0 | AC25: 0 | AD25: 0 | AE25: 0 | AF25: 0 | AG25: 0 | AH25: 100 | AI25: 100 | AJ25: 0 | AK25: 0 | AL25: 0 | AM25: 0 | AN25: 0 | AO25: 0 | AP25: 0 | AQ25: 0 | AR25: 0 | AS25: 0 | AT25: 0 | AU25: 0 | AV25: 0 | AW25: 0 | AX25: 0 | AY25: 0 | AZ25: 0 | BA25: 0 | BB25: 0 | BC25: 0 | BD25: 0 | BE25: 0 | BF25: 0 | BG25: 0 | BH25: 0
A26: Cerro Paredones | B26: 02°44'38.30''S | C26: 79°26'26.60''W | D26: Cuenca | E26: 3668 | G26: -1.421085472e-14 | H26: -1.421085472e-14 | I26: -1.421085472e-14 | J26: -1.421085472e-14 | K26: -1.421085472e-14 | L26: -1.421085472e-14 | M26: 12.5 | N26: 12.5 | O26: 12.5 | P26: 12.5 | Q26: 12.5 | R26: 12.5 | S26: 12.5 | T26: 12.5 | U26: 12.5 | V26: 12.5 | W26: 12.5 | X26: 12.5 | Y26: 12.5 | Z26: 0 | AA26: 0 | AB26: 0 | AC26: 0 | AD26: 0 | AE26: 0 | AF26: 0 | AG26: 0 | AH26: 12.5 | AI26: 12.5 | AJ26: 0 | AK26: 0 | AL26: 0 | AM26: 0 | AN26: 0 | AO26: 0 | AP26: 0 | AQ26: 0 | AR26: 0 | AS26: 0 | AT26: 0 | AU26: 0 | AV26: 0 | AW26: 0 | AX26: 0 | AY26: 0 | AZ26: 0 | BA26: 0 | BB26: 0 | BC26: 0 | BD26: 0 | BE26: 0 | BF26: 0 | BG26: 0 | BH26: 0
A27: Cuchilla de Paredones | B27: 02°44'10.70''S | C27: 79°26'43.10''W | D27: Cuenca | E27: 3311 | G27: 0 | H27: 0 | I27: 0 | J27: 0 | K27: 0 | L27: 0 | M27: 0 | N27: 0 | O27: 0 | P27: 0 | Q27: 0 | R27: 0 | S27: 0 | T27: 0 | U27: 0 | V27: 0 | W27: 0 | X27: 0 | Y27: 0 | Z27: 25 | AA27: 25 | AB27: 25 | AC27: 25 | AD27: 25 | AE27: 25 | AF27: 25 | AG27: 25 | AH27: 100 | AI27: 100 | AJ27: 25 | AK27: 25 | AL27: 25 | AM27: 25 | AN27: 25 | AO27: 25 | AP27: 25 | AQ27: 25 | AR27: 25 | AS27: 25 | AT27: 25 | AU27: 25 | AV27: 25 | AW27: 25 | AX27: 25 | AY27: 25 | AZ27: 25 | BA27: 25 | BB27: 26 | BC27: 26 | BD27: 25 | BE27: 25 | BF27: 25 | BG27: 25 | BH27: 25
A28: Bilovan | B28: 01°48'09.10''S | C28: 79°06'17.20''W | D28: San Miguel | E28: 2662 | G28: 0 | H28: 0 | I28: 0 | J28: 0 | K28: 0 | L28: 0 | M28: 0 | N28: 0 | O28: 0 | P28: 0 | Q28: 0 | R28: 0 | S28: 0 | T28: 0 | U28: 0 | V28: 0 | W28: 0 | X28: 0 | Y28: 0 | Z28: 0 | AA28: 0 | AB28: 0 | AC28: 0 | AD28: 0 | AE28: 0 | AF28: 0 | AG28: 0 | AH28: 0 | AI28: 0 | AJ28: 0 | AK28: 0 | AL28: 0 | AM28: 0 | AN28: 0 | AO28: 0 | AP28: 0 | AQ28: 0 | AR28: 0 | AS28: 0 | AT28: 0 | AU28: 0 | AV28: 0 | AW28: 0 | AX28: 0 | AY28: 0 | AZ28: 0 | BA28: 0 | BB28: 0 | BC28: 0 | BD28: 0 | BE28: 0 | BF28: 0 | BG28: 0 | BH28: 0
A29: Cerro Capadia Alto | B29: 01°25'24.20''S | C29: 78°57'01.10''W | D29: Guaranda | E29: 4460 | G29: 0 | H29: 0 | I29: 0 | J29: 0 | K29: 0 | L29: 0 | M29: 0 | N29: 0 | O29: 0 | P29: 0 | Q29: 0 | R29: 0 | S29: 0 | T29: 0 | U29: 0 | V29: 0 | W29: 0 | X29: 0 | Y29: 0 | Z29: 0 | AA29: 0 | AB29: 0 | AC29: 0 | AD29: 0 | AE29: 0 | AF29: 0 | AG29: 0 | AH29: 87.5 | AI29: 87.5 | AJ29: 0 | AK29: 0 | AL29: 0 | AM29: 0 | AN29: 0 | AO29: 0 | AP29: 0 | AQ29: 0 | AR29: 0 | AS29: 0 | AT29: 0 | AU29: 0 | AV29: 0 | AW29: 0 | AX29: 0 | AY29: 0 | AZ29: 0 | BA29: 0 | BB29: 0 | BC29: 0 | BD29: 0 | BE29: 0 | BF29: 0 | BG29: 0 | BH29: 0
A30: Cerro Capadia Chico | B30: 01°25'54.10''S | C30: 78°56'19.70''W | D30: Guaranda | E30: 4384 | G30: 48.36447074 | H30: 48.36447074 | I30: 48.36447074 | J30: 48.36447074 | K30: 48.36447074 | L30: 48.36447074 | M30: 50 | N30: 50 | O30: 50 | P30: 50 | Q30: 50 | R30: 50 | S30: 50 | T30: 50 | U30: 50 | V30: 50 | W30: 50 | X30: 50 | Y30: 50 | Z30: 75 | AA30: 75 | AB30: 75 | AC30: 75 | AD30: 75 | AE30: 75 | AF30: 75 | AG30: 75 | AH30: 62.5 | AI30: 62.5 | AJ30: 75 | AK30: 75 | AL30: 75 | AM30: 75 | AN30: 75 | AO30: 75 | AP30: 75 | AQ30: 75 | AR30: 75 | AS30: 75 | AT30: 75 | AU30: 75 | AV30: 75 | AW30: 75 | AX30: 75 | AY30: 75 | AZ30: 75 | BA30: 75 | BB30: 75 | BC30: 75 | BD30: 87.5 | BE30: 62.5 | BF30: 87.5 | BG30: 87.5 | BH30: 87.5
A31: Cerro de la Cocha | B31: 01°50'38.90''S | C31: 79°09'52.80''W | D31: San Miguel | E31: 2496 | G31: 0 | H31: 0 | I31: 0 | J31: 0 | K31: 0 | L31: 0 | M31: 0 | N31: 0 | O31: 0 | P31: 0 | Q31: 0 | R31: 0 | S31: 0 | T31: 0 | U31: 0 | V31: 0 | W31: 0 | X31: 0 | Y31: 0 | Z31: 0 | AA31: 0 | AB31: 0 | AC31: 0 | AD31: 0 | AE31: 0 | AF31: 0 | AG31: 0 | AH31: 0 | AI31: 0 | AJ31: 0 | AK31: 0 | AL31: 0 | AM31: 0 | AN31: 0 | AO31: 0 | AP31: 0 | AQ31: 0 | AR31: 0 | AS31: 0 | AT31: 0 | AU31: 0 | AV31: 0 | AW31: 0 | AX31: 0 | AY31: 0 | AZ31: 0 | BA31: 0 | BB31: 0 | BC31: 0 | BD31: 0 | BE31: 0 | BF31: 0 | BG31: 0 | BH31: 0
A32: Cerro Ilambulo | B32: 01°42'18.60''S | C32: 79°05'32.60''W | D32: San Miguel | E32: 3213 | G32: 0 | H32: 0 | I32: 0 | J32: 0 | K32: 0 | L32: 0 | M32: 0 | N32: 0 | O32: 0 | P32: 0 | Q32: 0 | R32: 0 | S32: 0 | T32: 0 | U32: 0 | V32: 0 | W32: 0 | X32: 0 | Y32: 0 | Z32: 0 | AA32: 0 | AB32: 0 | AC32: 0 | AD32: 0 | AE32: 0 | AF32: 12.5 | AG32: 12.5 | AH32: 0 | AI32: 0 | AJ32: 12.5 | AK32: 12.5 | AL32: 12.5 | AM32: 12.5 | AN32: 12.5 | AO32: 12.5 | AP32: 12.5 | AQ32: 12.5 | AR32: 12.5 | AS32: 12.5 | AT32: 12.5 | AU32: 12.5 | AV32: 12.5 | AW32: 12.5 | AX32: 12.5 | AY32: 12.5 | AZ32: 12.5 | BA32: 12.5 | BB32: 12.5 | BC32: 12.5 | BD32: 12.5 | BE32: 0 | BF32: 0 | BG32: 0 | BH32: 0
A33: Cerro Pucará | B33: 01°39'04.50''S | C33: 79°06'10.70''W | D33: Chimbo | E33: 3063 | G33: 0 | H33: 0 | I33: 0 | J33: 0 | K33: 0 | L33: 0 | M33: 0 | N33: 0 | O33: 0 | P33: 0 | Q33: 0 | R33: 0 | S33: 0 | T33: 0 | U33: 0 | V33: 0 | W33: 0 | X33: 0 | Y33: 0 | Z33: 0 | AA33: 0 | AB33: 0 | AC33: 0 | AD33: 0 | AE33: 0 | AF33: 0 | AG33: 0 | AH33: 25 | AI33: 25 | AJ33: 0 | AK33: 0 | AL33: 0 | AM33: 0 | AN33: 0 | AO33: 0 | AP33: 0 | AQ33: 0 | AR33: 0 | AS33: 0 | AT33: 0 | AU33: 0 | AV33: 0 | AW33: 0 | AX33: 0 | AY33: 0 | AZ33: 0 | BA33: 0 | BB33: 0 | BC33: 0 | BD33: 0 | BE33: 0 | BF33: 0 | BG33: 0 | BH33: 0
A34: Cochambamba (Chuchi) | B34: 01°41'56.20''S | C34: 79°06'20.60''W | D34: San Miguel | E34: 3072 | G34: 12.8971922 | H34: 12.8971922 | I34: 12.8971922 | J34: 12.8971922 | K34: 12.8971922 | L34: 12.8971922 | M34: 12.5 | N34: 12.5 | O34: 12.5 | P34: 12.5 | Q34: 12.5 | R34: 12.5 | S34: 12.5 | T34: 12.5 | U34: 12.5 | V34: 12.5 | W34: 12.5 | X34: 12.5 | Y34: 12.5 | Z34: 62.5 | AA34: 62.5 | AB34: 62.5 | AC34: 62.5 | AD34: 62.5 | AE34: 62.5 | AF34: 62.5 | AG34: 62.5 | AH34: 0 | AI34: 0 | AJ34: 62.5 | AK34: 62.5 | AL34: 62.5 | AM34: 62.5 | AN34: 62.5 | AO34: 62.5 | AP34: 62.5 | AQ34: 62.5 | AR34: 62.5 | AS34: 62.5 | AT34: 62.5 | AU34: 62.5 | AV34: 62.5 | AW34: 62.5 | AX34: 62.5 | AY34: 62.5 | AZ34: 62.5 | BA34: 62.5 | BB34: 62.5 | BC34: 62.5 | BD34: 62.5 | BE34: 62.5 | BF34: 62.5 | BG34: 62.5 | BH34: 62.5
A35: Cochabamba (Tundaloma) | B35: 01°41'35.30''S | C35: 79°06'28.20''W | D35: San Miguel | E35: 3018 | G35: 12.8971922 | H35: 12.8971922 | I35: 12.8971922 | J35: 12.8971922 | K35: 12.8971922 | L35: 12.8971922 | M35: 12.5 | N35: 12.5 | O35: 12.5 | P35: 12.5 | Q35: 12.5 | R35: 12.5 | S35: 12.5 | T35: 12.5 | U35: 12.5 | V35: 12.5 | W35: 12.5 | X35: 12.5 | Y35: 12.5 | Z35: 62.5 | AA35: 62.5 | AB35: 62.5 | AC35: 62.5 | AD35: 62.5 | AE35: 62.5 | AF35: 62.5 | AG35: 62.5 | AH35: 0 | AI35: 0 | AJ35: 62.5 | AK35: 62.5 | AL35: 62.5 | AM35: 62.5 | AN35: 62.5 | AO35: 62.5 | AP35: 62.5 | AQ35: 62.5 | AR35: 62.5 | AS35: 62.5 | AT35: 62.5 | AU35: 62.5 | AV35: 62.5 | AW35: 62.5 | AX35: 62.5 | AY35: 62.5 | AZ35: 62.5 | BA35: 62.5 | BB35: 62.5 | BC35: 62.5 | BD35: 62.5 | BE35: 62.5 | BF35: 62.5 | BG35: 62.5 | BH35: 62.5
A36: Loma de Lourdes | B36: 01°42'19.70''S | C36: 79°04'49.20''W | D36: San Miguel | E36: 3281 | G36: 0 | H36: 0 | I36: 0 | J36: 0 | K36: 0 | L36: 0 | M36: 0 | N36: 0 | O36: 0 | P36: 0 | Q36: 0 | R36: 0 | S36: 0 | T36: 0 | U36: 0 | V36: 0 | W36: 0 | X36: 0 | Y36: 0 | Z36: 0 | AA36: 0 | AB36: 0 | AC36: 0 | AD36: 0 | AE36: 0 | AF36: 0 | AG36: 0 | AH36: 25 | AI36: 25 | AJ36: 0 | AK36: 0 | AL36: 0 | AM36: 0 | AN36: 0 | AO36: 0 | AP36: 0 | AQ36: 0 | AR36: 0 | AS36: 0 | AT36: 0 | AU36: 0 | AV36: 0 | AW36: 0 | AX36: 0 | AY36: 0 | AZ36: 0 | BA36: 0 | BB36: 0 | BC36: 0 | BD36: 25 | BE36: 0 | BF36: 25 | BG36: 25 | BH36: 25
A37: Loma Susanga | B37: 01°40'23.00''S | C37: 79°01'08.80''W | D37: Chimbo | E37: 2879 | G37: 0 | H37: 0 | I37: 0 | J37: 0 | K37: 0 | L37: 0 | M37: 0 | N37: 0 | O37: 0 | P37: 0 | Q37: 0 | R37: 0 | S37: 0 | T37: 0 | U37: 0 | V37: 0 | W37: 0 | X37: 0 | Y37: 0 | Z37: 0 | AA37: 0 | AB37: 0 | AC37: 0 | AD37: 0 | AE37: 0 | AF37: 0 | AG37: 0 | AH37: 0 | AI37: 0 | AJ37: 0 | AK37: 0 | AL37: 0 | AM37: 0 | AN37: 0 | AO37: 0 | AP37: 0 | AQ37: 0 | AR37: 0 | AS37: 0 | AT37: 0 | AU37: 0 | AV37: 0 | AW37: 0 | AX37: 0 | AY37: 0 | AZ37: 0 | BA37: 0 | BB37: 0 | BC37: 0 | BD37: 0 | BE37: 0 | BF37: 0 | BG37: 0 | BH37: 0
A38: Padre Urcu | B38: 01°42'21.80''S | C38: 79°05'45.70''W | D38: San Miguel | E38: 3181 | G38: 0 | H38: 0 | I38: 0 | J38: 0 | K38: 0 | L38: 0 | M38: 0 | N38: 0 | O38: 0 | P38: 0 | Q38: 0 | R38: 0 | S38: 0 | T38: 0 | U38: 0 | V38: 0 | W38: 0 | X38: 0 | Y38: 0 | Z38: 0 | AA38: 0 | AB38: 0 | AC38: 0 | AD38: 0 | AE38: 0 | AF38: 12.5 | AG38: 12.5 | AH38: 25 | AI38: 25 | AJ38: 12.5 | AK38: 12.5 | AL38: 12.5 | AM38: 12.5 | AN38: 12.5 | AO38: 12.5 | AP38: 12.5 | AQ38: 12.5 | AR38: 12.5 | AS38: 12.5 | AT38: 12.5 | AU38: 12.5 | AV38: 12.5 | AW38: 12.5 | AX38: 12.5 | AY38: 12.5 | AZ38: 12.5 | BA38: 12.5 | BB38: 12.5 | BC38: 12.5 | BD38: 12.5 | BE38: 0 | BF38: 0 | BG38: 0 | BH38: 0
A39: Tiuguinal | B39: 01°22'00.30''S | C39: 79°00'25.10''W | D39: Guaranda | E39: 4126 | G39: 0 | H39: 0 | I39: 0 | J39: 0 | K39: 0 | L39: 0 | M39: 0 | N39: 0 | O39: 0 | P39: 0 | Q39: 0 | R39: 0 | S39: 0 | T39: 0 | U39: 0 | V39: 0 | W39: 0 | X39: 0 | Y39: 0 | Z39: 37.5 | AA39: 37.5 | AB39: 37.5 | AC39: 37.5 | AD39: 37.5 | AE39: 37.5 | AF39: 37.5 | AG39: 37.5 | AH39: 100 | AI39: 100 | AJ39: 37.5 | AK39: 37.5 | AL39: 37.5 | AM39: 37.5 | AN39: 37.5 | AO39: 37.5 | AP39: 37.5 | AQ39: 37.5 | AR39: 37.5 | AS39: 37.5 | AT39: 37.5 | AU39: 37.5 | AV39: 37.5 | AW39: 37.5 | AX39: 37.5 | AY39: 37.5 | AZ39: 37.5 | BA39: 37.5 | BB39: 37.5 | BC39: 37.5 | BD39: 37.5 | BE39: 37.5 | BF39: 37.5 | BG39: 37.5 | BH39: 37.5
A40: Biblian (Sagrado Corazón) | B40: 02°43'07.70''S | C40: 78°52'53.40''W | D40: Biblián | E40: 2878 | G40: 0 | H40: 0 | I40: 0 | J40: 0 | K40: 0 | L40: 0 | M40: 0 | N40: 0 | O40: 0 | P40: 0 | Q40: 0 | R40: 0 | S40: 0 | T40: 0 | U40: 0 | V40: 0 | W40: 0 | X40: 0 | Y40: 0 | Z40: 0 | AA40: 0 | AB40: 0 | AC40: 0 | AD40: 0 | AE40: 0 | AF40: 0 | AG40: 0 | AH40: 0 | AI40: 0 | AJ40: 0 | AK40: 0 | AL40: 0 | AM40: 0 | AN40: 0 | AO40: 0 | AP40: 0 | AQ40: 0 | AR40: 0 | AS40: 0 | AT40: 0 | AU40: 0 | AV40: 0 | AW40: 0 | AX40: 0 | AY40: 0 | AZ40: 0 | BA40: 0 | BB40: 0 | BC40: 0 | BD40: 0 | BE40: 0 | BF40: 0 | BG40: 0 | BH40: 0
A41: Cerro Altar Urcu | B41: 02°28'48.90''S | C41: 78°59'36.30''W | D41: Cañar | E41: 3215 | G41: 96.77243959 | H41: 96.77243959 | I41: 96.77243959 | J41: 96.77243959 | K41: 96.77243959 | L41: 96.77243959 | M41: 100 | N41: 100 | O41: 100 | P41: 100 | Q41: 100 | R41: 100 | S41: 100 | T41: 100 | U41: 100 | V41: 100 | W41: 100 | X41: 100 | Y41: 100 | Z41: 100 | AA41: 100 | AB41: 100 | AC41: 100 | AD41: 100 | AE41: 100 | AF41: 100 | AG41: 100 | AH41: 25 | AI41: 25 | AJ41: 100 | AK41: 100 | AL41: 100 | AM41: 100 | AN41: 100 | AO41: 100 | AP41: 100 | AQ41: 100 | AR41: 100 | AS41: 100 | AT41: 100 | AU41: 100 | AV41: 100 | AW41: 100 | AX41: 100 | AY41: 100 | AZ41: 100 | BA41: 100 | BB41: 100 | BC41: 100 | BD41: 87.5 | BE41: 62.5 | BF41: 87.5 | BG41: 87.5 | BH41: 87.5
A42: Cerro Buerán | B42: 02°36'31.10''S | C42: 78°55'50.90''W | D42: Biblián | E42: 3816 | G42: 61.08223319 | H42: 48.36447074 | I42: 48.36447074 | J42: 48.36447074 | K42: 48.36447074 | L42: 48.36447074 | M42: 87.5 | N42: 87.5 | O42: 87.5 | P42: 87.5 | Q42: 87.5 | R42: 87.5 | S42: 87.5 | T42: 87.5 | U42: 87.5 | V42: 87.5 | W42: 87.5 | X42: 87.5 | Y42: 87.5 | Z42: 75 | AA42: 75 | AB42: 75 | AC42: 75 | AD42: 75 | AE42: 75 | AF42: 75 | AG42: 75 | AH42: 37.5 | AI42: 37.5 | AJ42: 75 | AK42: 75 | AL42: 75 | AM42: 75 | AN42: 75 | AO42: 75 | AP42: 75 | AQ42: 75 | AR42: 75 | AS42: 75 | AT42: 75 | AU42: 75 | AV42: 75 | AW42: 75 | AX42: 75 | AY42: 75 | AZ42: 75 | BA42: 75 | BB42: 75 | BC42: 75 | BD42: 87.5 | BE42: 75 | BF42: 87.5 | BG42: 87.5 | BH42: 87.5
A43: Cerro Buerán(Tierras Negras) | B43: 02°35'59.40''S | C43: 78°55'44.40''W | D43: Biblián | E43: 3828 | G43: 47.82618152 | H43: 35.46727854 | I43: 35.46727854 | J43: 35.46727854 | K43: 35.46727854 | L43: 35.46727854 | M43: 75 | N43: 75 | O43: 75 | P43: 75 | Q43: 75 | R43: 75 | S43: 75 | T43: 75 | U43: 75 | V43: 75 | W43: 75 | X43: 75 | Y43: 75 | Z43: 62.5 | AA43: 62.5 | AB43: 62.5 | AC43: 62.5 | AD43: 62.5 | AE43: 62.5 | AF43: 62.5 | AG43: 62.5 | AH43: 100 | AI43: 100 | AJ43: 62.5 | AK43: 62.5 | AL43: 62.5 | AM43: 62.5 | AN43: 62.5 | AO43: 62.5 | AP43: 62.5 | AQ43: 62.5 | AR43: 62.5 | AS43: 62.5 | AT43: 62.5 | AU43: 62.5 | AV43: 62.5 | AW43: 62.5 | AX43: 62.5 | AY43: 62.5 | AZ43: 62.5 | BA43: 62.5 | BB43: 62.5 | BC43: 62.5 | BD43: 75 | BE43: 75 | BF43: 75 | BG43: 75 | BH43: 75
A44: Cerro Carshao | B44: 02°26'23.20''S | C44: 78°57'03.80''W | D44: Cañar | E44: 4017 | G44: 45.18367081 | H44: 45.18367081 | I44: 45.18367081 | J44: 45.18367081 | K44: 45.18367081 | L44: 45.18367081 | M44: 50 | N44: 50 | O44: 50 | P44: 50 | Q44: 50 | R44: 50 | S44: 50 | T44: 50 | U44: 50 | V44: 50 | W44: 50 | X44: 50 | Y44: 50 | Z44: 75 | AA44: 75 | AB44: 75 | AC44: 75 | AD44: 75 | AE44: 75 | AF44: 75 | AG44: 75 | AH44: 50 | AI44: 50 | AJ44: 75 | AK44: 75 | AL44: 75 | AM44: 75 | AN44: 75 | AO44: 75 | AP44: 75 | AQ44: 75 | AR44: 75 | AS44: 75 | AT44: 75 | AU44: 75 | AV44: 75 | AW44: 75 | AX44: 75 | AY44: 75 | AZ44: 75 | BA44: 75 | BB44: 90 | BC44: 90 | BD44: 87.5 | BE44: 75 | BF44: 87.5 | BG44: 87.5 | BH44: 87.5
A45: Cerro Carshao Bajo | B45: 02°26'08.10''S | C45: 78°56'52.20''W | D45: Cañar | E45: 4003 | G45: 45.18367081 | H45: 45.18367081 | I45: 45.18367081 | J45: 45.18367081 | K45: 45.18367081 | L45: 45.18367081 | M45: 50 | N45: 50 | O45: 50 | P45: 50 | Q45: 50 | R45: 50 | S45: 50 | T45: 50 | U45: 50 | V45: 50 | W45: 50 | X45: 50 | Y45: 50 | Z45: 75 | AA45: 75 | AB45: 75 | AC45: 75 | AD45: 75 | AE45: 75 | AF45: 75 | AG45: 75 | AH45: 0 | AI45: 0 | AJ45: 75 | AK45: 75 | AL45: 75 | AM45: 75 | AN45: 75 | AO45: 75 | AP45: 75 | AQ45: 75 | AR45: 75 | AS45: 75 | AT45: 75 | AU45: 75 | AV45: 75 | AW45: 75 | AX45: 75 | AY45: 75 | AZ45: 75 | BA45: 75 | BB45: 75 | BC45: 75 | BD45: 87.5 | BE45: 75 | BF45: 87.5 | BG45: 87.5 | BH45: 87.5
A46: Cerro Cojitambo | B46: 02°45'40.70''S | C46: 78°53'16.40''W | D46: Azoguez | E46: 3106 | G46: 0 | H46: 0 | I46: 0 | J46: 0 | K46: 0 | L46: 0 | M46: 0 | N46: 0 | O46: 0 | P46: 0 | Q46: 0 | R46: 0 | S46: 0 | T46: 0 | U46: 0 | V46: 0 | W46: 0 | X46: 0 | Y46: 0 | Z46: 0 | AA46: 0 | AB46: 0 | AC46: 0 | AD46: 0 | AE46: 0 | AF46: 0 | AG46: 0 | AH46: 0 | AI46: 0 | AJ46: 0 | AK46: 0 | AL46: 0 | AM46: 0 | AN46: 0 | AO46: 0 | AP46: 0 | AQ46: 0 | AR46: 0 | AS46: 0 | AT46: 0 | AU46: 0 | AV46: 0 | AW46: 0 | AX46: 0 | AY46: 0 | AZ46: 0 | BA46: 0 | BB46: 0 | BC46: 0 | BD46: 0 | BE46: 0 | BF46: 0 | BG46: 0 | BH46: 0
A47: Cerro Villaflor | B47: 02°49'44.60''S | C47: 78°48'12.30''W | D47: Azoguez | E47: 3042 | G47: 0 | H47: 0 | I47: 0 | J47: 0 | K47: 0 | L47: 0 | M47: 0 | N47: 0 | O47: 0 | P47: 0 | Q47: 0 | R47: 0 | S47: 0 | T47: 0 | U47: 0 | V47: 0 | W47: 0 | X47: 0 | Y47: 0 | Z47: 0 | AA47: 0 | AB47: 0 | AC47: 0 | AD47: 0 | AE47: 0 | AF47: 0 | AG47: 0 | AH47: 0 | AI47: 0 | AJ47: 0 | AK47: 0 | AL47: 0 | AM47: 0 | AN47: 0 | AO47: 0 | AP47: 0 | AQ47: 0 | AR47: 0 | AS47: 0 | AT47: 0 | AU47: 0 | AV47: 0 | AW47: 0 | AX47: 0 | AY47: 0 | AZ47: 0 | BA47: 0 | BB47: 0 | BC47: 0 | BD47: 0 | BE47: 0 | BF47: 0 | BG47: 0 | BH47: 0
A48: Cerro Troya | B48: 00°44'24.50''N | C48: 77°41'48.70''W | D48: Tulcán | E48: 3529 | G48: 45.18367081 | H48: 45.18367081 | I48: 45.18367081 | J48: 45.18367081 | K48: 45.18367081 | L48: 45.18367081 | M48: 62.5 | N48: 62.5 | O48: 62.5 | P48: 62.5 | Q48: 62.5 | R48: 62.5 | S48: 62.5 | T48: 62.5 | U48: 62.5 | V48: 62.5 | W48: 62.5 | X48: 62.5 | Y48: 62.5 | Z48: 75 | AA48: 75 | AB48: 75 | AC48: 75 | AD48: 75 | AE48: 75 | AF48: 75 | AG48: 75 | AH48: 100 | AI48: 100 | AJ48: 75 | AK48: 75 | AL48: 75 | AM48: 75 | AN48: 75 | AO48: 75 | AP48: 75 | AQ48: 75 | AR48: 75 | AS48: 75 | AT48: 75 | AU48: 75 | AV48: 75 | AW48: 75 | AX48: 75 | AY48: 75 | AZ48: 75 | BA48: 75 | BB48: 82 | BC48: 82 | BD48: 75 | BE48: 75 | BF48: 75 | BG48: 75 | BH48: 75
A49: Cerro Troya Bajo | B49: 00°44'09.50''N | C49: 77°42'22.80''W | D49: Tulcán | E49: 3418 | G49: 0 | H49: 0 | I49: 0 | J49: 0 | K49: 0 | L49: 0 | M49: 0 | N49: 0 | O49: 0 | P49: 0 | Q49: 0 | R49: 0 | S49: 0 | T49: 0 | U49: 0 | V49: 0 | W49: 0 | X49: 0 | Y49: 0 | Z49: 0 | AA49: 0 | AB49: 0 | AC49: 0 | AD49: 0 | AE49: 0 | AF49: 0 | AG49: 0 | AH49: 37.5 | AI49: 37.5 | AJ49: 0 | AK49: 0 | AL49: 0 | AM49: 0 | AN49: 0 | AO49: 0 | AP49: 0 | AQ49: 0 | AR49: 0 | AS49: 0 | AT49: 0 | AU49: 0 | AV49: 0 | AW49: 0 | AX49: 0 | AY49: 0 | AZ49: 0 | BA49: 0 | BB49: 0 | BC49: 0 | BD49: 0 | BE49: 0 | BF49: 0 | BG49: 0 | BH49: 0
A50: Cerro Cabras | B50: 00°28'15.00''N | C50: 77°57'50.70''W | D50: Bolívar | E50: 2904 | G50: 83.8752474 | H50: 83.8752474 | I50: 83.8752474 | J50: 83.8752474 | K50: 83.8752474 | L50: 83.8752474 | M50: 87.5 | N50: 87.5 | O50: 87.5 | P50: 87.5 | Q50: 87.5 | R50: 87.5 | S50: 87.5 | T50: 87.5 | U50: 87.5 | V50: 87.5 | W50: 87.5 | X50: 87.5 | Y50: 87.5 | Z50: 100 | AA50: 100 | AB50: 100 | AC50: 100 | AD50: 100 | AE50: 100 | AF50: 100 | AG50: 100 | AH50: 100 | AI50: 100 | AJ50: 100 | AK50: 100 | AL50: 100 | AM50: 100 | AN50: 100 | AO50: 100 | AP50: 100 | AQ50: 100 | AR50: 100 | AS50: 100 | AT50: 100 | AU50: 100 | AV50: 100 | AW50: 100 | AX50: 100 | AY50: 100 | AZ50: 100 | BA50: 100 | BB50: 100 | BC50: 100 | BD50: 100 | BE50: 100 | BF50: 100 | BG50: 100 | BH50: 100
A51: Cerro Chiles Alto | B51: 00°35'14.40''N | C51: 77°51'04.00''W | D51: Montúfar | E51: 3093 | G51: 0 | H51: 0 | I51: 0 | J51: 0 | K51: 0 | L51: 0 | M51: 0 | N51: 0 | O51: 0 | P51: 0 | Q51: 0 | R51: 0 | S51: 0 | T51: 0 | U51: 0 | V51: 0 | W51: 0 | X51: 0 | Y51: 0 | Z51: 0 | AA51: 0 | AB51: 0 | AC51: 0 | AD51: 0 | AE51: 0 | AF51: 0 | AG51: 0 | AH51: 87.5 | AI51: 87.5 | AJ51: 0 | AK51: 0 | AL51: 0 | AM51: 0 | AN51: 0 | AO51: 0 | AP51: 0 | AQ51: 0 | AR51: 0 | AS51: 0 | AT51: 0 | AU51: 0 | AV51: 0 | AW51: 0 | AX51: 0 | AY51: 0 | AZ51: 0 | BA51: 0 | BB51: 0 | BC51: 0 | BD51: 0 | BE51: 0 | BF51: 0 | BG51: 0 | BH51: 0
A52: Agua Santa | B52: 01°41'46.80''S | C52: 78°39'59.80''W | D52: Riobamba | E52: 3006 | G52: 0 | H52: 0 | I52: 0 | J52: 0 | K52: 0 | L52: 0 | M52: 0 | N52: 0 | O52: 0 | P52: 0 | Q52: 0 | R52: 0 | S52: 0 | T52: 0 | U52: 0 | V52: 0 | W52: 0 | X52: 0 | Y52: 0 | Z52: 0 | AA52: 0 | AB52: 0 | AC52: 0 | AD52: 0 | AE52: 0 | AF52: 0 | AG52: 0 | AH52: 0 | AI52: 0 | AJ52: 0 | AK52: 0 | AL52: 0 | AM52: 0 | AN52: 0 | AO52: 0 | AP52: 0 | AQ52: 0 | AR52: 0 | AS52: 0 | AT52: 0 | AU52: 0 | AV52: 0 | AW52: 0 | AX52: 0 | AY52: 0 | AZ52: 0 | BA52: 0 | BB52: 0 | BC52: 0 | BD52: 12.5 | BE52: 12.5 | BF52: 12.5 | BG52: 12.5 | BH52: 12.5
A53: Cerro Amula Rayoloma | B53: 01°41'22.10''S | C53: 78°43'45.70''W | D53: Colta | E53: 3485 | G53: 0 | H53: 0 | I53: 0 | J53: 0 | K53: 0 | L53: 0 | M53: 0 | N53: 0 | O53: 0 | P53: 0 | Q53: 0 | R53: 0 | S53: 0 | T53: 0 | U53: 0 | V53: 0 | W53: 0 | X53: 0 | Y53: 0 | Z53: 0 | AA53: 0 | AB53: 0 | AC53: 0 | AD53: 0 | AE53: 0 | AF53: 0 | AG53: 0 | AH53: 0 | AI53: 0 | AJ53: 0 | AK53: 0 | AL53: 0 | AM53: 0 | AN53: 0 | AO53: 0 | AP53: 0 | AQ53: 0 | AR53: 0 | AS53: 0 | AT53: 0 | AU53: 0 | AV53: 0 | AW53: 0 | AX53: 0 | AY53: 0 | AZ53: 0 | BA53: 0 | BB53: 0 | BC53: 0 | BD53: 0 | BE53: 0 | BF53: 0 | BG53: 0 | BH53: 0
A54: Cerro Gatazo Grande | B54: 01°39'41.30''S | C54: 78°45'00.80''W | D54: Colta | E54: 3188 | G54: 0 | H54: 0 | I54: 0 | J54: 0 | K54: 0 | L54: 0 | M54: 0 | N54: 0 | O54: 0 | P54: 0 | Q54: 0 | R54: 0 | S54: 0 | T54: 0 | U54: 0 | V54: 0 | W54: 0 | X54: 0 | Y54: 0 | Z54: 0 | AA54: 0 | AB54: 0 | AC54: 0 | AD54: 0 | AE54: 0 | AF54: 0 | AG54: 0 | AH54: 0 | AI54: 0 | AJ54: 0 | AK54: 0 | AL54: 0 | AM54: 0 | AN54: 0 | AO54: 0 | AP54: 0 | AQ54: 0 | AR54: 0 | AS54: 0 | AT54: 0 | AU54: 0 | AV54: 0 | AW54: 0 | AX54: 0 | AY54: 0 | AZ54: 0 | BA54: 0 | BB54: 0 | BC54: 0 | BD54: 0 | BE54: 0 | BF54: 0 | BG54: 0 | BH54: 0
A55: Cerro Higno Cacha | B55: 01°41'31.90''S | C55: 78°42'58.60''W | D55: Riobamba | E55: 3567 | G55: -1.421085472e-14 | H55: -1.421085472e-14 | I55: -1.421085472e-14 | J55: -1.421085472e-14 | K55: -1.421085472e-14 | L55: -1.421085472e-14 | M55: 12.5 | N55: 12.5 | O55: 12.5 | P55: 12.5 | Q55: 12.5 | R55: 12.5 | S55: 12.5 | T55: 12.5 | U55: 12.5 | V55: 12.5 | W55: 12.5 | X55: 12.5 | Y55: 12.5 | Z55: 0 | AA55: 0 | AB55: 0 | AC55: 0 | AD55: 0 | AE55: 0 | AF55: 0 | AG55: 0 | AH55: 0 | AI55: 0 | AJ55: 0 | AK55: 0 | AL55: 0 | AM55: 0 | AN55: 0 | AO55: 0 | AP55: 0 | AQ55: 0 | AR55: 0 | AS55: 0 | AT55: 0 | AU55: 0 | AV55: 0 | AW55: 0 | AX55: 0 | AY55: 0 | AZ55: 0 | BA55: 0 | BB55: 0 | BC55: 0 | BD55: 0 | BE55: 0 | BF55: 0 | BG55: 0 | BH55: 0
A56: Cerro La Mira | B56: 01°30'32.70''S | C56: 78°35'05.20''W | D56: Guano | E56: 3881 | G56: 96.77243959 | H56: 83.8752474 | I56: 83.8752474 | J56: 83.8752474 | K56: 83.8752474 | L56: 83.8752474 | M56: 100 | N56: 100 | O56: 100 | P56: 100 | Q56: 100 | R56: 100 | S56: 100 | T56: 100 | U56: 100 | V56: 100 | W56: 100 | X56: 100 | Y56: 100 | Z56: 100 | AA56: 100 | AB56: 100 | AC56: 100 | AD56: 100 | AE56: 100 | AF56: 100 | AG56: 100 | AH56: 100 | AI56: 100 | AJ56: 100 | AK56: 100 | AL56: 100 | AM56: 100 | AN56: 100 | AO56: 100 | AP56: 100 | AQ56: 100 | AR56: 100 | AS56: 100 | AT56: 100 | AU56: 100 | AV56: 100 | AW56: 100 | AX56: 100 | AY56: 100 | AZ56: 100 | BA56: 100 | BB56: 100 | BC56: 100 | BD56: 62.5 | BE56: 37.5 | BF56: 37.5 | BG56: 37.5 | BH56: 37.5
A57: Cerro La Mira (Senincahuan) | B57: 01°41'31.90''S | C57: 78°42'58.60''W | D57: Riobamba | E57: 3947 | G57: -1.421085472e-14 | H57: -1.421085472e-14 | I57: -1.421085472e-14 | J57: -1.421085472e-14 | K57: -1.421085472e-14 | L57: -1.421085472e-14 | M57: 12.5 | N57: 12.5 | O57: 12.5 | P57: 12.5 | Q57: 12.5 | R57: 12.5 | S57: 12.5 | T57: 12.5 | U57: 12.5 | V57: 12.5 | W57: 12.5 | X57: 12.5 | Y57: 12.5 | Z57: 0 | AA57: 0 | AB57: 0 | AC57: 0 | AD57: 0 | AE57: 0 | AF57: 0 | AG57: 0 | AH57: 0 | AI57: 0 | AJ57: 0 | AK57: 0 | AL57: 0 | AM57: 0 | AN57: 0 | AO57: 0 | AP57: 0 | AQ57: 0 | AR57: 0 | AS57: 0 | AT57: 0 | AU57: 0 | AV57: 0 | AW57: 0 | AX57: 0 | AY57: 0 | AZ57: 0 | BA57: 0 | BB57: 0 | BC57: 0 | BD57: 0 | BE57: 0 | BF57: 0 | BG57: 0 | BH57: 0
A58: Cerro Achayandi | B58: 00°57'07.70''S | C58: 78°55'32.90''W | D58: Pujulí | E58: 4102 | G58: -1.421085472e-14 | H58: -1.421085472e-14 | I58: -1.421085472e-14 | J58: -1.421085472e-14 | K58: -1.421085472e-14 | L58: -1.421085472e-14 | M58: 25 | N58: 25 | O58: 25 | P58: 25 | Q58: 25 | R58: 25 | S58: 25 | T58: 25 | U58: 25 | V58: 25 | W58: 25 | X58: 25 | Y58: 25 | Z58: 0 | AA58: 0 | AB58: 0 | AC58: 0 | AD58: 0 | AE58: 0 | AF58: 0 | AG58: 0 | AH58: 0 | AI58: 0 | AJ58: 0 | AK58: 0 | AL58: 0 | AM58: 0 | AN58: 0 | AO58: 0 | AP58: 0 | AQ58: 0 | AR58: 0 | AS58: 0 | AT58: 0 | AU58: 0 | AV58: 0 | AW58: 0 | AX58: 0 | AY58: 0 | AZ58: 0 | BA58: 0 | BB58: 0 | BC58: 0 | BD58: 0 | BE58: 0 | BF58: 0 | BG58: 0 | BH58: 0
A59: Cerro Apagua | B59: 00°58'32.00''S | C59: 78°56'58.00''W | D59: Pujulí | E59: 4032 | G59: 0 | H59: 0 | I59: 0 | J59: 0 | K59: 0 | L59: 0 | M59: 0 | N59: 0 | O59: 0 | P59: 0 | Q59: 0 | R59: 0 | S59: 0 | T59: 0 | U59: 0 | V59: 0 | W59: 0 | X59: 0 | Y59: 0 | Z59: 0 | AA59: 0 | AB59: 0 | AC59: 0 | AD59: 0 | AE59: 0 | AF59: 0 | AG59: 0 | AH59: 0 | AI59: 0 | AJ59: 0 | AK59: 0 | AL59: 0 | AM59: 0 | AN59: 0 | AO59: 0 | AP59: 0 | AQ59: 0 | AR59: 0 | AS59: 0 | AT59: 0 | AU59: 0 | AV59: 0 | AW59: 0 | AX59: 0 | AY59: 0 | AZ59: 0 | BA59: 0 | BB59: 0 | BC59: 0 | BD59: 0 | BE59: 0 | BF59: 0 | BG59: 0 | BH59: 0
A60: Cerro Putzalagua | B60: 00°57'56.00''S | C60: 78°33'42.70''W | D60: Latacunga | E60: 3531 | G60: 9.672894147 | H60: 9.672894147 | I60: 9.672894147 | J60: 9.672894147 | K60: 9.672894147 | L60: 9.672894147 | M60: 12.5 | N60: 12.5 | O60: 12.5 | P60: 12.5 | Q60: 12.5 | R60: 12.5 | S60: 12.5 | T60: 12.5 | U60: 12.5 | V60: 12.5 | W60: 12.5 | X60: 12.5 | Y60: 12.5 | Z60: 12.5 | AA60: 12.5 | AB60: 12.5 | AC60: 12.5 | AD60: 12.5 | AE60: 12.5 | AF60: 12.5 | AG60: 12.5 | AH60: 12.5 | AI60: 12.5 | AJ60: 12.5 | AK60: 12.5 | AL60: 12.5 | AM60: 12.5 | AN60: 12.5 | AO60: 12.5 | AP60: 12.5 | AQ60: 12.5 | AR60: 12.5 | AS60: 12.5 | AT60: 12.5 | AU60: 12.5 | AV60: 12.5 | AW60: 12.5 | AX60: 12.5 | AY60: 12.5 | AZ60: 12.5 | BA60: 12.5 | BB60: 12.5 | BC60: 12.5 | BD60: 12.5 | BE60: 12.5 | BF60: 12.5 | BG60: 12.5 | BH60: 25
A61: Chasqui | B61: 00°37'15.30''S | C61: 78°35'37.20''W | D61: Latacunga | E61: 3532 | G61: 96.77243959 | H61: 96.77243959 | I61: 96.77243959 | J61: 96.77243959 | K61: 96.77243959 | L61: 96.77243959 | M61: 100 | N61: 100 | O61: 100 | P61: 100 | Q61: 100 | R61: 100 | S61: 100 | T61: 100 | U61: 100 | V61: 100 | W61: 100 | X61: 100 | Y61: 100 | Z61: 100 | AA61: 100 | AB61: 100 | AC61: 100 | AD61: 100 | AE61: 100 | AF61: 100 | AG61: 100 | AH61: 100 | AI61: 100 | AJ61: 100 | AK61: 100 | AL61: 100 | AM61: 100 | AN61: 100 | AO61: 100 | AP61: 100 | AQ61: 100 | AR61: 100 | AS61: 100 | AT61: 100 | AU61: 100 | AV61: 100 | AW61: 100 | AX61: 100 | AY61: 100 | AZ61: 100 | BA61: 100 | BB61: 100 | BC61: 100 | BD61: 100 | BE61: 100 | BF61: 100 | BG61: 100 | BH61: 100
A62: Cerro Chilla | B62: 03°29'09.70''S | C62: 79°36'04.70''W | D62: Chilla | E62: 3450 | G62: 0 | H62: 0 | I62: 0 | J62: 0 | K62: 0 | L62: 0 | M62: 0 | N62: 0 | O62: 0 | P62: 0 | Q62: 0 | R62: 0 | S62: 0 | T62: 0 | U62: 0 | V62: 0 | W62: 0 | X62: 0 | Y62: 0 | Z62: 12.5 | AA62: 12.5 | AB62: 12.5 | AC62: 12.5 | AD62: 12.5 | AE62: 12.5 | AF62: 12.5 | AG62: 12.5 | AH62: 12.5 | AI62: 12.5 | AJ62: 12.5 | AK62: 12.5 | AL62: 12.5 | AM62: 12.5 | AN62: 12.5 | AO62: 12.5 | AP62: 12.5 | AQ62: 12.5 | AR62: 12.5 | AS62: 12.5 | AT62: 12.5 | AU62: 12.5 | AV62: 12.5 | AW62: 12.5 | AX62: 12.5 | AY62: 12.5 | AZ62: 12.5 | BA62: 12.5 | BB62: 12.5 | BC62: 12.5 | BD62: 12.5 | BE62: 12.5 | BF62: 12.5 | BG62: 0 | BH62: 0
A63: Cerro Chilola | B63: 03°30'00.90''S | C63: 79°37'52.50''W | D63: Chilla | E63: 3596 | G63: -1.421085472e-14 | H63: -1.421085472e-14 | I63: -1.421085472e-14 | J63: -1.421085472e-14 | K63: -1.421085472e-14 | L63: 6.448596098 | M63: 37.5 | N63: 37.5 | O63: 37.5 | P63: 37.5 | Q63: 37.5 | R63: 37.5 | S63: 37.5 | T63: 37.5 | U63: 37.5 | V63: 37.5 | W63: 37.5 | X63: 37.5 | Y63: 37.5 | Z63: 62.5 | AA63: 62.5 | AB63: 62.5 | AC63: 75 | AD63: 75 | AE63: 75 | AF63: 87.5 | AG63: 87.5 | AH63: 87.5 | AI63: 87.5 | AJ63: 87.5 | AK63: 87.5 | AL63: 87.5 | AM63: 87.5 | AN63: 87.5 | AO63: 87.5 | AP63: 87.5 | AQ63: 87.5 | AR63: 87.5 | AS63: 87.5 | AT63: 87.5 | AU63: 87.5 | AV63: 87.5 | AW63: 87.5 | AX63: 87.5 | AY63: 87.5 | AZ63: 87.5 | BA63: 87.5 | BB63: 87.5 | BC63: 87.5 | BD63: 75 | BE63: 50 | BF63: 62.5 | BG63: 50 | BH63: 62.5
A64: Cerro El Trigal | B64: 03°41'23.20''S | C64: 79°39'33.90''W | D64: Piñas | E64: 1292 | G64: 0 | H64: 0 | I64: 0 | J64: 0 | K64: 0 | L64: 0 | M64: 0 | N64: 0 | O64: 0 | P64: 0 | Q64: 0 | R64: 0 | S64: 0 | T64: 0 | U64: 0 | V64: 0 | W64: 0 | X64: 0 | Y64: 0 | Z64: 0 | AA64: 0 | AB64: 0 | AC64: 0 | AD64: 0 | AE64: 0 | AF64: 0 | AG64: 0 | AH64: 0 | AI64: 0 | AJ64: 0 | AK64: 0 | AL64: 0 | AM64: 0 | AN64: 0 | AO64: 0 | AP64: 0 | AQ64: 0 | AR64: 0 | AS64: 0 | AT64: 0 | AU64: 0 | AV64: 0 | AW64: 0 | AX64: 0 | AY64: 0 | AZ64: 0 | BA64: 0 | BB64: 0 | BC64: 0 | BD64: 0 | BE64: 0 | BF64: 0 | BG64: 0 | BH64: 0
A65: Cerro Guirillio | B65: 03°09'57.50''S | C65: 79°36'20.40''W | D65: El Guabo | E65: 3192 | G65: 0 | H65: 0 | I65: 0 | J65: 0 | K65: 0 | L65: 0 | M65: 0 | N65: 0 | O65: 0 | P65: 0 | Q65: 0 | R65: 0 | S65: 0 | T65: 0 | U65: 0 | V65: 0 | W65: 0 | X65: 0 | Y65: 0 | Z65: 0 | AA65: 0 | AB65: 0 | AC65: 0 | AD65: 0 | AE65: 0 | AF65: 0 | AG65: 0 | AH65: 0 | AI65: 0 | AJ65: 0 | AK65: 0 | AL65: 0 | AM65: 0 | AN65: 0 | AO65: 0 | AP65: 0 | AQ65: 0 | AR65: 0 | AS65: 0 | AT65: 0 | AU65: 0 | AV65: 0 | AW65: 0 | AX65: 0 | AY65: 0 | AZ65: 0 | BA65: 0 | BB65: 0 | BC65: 0 | BD65: 0 | BE65: 0 | BF65: 0 | BG65: 0 | BH65: 0
A66: Cerro La Chuva | B66: 03°43'03.00''S | C66: 79°39'11.30''W | D66: Piñas | E66: 1282 | G66: 0 | H66: 0 | I66: 0 | J66: 0 | K66: 0 | L66: 0 | M66: 0 | N66: 0 | O66: 0 | P66: 0 | Q66: 0 | R66: 0 | S66: 0 | T66: 0 | U66: 0 | V66: 0 | W66: 0 | X66: 0 | Y66: 0 | Z66: 0 | AA66: 0 | AB66: 0 | AC66: 0 | AD66: 0 | AE66: 0 | AF66: 0 | AG66: 0 | AH66: 0 | AI66: 0 | AJ66: 0 | AK66: 0 | AL66: 0 | AM66: 0 | AN66: 0 | AO66: 0 | AP66: 0 | AQ66: 0 | AR66: 0 | AS66: 0 | AT66: 0 | AU66: 0 | AV66: 0 | AW66: 0 | AX66: 0 | AY66: 0 | AZ66: 0 | BA66: 0 | BB66: 0 | BC66: 0 | BD66: 0 | BE66: 0 | BF66: 0 | BG66: 0 | BH66: 0
A67: Cerro Repen | B67: 03°33'01.80''S | C67: 79°41'02.70''W | D67: Atahualpa | E67: 2369 | G67: 25.79438439 | H67: 25.79438439 | I67: 25.79438439 | J67: 25.79438439 | K67: 25.79438439 | L67: 25.79438439 | M67: 25 | N67: 25 | O67: 25 | P67: 25 | Q67: 25 | R67: 25 | S67: 25 | T67: 25 | U67: 25 | V67: 25 | W67: 25 | X67: 25 | Y67: 25 | Z67: 25 | AA67: 25 | AB67: 25 | AC67: 25 | AD67: 25 | AE67: 25 | AF67: 25 | AG67: 25 | AH67: 25 | AI67: 25 | AJ67: 25 | AK67: 25 | AL67: 25 | AM67: 25 | AN67: 25 | AO67: 25 | AP67: 25 | AQ67: 25 | AR67: 25 | AS67: 25 | AT67: 25 | AU67: 25 | AV67: 25 | AW67: 25 | AX67: 25 | AY67: 25 | AZ67: 25 | BA67: 25 | BB67: 25 | BC67: 25 | BD67: 37.5 | BE67: 25 | BF67: 37.5 | BG67: 37.5 | BH67: 37.5
A68: Cerro Balao (Esmeraldas) | B68: 00°57'41.30''N | C68: 79°41'25.70''W | D68: Esmeraldas | E68: 192 | G68: 0 | H68: 0 | I68: 0 | J68: 0 | K68: 0 | L68: 0 | M68: 0 | N68: 0 | O68: 0 | P68: 12.5 | Q68: 12.5 | R68: 12.5 | S68: 12.5 | T68: 12.5 | U68: 12.5 | V68: 12.5 | W68: 12.5 | X68: 12.5 | Y68: 12.5 | Z68: 12.5 | AA68: 12.5 | AB68: 12.5 | AC68: 12.5 | AD68: 12.5 | AE68: 12.5 | AF68: 12.5 | AG68: 12.5 | AH68: 12.5 | AI68: 12.5 | AJ68: 12.5 | AK68: 12.5 | AL68: 12.5 | AM68: 12.5 | AN68: 12.5 | AO68: 12.5 | AP68: 12.5 | AQ68: 12.5 | AR68: 12.5 | AS68: 12.5 | AT68: 12.5 | AU68: 12.5 | AV68: 12.5 | AW68: 12.5 | AX68: 12.5 | AY68: 12.5 | AZ68: 12.5 | BA68: 12.5 | BB68: 12.5 | BC68: 12.5 | BD68: 12.5 | BE68: 12.5 | BF68: 12.5 | BG68: 12.5 | BH68: 12.5
A69: Cerro Don Juan | B69: 00°50'51.20''N | C69: 79°53'52.40''W | D69: Atacames | E69: 262 | G69: 22.61358446 | H69: 22.61358446 | I69: 22.61358446 | J69: 35.51077666 | K69: 35.51077666 | L69: 48.40796886 | M69: 50 | N69: 50 | O69: 50 | P69: 50 | Q69: 50 | R69: 50 | S69: 50 | T69: 50 | U69: 50 | V69: 50 | W69: 50 | X69: 50 | Y69: 50 | Z69: 50 | AA69: 50 | AB69: 50 | AC69: 50 | AD69: 50 | AE69: 50 | AF69: 50 | AG69: 50 | AH69: 50 | AI69: 50 | AJ69: 50 | AK69: 50 | AL69: 50 | AM69: 50 | AN69: 50 | AO69: 50 | AP69: 50 | AQ69: 50 | AR69: 50 | AS69: 50 | AT69: 50 | AU69: 50 | AV69: 50 | AW69: 50 | AX69: 50 | AY69: 50 | AZ69: 50 | BA69: 50 | BB69: 50 | BC69: 50 | BD69: 50 | BE69: 50 | BF69: 50 | BG69: 50 | BH69: 50
A70: Cerro Gatazo | B70: 00°56'38.40''N | C70: 79°39'29.70''W | D70: Esmeraldas | E70: 271 | G70: 83.8752474 | H70: 83.8752474 | I70: 83.8752474 | J70: 74.20235325 | K70: 74.20235325 | L70: 83.8752474 | M70: 87.5 | N70: 87.5 | O70: 87.5 | P70: 87.5 | Q70: 87.5 | R70: 87.5 | S70: 87.5 | T70: 87.5 | U70: 87.5 | V70: 87.5 | W70: 87.5 | X70: 87.5 | Y70: 87.5 | Z70: 100 | AA70: 100 | AB70: 100 | AC70: 100 | AD70: 100 | AE70: 100 | AF70: 100 | AG70: 100 | AH70: 100 | AI70: 100 | AJ70: 100 | AK70: 100 | AL70: 100 | AM70: 100 | AN70: 100 | AO70: 100 | AP70: 100 | AQ70: 100 | AR70: 100 | AS70: 100 | AT70: 100 | AU70: 100 | AV70: 100 | AW70: 100 | AX70: 100 | AY70: 100 | AZ70: 100 | BA70: 100 | BB70: 100 | BC70: 100 | BD70: 100 | BE70: 100 | BF70: 100 | BG70: 100 | BH70: 100
A71: Cerro La Juanita | B71: 00°28'02.20''N | C71: 79°34'40.50''W | D71: Quinindé | E71: 502 | G71: 83.8752474 | H71: 83.8752474 | I71: 83.8752474 | J71: 70.9780552 | K71: 70.9780552 | L71: 90.32384349 | M71: 100 | N71: 100 | O71: 100 | P71: 100 | Q71: 100 | R71: 100 | S71: 100 | T71: 100 | U71: 100 | V71: 100 | W71: 100 | X71: 100 | Y71: 100 | Z71: 100 | AA71: 100 | AB71: 100 | AC71: 100 | AD71: 100 | AE71: 100 | AF71: 100 | AG71: 100 | AH71: 100 | AI71: 100 | AJ71: 100 | AK71: 100 | AL71: 100 | AM71: 100 | AN71: 100 | AO71: 100 | AP71: 100 | AQ71: 100 | AR71: 100 | AS71: 100 | AT71: 100 | AU71: 100 | AV71: 100 | AW71: 100 | AX71: 100 | AY71: 100 | AZ71: 100 | BA71: 100 | BB71: 100 | BC71: 100 | BD71: 100 | BE71: 87.5 | BF71: 100 | BG71: 87.5 | BH71: 100
A72: Cerro Zapallo | B72: 00°53'05.30''N | C72: 79°31'52.20''W | D72: Esmeraldas | E72: 690 | G72: 74.20235325 | H72: 64.48596098 | I72: 64.48596098 | J72: 48.36447074 | K72: 48.36447074 | L72: 74.15885513 | M72: 100 | N72: 100 | O72: 100 | P72: 100 | Q72: 100 | R72: 100 | S72: 100 | T72: 100 | U72: 100 | V72: 100 | W72: 100 | X72: 100 | Y72: 100 | Z72: 100 | AA72: 100 | AB72: 100 | AC72: 100 | AD72: 100 | AE72: 100 | AF72: 100 | AG72: 100 | AH72: 100 | AI72: 100 | AJ72: 100 | AK72: 100 | AL72: 100 | AM72: 100 | AN72: 100 | AO72: 100 | AP72: 100 | AQ72: 100 | AR72: 100 | AS72: 100 | AT72: 100 | AU72: 100 | AV72: 100 | AW72: 100 | AX72: 100 | AY72: 100 | AZ72: 100 | BA72: 100 | BB72: 100 | BC72: 100 | BD72: 100 | BE72: 100 | BF72: 100 | BG72: 100 | BH72: 100
A73: Cerro Animas | B73: 02°28'28.20''S | C73: 80°28'03.40''W | D73: Guayaquil | E73: 427 | G73: -1.421085472e-14 | H73: -1.421085472e-14 | I73: -1.421085472e-14 | J73: -1.421085472e-14 | K73: -1.421085472e-14 | L73: 19.34578829 | M73: 25 | N73: 25 | O73: 25 | P73: 25 | Q73: 25 | R73: 25 | S73: 25 | T73: 25 | U73: 25 | V73: 25 | W73: 25 | X73: 25 | Y73: 25 | Z73: 25 | AA73: 25 | AB73: 25 | AC73: 25 | AD73: 25 | AE73: 25 | AF73: 37.5 | AG73: 37.5 | AH73: 37.5 | AI73: 37.5 | AJ73: 37.5 | AK73: 37.5 | AL73: 37.5 | AM73: 37.5 | AN73: 37.5 | AO73: 37.5 | AP73: 37.5 | AQ73: 37.5 | AR73: 37.5 | AS73: 37.5 | AT73: 37.5 | AU73: 37.5 | AV73: 37.5 | AW73: 37.5 | AX73: 37.5 | AY73: 37.5 | AZ73: 37.5 | BA73: 37.5 | BB73: 37.5 | BC73: 37.5 | BD73: 50 | BE73: 0 | BF73: 25 | BG73: 0 | BH73: 25
A74: Cerro Azul | B74: 02°09'57.40''S | C74: 79°57'24.80''W | D74: Guayaquil | E74: 324 | G74: 45.18367081 | H74: 58.080863 | I74: 58.080863 | J74: 58.080863 | K74: 58.080863 | L74: 77.4266513 | M74: 100 | N74: 100 | O74: 100 | P74: 100 | Q74: 100 | R74: 100 | S74: 100 | T74: 100 | U74: 100 | V74: 100 | W74: 100 | X74: 100 | Y74: 100 | Z74: 100 | AA74: 100 | AB74: 100 | AC74: 100 | AD74: 100 | AE74: 100 | AF74: 100 | AG74: 100 | AH74: 100 | AI74: 100 | AJ74: 100 | AK74: 100 | AL74: 100 | AM74: 100 | AN74: 100 | AO74: 100 | AP74: 100 | AQ74: 100 | AR74: 100 | AS74: 100 | AT74: 100 | AU74: 100 | AV74: 100 | AW74: 100 | AX74: 100 | AY74: 100 | AZ74: 100 | BA74: 100 | BB74: 100 | BC74: 100 | BD74: 100 | BE74: 100 | BF74: 100 | BG74: 100 | BH74: 100
A75: Cerro Azul Alto (507) | B75: 02°09'05.10''S | C75: 79°59'01.80''W | D75: Guayaquil | E75: 398 | G75: 0 | H75: 0 | I75: 0 | J75: 0 | K75: 0 | L75: 0 | M75: 0 | N75: 0 | O75: 0 | P75: 0 | Q75: 0 | R75: 0 | S75: 0 | T75: 0 | U75: 0 | V75: 0 | W75: 0 | X75: 0 | Y75: 0 | Z75: 0 | AA75: 0 | AB75: 0 | AC75: 0 | AD75: 0 | AE75: 0 | AF75: 0 | AG75: 0 | AH75: 0 | AI75: 0 | AJ75: 0 | AK75: 0 | AL75: 0 | AM75: 0 | AN75: 0 | AO75: 0 | AP75: 0 | AQ75: 0 | AR75: 0 | AS75: 0 | AT75: 0 | AU75: 0 | AV75: 0 | AW75: 0 | AX75: 0 | AY75: 0 | AZ75: 0 | BA75: 0 | BB75: 0 | BC75: 0 | BD75: 0 | BE75: 0 | BF75: 0 | BG75: 0 | BH75: 0
A76: Cerro Balao | B76: 02°45'58.90''S | C76: 79°39'52.90''W | D76: Naranjal | E76: 490 | G76: 25.79438439 | H76: 25.79438439 | I76: 25.79438439 | J76: 25.79438439 | K76: 25.79438439 | L76: 25.79438439 | M76: 25 | N76: 25 | O76: 25 | P76: 25 | Q76: 25 | R76: 25 | S76: 25 | T76: 25 | U76: 25 | V76: 25 | W76: 25 | X76: 0 | Y76: 0 | Z76: 0 | AA76: 0 | AB76: 0 | AC76: 0 | AD76: 0 | AE76: 0 | AF76: 12.5 | AG76: 12.5 | AH76: 12.5 | AI76: 12.5 | AJ76: 12.5 | AK76: 12.5 | AL76: 12.5 | AM76: 12.5 | AN76: 12.5 | AO76: 12.5 | AP76: 12.5 | AQ76: 12.5 | AR76: 12.5 | AS76: 12.5 | AT76: 12.5 | AU76: 12.5 | AV76: 12.5 | AW76: 12.5 | AX76: 12.5 | AY76: 12.5 | AZ76: 12.5 | BA76: 12.5 | BB76: 12.5 | BC76: 12.5 | BD76: 12.5 | BE76: 0 | BF76: 0 | BG76: 0 | BH76: 0
A77: Cerro Bellavista | B77: 02°10'57.10''S | C77: 79°54'51.30''W | D77: Guayaquil | E77: 100 | G77: 0 | H77: 0 | I77: 0 | J77: 0 | K77: 0 | L77: 0 | M77: 0 | N77: 0 | O77: 0 | P77: 0 | Q77: 0 | R77: 0 | S77: 0 | T77: 0 | U77: 0 | V77: 0 | W77: 0 | X77: 0 | Y77: 0 | Z77: 0 | AA77: 0 | AB77: 0 | AC77: 0 | AD77: 0 | AE77: 0 | AF77: 0 | AG77: 0 | AH77: 0 | AI77: 0 | AJ77: 0 | AK77: 0 | AL77: 0 | AM77: 0 | AN77: 0 | AO77: 0 | AP77: 0 | AQ77: 0 | AR77: 0 | AS77: 0 | AT77: 0 | AU77: 0 | AV77: 0 | AW77: 0 | AX77: 0 | AY77: 0 | AZ77: 0 | BA77: 0 | BB77: 0 | BC77: 0 | BD77: 0 | BE77: 0 | BF77: 0 | BG77: 0 | BH77: 0
A78: Cerro El Carmen | B78: 02°10'47.60''S | C78: 79°52'50.00''W | D78: Guayaquil | E78: 80 | G78: 0 | H78: 0 | I78: 0 | J78: 0 | K78: 0 | L78: 0 | M78: 0 | N78: 0 | O78: 0 | P78: 0 | Q78: 0 | R78: 0 | S78: 0 | T78: 0 | U78: 0 | V78: 0 | W78: 0 | X78: 0 | Y78: 0 | Z78: 37.5 | AA78: 37.5 | AB78: 37.5 | AC78: 37.5 | AD78: 37.5 | AE78: 37.5 | AF78: 37.5 | AG78: 50 | AH78: 50 | AI78: 50 | AJ78: 50 | AK78: 50 | AL78: 50 | AM78: 50 | AN78: 50 | AO78: 50 | AP78: 50 | AQ78: 50 | AR78: 50 | AS78: 50 | AT78: 50 | AU78: 50 | AV78: 50 | AW78: 50 | AX78: 50 | AY78: 50 | AZ78: 50 | BA78: 50 | BB78: 50 | BC78: 50 | BD78: 75 | BE78: 62.5 | BF78: 62.5 | BG78: 62.5 | BH78: 62.5
A79: Cerro González | B79: 02°20'57.30''S | C79: 80°32'36.70''W | D79: Guayaquil | E79: 296 | G79: 83.8752474 | H79: 96.77243959 | I79: 96.77243959 | J79: 96.77243959 | K79: 96.77243959 | L79: 96.77243959 | M79: 100 | N79: 100 | O79: 100 | P79: 100 | Q79: 100 | R79: 100 | S79: 100 | T79: 100 | U79: 100 | V79: 100 | W79: 100 | X79: 100 | Y79: 100 | Z79: 100 | AA79: 100 | AB79: 100 | AC79: 100 | AD79: 100 | AE79: 100 | AF79: 100 | AG79: 100 | AH79: 100 | AI79: 100 | AJ79: 100 | AK79: 100 | AL79: 100 | AM79: 100 | AN79: 100 | AO79: 100 | AP79: 100 | AQ79: 100 | AR79: 100 | AS79: 100 | AT79: 100 | AU79: 100 | AV79: 100 | AW79: 100 | AX79: 100 | AY79: 100 | AZ79: 100 | BA79: 100 | BB79: 100 | BC79: 100 | BD79: 62.5 | BE79: 62.5 | BF79: 62.5 | BG79: 62.5 | BH79: 62.5
A80: Cerro Mapasingue | B80: 02°08'49.80''S | C80: 79°55'40.80''W | D80: Guayaquil | E80: 120 | G80: 0 | H80: 0 | I80: 0 | J80: 0 | K80: 0 | L80: 0 | M80: 0 | N80: 0 | O80: 0 | P80: 0 | Q80: 0 | R80: 0 | S80: 0 | T80: 0 | U80: 0 | V80: 0 | W80: 0 | X80: 0 | Y80: 0 | Z80: 0 | AA80: 0 | AB80: 0 | AC80: 0 | AD80: 0 | AE80: 0 | AF80: 0 | AG80: 0 | AH80: 0 | AI80: 0 | AJ80: 0 | AK80: 0 | AL80: 0 | AM80: 0 | AN80: 0 | AO80: 0 | AP80: 0 | AQ80: 0 | AR80: 0 | AS80: 0 | AT80: 0 | AU80: 0 | AV80: 0 | AW80: 0 | AX80: 0 | AY80: 0 | AZ80: 0 | BA80: 0 | BB80: 0 | BC80: 0 | BD80: 0 | BE80: 0 | BF80: 0 | BG80: 0 | BH80: 0
A81: Cerro San Eduardo | B81: 02°10'28.00''S | C81: 79°55'07.30''W | D81: Guayaquil | E81: 160 | G81: 0 | H81: 0 | I81: 0 | J81: 0 | K81: 0 | L81: 0 | M81: 0 | N81: 0 | O81: 0 | P81: 0 | Q81: 0 | R81: 0 | S81: 0 | T81: 0 | U81: 0 | V81: 0 | W81: 0 | X81: 0 | Y81: 0 | Z81: 0 | AA81: 0 | AB81: 0 | AC81: 0 | AD81: 0 | AE81: 0 | AF81: 0 | AG81: 0 | AH81: 0 | AI81: 0 | AJ81: 0 | AK81: 0 | AL81: 0 | AM81: 0 | AN81: 0 | AO81: 0 | AP81: 0 | AQ81: 0 | AR81: 0 | AS81: 0 | AT81: 0 | AU81: 0 | AV81: 0 | AW81: 0 | AX81: 0 | AY81: 0 | AZ81: 0 | BA81: 0 | BB81: 0 | BC81: 0 | BD81: 0 | BE81: 0 | BF81: 0 | BG81: 0 | BH81: 0
A82: Cerro Santa Ana | B82: 01°55'45.30''S | C82: 79°45'50.10''W | D82: San Borondón | E82: 300 | G82: 48.40796886 | H82: 48.40796886 | I82: 48.40796886 | J82: 48.40796886 | K82: 48.40796886 | L82: 48.40796886 | M82: 50 | N82: 50 | O82: 50 | P82: 50 | Q82: 50 | R82: 50 | S82: 50 | T82: 50 | U82: 50 | V82: 50 | W82: 50 | X82: 50 | Y82: 50 | Z82: 50 | AA82: 50 | AB82: 50 | AC82: 50 | AD82: 50 | AE82: 50 | AF82: 50 | AG82: 50 | AH82: 50 | AI82: 50 | AJ82: 50 | AK82: 50 | AL82: 50 | AM82: 50 | AN82: 50 | AO82: 50 | AP82: 50 | AQ82: 50 | AR82: 50 | AS82: 50 | AT82: 50 | AU82: 50 | AV82: 50 | AW82: 50 | AX82: 50 | AY82: 50 | AZ82: 50 | BA82: 50 | BB82: 50 | BC82: 50 | BD82: 50 | BE82: 50 | BF82: 50 | BG82: 50 | BH82: 50
A83: Cerro Tanzarte (Cruz Loma) | B83: 02°45'17.90''S | C83: 79°23'59.80''W | D83: Naranjal | E83: 2894 | G83: 0 | H83: 0 | I83: 0 | J83: 0 | K83: 0 | L83: 0 | M83: 0 | N83: 0 | O83: 0 | P83: 0 | Q83: 0 | R83: 0 | S83: 0 | T83: 0 | U83: 0 | V83: 0 | W83: 0 | X83: 0 | Y83: 0 | Z83: 0 | AA83: 0 | AB83: 0 | AC83: 0 | AD83: 0 | AE83: 0 | AF83: 0 | AG83: 0 | AH83: 0 | AI83: 0 | AJ83: 0 | AK83: 0 | AL83: 0 | AM83: 0 | AN83: 0 | AO83: 0 | AP83: 0 | AQ83: 0 | AR83: 0 | AS83: 0 | AT83: 0 | AU83: 0 | AV83: 0 | AW83: 0 | AX83: 0 | AY83: 0 | AZ83: 0 | BA83: 0 | BB83: 0 | BC83: 0 | BD83: 0 | BE83: 0 | BF83: 0 | BG83: 0 | BH83: 0
A84: Cerro Blanco | B84: 00°12'33.70''N | C84: 78°20'16.40''W | D84: Otavalo | E84: 3545 | G84: 83.8752474 | H84: 83.8752474 | I84: 83.8752474 | J84: 83.8752474 | K84: 83.8752474 | L84: 83.8752474 | M84: 87.5 | N84: 87.5 | O84: 87.5 | P84: 87.5 | Q84: 87.5 | R84: 87.5 | S84: 87.5 | T84: 87.5 | U84: 87.5 | V84: 87.5 | W84: 100 | X84: 100 | Y84: 100 | Z84: 100 | AA84: 100 | AB84: 100 | AC84: 100 | AD84: 100 | AE84: 100 | AF84: 100 | AG84: 100 | AH84: 100 | AI84: 100 | AJ84: 25 | AK84: 25 | AL84: 25 | AM84: 25 | AN84: 25 | AO84: 25 | AP84: 25 | AQ84: 25 | AR84: 25 | AS84: 25 | AT84: 25 | AU84: 25 | AV84: 25 | AW84: 25 | AX84: 25 | AY84: 25 | AZ84: 25 | BA84: 25 | BB84: 25 | BC84: 25 | BD84: 100 | BE84: 100 | BF84: 100 | BG84: 100 | BH84: 100
A85: Cerro Cotacachi | B85: 00°19'57.30''N | C85: 78°20'24.60''W | D85: Cotacachi | E85: 4047 | G85: 77.38315318 | H85: 77.38315318 | I85: 77.38315318 | J85: 77.38315318 | K85: 77.38315318 | L85: 77.38315318 | M85: 100 | N85: 100 | O85: 100 | P85: 100 | Q85: 100 | R85: 100 | S85: 100 | T85: 100 | U85: 100 | V85: 100 | W85: 100 | X85: 100 | Y85: 100 | Z85: 87.5 | AA85: 87.5 | AB85: 87.5 | AC85: 87.5 | AD85: 87.5 | AE85: 87.5 | AF85: 87.5 | AG85: 87.5 | AH85: 87.5 | AI85: 87.5 | AJ85: 87.5 | AK85: 87.5 | AL85: 87.5 | AM85: 87.5 | AN85: 87.5 | AO85: 87.5 | AP85: 87.5 | AQ85: 87.5 | AR85: 87.5 | AS85: 87.5 | AT85: 87.5 | AU85: 87.5 | AV85: 87.5 | AW85: 87.5 | AX85: 87.5 | AY85: 87.5 | AZ85: 87.5 | BA85: 87.5 | BB85: 87.5 | BC85: 87.5 | BD85: 100 | BE85: 100 | BF85: 100 | BG85: 100 | BH85: 100
A86: Cerro Calvario (Loja) | B86: 04°02'47.00''S | C86: 79°39'05.80''W | D86: Paltas | E86: 1935 | G86: 0 | H86: 0 | I86: 0 | J86: 0 | K86: 0 | L86: 0 | M86: 0 | N86: 0 | O86: 0 | P86: 0 | Q86: 0 | R86: 0 | S86: 0 | T86: 0 | U86: 0 | V86: 0 | W86: 0 | X86: 0 | Y86: 0 | Z86: 0 | AA86: 0 | AB86: 0 | AC86: 0 | AD86: 0 | AE86: 0 | AF86: 0 | AG86: 0 | AH86: 0 | AI86: 0 | AJ86: 0 | AK86: 0 | AL86: 0 | AM86: 0 | AN86: 0 | AO86: 0 | AP86: 0 | AQ86: 0 | AR86: 0 | AS86: 0 | AT86: 0 | AU86: 0 | AV86: 0 | AW86: 0 | AX86: 0 | AY86: 0 | AZ86: 0 | BA86: 0 | BB86: 0 | BC86: 0 | BD86: 0 | BE86: 0 | BF86: 0 | BG86: 0 | BH86: 0
A87: Cerro Colambo | B87: 04°14'14.60''S | C87: 79°23'45.40''W | D87: Gonzanamá | E87: 3103 | G87: 9.716392266 | H87: 9.716392266 | I87: 9.716392266 | J87: 9.716392266 | K87: 9.716392266 | L87: 9.716392266 | M87: 12.5 | N87: 12.5 | O87: 12.5 | P87: 12.5 | Q87: 12.5 | R87: 12.5 | S87: 12.5 | T87: 12.5 | U87: 12.5 | V87: 12.5 | W87: 12.5 | X87: 12.5 | Y87: 12.5 | Z87: 62.5 | AA87: 62.5 | AB87: 62.5 | AC87: 75 | AD87: 75 | AE87: 75 | AF87: 75 | AG87: 75 | AH87: 75 | AI87: 75 | AJ87: 87.5 | AK87: 87.5 | AL87: 87.5 | AM87: 87.5 | AN87: 87.5 | AO87: 87.5 | AP87: 87.5 | AQ87: 87.5 | AR87: 87.5 | AS87: 87.5 | AT87: 87.5 | AU87: 87.5 | AV87: 87.5 | AW87: 87.5 | AX87: 87.5 | AY87: 87.5 | AZ87: 87.5 | BA87: 87.5 | BB87: 87.5 | BC87: 87.5 | BD87: 87.5 | BE87: 75 | BF87: 75 | BG87: 75 | BH87: 87.5
A88: Cerro Guachaurco | B88: 04°02'11.70''S | C88: 79°52'19.40''W | D88: Paltas | E88: 3102 | G88: 83.8752474 | H88: 83.8752474 | I88: 83.8752474 | J88: 83.8752474 | K88: 83.8752474 | L88: 96.77243959 | M88: 100 | N88: 100 | O88: 100 | P88: 100 | Q88: 100 | R88: 100 | S88: 100 | T88: 100 | U88: 100 | V88: 100 | W88: 100 | X88: 100 | Y88: 100 | Z88: 100 | AA88: 100 | AB88: 100 | AC88: 100 | AD88: 100 | AE88: 100 | AF88: 100 | AG88: 100 | AH88: 100 | AI88: 100 | AJ88: 100 | AK88: 100 | AL88: 100 | AM88: 100 | AN88: 100 | AO88: 100 | AP88: 100 | AQ88: 100 | AR88: 100 | AS88: 100 | AT88: 100 | AU88: 100 | AV88: 100 | AW88: 100 | AX88: 100 | AY88: 100 | AZ88: 100 | BA88: 100 | BB88: 100 | BC88: 100 | BD88: 100 | BE88: 100 | BF88: 100 | BG88: 100 | BH88: 100
A89: Cerro Guanchuro | B89: 04°04'28.80''S | C89: 79°38'54.90''W | D89: Paltas | E89: 2446 | G89: 0 | H89: 0 | I89: 0 | J89: 0 | K89: 0 | L89: 0 | M89: 0 | N89: 0 | O89: 0 | P89: 0 | Q89: 0 | R89: 0 | S89: 0 | T89: 0 | U89: 0 | V89: 0 | W89: 0 | X89: 0 | Y89: 0 | Z89: 0 | AA89: 0 | AB89: 0 | AC89: 0 | AD89: 0 | AE89: 0 | AF89: 0 | AG89: 0 | AH89: 0 | AI89: 0 | AJ89: 0 | AK89: 0 | AL89: 0 | AM89: 0 | AN89: 0 | AO89: 0 | AP89: 0 | AQ89: 0 | AR89: 0 | AS89: 0 | AT89: 0 | AU89: 0 | AV89: 0 | AW89: 0 | AX89: 0 | AY89: 0 | AZ89: 0 | BA89: 0 | BB89: 0 | BC89: 0 | BD89: 0 | BE89: 0 | BF89: 0 | BG89: 0 | BH89: 0
A90: Cerro Huanchinchambo | B90: 04°01'25.20''S | C90: 79°14'45.90''W | D90: Catamayo | E90: 2849 | G90: 32.28647861 | H90: 32.28647861 | I90: 32.28647861 | J90: 32.28647861 | K90: 32.28647861 | L90: 45.18367081 | M90: 62.5 | N90: 62.5 | O90: 75 | P90: 75 | Q90: 75 | R90: 75 | S90: 75 | T90: 75 | U90: 75 | V90: 75 | W90: 87.5 | X90: 87.5 | Y90: 87.5 | Z90: 100 | AA90: 100 | AB90: 100 | AC90: 100 | AD90: 100 | AE90: 100 | AF90: 87.5 | AG90: 100 | AH90: 100 | AI90: 100 | AJ90: 87.5 | AK90: 87.5 | AL90: 87.5 | AM90: 87.5 | AN90: 87.5 | AO90: 87.5 | AP90: 87.5 | AQ90: 87.5 | AR90: 87.5 | AS90: 87.5 | AT90: 87.5 | AU90: 87.5 | AV90: 87.5 | AW90: 87.5 | AX90: 87.5 | AY90: 87.5 | AZ90: 87.5 | BA90: 87.5 | BB90: 87.5 | BC90: 87.5 | BD90: 87.5 | BE90: 87.5 | BF90: 87.5 | BG90: 87.5 | BH90: 87.5
A91: Cerro Motilon | B91: 04°04'57.10''S | C91: 79°56'22.20''W | D91: Celica | E91: 2663 | G91: -1.421085472e-14 | H91: -1.421085472e-14 | I91: -1.421085472e-14 | J91: -1.421085472e-14 | K91: -1.421085472e-14 | L91: -1.421085472e-14 | M91: 62.5 | N91: 62.5 | O91: 62.5 | P91: 62.5 | Q91: 62.5 | R91: 62.5 | S91: 62.5 | T91: 62.5 | U91: 62.5 | V91: 62.5 | W91: 62.5 | X91: 62.5 | Y91: 62.5 | Z91: 0 | AA91: 0 | AB91: 0 | AC91: 0 | AD91: 0 | AE91: 0 | AF91: 0 | AG91: 0 | AH91: 0 | AI91: 0 | AJ91: 0 | AK91: 0 | AL91: 0 | AM91: 0 | AN91: 0 | AO91: 0 | AP91: 0 | AQ91: 0 | AR91: 0 | AS91: 0 | AT91: 0 | AU91: 0 | AV91: 0 | AW91: 0 | AX91: 0 | AY91: 0 | AZ91: 0 | BA91: 0 | BB91: 0 | BC91: 0 | BD91: 0 | BE91: 0 | BF91: 0 | BG91: 0 | BH91: 0
A92: Cerro Ventanas | B92: 04°01'54.10''S | C92: 79°14'39.00''W | D92: Catamayo | E92: 2870 | G92: 32.28647861 | H92: 32.28647861 | I92: 32.28647861 | J92: 32.28647861 | K92: 32.28647861 | L92: 45.18367081 | M92: 62.5 | N92: 62.5 | O92: 75 | P92: 75 | Q92: 75 | R92: 75 | S92: 75 | T92: 75 | U92: 75 | V92: 75 | W92: 87.5 | X92: 87.5 | Y92: 87.5 | Z92: 100 | AA92: 100 | AB92: 100 | AC92: 100 | AD92: 100 | AE92: 100 | AF92: 100 | AG92: 100 | AH92: 100 | AI92: 100 | AJ92: 100 | AK92: 100 | AL92: 100 | AM92: 100 | AN92: 100 | AO92: 100 | AP92: 100 | AQ92: 100 | AR92: 100 | AS92: 100 | AT92: 100 | AU92: 100 | AV92: 100 | AW92: 100 | AX92: 100 | AY92: 100 | AZ92: 100 | BA92: 100 | BB92: 100 | BC92: 100 | BD92: 87.5 | BE92: 87.5 | BF92: 87.5 | BG92: 87.5 | BH92: 87.5
A93: Cerro Villonaco Alto | B93: 03°59'18.70''S | C93: 79°16'06.30''W | D93: Catamayo | E93: 2952 | G93: -1.421085472e-14 | H93: -1.421085472e-14 | I93: -1.421085472e-14 | J93: -1.421085472e-14 | K93: -1.421085472e-14 | L93: -1.421085472e-14 | M93: 50 | N93: 50 | O93: 50 | P93: 50 | Q93: 50 | R93: 50 | S93: 50 | T93: 50 | U93: 50 | V93: 50 | W93: 50 | X93: 50 | Y93: 50 | Z93: 0 | AA93: 0 | AB93: 0 | AC93: 0 | AD93: 0 | AE93: 0 | AF93: 0 | AG93: 0 | AH93: 0 | AI93: 0 | AJ93: 12.5 | AK93: 12.5 | AL93: 12.5 | AM93: 12.5 | AN93: 12.5 | AO93: 12.5 | AP93: 12.5 | AQ93: 12.5 | AR93: 12.5 | AS93: 12.5 | AT93: 12.5 | AU93: 12.5 | AV93: 12.5 | AW93: 12.5 | AX93: 12.5 | AY93: 12.5 | AZ93: 12.5 | BA93: 12.5 | BB93: 12.5 | BC93: 12.5 | BD93: 12.5 | BE93: 0 | BF93: 0 | BG93: 0 | BH93: 12.5
A94: Pucará | B94: 04°05'47.80''S | C94: 79°56'17.70''W | D94: Celica | E94: 2479 | G94: 0 | H94: 0 | I94: 0 | J94: 0 | K94: 0 | L94: 0 | M94: 0 | N94: 0 | O94: 0 | P94: 0 | Q94: 0 | R94: 0 | S94: 0 | T94: 0 | U94: 0 | V94: 0 | W94: 0 | X94: 0 | Y94: 0 | Z94: 0 | AA94: 0 | AB94: 0 | AC94: 0 | AD94: 0 | AE94: 0 | AF94: 0 | AG94: 0 | AH94: 0 | AI94: 0 | AJ94: 0 | AK94: 0 | AL94: 0 | AM94: 0 | AN94: 0 | AO94: 0 | AP94: 0 | AQ94: 0 | AR94: 0 | AS94: 0 | AT94: 0 | AU94: 0 | AV94: 0 | AW94: 0 | AX94: 0 | AY94: 0 | AZ94: 0 | BA94: 0 | BB94: 0 | BC94: 0 | BD94: 0 | BE94: 0 | BF94: 0 | BG94: 0 | BH94: 0
A95: Saraguro | B95: 03°37'55.20''S | C95: 79°14'37.50''W | D95: Saraguro | E95: 2740 | G95: 0 | H95: 0 | I95: 0 | J95: 0 | K95: 0 | L95: 0 | M95: 0 | N95: 0 | O95: 0 | P95: 0 | Q95: 0 | R95: 0 | S95: 0 | T95: 0 | U95: 0 | V95: 0 | W95: 0 | X95: 0 | Y95: 0 | Z95: 0 | AA95: 0 | AB95: 0 | AC95: 0 | AD95: 0 | AE95: 0 | AF95: 0 | AG95: 0 | AH95: 0 | AI95: 0 | AJ95: 0 | AK95: 0 | AL95: 0 | AM95: 0 | AN95: 0 | AO95: 0 | AP95: 0 | AQ95: 0 | AR95: 0 | AS95: 0 | AT95: 0 | AU95: 0 | AV95: 0 | AW95: 0 | AX95: 0 | AY95: 0 | AZ95: 0 | BA95: 0 | BB95: 0 | BC95: 0 | BD95: 0 | BE95: 0 | BF95: 0 | BG95: 0 | BH95: 0
A96: Cerro Corozo | B96: 01°29'23.10''S | C96: 80°31'27.00''W | D96: Jipijapa | E96: 774 | G96: 48.36447074 | H96: 48.36447074 | I96: 48.36447074 | J96: 48.36447074 | K96: 48.36447074 | L96: 48.36447074 | M96: 50 | N96: 50 | O96: 50 | P96: 50 | Q96: 50 | R96: 50 | S96: 50 | T96: 50 | U96: 50 | V96: 50 | W96: 50 | X96: 50 | Y96: 50 | Z96: 62.5 | AA96: 62.5 | AB96: 62.5 | AC96: 62.5 | AD96: 62.5 | AE96: 62.5 | AF96: 62.5 | AG96: 62.5 | AH96: 62.5 | AI96: 62.5 | AJ96: 62.5 | AK96: 62.5 | AL96: 62.5 | AM96: 62.5 | AN96: 62.5 | AO96: 62.5 | AP96: 62.5 | AQ96: 62.5 | AR96: 62.5 | AS96: 62.5 | AT96: 62.5 | AU96: 62.5 | AV96: 62.5 | AW96: 62.5 | AX96: 62.5 | AY96: 62.5 | AZ96: 62.5 | BA96: 62.5 | BB96: 62.5 | BC96: 62.5 | BD96: 62.5 | BE96: 62.5 | BF96: 62.5 | BG96: 62.5 | BH96: 62.5
A97: Cerro de Hojas | B97: 01°02'40.10''S | C97: 80°32'38.50''W | D97: Portoviejo | E97: 674 | G97: 70.9780552 | H97: 70.9780552 | I97: 70.9780552 | J97: 70.9780552 | K97: 70.9780552 | L97: 70.9780552 | M97: 75 | N97: 75 | O97: 75 | P97: 75 | Q97: 75 | R97: 75 | S97: 100 | T97: 100 | U97: 100 | V97: 100 | W97: 100 | X97: 100 | Y97: 100 | Z97: 100 | AA97: 100 | AB97: 100 | AC97: 100 | AD97: 100 | AE97: 100 | AF97: 100 | AG97: 100 | AH97: 100 | AI97: 100 | AJ97: 100 | AK97: 100 | AL97: 100 | AM97: 100 | AN97: 100 | AO97: 100 | AP97: 100 | AQ97: 100 | AR97: 100 | AS97: 100 | AT97: 100 | AU97: 100 | AV97: 100 | AW97: 100 | AX97: 100 | AY97: 100 | AZ97: 100 | BA97: 100 | BB97: 100 | BC97: 100 | BD97: 100 | BE97: 87.5 | BF97: 87.5 | BG97: 87.5 | BH97: 87.5
A98: Cerro Guayas | B98: 00°41'18.10''S | C98: 80°05'27.90''W | D98: Chone | E98: 128 | G98: 22.61358446 | H98: 22.61358446 | I98: 22.61358446 | J98: 22.61358446 | K98: 22.61358446 | L98: 22.61358446 | M98: 37.5 | N98: 37.5 | O98: 12.5 | P98: 12.5 | Q98: 12.5 | R98: 12.5 | S98: 50 | T98: 50 | U98: 50 | V98: 50 | W98: 50 | X98: 50 | Y98: 50 | Z98: 37.5 | AA98: 37.5 | AB98: 37.5 | AC98: 37.5 | AD98: 37.5 | AE98: 62.5 | AF98: 62.5 | AG98: 62.5 | AH98: 62.5 | AI98: 62.5 | AJ98: 62.5 | AK98: 62.5 | AL98: 62.5 | AM98: 62.5 | AN98: 62.5 | AO98: 62.5 | AP98: 62.5 | AQ98: 62.5 | AR98: 62.5 | AS98: 62.5 | AT98: 62.5 | AU98: 62.5 | AV98: 62.5 | AW98: 62.5 | AX98: 62.5 | AY98: 62.5 | AZ98: 62.5 | BA98: 62.5 | BB98: 62.5 | BC98: 62.5 | BD98: 0 | BE98: 0 | BF98: 0 | BG98: 0 | BH98: 0
A99: Cerro Jama 1 | B99: 00°12'29.40''S | C99: 80°16'08.70''W | D99: Jama | E99: 93 | G99: 0 | H99: 0 | I99: 0 | J99: 0 | K99: 0 | L99: 0 | M99: 0 | N99: 0 | O99: 0 | P99: 0 | Q99: 0 | R99: 0 | S99: 0 | T99: 0 | U99: 0 | V99: 0 | W99: 0 | X99: 0 | Y99: 0 | Z99: 0 | AA99: 0 | AB99: 0 | AC99: 0 | AD99: 0 | AE99: 0 | AF99: 0 | AG99: 0 | AH99: 0 | AI99: 0 | AJ99: 0 | AK99: 0 | AL99: 0 | AM99: 0 | AN99: 0 | AO99: 0 | AP99: 0 | AQ99: 0 | AR99: 0 | AS99: 0 | AT99: 0 | AU99: 0 | AV99: 0 | AW99: 0 | AX99: 0 | AY99: 0 | AZ99: 0 | BA99: 0 | BB99: 0 | BC99: 0 | BD99: 0 | BE99: 0 | BF99: 0 | BG99: 0 | BH99: 0
A100: Cerro Jama 2 | B100: 00°12'58.90''S | C100: 80°16'44.50''W | D100: Jama | E100: 140 | G100: 0 | H100: 0 | I100: 0 | J100: 0 | K100: 0 | L100: 0 | M100: 0 | N100: 0 | O100: 0 | P100: 0 | Q100: 0 | R100: 0 | S100: 0 | T100: 0 | U100: 0 | V100: 0 | W100: 0 | X100: 0 | Y100: 0 | Z100: 0 | AA100: 0 | AB100: 0 | AC100: 0 | AD100: 0 | AE100: 0 | AF100: 0 | AG100: 0 | AH100: 0 | AI100: 0 | AJ100: 0 | AK100: 0 | AL100: 0 | AM100: 0 | AN100: 0 | AO100: 0 | AP100: 0 | AQ100: 0 | AR100: 0 | AS100: 0 | AT100: 0 | AU100: 0 | AV100: 0 | AW100: 0 | AX100: 0 | AY100: 0 | AZ100: 0 | BA100: 0 | BB100: 0 | BC100: 0 | BD100: 0 | BE100: 0 | BF100: 0 | BG100: 0 | BH100: 0
A101: Cerro La Crespa | B101: 00°20'07.10''S | C101: 79°45'34.70''W | D101: Flavio Alfaro | E101: 480 | G101: 0 | H101: 0 | I101: 0 | J101: 0 | K101: 0 | L101: 0 | M101: 0 | N101: 0 | O101: 0 | P101: 0 | Q101: 0 | R101: 0 | S101: 0 | T101: 0 | U101: 0 | V101: 0 | W101: 0 | X101: 0 | Y101: 0 | Z101: 50 | AA101: 50 | AB101: 50 | AC101: 50 | AD101: 50 | AE101: 50 | AF101: 50 | AG101: 50 | AH101: 50 | AI101: 50 | AJ101: 50 | AK101: 50 | AL101: 50 | AM101: 50 | AN101: 50 | AO101: 50 | AP101: 50 | AQ101: 50 | AR101: 50 | AS101: 50 | AT101: 50 | AU101: 50 | AV101: 50 | AW101: 50 | AX101: 50 | AY101: 50 | AZ101: 50 | BA101: 50 | BB101: 50 | BC101: 50 | BD101: 50 | BE101: 50 | BF101: 50 | BG101: 50 | BH101: 75
A102: Cerro Nueve | B102: 00°16'05.30''S | C102: 80°12'29.90''W | D102: Jama | E102: 652 | G102: 0 | H102: 0 | I102: 0 | J102: 0 | K102: 0 | L102: 0 | M102: 0 | N102: 0 | O102: 0 | P102: 0 | Q102: 0 | R102: 0 | S102: 0 | T102: 0 | U102: 0 | V102: 0 | W102: 0 | X102: 0 | Y102: 0 | Z102: 37.5 | AA102: 37.5 | AB102: 37.5 | AC102: 37.5 | AD102: 37.5 | AE102: 37.5 | AF102: 37.5 | AG102: 37.5 | AH102: 37.5 | AI102: 37.5 | AJ102: 62.5 | AK102: 62.5 | AL102: 62.5 | AM102: 62.5 | AN102: 62.5 | AO102: 62.5 | AP102: 62.5 | AQ102: 62.5 | AR102: 62.5 | AS102: 62.5 | AT102: 62.5 | AU102: 62.5 | AV102: 62.5 | AW102: 62.5 | AX102: 62.5 | AY102: 62.5 | AZ102: 62.5 | BA102: 62.5 | BB102: 62.5 | BC102: 62.5 | BD102: 62.5 | BE102: 37.5 | BF102: 37.5 | BG102: 37.5 | BH102: 62.5
A103: Cerro Puerto Alto | B103: 00°21'36.30''S | C103: 79°52'00.40''W | D103: Flavio Alfaro | E103: 410 | G103: 0 | H103: 0 | I103: 0 | J103: 0 | K103: 0 | L103: 0 | M103: 0 | N103: 0 | O103: 0 | P103: 0 | Q103: 0 | R103: 0 | S103: 0 | T103: 0 | U103: 0 | V103: 0 | W103: 0 | X103: 0 | Y103: 0 | Z103: 0 | AA103: 0 | AB103: 0 | AC103: 0 | AD103: 0 | AE103: 0 | AF103: 0 | AG103: 0 | AH103: 0 | AI103: 0 | AJ103: 0 | AK103: 0 | AL103: 0 | AM103: 0 | AN103: 0 | AO103: 0 | AP103: 0 | AQ103: 0 | AR103: 0 | AS103: 0 | AT103: 0 | AU103: 0 | AV103: 0 | AW103: 0 | AX103: 0 | AY103: 0 | AZ103: 0 | BA103: 0 | BB103: 0 | BC103: 0 | BD103: 0 | BE103: 0 | BF103: 0 | BG103: 0 | BH103: 0
A104: Loma de Viento | B104: 00°42'28.10''S | C104: 80°24'28.80''W | D104: Sucre | E104: 402 | G104: 22.61358446 | H104: 22.61358446 | I104: 22.61358446 | J104: 22.61358446 | K104: 22.61358446 | L104: 22.61358446 | M104: 37.5 | N104: 37.5 | O104: 12.5 | P104: 12.5 | Q104: 12.5 | R104: 12.5 | S104: 12.5 | T104: 12.5 | U104: 12.5 | V104: 12.5 | W104: 12.5 | X104: 12.5 | Y104: 12.5 | Z104: 12.5 | AA104: 12.5 | AB104: 12.5 | AC104: 12.5 | AD104: 12.5 | AE104: 12.5 | AF104: 12.5 | AG104: 12.5 | AH104: 12.5 | AI104: 12.5 | AJ104: 50 | AK104: 50 | AL104: 50 | AM104: 50 | AN104: 50 | AO104: 50 | AP104: 50 | AQ104: 50 | AR104: 50 | AS104: 50 | AT104: 50 | AU104: 50 | AV104: 50 | AW104: 50 | AX104: 50 | AY104: 50 | AZ104: 50 | BA104: 50 | BB104: 50 | BC104: 50 | BD104: 50 | BE104: 25 | BF104: 25 | BG104: 25 | BH104: 50
A105: Mirador de Bahía de Caráquez | B105: 00°36'28.00''S | C105: 80°25'34.70''W | D105: Sucre | E105: 102 | G105: -1.421085472e-14 | H105: -1.421085472e-14 | I105: -1.421085472e-14 | J105: -1.421085472e-14 | K105: -1.421085472e-14 | L105: -1.421085472e-14 | M105: 12.5 | N105: 12.5 | O105: 12.5 | P105: 12.5 | Q105: 12.5 | R105: 12.5 | S105: 12.5 | T105: 12.5 | U105: 12.5 | V105: 12.5 | W105: 12.5 | X105: 12.5 | Y105: 12.5 | Z105: 0 | AA105: 0 | AB105: 0 | AC105: 0 | AD105: 0 | AE105: 0 | AF105: 0 | AG105: 0 | AH105: 0 | AI105: 0 | AJ105: 0 | AK105: 0 | AL105: 0 | AM105: 0 | AN105: 0 | AO105: 0 | AP105: 0 | AQ105: 0 | AR105: 0 | AS105: 0 | AT105: 0 | AU105: 0 | AV105: 0 | AW105: 0 | AX105: 0 | AY105: 0 | AZ105: 0 | BA105: 0 | BB105: 0 | BC105: 0 | BD105: 0 | BE105: 0 | BF105: 0 | BG105: 0 | BH105: 0
A106: Cerro Bosco | B106: 03°00'01.00''S | C106: 78°30'34.90''W | D106: Limón Indanza | E106: 2404 | G106: 22.57008634 | H106: 22.57008634 | I106: 22.57008634 | J106: 22.57008634 | K106: 22.57008634 | L106: 22.57008634 | M106: 25 | N106: 25 | O106: 25 | P106: 25 | Q106: 25 | R106: 25 | S106: 25 | T106: 25 | U106: 25 | V106: 25 | W106: 25 | X106: 25 | Y106: 25 | Z106: 25 | AA106: 25 | AB106: 25 | AC106: 25 | AD106: 25 | AE106: 25 | AF106: 25 | AG106: 25 | AH106: 25 | AI106: 25 | AJ106: 25 | AK106: 25 | AL106: 25 | AM106: 25 | AN106: 25 | AO106: 25 | AP106: 25 | AQ106: 25 | AR106: 25 | AS106: 25 | AT106: 25 | AU106: 25 | AV106: 25 | AW106: 25 | AX106: 25 | AY106: 25 | AZ106: 25 | BA106: 25 | BB106: 25 | BC106: 25 | BD106: 37.5 | BE106: 37.5 | BF106: 37.5 | BG106: 37.5 | BH106: 37.5
A107: Cerro Quilamo | B107: 02°18'14.40''S | C107: 78°08'26.80''W | D107: Morona | E107: 1461 | G107: 48.36447074 | H107: 48.36447074 | I107: 48.36447074 | J107: 48.36447074 | K107: 48.36447074 | L107: 48.36447074 | M107: 75 | N107: 75 | O107: 75 | P107: 75 | Q107: 75 | R107: 75 | S107: 75 | T107: 75 | U107: 75 | V107: 75 | W107: 75 | X107: 75 | Y107: 75 | Z107: 50 | AA107: 50 | AB107: 50 | AC107: 50 | AD107: 50 | AE107: 50 | AF107: 50 | AG107: 50 | AH107: 50 | AI107: 50 | AJ107: 50 | AK107: 50 | AL107: 50 | AM107: 50 | AN107: 50 | AO107: 50 | AP107: 50 | AQ107: 50 | AR107: 50 | AS107: 50 | AT107: 50 | AU107: 50 | AV107: 50 | AW107: 50 | AX107: 50 | AY107: 50 | AZ107: 50 | BA107: 50 | BB107: 50 | BC107: 50 | BD107: 62.5 | BE107: 62.5 | BF107: 62.5 | BG107: 62.5 | BH107: 62.5
A108: Cerro Condijua | B108: 00°29'01.60''S | C108: 77°54'06.90''W | D108: Quijos | E108: 2526 | G108: 96.77243959 | H108: 96.77243959 | I108: 96.77243959 | J108: 96.77243959 | K108: 96.77243959 | L108: 96.77243959 | M108: 100 | N108: 100 | O108: 100 | P108: 100 | Q108: 100 | R108: 100 | S108: 100 | T108: 100 | U108: 100 | V108: 100 | W108: 100 | X108: 100 | Y108: 100 | Z108: 100 | AA108: 100 | AB108: 100 | AC108: 100 | AD108: 100 | AE108: 100 | AF108: 100 | AG108: 100 | AH108: 100 | AI108: 100 | AJ108: 100 | AK108: 100 | AL108: 100 | AM108: 100 | AN108: 100 | AO108: 100 | AP108: 100 | AQ108: 100 | AR108: 100 | AS108: 100 | AT108: 100 | AU108: 100 | AV108: 100 | AW108: 100 | AX108: 100 | AY108: 100 | AZ108: 100 | BA108: 100 | BB108: 100 | BC108: 100 | BD108: 100 | BE108: 100 | BF108: 100 | BG108: 100 | BH108: 100
A109: Cerro Huacamayos | B109: 00°37'26.06''S | C109: 77°50'28.60''W | D109: Archidona | E109: 2300 | G109: 38.69157659 | H109: 38.69157659 | I109: 38.69157659 | J109: 38.69157659 | K109: 38.69157659 | L109: 38.69157659 | M109: 37.5 | N109: 37.5 | O109: 37.5 | P109: 37.5 | Q109: 37.5 | R109: 37.5 | S109: 37.5 | T109: 37.5 | U109: 37.5 | V109: 37.5 | W109: 37.5 | X109: 37.5 | Y109: 37.5 | Z109: 37.5 | AA109: 37.5 | AB109: 37.5 | AC109: 37.5 | AD109: 37.5 | AE109: 37.5 | AF109: 37.5 | AG109: 37.5 | AH109: 37.5 | AI109: 37.5 | AJ109: 37.5 | AK109: 37.5 | AL109: 37.5 | AM109: 37.5 | AN109: 37.5 | AO109: 37.5 | AP109: 37.5 | AQ109: 37.5 | AR109: 37.5 | AS109: 37.5 | AT109: 37.5 | AU109: 37.5 | AV109: 37.5 | AW109: 37.5 | AX109: 37.5 | AY109: 37.5 | AZ109: 37.5 | BA109: 37.5 | BB109: 37.5 | BC109: 37.5 | BD109: 37.5 | BE109: 37.5 | BF109: 37.5 | BG109: 37.5 | BH109: 37.5
A110: Cerro Tres Cruces | B110: 00°16'22.60''S | C110: 77°45'53.80''W | D110: El Chaco | E110: 1980 | G110: 96.77243959 | H110: 96.77243959 | I110: 96.77243959 | J110: 96.77243959 | K110: 96.77243959 | L110: 96.77243959 | M110: 100 | N110: 100 | O110: 100 | P110: 100 | Q110: 100 | R110: 100 | S110: 100 | T110: 100 | U110: 100 | V110: 100 | W110: 100 | X110: 100 | Y110: 100 | Z110: 100 | AA110: 100 | AB110: 100 | AC110: 100 | AD110: 100 | AE110: 100 | AF110: 100 | AG110: 100 | AH110: 100 | AI110: 100 | AJ110: 100 | AK110: 100 | AL110: 100 | AM110: 100 | AN110: 100 | AO110: 100 | AP110: 100 | AQ110: 100 | AR110: 100 | AS110: 100 | AT110: 100 | AU110: 100 | AV110: 100 | AW110: 100 | AX110: 100 | AY110: 100 | AZ110: 100 | BA110: 100 | BB110: 100 | BC110: 100 | BD110: 100 | BE110: 100 | BF110: 100 | BG110: 100 | BH110: 100
A111: Papallacta | B111: 00°22'43.70''S | C111: 78°08'48.60''W | D111: Quijos | E111: 3373 | G111: 0 | H111: 0 | I111: 0 | J111: 0 | K111: 0 | L111: 0 | M111: 0 | N111: 0 | O111: 0 | P111: 0 | Q111: 0 | R111: 0 | S111: 0 | T111: 0 | U111: 0 | V111: 0 | W111: 0 | X111: 0 | Y111: 0 | Z111: 0 | AA111: 0 | AB111: 0 | AC111: 0 | AD111: 0 | AE111: 0 | AF111: 0 | AG111: 0 | AH111: 0 | AI111: 0 | AJ111: 0 | AK111: 0 | AL111: 0 | AM111: 0 | AN111: 0 | AO111: 0 | AP111: 0 | AQ111: 0 | AR111: 0 | AS111: 0 | AT111: 0 | AU111: 0 | AV111: 0 | AW111: 0 | AX111: 0 | AY111: 0 | AZ111: 0 | BA111: 0 | BB111: 0 | BC111: 0 | BD111: 0 | BE111: 0 | BF111: 0 | BG111: 0 | BH111: 0
A112: Cerro Lumbaqui Alto | B112: 00°00'30.40''N | C112: 77°19'15.80''W | D112: Orellana | E112: 1088 | G112: 61.30516105 | H112: 35.51077666 | I112: 35.51077666 | J112: 35.51077666 | K112: 35.51077666 | L112: 35.51077666 | M112: 75 | N112: 75 | O112: 75 | P112: 75 | Q112: 75 | R112: 75 | S112: 75 | T112: 75 | U112: 75 | V112: 75 | W112: 75 | X112: 75 | Y112: 75 | Z112: 62.5 | AA112: 62.5 | AB112: 62.5 | AC112: 62.5 | AD112: 62.5 | AE112: 62.5 | AF112: 62.5 | AG112: 62.5 | AH112: 62.5 | AI112: 62.5 | AJ112: 62.5 | AK112: 62.5 | AL112: 62.5 | AM112: 62.5 | AN112: 62.5 | AO112: 62.5 | AP112: 62.5 | AQ112: 62.5 | AR112: 62.5 | AS112: 62.5 | AT112: 62.5 | AU112: 62.5 | AV112: 62.5 | AW112: 62.5 | AX112: 62.5 | AY112: 62.5 | AZ112: 62.5 | BA112: 62.5 | BB112: 62.5 | BC112: 62.5 | BD112: 62.5 | BE112: 62.5 | BF112: 62.5 | BG112: 62.5 | BH112: 62.5
A113: Cerro Lumbaqui Bajo | B113: 00°01'47.70''N | C113: 77°19'07.90''W | D113: Orellana | E113: 998 | G113: 58.080863 | H113: 45.18367081 | I113: 45.18367081 | J113: 45.18367081 | K113: 45.18367081 | L113: 45.18367081 | M113: 50 | N113: 50 | O113: 50 | P113: 50 | Q113: 50 | R113: 50 | S113: 50 | T113: 50 | U113: 50 | V113: 50 | W113: 50 | X113: 50 | Y113: 50 | Z113: 50 | AA113: 50 | AB113: 50 | AC113: 50 | AD113: 50 | AE113: 50 | AF113: 50 | AG113: 50 | AH113: 50 | AI113: 50 | AJ113: 50 | AK113: 50 | AL113: 50 | AM113: 50 | AN113: 50 | AO113: 50 | AP113: 50 | AQ113: 50 | AR113: 50 | AS113: 50 | AT113: 50 | AU113: 50 | AV113: 50 | AW113: 50 | AX113: 50 | AY113: 50 | AZ113: 50 | BA113: 50 | BB113: 50 | BC113: 50 | BD113: 50 | BE113: 50 | BF113: 50 | BG113: 50 | BH113: 50
A114: Cerro Abitagua | B114: 01°24'53.90''S | C114: 78°08'31.00''W | D114: Mera | E114: 2250 | G114: 70.9780552 | H114: 70.9780552 | I114: 70.9780552 | J114: 70.9780552 | K114: 70.9780552 | L114: 70.9780552 | M114: 100 | N114: 100 | O114: 100 | P114: 100 | Q114: 100 | R114: 100 | S114: 100 | T114: 100 | U114: 100 | V114: 100 | W114: 100 | X114: 100 | Y114: 100 | Z114: 75 | AA114: 75 | AB114: 75 | AC114: 75 | AD114: 75 | AE114: 75 | AF114: 75 | AG114: 75 | AH114: 75 | AI114: 75 | AJ114: 75 | AK114: 75 | AL114: 75 | AM114: 75 | AN114: 75 | AO114: 75 | AP114: 75 | AQ114: 75 | AR114: 75 | AS114: 75 | AT114: 75 | AU114: 75 | AV114: 75 | AW114: 75 | AX114: 75 | AY114: 75 | AZ114: 75 | BA114: 75 | BB114: 75 | BC114: 75 | BD114: 50 | BE114: 50 | BF114: 50 | BG114: 50 | BH114: 50
A115: Cerro Calvario | B115: 01°31'14.30''S | C115: 77°54'28.50''W | D115: Pastaza | E115: 1171 | G115: 87.09954544 | H115: 87.09954544 | I115: 87.09954544 | J115: 87.09954544 | K115: 87.09954544 | L115: 87.09954544 | M115: 87.5 | N115: 87.5 | O115: 87.5 | P115: 87.5 | Q115: 87.5 | R115: 87.5 | S115: 87.5 | T115: 87.5 | U115: 87.5 | V115: 87.5 | W115: 87.5 | X115: 87.5 | Y115: 87.5 | Z115: 87.5 | AA115: 87.5 | AB115: 87.5 | AC115: 87.5 | AD115: 87.5 | AE115: 87.5 | AF115: 87.5 | AG115: 87.5 | AH115: 87.5 | AI115: 87.5 | AJ115: 87.5 | AK115: 87.5 | AL115: 87.5 | AM115: 87.5 | AN115: 87.5 | AO115: 87.5 | AP115: 87.5 | AQ115: 87.5 | AR115: 87.5 | AS115: 87.5 | AT115: 87.5 | AU115: 87.5 | AV115: 87.5 | AW115: 87.5 | AX115: 87.5 | AY115: 87.5 | AZ115: 87.5 | BA115: 87.5 | BB115: 87.5 | BC115: 87.5 | BD115: 100 | BE115: 100 | BF115: 100 | BG115: 100 | BH115: 100
A116: Santa Clara(Km.35 Vía Puyo - Tena) | B116: 01°17'29.30''S | C116: 77°52'36.80''W | D116: Santa Clara | E116: 1080 | G116: 80.65094935 | H116: 90.32384349 | I116: 90.32384349 | J116: 90.32384349 | K116: 90.32384349 | L116: 90.32384349 | M116: 100 | N116: 100 | O116: 100 | P116: 100 | Q116: 100 | R116: 100 | S116: 100 | T116: 100 | U116: 100 | V116: 100 | W116: 100 | X116: 100 | Y116: 100 | Z116: 100 | AA116: 100 | AB116: 100 | AC116: 100 | AD116: 100 | AE116: 100 | AF116: 100 | AG116: 100 | AH116: 100 | AI116: 100 | AJ116: 100 | AK116: 100 | AL116: 100 | AM116: 100 | AN116: 100 | AO116: 100 | AP116: 100 | AQ116: 100 | AR116: 100 | AS116: 100 | AT116: 100 | AU116: 100 | AV116: 100 | AW116: 100 | AX116: 100 | AY116: 100 | AZ116: 100 | BA116: 100 | BB116: 100 | BC116: 100 | BD116: 100 | BE116: 100 | BF116: 100 | BG116: 100 | BH116: 100
A117: Cerro Cayambe | B117: 00°03'58.00''N | C117: 77°59'25.80''W | D117: Cayambe | E117: 4216 | G117: 12.8971922 | H117: 12.8971922 | I117: 12.8971922 | J117: 12.8971922 | K117: 12.8971922 | L117: 12.8971922 | M117: 12.5 | N117: 12.5 | O117: 12.5 | P117: 12.5 | Q117: 12.5 | R117: 12.5 | S117: 12.5 | T117: 12.5 | U117: 12.5 | V117: 12.5 | W117: 12.5 | X117: 12.5 | Y117: 12.5 | Z117: 12.5 | AA117: 12.5 | AB117: 12.5 | AC117: 12.5 | AD117: 12.5 | AE117: 12.5 | AF117: 12.5 | AG117: 12.5 | AH117: 12.5 | AI117: 12.5 | AJ117: 12.5 | AK117: 12.5 | AL117: 12.5 | AM117: 12.5 | AN117: 12.5 | AO117: 12.5 | AP117: 12.5 | AQ117: 12.5 | AR117: 12.5 | AS117: 12.5 | AT117: 12.5 | AU117: 12.5 | AV117: 12.5 | AW117: 12.5 | AX117: 12.5 | AY117: 12.5 | AZ117: 12.5 | BA117: 12.5 | BB117: 12.5 | BC117: 12.5 | BD117: 12.5 | BE117: 12.5 | BF117: 12.5 | BG117: 12.5 | BH117: 12.5
A118: Cerro Cruz Loma | B118: 00°11'17.50''S | C118: 78°32'06.70''W | D118: Quito | E118: 3990 | G118: 96.77243959 | H118: 96.77243959 | I118: 96.77243959 | J118: 96.77243959 | K118: 96.77243959 | L118: 96.77243959 | M118: 100 | N118: 100 | O118: 100 | P118: 100 | Q118: 100 | R118: 100 | S118: 100 | T118: 100 | U118: 100 | V118: 100 | W118: 100 | X118: 100 | Y118: 100 | Z118: 100 | AA118: 100 | AB118: 100 | AC118: 100 | AD118: 100 | AE118: 100 | AF118: 100 | AG118: 100 | AH118: 100 | AI118: 100 | AJ118: 100 | AK118: 100 | AL118: 100 | AM118: 100 | AN118: 100 | AO118: 100 | AP118: 100 | AQ118: 100 | AR118: 100 | AS118: 100 | AT118: 100 | AU118: 100 | AV118: 100 | AW118: 100 | AX118: 100 | AY118: 100 | AZ118: 100 | BA118: 100 | BB118: 100 | BC118: 100 | BD118: 100 | BE118: 100 | BF118: 100 | BG118: 100 | BH118: 100
A119: Cerro Ilumbisi | B119: 00°13'40.60''S | C119: 78°28'25.70''W | D119: Quito | E119: 3040 | G119: 0 | H119: 0 | I119: 0 | J119: 0 | K119: 0 | L119: 0 | M119: 0 | N119: 0 | O119: 0 | P119: 0 | Q119: 0 | R119: 0 | S119: 0 | T119: 0 | U119: 0 | V119: 0 | W119: 0 | X119: 0 | Y119: 0 | Z119: 0 | AA119: 0 | AB119: 0 | AC119: 0 | AD119: 0 | AE119: 0 | AF119: 0 | AG119: 0 | AH119: 0 | AI119: 0 | AJ119: 0 | AK119: 0 | AL119: 0 | AM119: 0 | AN119: 0 | AO119: 0 | AP119: 0 | AQ119: 0 | AR119: 0 | AS119: 0 | AT119: 0 | AU119: 0 | AV119: 0 | AW119: 0 | AX119: 0 | AY119: 0 | AZ119: 0 | BA119: 0 | BB119: 0 | BC119: 0 | BD119: 0 | BE119: 0 | BF119: 0 | BG119: 0 | BH119: 0
A120: Cerro La Virgen | B120: 00°19'06.90''S | C120: 78°11'27.60''W | D120: Quito | E120: 4412 | G120: 96.77243959 | H120: 96.77243959 | I120: 96.77243959 | J120: 96.77243959 | K120: 96.77243959 | L120: 96.77243959 | M120: 100 | N120: 100 | O120: 100 | P120: 100 | Q120: 100 | R120: 100 | S120: 100 | T120: 100 | U120: 100 | V120: 100 | W120: 100 | X120: 100 | Y120: 100 | Z120: 87.5 | AA120: 87.5 | AB120: 87.5 | AC120: 87.5 | AD120: 87.5 | AE120: 87.5 | AF120: 87.5 | AG120: 87.5 | AH120: 87.5 | AI120: 87.5 | AJ120: 87.5 | AK120: 87.5 | AL120: 87.5 | AM120: 87.5 | AN120: 87.5 | AO120: 87.5 | AP120: 87.5 | AQ120: 87.5 | AR120: 87.5 | AS120: 87.5 | AT120: 87.5 | AU120: 87.5 | AV120: 87.5 | AW120: 87.5 | AX120: 87.5 | AY120: 87.5 | AZ120: 87.5 | BA120: 87.5 | BB120: 87.5 | BC120: 87.5 | BD120: 100 | BE120: 100 | BF120: 100 | BG120: 100 | BH120: 100
A121: Cerro Puengasí | B121: 00°14'43.40''S | C121: 78°29'59.70''W | D121: Quito | E121: 3085 | G121: 64.48596098 | H121: 64.48596098 | I121: 64.48596098 | J121: 64.48596098 | K121: 64.48596098 | L121: 64.48596098 | M121: 75 | N121: 75 | O121: 75 | P121: 75 | Q121: 75 | R121: 75 | S121: 75 | T121: 75 | U121: 75 | V121: 75 | W121: 75 | X121: 75 | Y121: 75 | Z121: 62.5 | AA121: 62.5 | AB121: 62.5 | AC121: 62.5 | AD121: 62.5 | AE121: 62.5 | AF121: 62.5 | AG121: 62.5 | AH121: 62.5 | AI121: 62.5 | AJ121: 62.5 | AK121: 62.5 | AL121: 62.5 | AM121: 62.5 | AN121: 62.5 | AO121: 62.5 | AP121: 62.5 | AQ121: 62.5 | AR121: 62.5 | AS121: 62.5 | AT121: 62.5 | AU121: 62.5 | AV121: 62.5 | AW121: 62.5 | AX121: 62.5 | AY121: 62.5 | AZ121: 62.5 | BA121: 62.5 | BB121: 62.5 | BC121: 62.5 | BD121: 62.5 | BE121: 62.5 | BF121: 62.5 | BG121: 62.5 | BH121: 62.5
A122: Mojanda | B122: 00°04'47.30''N | C122: 78°13'43.20''W | D122: Pedro Moncayo | E122: 3241 | G122: 0 | H122: 0 | I122: 0 | J122: 0 | K122: 0 | L122: 0 | M122: 0 | N122: 0 | O122: 0 | P122: 0 | Q122: 0 | R122: 0 | S122: 0 | T122: 0 | U122: 0 | V122: 0 | W122: 0 | X122: 0 | Y122: 0 | Z122: 0 | AA122: 0 | AB122: 0 | AC122: 0 | AD122: 0 | AE122: 0 | AF122: 0 | AG122: 0 | AH122: 0 | AI122: 0 | AJ122: 0 | AK122: 0 | AL122: 0 | AM122: 0 | AN122: 0 | AO122: 0 | AP122: 0 | AQ122: 0 | AR122: 0 | AS122: 0 | AT122: 0 | AU122: 0 | AV122: 0 | AW122: 0 | AX122: 0 | AY122: 0 | AZ122: 0 | BA122: 0 | BB122: 0 | BC122: 0 | BD122: 0 | BE122: 0 | BF122: 0 | BG122: 0 | BH122: 0
A123: Sector Ferroviaria y la Florestal | B123: 00°15'48.00''S | C123: 78°30'25.00''W | D123: Quito | E123: 3179 | G123: 0 | H123: 0 | I123: 0 | J123: 0 | K123: 0 | L123: 0 | M123: 0 | N123: 0 | O123: 0 | P123: 0 | Q123: 0 | R123: 0 | S123: 0 | T123: 0 | U123: 0 | V123: 0 | W123: 0 | X123: 0 | Y123: 0 | Z123: 0 | AA123: 0 | AB123: 0 | AC123: 0 | AD123: 0 | AE123: 0 | AF123: 0 | AG123: 0 | AH123: 0 | AI123: 0 | AJ123: 0 | AK123: 0 | AL123: 0 | AM123: 0 | AN123: 0 | AO123: 0 | AP123: 0 | AQ123: 0 | AR123: 0 | AS123: 0 | AT123: 0 | AU123: 0 | AV123: 0 | AW123: 0 | AX123: 0 | AY123: 0 | AZ123: 0 | BA123: 0 | BB123: 0 | BC123: 0 | BD123: 0 | BE123: 0 | BF123: 0 | BG123: 0 | BH123: 0
A124: Cerro Condorcocha | B124: 00°02'19.10''S | C124: 78°30'41.00''W | D124: Quito | E124: 3586 | G124: 22.61358446 | H124: 22.61358446 | I124: 22.61358446 | J124: 22.61358446 | K124: 22.61358446 | L124: 22.61358446 | M124: 37.5 | N124: 37.5 | O124: 37.5 | P124: 37.5 | Q124: 37.5 | R124: 37.5 | S124: 37.5 | T124: 37.5 | U124: 37.5 | V124: 37.5 | W124: 37.5 | X124: 37.5 | Y124: 37.5 | Z124: 25 | AA124: 25 | AB124: 25 | AC124: 25 | AD124: 25 | AE124: 25 | AF124: 25 | AG124: 25 | AH124: 25 | AI124: 25 | AJ124: 25 | AK124: 25 | AL124: 25 | AM124: 25 | AN124: 25 | AO124: 25 | AP124: 25 | AQ124: 25 | AR124: 25 | AS124: 25 | AT124: 25 | AU124: 25 | AV124: 25 | AW124: 25 | AX124: 25 | AY124: 25 | AZ124: 25 | BA124: 25 | BB124: 25 | BC124: 25 | BD124: 25 | BE124: 37.5 | BF124: 50 | BG124: 50 | BH124: 50
A125: Cerro San Francisco | B125: 00°23'24.89''S | C125: 78°37'06.79''W | D125: Mejía | E125: 4097 | G125: 0 | H125: 0 | I125: 0 | J125: 0 | K125: 0 | L125: 0 | M125: 0 | N125: 0 | O125: 0 | P125: 0 | Q125: 0 | R125: 0 | S125: 0 | T125: 0 | U125: 0 | V125: 0 | W125: 0 | X125: 0 | Y125: 0 | Z125: 0 | AA125: 0 | AB125: 0 | AC125: 0 | AD125: 0 | AE125: 0 | AF125: 0 | AG125: 0 | AH125: 0 | AI125: 0 | AJ125: 0 | AK125: 0 | AL125: 0 | AM125: 0 | AN125: 0 | AO125: 0 | AP125: 0 | AQ125: 0 | AR125: 0 | AS125: 0 | AT125: 0 | AU125: 0 | AV125: 0 | AW125: 0 | AX125: 0 | AY125: 0 | AZ125: 0 | BA125: 0 | BB125: 0 | BC125: 0 | BD125: 0 | BE125: 0 | BF125: 0 | BG125: 0 | BH125: 0
A126: Cerro Tinajero | B126: 00°22'53.08''S | C126: 78°36'36.19''W | D126: Mejía | E126: 4082 | G126: 0 | H126: 0 | I126: 0 | J126: 0 | K126: 0 | L126: 0 | M126: 0 | N126: 0 | O126: 0 | P126: 0 | Q126: 0 | R126: 0 | S126: 0 | T126: 0 | U126: 0 | V126: 0 | W126: 0 | X126: 0 | Y126: 0 | Z126: 0 | AA126: 0 | AB126: 0 | AC126: 0 | AD126: 0 | AE126: 0 | AF126: 0 | AG126: 0 | AH126: 0 | AI126: 0 | AJ126: 0 | AK126: 0 | AL126: 0 | AM126: 0 | AN126: 0 | AO126: 0 | AP126: 0 | AQ126: 0 | AR126: 0 | AS126: 0 | AT126: 0 | AU126: 0 | AV126: 0 | AW126: 0 | AX126: 0 | AY126: 0 | AZ126: 0 | BA126: 0 | BB126: 0 | BC126: 0 | BD126: 0 | BE126: 0 | BF126: 0 | BG126: 0 | BH126: 0
A127: Cerro La Viudita | B127: 00°24'50.70''S | C127: 78°36'27.00''W | D127: Mejía | E127: 3751 | G127: 22.61358446 | H127: 22.61358446 | I127: 22.61358446 | J127: 22.61358446 | K127: 22.61358446 | L127: 22.61358446 | M127: 25 | N127: 25 | O127: 25 | P127: 25 | Q127: 25 | R127: 25 | S127: 25 | T127: 25 | U127: 25 | V127: 25 | W127: 25 | X127: 25 | Y127: 25 | Z127: 25 | AA127: 25 | AB127: 25 | AC127: 25 | AD127: 25 | AE127: 25 | AF127: 25 | AG127: 25 | AH127: 25 | AI127: 25 | AJ127: 25 | AK127: 25 | AL127: 25 | AM127: 25 | AN127: 25 | AO127: 25 | AP127: 25 | AQ127: 25 | AR127: 25 | AS127: 25 | AT127: 25 | AU127: 25 | AV127: 25 | AW127: 25 | AX127: 25 | AY127: 25 | AZ127: 25 | BA127: 25 | BB127: 25 | BC127: 25 | BD127: 25 | BE127: 25 | BF127: 37.5 | BG127: 37.5 | BH127: 37.5
A128: Cerro Hacda El Rosario | B128: 00°26'14.60''S | C128: 78°32'12.50''W | D128: Mejía | E128: 2981 | G128: 0 | H128: 0 | I128: 0 | J128: 0 | K128: 0 | L128: 0 | M128: 0 | N128: 0 | O128: 0 | P128: 0 | Q128: 0 | R128: 0 | S128: 0 | T128: 0 | U128: 0 | V128: 0 | W128: 0 | X128: 0 | Y128: 0 | Z128: 0 | AA128: 0 | AB128: 0 | AC128: 0 | AD128: 0 | AE128: 0 | AF128: 0 | AG128: 0 | AH128: 0 | AI128: 0 | AJ128: 0 | AK128: 0 | AL128: 0 | AM128: 0 | AN128: 0 | AO128: 0 | AP128: 0 | AQ128: 0 | AR128: 0 | AS128: 0 | AT128: 0 | AU128: 0 | AV128: 0 | AW128: 0 | AX128: 0 | AY128: 0 | AZ128: 0 | BA128: 0 | BB128: 0 | BC128: 0 | BD128: 0 | BE128: 0 | BF128: 0 | BG128: 0 | BH128: 0
A129: Cerro Atacazo Alto | B129: 00°21'22.20''S | C129: 78°37'09.10''W | D129: Quito | E129: 4474 | G129: 0 | H129: 0 | I129: 0 | J129: 0 | K129: 0 | L129: 0 | M129: 0 | N129: 0 | O129: 0 | P129: 0 | Q129: 0 | R129: 0 | S129: 0 | T129: 0 | U129: 0 | V129: 0 | W129: 0 | X129: 0 | Y129: 0 | Z129: 25 | AA129: 25 | AB129: 25 | AC129: 25 | AD129: 25 | AE129: 25 | AF129: 25 | AG129: 25 | AH129: 25 | AI129: 25 | AJ129: 25 | AK129: 25 | AL129: 25 | AM129: 25 | AN129: 25 | AO129: 25 | AP129: 25 | AQ129: 25 | AR129: 25 | AS129: 25 | AT129: 25 | AU129: 25 | AV129: 25 | AW129: 25 | AX129: 25 | AY129: 25 | AZ129: 25 | BA129: 25 | BB129: 25 | BC129: 25 | BD129: 25 | BE129: 25 | BF129: 25 | BG129: 25 | BH129: 25
A130: Cerro Atacazo Bajo | B130: 00°19'05.10''S | C130: 78°36'08.10''W | D130: Quito | E130: 3893 | G130: 96.77243959 | H130: 96.77243959 | I130: 96.77243959 | J130: 96.77243959 | K130: 96.77243959 | L130: 96.77243959 | M130: 100 | N130: 100 | O130: 100 | P130: 100 | Q130: 100 | R130: 100 | S130: 100 | T130: 100 | U130: 100 | V130: 100 | W130: 100 | X130: 100 | Y130: 100 | Z130: 100 | AA130: 100 | AB130: 100 | AC130: 100 | AD130: 100 | AE130: 100 | AF130: 100 | AG130: 100 | AH130: 100 | AI130: 100 | AJ130: 100 | AK130: 100 | AL130: 100 | AM130: 100 | AN130: 100 | AO130: 100 | AP130: 100 | AQ130: 100 | AR130: 100 | AS130: 100 | AT130: 100 | AU130: 100 | AV130: 100 | AW130: 100 | AX130: 100 | AY130: 100 | AZ130: 100 | BA130: 100 | BB130: 100 | BC130: 100 | BD130: 75 | BE130: 50 | BF130: 75 | BG130: 75 | BH130: 75
A131: Cerro Pichincha | B131: 00°09'57.03''S | C131: 78°31'39.19''W | D131: Quito | E131: 3901 | G131: -1.421085472e-14 | H131: -1.421085472e-14 | I131: -1.421085472e-14 | J131: -1.421085472e-14 | K131: -1.421085472e-14 | L131: -1.421085472e-14 | M131: 12.5 | N131: 12.5 | O131: 12.5 | P131: 12.5 | Q131: 12.5 | R131: 12.5 | S131: 12.5 | T131: 12.5 | U131: 12.5 | V131: 12.5 | W131: 12.5 | X131: 12.5 | Y131: 12.5 | Z131: 0 | AA131: 0 | AB131: 0 | AC131: 0 | AD131: 0 | AE131: 0 | AF131: 0 | AG131: 0 | AH131: 0 | AI131: 0 | AJ131: 0 | AK131: 0 | AL131: 0 | AM131: 0 | AN131: 0 | AO131: 0 | AP131: 0 | AQ131: 0 | AR131: 0 | AS131: 0 | AT131: 0 | AU131: 0 | AV131: 0 | AW131: 0 | AX131: 0 | AY131: 0 | AZ131: 0 | BA131: 0 | BB131: 0 | BC131: 0 | BD131: 0 | BE131: 0 | BF131: 0 | BG131: 0 | BH131: 0
A132: Cerro Capáes | B132: 02°12'32.40''S | C132: 80°51'47.50''W | D132: Santa Elena | E132: 102 | G132: 48.40796886 | H132: 48.40796886 | I132: 48.40796886 | J132: 48.40796886 | K132: 48.40796886 | L132: 61.30516105 | M132: 75 | N132: 75 | O132: 25 | P132: 25 | Q132: 25 | R132: 25 | S132: 25 | T132: 25 | U132: 25 | V132: 25 | W132: 25 | X132: 25 | Y132: 25 | Z132: 12.5 | AA132: 12.5 | AB132: 12.5 | AC132: 12.5 | AD132: 12.5 | AE132: 12.5 | AF132: 25 | AG132: 25 | AH132: 25 | AI132: 25 | AJ132: 25 | AK132: 25 | AL132: 25 | AM132: 25 | AN132: 25 | AO132: 25 | AP132: 25 | AQ132: 25 | AR132: 25 | AS132: 25 | AT132: 25 | AU132: 25 | AV132: 25 | AW132: 25 | AX132: 25 | AY132: 25 | AZ132: 25 | BA132: 25 | BB132: 25 | BC132: 25 | BD132: 25 | BE132: 0 | BF132: 12.5 | BG132: 0 | BH132: 12.5
A133: Cerro Bijagual | B133: 00°39'28.70''S | C133: 79°17'41.00''W | D133: Sto Domingo | E133: 798 | G133: 0 | H133: 0 | I133: 0 | J133: 0 | K133: 0 | L133: 0 | M133: 0 | N133: 0 | O133: 0 | P133: 0 | Q133: 0 | R133: 0 | S133: 0 | T133: 0 | U133: 0 | V133: 0 | W133: 0 | X133: 0 | Y133: 0 | Z133: 37.5 | AA133: 37.5 | AB133: 37.5 | AC133: 37.5 | AD133: 37.5 | AE133: 37.5 | AF133: 37.5 | AG133: 37.5 | AH133: 37.5 | AI133: 37.5 | AJ133: 37.5 | AK133: 37.5 | AL133: 37.5 | AM133: 37.5 | AN133: 37.5 | AO133: 37.5 | AP133: 37.5 | AQ133: 37.5 | AR133: 37.5 | AS133: 37.5 | AT133: 37.5 | AU133: 37.5 | AV133: 37.5 | AW133: 37.5 | AX133: 37.5 | AY133: 37.5 | AZ133: 37.5 | BA133: 37.5 | BB133: 37.5 | BC133: 37.5 | BD133: 37.5 | BE133: 37.5 | BF133: 37.5 | BG133: 37.5 | BH133: 37.5
A134: Cerro Bomboli | B134: 00°14'48.20''S | C134: 79°11'31.30''W | D134: Sto Domingo | E134: 636 | G134: 61.26166293 | H134: 61.26166293 | I134: 61.26166293 | J134: 61.26166293 | K134: 61.26166293 | L134: 67.71025903 | M134: 87.5 | N134: 87.5 | O134: 87.5 | P134: 87.5 | Q134: 87.5 | R134: 87.5 | S134: 87.5 | T134: 87.5 | U134: 87.5 | V134: 87.5 | W134: 87.5 | X134: 87.5 | Y134: 87.5 | Z134: 100 | AA134: 100 | AB134: 100 | AC134: 100 | AD134: 100 | AE134: 100 | AF134: 100 | AG134: 100 | AH134: 100 | AI134: 100 | AJ134: 100 | AK134: 100 | AL134: 100 | AM134: 100 | AN134: 100 | AO134: 100 | AP134: 100 | AQ134: 100 | AR134: 100 | AS134: 100 | AT134: 100 | AU134: 100 | AV134: 100 | AW134: 100 | AX134: 100 | AY134: 100 | AZ134: 100 | BA134: 100 | BB134: 100 | BC134: 100 | BD134: 75 | BE134: 62.5 | BF134: 75 | BG134: 62.5 | BH134: 75
A135: Cerro Chiguilpe Alto | B135: 00°17'44.70''S | C135: 79°05'12.10''W | D135: Sto Domingo | E135: 1172 | G135: 48.40796886 | H135: 48.40796886 | I135: 48.40796886 | J135: 48.40796886 | K135: 48.40796886 | L135: 48.40796886 | M135: 50 | N135: 50 | O135: 50 | P135: 50 | Q135: 50 | R135: 50 | S135: 50 | T135: 50 | U135: 50 | V135: 50 | W135: 50 | X135: 50 | Y135: 50 | Z135: 50 | AA135: 50 | AB135: 50 | AC135: 50 | AD135: 50 | AE135: 50 | AF135: 50 | AG135: 50 | AH135: 50 | AI135: 50 | AJ135: 50 | AK135: 50 | AL135: 50 | AM135: 50 | AN135: 50 | AO135: 50 | AP135: 50 | AQ135: 50 | AR135: 50 | AS135: 50 | AT135: 50 | AU135: 50 | AV135: 50 | AW135: 50 | AX135: 50 | AY135: 50 | AZ135: 50 | BA135: 50 | BB135: 50 | BC135: 50 | BD135: 50 | BE135: 50 | BF135: 50 | BG135: 50 | BH135: 50
A136: Cerro Chiguilpe Bajo | B136: 00°16'51.30''S | C136: 79°05'26.40''W | D136: Sto Domingo | E136: 801 | G136: 0 | H136: 0 | I136: 0 | J136: 0 | K136: 0 | L136: 0 | M136: 0 | N136: 0 | O136: 0 | P136: 0 | Q136: 0 | R136: 0 | S136: 0 | T136: 0 | U136: 0 | V136: 0 | W136: 0 | X136: 0 | Y136: 0 | Z136: 0 | AA136: 0 | AB136: 0 | AC136: 0 | AD136: 0 | AE136: 0 | AF136: 0 | AG136: 0 | AH136: 0 | AI136: 0 | AJ136: 0 | AK136: 0 | AL136: 0 | AM136: 0 | AN136: 0 | AO136: 0 | AP136: 0 | AQ136: 0 | AR136: 0 | AS136: 0 | AT136: 0 | AU136: 0 | AV136: 0 | AW136: 0 | AX136: 0 | AY136: 0 | AZ136: 0 | BA136: 0 | BB136: 0 | BC136: 0 | BD136: 0 | BE136: 0 | BF136: 0 | BG136: 0 | BH136: 0
A137: Cerro San Luis | B137: 00°35'10.70''S | C137: 79°19'18.80''W | D137: Sto Domingo | E137: 412 | G137: 0 | H137: 0 | I137: 0 | J137: 0 | K137: 0 | L137: 0 | M137: 0 | N137: 0 | O137: 0 | P137: 0 | Q137: 0 | R137: 0 | S137: 0 | T137: 0 | U137: 0 | V137: 0 | W137: 0 | X137: 0 | Y137: 0 | Z137: 0 | AA137: 0 | AB137: 0 | AC137: 0 | AD137: 0 | AE137: 0 | AF137: 0 | AG137: 0 | AH137: 0 | AI137: 0 | AJ137: 0 | AK137: 0 | AL137: 0 | AM137: 0 | AN137: 0 | AO137: 0 | AP137: 0 | AQ137: 0 | AR137: 0 | AS137: 0 | AT137: 0 | AU137: 0 | AV137: 0 | AW137: 0 | AX137: 0 | AY137: 0 | AZ137: 0 | BA137: 0 | BB137: 0 | BC137: 0 | BD137: 0 | BE137: 0 | BF137: 0 | BG137: 0 | BH137: 0
A138: Cerro Bermejo | B138: 00°08'09.10''N | C138: 77°19'39.90''W | D138: Cascales | E138: 994 | G138: 0 | H138: 0 | I138: 0 | J138: 0 | K138: 0 | L138: 0 | M138: 0 | N138: 0 | O138: 0 | P138: 0 | Q138: 0 | R138: 0 | S138: 0 | T138: 0 | U138: 0 | V138: 0 | W138: 0 | X138: 0 | Y138: 0 | Z138: 0 | AA138: 0 | AB138: 0 | AC138: 0 | AD138: 0 | AE138: 0 | AF138: 0 | AG138: 0 | AH138: 0 | AI138: 0 | AJ138: 0 | AK138: 0 | AL138: 0 | AM138: 0 | AN138: 0 | AO138: 0 | AP138: 0 | AQ138: 0 | AR138: 0 | AS138: 0 | AT138: 0 | AU138: 0 | AV138: 0 | AW138: 0 | AX138: 0 | AY138: 0 | AZ138: 0 | BA138: 0 | BB138: 0 | BC138: 0 | BD138: 0 | BE138: 0 | BF138: 0 | BG138: 0 | BH138: 0
A139: Cerro Reventador | B139: 00°02'33.90''S | C139: 77°31'44.10''W | D139: Gonzalo Pizarro | E139: 1600 | G139: 96.77243959 | H139: 96.77243959 | I139: 96.77243959 | J139: 96.77243959 | K139: 96.77243959 | L139: 96.77243959 | M139: 100 | N139: 100 | O139: 100 | P139: 100 | Q139: 100 | R139: 100 | S139: 100 | T139: 100 | U139: 100 | V139: 100 | W139: 100 | X139: 100 | Y139: 100 | Z139: 100 | AA139: 100 | AB139: 100 | AC139: 100 | AD139: 100 | AE139: 100 | AF139: 100 | AG139: 100 | AH139: 100 | AI139: 100 | AJ139: 100 | AK139: 100 | AL139: 100 | AM139: 100 | AN139: 100 | AO139: 100 | AP139: 100 | AQ139: 100 | AR139: 100 | AS139: 100 | AT139: 100 | AU139: 100 | AV139: 100 | AW139: 100 | AX139: 100 | AY139: 100 | AZ139: 100 | BA139: 100 | BB139: 100 | BC139: 100 | BD139: 100 | BE139: 100 | BF139: 100 | BG139: 100 | BH139: 100
A140: Cerro Niton | B140: 01°16'41.60''S | C140: 78°32'10.20''W | D140: San Pedro de Pelileo | E140: 3079 | G140: 0 | H140: 0 | I140: 0 | J140: 0 | K140: 0 | L140: 0 | M140: 0 | N140: 0 | O140: 0 | P140: 0 | Q140: 0 | R140: 0 | S140: 0 | T140: 0 | U140: 0 | V140: 0 | W140: 0 | X140: 0 | Y140: 0 | Z140: 0 | AA140: 0 | AB140: 0 | AC140: 0 | AD140: 0 | AE140: 0 | AF140: 0 | AG140: 0 | AH140: 0 | AI140: 0 | AJ140: 37.5 | AK140: 37.5 | AL140: 37.5 | AM140: 37.5 | AN140: 37.5 | AO140: 37.5 | AP140: 37.5 | AQ140: 37.5 | AR140: 37.5 | AS140: 37.5 | AT140: 37.5 | AU140: 37.5 | AV140: 37.5 | AW140: 37.5 | AX140: 37.5 | AY140: 37.5 | AZ140: 37.5 | BA140: 37.5 | BB140: 37.5 | BC140: 37.5 | BD140: 62.5 | BE140: 62.5 | BF140: 62.5 | BG140: 62.5 | BH140: 62.5
A141: Cerro Pilisurco o Saguatoa | B141: 01°09'17.20''S | C141: 78°39'58.00''W | D141: Ambato | E141: 4154 | G141: 96.77243959 | H141: 96.77243959 | I141: 96.77243959 | J141: 96.77243959 | K141: 96.77243959 | L141: 96.77243959 | M141: 100 | N141: 100 | O141: 100 | P141: 100 | Q141: 100 | R141: 100 | S141: 100 | T141: 100 | U141: 100 | V141: 100 | W141: 100 | X141: 100 | Y141: 100 | Z141: 100 | AA141: 100 | AB141: 100 | AC141: 100 | AD141: 100 | AE141: 100 | AF141: 100 | AG141: 100 | AH141: 100 | AI141: 100 | AJ141: 100 | AK141: 100 | AL141: 100 | AM141: 100 | AN141: 100 | AO141: 100 | AP141: 100 | AQ141: 100 | AR141: 100 | AS141: 100 | AT141: 100 | AU141: 100 | AV141: 100 | AW141: 100 | AX141: 100 | AY141: 100 | AZ141: 100 | BA141: 100 | BB141: 100 | BC141: 100 | BD141: 100 | BE141: 100 | BF141: 100 | BG141: 100 | BH141: 100
A142: Cerro Salvación (Lligua) | B142: 01°22'44.90''S | C142: 78°26'11.80''W | D142: Baños | E142: 2696 | G142: 70.9780552 | H142: 70.9780552 | I142: 70.9780552 | J142: 70.9780552 | K142: 70.9780552 | L142: 70.9780552 | M142: 75 | N142: 75 | O142: 75 | P142: 75 | Q142: 75 | R142: 75 | S142: 75 | T142: 75 | U142: 75 | V142: 75 | W142: 75 | X142: 75 | Y142: 75 | Z142: 87.5 | AA142: 87.5 | AB142: 87.5 | AC142: 87.5 | AD142: 87.5 | AE142: 87.5 | AF142: 87.5 | AG142: 87.5 | AH142: 87.5 | AI142: 87.5 | AJ142: 87.5 | AK142: 87.5 | AL142: 87.5 | AM142: 87.5 | AN142: 87.5 | AO142: 87.5 | AP142: 87.5 | AQ142: 87.5 | AR142: 87.5 | AS142: 87.5 | AT142: 87.5 | AU142: 87.5 | AV142: 87.5 | AW142: 87.5 | AX142: 87.5 | AY142: 87.5 | AZ142: 87.5 | BA142: 87.5 | BB142: 87.5 | BC142: 87.5 | BD142: 62.5 | BE142: 62.5 | BF142: 62.5 | BG142: 62.5 | BH142: 62.5
A143: Llantantoma | B143: 01°09'56.40''S | C143: 78°37'53.90''W | D143: Ambato | E143: 3450 | G143: 0 | H143: 0 | I143: 0 | J143: 0 | K143: 0 | L143: 0 | M143: 0 | N143: 0 | O143: 0 | P143: 0 | Q143: 0 | R143: 0 | S143: 0 | T143: 0 | U143: 0 | V143: 0 | W143: 0 | X143: 0 | Y143: 0 | Z143: 0 | AA143: 0 | AB143: 0 | AC143: 0 | AD143: 0 | AE143: 0 | AF143: 0 | AG143: 0 | AH143: 0 | AI143: 0 | AJ143: 0 | AK143: 0 | AL143: 0 | AM143: 0 | AN143: 0 | AO143: 0 | AP143: 0 | AQ143: 0 | AR143: 0 | AS143: 0 | AT143: 0 | AU143: 0 | AV143: 0 | AW143: 0 | AX143: 0 | AY143: 0 | AZ143: 0 | BA143: 0 | BB143: 0 | BC143: 0 | BD143: 0 | BE143: 0 | BF143: 0 | BG143: 0 | BH143: 0

Sheet 7125-8500 MHz
B3: Espectro Radioeléctrico
B4: Porcentajes de ocupación del espectro radioeléctrico por sitios en la banda 7 125 - 8 500 MHz
B7: =Hoja1!A1 -> Fecha de publicación: 20 de Febrero de 2015
G11: 2010 | L11: 2011 | X11: 2012 | AJ11: 2013 | AV11: 2014 | BH11: 2015
A12: Nombre | B12: Latitud | C12: Longitud | D12: Cantón | E12: Hsnm(m) | F12: Gráficos | G12: Agosto | H12: Septiembre | I12: Octubre | J12: Noviembre | K12: Diciembre | L12: Enero | M12: Febrero | N12: Marzo | O12: Abril | P12: Mayo | Q12: Junio | R12: Julio | S12: Agosto | T12: Septiembre | U12: Octubre | V12: Noviembre | W12: Diciembre | X12: Enero | Y12: Febrero | Z12: Marzo | AA12: Abril | AB12: Mayo | AC12: Junio | AD12: Julio | AE12: Agosto | AF12: Septiembre | AG12: Octubre | AH12: Noviembre | AI12: Diciembre | AJ12: Enero | AK12: Febrero | AL12: Marzo | AM12: Abril | AN12: Mayo | AO12: Junio | AP12: Julio | AQ12: Agosto | AR12: Septiembre | AS12: Octubre | AT12: Noviembre | AU12: Diciembre | AV12: Enero | AW12: Febrero | AX12: Marzo | AY12: Abril | AZ12: Mayo | BA12: Junio | BB12: Julio | BC12: Agosto | BD12: Septiembre | BE12: Octubre | BF12: Noviembre | BG12: Diciembre | BH12: Enero | BI12: Febrero | BJ12: Marzo | BK12: Abril | BL12: Mayo | BM12: Junio | BN12: Julio | BO12: Agosto | BP12: Septiembre | BQ12: Octubre | BR12: Noviembre | BS12: Diciembre
G13: Ocupacion (%) | H13: Ocupacion (%) | I13: Ocupacion (%) | J13: Ocupacion (%) | K13: Ocupacion (%) | L13: Ocupacion (%) | M13: Ocupacion (%) | N13: Ocupacion (%) | O13: Ocupacion (%) | P13: Ocupacion (%) | Q13: Ocupacion (%) | R13: Ocupacion (%) | S13: Ocupacion (%) | T13: Ocupacion (%) | U13: Ocupacion (%) | V13: Ocupacion (%) | W13: Ocupacion (%) | X13: Ocupacion (%) | Y13: Ocupacion (%) | Z13: Ocupacion (%) | AA13: Ocupacion (%) | AB13: Ocupacion (%) | AC13: Ocupacion (%) | AD13: Ocupacion (%) | AE13: Ocupacion (%) | AF13: Ocupacion (%) | AG13: Ocupacion (%) | AH13: Ocupacion (%) | AI13: Ocupacion (%) | AJ13: Ocupacion (%) | AK13: Ocupacion (%) | AL13: Ocupacion (%) | AM13: Ocupacion (%) | AN13: Ocupacion (%) | AO13: Ocupacion (%) | AP13: Ocupacion (%) | AQ13: Ocupacion (%) | AR13: Ocupacion (%) | AS13: Ocupacion (%) | AT13: Ocupacion (%) | AU13: Ocupacion (%) | AV13: Ocupacion (%) | AW13: Ocupacion (%) | AX13: Ocupacion (%) | AY13: Ocupacion (%) | AZ13: Ocupacion (%) | BA13: Ocupacion (%) | BB13: Ocupacion (%) | BC13: Ocupacion (%) | BD13: Ocupacion (%) | BE13: Ocupacion (%) | BF13: Ocupacion (%) | BG13: Ocupacion (%) | BH13: Ocupacion (%) | BI13: Ocupacion (%) | BJ13: Ocupacion (%) | BK13: Ocupacion (%) | BL13: Ocupacion (%) | BM13: Ocupacion (%) | BN13: Ocupacion (%) | BO13: Ocupacion (%) | BP13: Ocupacion (%) | BQ13: Ocupacion (%) | BR13: Ocupacion (%) | BS13: Ocupacion (%)
A14: Barabon | B14: 02°53'34.40''S | C14: 79°05'15.10''W | D14: Cuenca | E14: 3351 | G14: 0 | H14: 0 | I14: 0 | J14: 0 | K14: 0 | L14: 0 | M14: 0 | N14: 0 | O14: 0 | P14: 0 | Q14: 0 | R14: 0 | S14: 0 | T14: 0 | U14: 0 | V14: 0 | W14: 0 | X14: 0 | Y14: 0 | Z14: 0 | AA14: 0 | AB14: 0 | AC14: 0 | AD14: 0 | AE14: 0 | AF14: 0 | AG14: 0 | AH14: 0 | AI14: 0 | AJ14: 0 | AK14: 0 | AL14: 0 | AM14: 0 | AN14: 0 | AO14: 0 | AP14: 0 | AQ14: 0 | AR14: 0 | AS14: 0 | AT14: 0 | AU14: 0 | AV14: 0 | AW14: 0 | AX14: 0 | AY14: 0 | AZ14: 0 | BA14: 0 | BB14: 0 | BC14: 0 | BD14: 0 | BE14: 0 | BF14: 0 | BG14: 0 | BH14: 0
A15: Cerro Cahuazhun | B15: 02°52'33.40''S | C15: 78°49'01.60''W | D15: Gualaceo | E15: 2999 | G15: 0 | H15: 0 | I15: 0 | J15: 0 | K15: 0 | L15: 0 | M15: 0 | N15: 0 | O15: 0 | P15: 0 | Q15: 0 | R15: 0 | S15: 0 | T15: 0 | U15: 0 | V15: 0 | W15: 0 | X15: 0 | Y15: 0 | Z15: 0 | AA15: 0 | AB15: 0 | AC15: 0 | AD15: 0 | AE15: 0 | AF15: 0 | AG15: 0 | AH15: 0 | AI15: 0 | AJ15: 0 | AK15: 0 | AL15: 0 | AM15: 0 | AN15: 0 | AO15: 0 | AP15: 0 | AQ15: 0 | AR15: 0 | AS15: 0 | AT15: 0 | AU15: 0 | AV15: 0 | AW15: 0 | AX15: 0 | AY15: 0 | AZ15: 0 | BA15: 0 | BB15: 0 | BC15: 0 | BD15: 0 | BE15: 0 | BF15: 0 | BG15: 0 | BH15: 0
A16: Cerro Cochapamba | B16: 02°47'41.10''S | C16: 79°25'39.10''W | D16: Cuenca | E16: 3714 | G16: 0 | H16: 0 | I16: 0 | J16: 0 | K16: 0 | L16: 0 | M16: 0 | N16: 0 | O16: 0 | P16: 0 | Q16: 0 | R16: 0 | S16: 0 | T16: 0 | U16: 0 | V16: 0 | W16: 0 | X16: 0 | Y16: 0 | Z16: 0 | AA16: 0 | AB16: 0 | AC16: 0 | AD16: 0 | AE16: 0 | AF16: 0 | AG16: 0 | AH16: 0 | AI16: 0 | AJ16: 0 | AK16: 0 | AL16: 0 | AM16: 0 | AN16: 0 | AO16: 0 | AP16: 0 | AQ16: 0 | AR16: 0 | AS16: 0 | AT16: 0 | AU16: 0 | AV16: 0 | AW16: 0 | AX16: 0 | AY16: 0 | AZ16: 0 | BA16: 0 | BB16: 0 | BC16: 0 | BD16: 0 | BE16: 0 | BF16: 0 | BG16: 0 | BH16: 0
A17: Cerro Guagualzhumi | B17: 02°53'32.50''S | C17: 78°54'39.60''W | D17: Cuenca | E17: 3079 | G17: 0 | H17: 0 | I17: 0 | J17: 0 | K17: 0 | L17: 0 | M17: 0 | N17: 0 | O17: 0 | P17: 0 | Q17: 0 | R17: 0 | S17: 0 | T17: 0 | U17: 0 | V17: 0 | W17: 0 | X17: 0 | Y17: 0 | Z17: 0 | AA17: 0 | AB17: 0 | AC17: 0 | AD17: 0 | AE17: 13.78205128 | AF17: 13.78205128 | AG17: 13.78205128 | AH17: 13.78 | AI17: 13.78 | AJ17: 13.78 | AK17: 13.78 | AL17: 13.78 | AM17: 13.78 | AN17: 13.78 | AO17: 13.78 | AP17: 13.78 | AQ17: 13.78 | AR17: 13.78 | AS17: 13.78 | AT17: 13.78 | AU17: 13.78 | AV17: 13.78 | AW17: 13.78 | AX17: 13.78 | AY17: 13.78 | AZ17: 13.78 | BA17: 13.78 | BB17: 13.78 | BC17: 14.67 | BD17: 31.41025641 | BE17: 33.65384615 | BF17: 31.41025641 | BG17: 33.65384615 | BH17: 31.41025641
A18: Cerro Guallil | B18: 03°04'30.90''S | C18: 78°48'58.70''W | D18: Sigsig | E18: 3284 | G18: 39.34441198 | H18: 30.68115413 | I18: 30.68115413 | J18: 30.68115413 | K18: 30.68115413 | L18: 30.68115413 | M18: 69.87179487 | N18: 71.47435897 | O18: 71.47435897 | P18: 71.47435897 | Q18: 74.03846154 | R18: 74.03846154 | S18: 74.03846154 | T18: 76.28205128 | U18: 76.28205128 | V18: 76.28205128 | W18: 77.56410256 | X18: 77.56410256 | Y18: 83.97435897 | Z18: 86.21794872 | AA18: 86.21794872 | AB18: 86.21794872 | AC18: 92.94871795 | AD18: 92.94871795 | AE18: 95.19230769 | AF18: 95.19230769 | AG18: 95.19230769 | AH18: 95.19 | AI18: 95.19 | AJ18: 95.19 | AK18: 95.19 | AL18: 95.19 | AM18: 95.19 | AN18: 95.19 | AO18: 95.19 | AP18: 95.19 | AQ18: 95.19 | AR18: 95.19 | AS18: 95.19 | AT18: 95.19 | AU18: 95.19 | AV18: 95.19 | AW18: 95.19 | AX18: 95.19 | AY18: 95.19 | AZ18: 95.19 | BA18: 95.19 | BB18: 95.19 | BC18: 96.08 | BD18: 89.74358974 | BE18: 90.06410256 | BF18: 90.06410256 | BG18: 89.74358974 | BH18: 90.06410256
A19: Cerro Hito Cruz | B19: 02°55'51.50''S | C19: 78°59'51.70''W | D19: Cuenca | E19: 2847 | G19: 65.70226443 | H19: 64.16829803 | I19: 64.16829803 | J19: 64.67962016 | K19: 64.67962016 | L19: 66.28663258 | M19: 98.07692308 | N19: 98.07692308 | O19: 98.3974359 | P19: 98.07692308 | Q19: 98.07692308 | R19: 98.07692308 | S19: 99.67948718 | T19: 99.67948718 | U19: 99.67948718 | V19: 99.35897436 | W19: 99.35897436 | X19: 99.35897436 | Y19: 99.67948718 | Z19: 99.67948718 | AA19: 99.67948718 | AB19: 99.67948718 | AC19: 98.07692308 | AD19: 98.07692308 | AE19: 98.07692308 | AF19: 98.07692308 | AG19: 98.07692308 | AH19: 98.08 | AI19: 98.08 | AJ19: 98.08 | AK19: 98.08 | AL19: 98.08 | AM19: 98.08 | AN19: 98.08 | AO19: 98.08 | AP19: 98.08 | AQ19: 98.08 | AR19: 98.08 | AS19: 98.08 | AT19: 98.08 | AU19: 98.08 | AV19: 98.08 | AW19: 98.08 | AX19: 98.08 | AY19: 98.08 | AZ19: 98.08 | BA19: 98.08 | BB19: 99 | BC19: 99.89 | BD19: 98.71794872 | BE19: 98.71794872 | BF19: 98.71794872 | BG19: 98.71794872 | BH19: 98.71794872
A20: Cerro Rayoloma | B20: 02°54'13.00''S | C20: 78°57'59.20''W | D20: Cuenca | E20: 2649 | G20: 0 | H20: 0 | I20: 0 | J20: 0 | K20: 0 | L20: 0 | M20: 0 | N20: 0 | O20: 0 | P20: 0 | Q20: 0 | R20: 0 | S20: 0 | T20: 0 | U20: 0 | V20: 0 | W20: 0 | X20: 0 | Y20: 0 | Z20: 0 | AA20: 0 | AB20: 0 | AC20: 0 | AD20: 0 | AE20: 0 | AF20: 0 | AG20: 0 | AH20: 0 | AI20: 0 | AJ20: 0 | AK20: 0 | AL20: 0 | AM20: 0 | AN20: 0 | AO20: 0 | AP20: 0 | AQ20: 0 | AR20: 0 | AS20: 0 | AT20: 0 | AU20: 0 | AV20: 0 | AW20: 0 | AX20: 0 | AY20: 0 | AZ20: 0 | BA20: 0 | BB20: 0 | BC20: 0 | BD20: 0 | BE20: 0 | BF20: 0 | BG20: 0 | BH20: 0
A21: Cerro Rumiloma (Amopungo - Señor Pungo) | B21: 02°48'19.00''S | C21: 78°49'19.30''W | D21: Paute | E21: 3175 | G21: 49.14821037 | H21: 36.27465303 | I21: 36.27465303 | J21: 36.27465303 | K21: 36.27465303 | L21: 36.27465303 | M21: 63.46153846 | N21: 72.11538462 | O21: 72.11538462 | P21: 72.11538462 | Q21: 72.11538462 | R21: 72.11538462 | S21: 72.11538462 | T21: 72.11538462 | U21: 72.11538462 | V21: 72.11538462 | W21: 72.11538462 | X21: 72.11538462 | Y21: 76.92307692 | Z21: 76.92307692 | AA21: 76.92307692 | AB21: 76.92307692 | AC21: 80.76923077 | AD21: 80.76923077 | AE21: 83.33333333 | AF21: 83.33333333 | AG21: 83.33333333 | AH21: 83.33 | AI21: 83.33 | AJ21: 83.33 | AK21: 83.33 | AL21: 83.33 | AM21: 83.33 | AN21: 83.33 | AO21: 83.33 | AP21: 83.33 | AQ21: 83.33 | AR21: 83.33 | AS21: 83.33 | AT21: 83.33 | AU21: 83.33 | AV21: 83.33 | AW21: 83.33 | AX21: 83.33 | AY21: 83.33 | AZ21: 83.33 | BA21: 83.33 | BB21: 83.33 | BC21: 84.22 | BD21: 87.5 | BE21: 87.5 | BF21: 87.5 | BG21: 87.5 | BH21: 87.5
A22: Cerro Turi | B22: 02°55'22.90''S | C22: 79°00'32.80''W | D22: Cuenca | E22: 2730 | G22: 2.045288532 | H22: 2.045288532 | I22: 2.045288532 | J22: 2.045288532 | K22: 2.045288532 | L22: 4.090577064 | M22: 12.82051282 | N22: 12.82051282 | O22: 12.82051282 | P22: 10.57692308 | Q22: 10.57692308 | R22: 10.57692308 | S22: 20.51282051 | T22: 20.51282051 | U22: 20.51282051 | V22: 20.51282051 | W22: 20.51282051 | X22: 20.51282051 | Y22: 20.51282051 | Z22: 20.51282051 | AA22: 20.51282051 | AB22: 20.51282051 | AC22: 20.51282051 | AD22: 20.51282051 | AE22: 20.51282051 | AF22: 20.51282051 | AG22: 20.51282051 | AH22: 20.51 | AI22: 20.51 | AJ22: 20.51 | AK22: 20.51 | AL22: 20.51 | AM22: 20.51 | AN22: 20.51 | AO22: 20.51 | AP22: 20.51 | AQ22: 20.51 | AR22: 20.51 | AS22: 20.51 | AT22: 20.51 | AU22: 20.51 | AV22: 20.51 | AW22: 20.51 | AX22: 20.51 | AY22: 20.51 | AZ22: 20.51 | BA22: 20.51 | BB22: 20.51 | BC22: 21.4 | BD22: 12.82051282 | BE22: 12.82051282 | BF22: 12.82051282 | BG22: 12.82051282 | BH22: 12.82051282
A23: Sector Nero - Zhuzhun | B23: 02°56'48.30''S | C23: 79°03'46.20''W | D23: Cuenca | E23: 2932 | G23: 12.51278305 | H23: 12.51278305 | I23: 8.42220599 | J23: 8.42220599 | K23: 8.42220599 | L23: 8.42220599 | M23: 25 | N23: 25 | O23: 25 | P23: 23.71794872 | Q23: 23.71794872 | R23: 23.71794872 | S23: 25 | T23: 25 | U23: 25 | V23: 25 | W23: 25 | X23: 25 | Y23: 25 | Z23: 25 | AA23: 25 | AB23: 25 | AC23: 25 | AD23: 25 | AE23: 25 | AF23: 25 | AG23: 25 | AH23: 25 | AI23: 25 | AJ23: 25 | AK23: 25 | AL23: 25 | AM23: 25 | AN23: 25 | AO23: 25 | AP23: 25 | AQ23: 25 | AR23: 25 | AS23: 25 | AT23: 25 | AU23: 25 | AV23: 25 | AW23: 25 | AX23: 25 | AY23: 25 | AZ23: 25 | BA23: 25 | BB23: 25 | BC23: 25.89 | BD23: 29.48717949 | BE23: 29.48717949 | BF23: 29.48717949 | BG23: 29.48717949 | BH23: 29.48717949
A24: Tipoloma Alto | B24: 03°08'13.20''S | C24: 79°05'09.70''W | D24: Girón | E24: 3177 | G24: 56.55003652 | H24: 58.59532505 | I24: 58.59532505 | J24: 60.56756757 | K24: 60.56756757 | L24: 60.56756757 | M24: 86.85897436 | N24: 88.46153846 | O24: 90.70512821 | P24: 92.30769231 | Q24: 92.62820513 | R24: 92.62820513 | S24: 92.62820513 | T24: 92.62820513 | U24: 92.62820513 | V24: 92.62820513 | W24: 92.62820513 | X24: 92.62820513 | Y24: 92.62820513 | Z24: 92.62820513 | AA24: 92.62820513 | AB24: 92.62820513 | AC24: 92.62820513 | AD24: 92.62820513 | AE24: 92.30769231 | AF24: 92.30769231 | AG24: 91.34615385 | AH24: 85.26 | AI24: 85.26 | AJ24: 85.26 | AK24: 85.26 | AL24: 85.26 | AM24: 85.26 | AN24: 85.26 | AO24: 85.26 | AP24: 85.26 | AQ24: 85.26 | AR24: 85.26 | AS24: 85.26 | AT24: 85.26 | AU24: 85.26 | AV24: 85.26 | AW24: 85.26 | AX24: 85.26 | AY24: 85.26 | AZ24: 85.26 | BA24: 85.26 | BB24: 85.26 | BC24: 86.15 | BD24: 84.29487179 | BE24: 84.61538462 | BF24: 84.29487179 | BG24: 84.61538462 | BH24: 84.29487179
A25: Tipoloma Bajo | B25: 03°07'41.50''S | C25: 79°05'17.90''W | D25: Girón | E25: 3086 | G25: 2.045288532 | H25: 2.045288532 | I25: 2.045288532 | J25: 2.045288532 | K25: 2.045288532 | L25: 2.045288532 | M25: 10.25641026 | N25: 10.25641026 | O25: 10.25641026 | P25: 9.935897436 | Q25: 9.935897436 | R25: 9.935897436 | S25: 10.25641026 | T25: 10.25641026 | U25: 10.25641026 | V25: 10.25641026 | W25: 10.25641026 | X25: 10.25641026 | Y25: 10.25641026 | Z25: 10.25641026 | AA25: 10.25641026 | AB25: 10.25641026 | AC25: 10.25641026 | AD25: 10.25641026 | AE25: 19.55128205 | AF25: 19.55128205 | AG25: 19.55128205 | AH25: 19.55 | AI25: 19.55 | AJ25: 19.55 | AK25: 19.55 | AL25: 19.55 | AM25: 19.55 | AN25: 19.55 | AO25: 19.55 | AP25: 19.55 | AQ25: 19.55 | AR25: 19.55 | AS25: 19.55 | AT25: 19.55 | AU25: 19.55 | AV25: 19.55 | AW25: 19.55 | AX25: 19.55 | AY25: 19.55 | AZ25: 19.55 | BA25: 19.55 | BB25: 19.55 | BC25: 20.44 | BD25: 6.730769231 | BE25: 6.730769231 | BF25: 6.730769231 | BG25: 6.730769231 | BH25: 6.730769231
A26: Cerro Paredones | B26: 02°44'38.30''S | C26: 79°26'26.60''W | D26: Cuenca | E26: 3668 | G26: 0 | H26: 0 | I26: 0 | J26: 0 | K26: 0 | L26: 0 | M26: 0 | N26: 0 | O26: 0 | P26: 0 | Q26: 0 | R26: 0 | S26: 0 | T26: 0 | U26: 0 | V26: 10.25641026 | W26: 10.25641026 | X26: 10.25641026 | Y26: 10.25641026 | Z26: 10.25641026 | AA26: 10.25641026 | AB26: 10.25641026 | AC26: 10.25641026 | AD26: 10.25641026 | AE26: 10.25641026 | AF26: 10.25641026 | AG26: 10.25641026 | AH26: 10.26 | AI26: 10.26 | AJ26: 10.26 | AK26: 10.26 | AL26: 10.26 | AM26: 10.26 | AN26: 10.26 | AO26: 10.26 | AP26: 10.26 | AQ26: 10.26 | AR26: 10.26 | AS26: 10.26 | AT26: 10.26 | AU26: 10.26 | AV26: 10.26 | AW26: 10.26 | AX26: 10.26 | AY26: 10.26 | AZ26: 10.26 | BA26: 10.26 | BB26: 10.26 | BC26: 11.15 | BD26: 0 | BE26: 0 | BF26: 0 | BG26: 0 | BH26: 0
A27: Cuchilla de Paredones | B27: 02°44'10.70''S | C27: 79°26'43.10''W | D27: Cuenca | E27: 3311 | G27: 0 | H27: 0 | I27: 0 | J27: 0 | K27: 0 | L27: 0 | M27: 0 | N27: 0 | O27: 0 | P27: 0 | Q27: 0 | R27: 0 | S27: 0 | T27: 0 | U27: 0 | V27: 0 | W27: 0 | X27: 0 | Y27: 0 | Z27: 0 | AA27: 0 | AB27: 0 | AC27: 0 | AD27: 0 | AE27: 0 | AF27: 0 | AG27: 0 | AH27: 0 | AI27: 0 | AJ27: 0 | AK27: 0 | AL27: 0 | AM27: 0 | AN27: 0 | AO27: 0 | AP27: 0 | AQ27: 0 | AR27: 0 | AS27: 0 | AT27: 0 | AU27: 0 | AV27: 0 | AW27: 0 | AX27: 0 | AY27: 0 | AZ27: 0 | BA27: 0 | BB27: 0 | BC27: 0 | BD27: 0 | BE27: 0 | BF27: 0 | BG27: 0 | BH27: 0
A28: Bilovan | B28: 01°48'09.10''S | C28: 79°06'17.20''W | D28: San Miguel | E28: 2662 | G28: 0 | H28: 0 | I28: 0 | J28: 0 | K28: 0 | L28: 0 | M28: 0 | N28: 0 | O28: 0 | P28: 0 | Q28: 0 | R28: 0 | S28: 0 | T28: 0 | U28: 0 | V28: 0 | W28: 0 | X28: 0 | Y28: 0 | Z28: 0 | AA28: 0 | AB28: 0 | AC28: 0 | AD28: 0 | AE28: 0 | AF28: 0 | AG28: 0 | AH28: 0 | AI28: 0 | AJ28: 0 | AK28: 0 | AL28: 0 | AM28: 0 | AN28: 0 | AO28: 0 | AP28: 0 | AQ28: 0 | AR28: 0 | AS28: 0 | AT28: 0 | AU28: 0 | AV28: 0 | AW28: 0 | AX28: 0 | AY28: 0 | AZ28: 0 | BA28: 0 | BB28: 0 | BC28: 0 | BD28: 0 | BE28: 0 | BF28: 0 | BG28: 0 | BH28: 0
A29: Cerro Capadia Alto | B29: 01°25'24.20''S | C29: 78°57'01.10''W | D29: Guaranda | E29: 4460 | G29: 5.113221329 | H29: 5.113221329 | I29: 5.113221329 | J29: 5.113221329 | K29: 5.113221329 | L29: 5.113221329 | M29: 14.1025641 | N29: 14.1025641 | O29: 14.1025641 | P29: 13.46153846 | Q29: 17.30769231 | R29: 17.30769231 | S29: 17.94871795 | T29: 17.94871795 | U29: 17.94871795 | V29: 17.94871795 | W29: 17.94871795 | X29: 17.94871795 | Y29: 13.14102564 | Z29: 6.730769231 | AA29: 6.730769231 | AB29: 6.730769231 | AC29: 6.730769231 | AD29: 6.730769231 | AE29: 6.730769231 | AF29: 6.730769231 | AG29: 6.730769231 | AH29: 6.73 | AI29: 6.73 | AJ29: 6.73 | AK29: 6.73 | AL29: 6.73 | AM29: 6.73 | AN29: 6.73 | AO29: 6.73 | AP29: 6.73 | AQ29: 6.73 | AR29: 6.73 | AS29: 6.73 | AT29: 6.73 | AU29: 6.73 | AV29: 6.73 | AW29: 6.73 | AX29: 6.73 | AY29: 6.73 | AZ29: 6.73 | BA29: 6.73 | BB29: 15 | BC29: 15.89 | BD29: 6.730769231 | BE29: 6.730769231 | BF29: 6.730769231 | BG29: 6.730769231 | BH29: 6.730769231
A30: Cerro Capadia Chico | B30: 01°25'54.10''S | C30: 78°56'19.70''W | D30: Guaranda | E30: 4384 | G30: 56.85025566 | H30: 52.24835646 | I30: 52.24835646 | J30: 52.24835646 | K30: 52.24835646 | L30: 52.24835646 | M30: 77.88461538 | N30: 77.88461538 | O30: 82.69230769 | P30: 82.69230769 | Q30: 82.69230769 | R30: 82.69230769 | S30: 82.69230769 | T30: 82.69230769 | U30: 82.69230769 | V30: 82.69230769 | W30: 82.69230769 | X30: 82.69230769 | Y30: 79.48717949 | Z30: 85.25641026 | AA30: 85.25641026 | AB30: 85.25641026 | AC30: 85.57692308 | AD30: 85.57692308 | AE30: 85.57692308 | AF30: 85.57692308 | AG30: 85.57692308 | AH30: 85.58 | AI30: 85.58 | AJ30: 86.54 | AK30: 86.54 | AL30: 86.54 | AM30: 86.54 | AN30: 86.54 | AO30: 86.54 | AP30: 86.54 | AQ30: 86.54 | AR30: 86.54 | AS30: 86.54 | AT30: 86.54 | AU30: 86.54 | AV30: 86.54 | AW30: 86.54 | AX30: 86.54 | AY30: 86.54 | AZ30: 86.54 | BA30: 86.54 | BB30: 94.5 | BC30: 95.39 | BD30: 85.8974359 | BE30: 85.8974359 | BF30: 85.8974359 | BG30: 85.8974359 | BH30: 85.8974359
A31: Cerro de la Cocha | B31: 01°50'38.90''S | C31: 79°09'52.80''W | D31: San Miguel | E31: 2496 | G31: 0 | H31: 0 | I31: 0 | J31: 0 | K31: 0 | L31: 0 | M31: 0 | N31: 0 | O31: 0 | P31: 0 | Q31: 0 | R31: 0 | S31: 0 | T31: 0 | U31: 0 | V31: 0 | W31: 0 | X31: 0 | Y31: 0 | Z31: 0 | AA31: 0 | AB31: 0 | AC31: 0 | AD31: 0 | AE31: 0 | AF31: 0 | AG31: 0 | AH31: 0 | AI31: 0 | AJ31: 0 | AK31: 0 | AL31: 0 | AM31: 0 | AN31: 0 | AO31: 0 | AP31: 0 | AQ31: 0 | AR31: 0 | AS31: 0 | AT31: 0 | AU31: 0 | AV31: 0 | AW31: 0 | AX31: 0 | AY31: 0 | AZ31: 0 | BA31: 0 | BB31: 0 | BC31: 0 | BD31: 0 | BE31: 0 | BF31: 0 | BG31: 0 | BH31: 0
A32: Cerro Ilambulo | B32: 01°42'18.60''S | C32: 79°05'32.60''W | D32: San Miguel | E32: 3213 | G32: 10.22644266 | H32: 10.22644266 | I32: 10.22644266 | J32: 10.22644266 | K32: 10.22644266 | L32: 10.22644266 | M32: 28.20512821 | N32: 28.20512821 | O32: 28.20512821 | P32: 26.92307692 | Q32: 26.92307692 | R32: 26.92307692 | S32: 28.20512821 | T32: 28.20512821 | U32: 28.20512821 | V32: 26.6025641 | W32: 26.6025641 | X32: 28.20512821 | Y32: 18.58974359 | Z32: 18.58974359 | AA32: 18.58974359 | AB32: 18.58974359 | AC32: 18.58974359 | AD32: 18.58974359 | AE32: 18.58974359 | AF32: 18.58974359 | AG32: 18.58974359 | AH32: 18.59 | AI32: 18.59 | AJ32: 18.59 | AK32: 18.59 | AL32: 18.59 | AM32: 18.59 | AN32: 18.59 | AO32: 18.59 | AP32: 18.59 | AQ32: 18.59 | AR32: 18.59 | AS32: 18.59 | AT32: 18.59 | AU32: 18.59 | AV32: 18.59 | AW32: 18.59 | AX32: 18.59 | AY32: 18.59 | AZ32: 18.59 | BA32: 18.59 | BB32: 18.59 | BC32: 19.48 | BD32: 19.87179487 | BE32: 19.87179487 | BF32: 19.87179487 | BG32: 19.87179487 | BH32: 19.87179487
A33: Cerro Pucará | B33: 01°39'04.50''S | C33: 79°06'10.70''W | D33: Chimbo | E33: 3063 | G33: 0 | H33: 0 | I33: 0 | J33: 0 | K33: 0 | L33: 0 | M33: 0 | N33: 0 | O33: 0 | P33: 0 | Q33: 0 | R33: 0 | S33: 0 | T33: 0 | U33: 0 | V33: 0 | W33: 0 | X33: 0 | Y33: 0 | Z33: 0 | AA33: 0 | AB33: 0 | AC33: 0 | AD33: 0 | AE33: 0 | AF33: 0 | AG33: 0 | AH33: 0 | AI33: 0 | AJ33: 0 | AK33: 0 | AL33: 0 | AM33: 0 | AN33: 0 | AO33: 0 | AP33: 0 | AQ33: 0 | AR33: 0 | AS33: 0 | AT33: 0 | AU33: 0 | AV33: 0 | AW33: 0 | AX33: 0 | AY33: 0 | AZ33: 0 | BA33: 0 | BB33: 0 | BC33: 0 | BD33: 0 | BE33: 0 | BF33: 0 | BG33: 0 | BH33: 0
A34: Cochambamba (Chuchi) | B34: 01°41'56.20''S | C34: 79°06'20.60''W | D34: San Miguel | E34: 3072 | G34: 4.090577064 | H34: 4.090577064 | I34: 4.090577064 | J34: 4.090577064 | K34: 4.090577064 | L34: 4.090577064 | M34: 16.02564103 | N34: 16.02564103 | O34: 16.02564103 | P34: 16.02564103 | Q34: 16.02564103 | R34: 16.02564103 | S34: 16.02564103 | T34: 16.02564103 | U34: 16.02564103 | V34: 16.02564103 | W34: 16.02564103 | X34: 16.02564103 | Y34: 16.02564103 | Z34: 16.02564103 | AA34: 16.02564103 | AB34: 16.02564103 | AC34: 16.02564103 | AD34: 16.02564103 | AE34: 26.6025641 | AF34: 26.6025641 | AG34: 26.6025641 | AH34: 26.6 | AI34: 26.6 | AJ34: 26.6 | AK34: 26.6 | AL34: 26.6 | AM34: 26.6 | AN34: 26.6 | AO34: 26.6 | AP34: 26.6 | AQ34: 26.6 | AR34: 26.6 | AS34: 26.6 | AT34: 26.6 | AU34: 26.6 | AV34: 26.6 | AW34: 26.6 | AX34: 26.6 | AY34: 26.6 | AZ34: 26.6 | BA34: 26.6 | BB34: 26.6 | BC34: 27.49 | BD34: 26.6025641 | BE34: 26.6025641 | BF34: 26.6025641 | BG34: 26.6025641 | BH34: 26.6025641
A35: Cochabamba (Tundaloma) | B35: 01°41'35.30''S | C35: 79°06'28.20''W | D35: San Miguel | E35: 3018 | G35: 4.090577064 | H35: 4.090577064 | I35: 4.090577064 | J35: 4.090577064 | K35: 4.090577064 | L35: 4.090577064 | M35: 16.02564103 | N35: 16.02564103 | O35: 16.02564103 | P35: 16.02564103 | Q35: 16.02564103 | R35: 16.02564103 | S35: 16.02564103 | T35: 16.02564103 | U35: 16.02564103 | V35: 16.02564103 | W35: 16.02564103 | X35: 16.02564103 | Y35: 16.02564103 | Z35: 16.02564103 | AA35: 16.02564103 | AB35: 16.02564103 | AC35: 16.02564103 | AD35: 16.02564103 | AE35: 26.6025641 | AF35: 26.6025641 | AG35: 26.6025641 | AH35: 26.6 | AI35: 26.6 | AJ35: 26.6 | AK35: 26.6 | AL35: 26.6 | AM35: 26.6 | AN35: 26.6 | AO35: 26.6 | AP35: 26.6 | AQ35: 26.6 | AR35: 26.6 | AS35: 26.6 | AT35: 26.6 | AU35: 26.6 | AV35: 26.6 | AW35: 26.6 | AX35: 26.6 | AY35: 26.6 | AZ35: 26.6 | BA35: 26.6 | BB35: 26.6 | BC35: 27.49 | BD35: 26.6025641 | BE35: 26.6025641 | BF35: 26.6025641 | BG35: 26.6025641 | BH35: 26.6025641
A36: Loma de Lourdes | B36: 01°42'19.70''S | C36: 79°04'49.20''W | D36: San Miguel | E36: 3281 | G36: 0 | H36: 0 | I36: 0 | J36: 0 | K36: 0 | L36: 0 | M36: 0 | N36: 0 | O36: 0 | P36: 0 | Q36: 0 | R36: 0 | S36: 0 | T36: 0 | U36: 0 | V36: 0 | W36: 0 | X36: 0 | Y36: 0 | Z36: 0 | AA36: 0 | AB36: 0 | AC36: 0 | AD36: 0 | AE36: 13.46153846 | AF36: 13.46153846 | AG36: 13.46153846 | AH36: 13.46 | AI36: 13.46 | AJ36: 13.46 | AK36: 13.46 | AL36: 13.46 | AM36: 13.46 | AN36: 13.46 | AO36: 13.46 | AP36: 13.46 | AQ36: 13.46 | AR36: 13.46 | AS36: 13.46 | AT36: 13.46 | AU36: 13.46 | AV36: 13.46 | AW36: 13.46 | AX36: 13.46 | AY36: 13.46 | AZ36: 13.46 | BA36: 13.46 | BB36: 13.46 | BC36: 14.35 | BD36: 13.46153846 | BE36: 20.51282051 | BF36: 20.51282051 | BG36: 20.51282051 | BH36: 20.51282051
A37: Loma Susanga | B37: 01°40'23.00''S | C37: 79°01'08.80''W | D37: Chimbo | E37: 2879 | G37: 2.045288532 | H37: 2.045288532 | I37: 2.045288532 | J37: 2.045288532 | K37: 2.045288532 | L37: 2.045288532 | M37: 4.166666667 | N37: 4.166666667 | O37: 4.166666667 | P37: 3.846153846 | Q37: 3.846153846 | R37: 3.846153846 | S37: 4.166666667 | T37: 4.166666667 | U37: 4.166666667 | V37: 4.166666667 | W37: 4.166666667 | X37: 4.166666667 | Y37: 4.166666667 | Z37: 4.166666667 | AA37: 4.166666667 | AB37: 4.166666667 | AC37: 4.166666667 | AD37: 4.166666667 | AE37: 4.166666667 | AF37: 4.166666667 | AG37: 4.166666667 | AH37: 4.17 | AI37: 4.17 | AJ37: 4.17 | AK37: 4.17 | AL37: 4.17 | AM37: 4.17 | AN37: 4.17 | AO37: 4.17 | AP37: 4.17 | AQ37: 4.17 | AR37: 4.17 | AS37: 4.17 | AT37: 4.17 | AU37: 4.17 | AV37: 4.17 | AW37: 4.17 | AX37: 4.17 | AY37: 4.17 | AZ37: 4.17 | BA37: 4.17 | BB37: 4.17 | BC37: 5.06 | BD37: 0 | BE37: 0 | BF37: 0 | BG37: 0 | BH37: 0
A38: Padre Urcu | B38: 01°42'21.80''S | C38: 79°05'45.70''W | D38: San Miguel | E38: 3181 | G38: 10.22644266 | H38: 10.22644266 | I38: 10.22644266 | J38: 10.22644266 | K38: 10.22644266 | L38: 10.22644266 | M38: 28.20512821 | N38: 28.20512821 | O38: 28.20512821 | P38: 26.92307692 | Q38: 26.92307692 | R38: 26.92307692 | S38: 28.20512821 | T38: 28.20512821 | U38: 28.20512821 | V38: 26.6025641 | W38: 26.6025641 | X38: 28.20512821 | Y38: 18.58974359 | Z38: 18.58974359 | AA38: 18.58974359 | AB38: 18.58974359 | AC38: 18.58974359 | AD38: 18.58974359 | AE38: 18.58974359 | AF38: 18.58974359 | AG38: 18.58974359 | AH38: 18.59 | AI38: 18.59 | AJ38: 18.59 | AK38: 18.59 | AL38: 18.59 | AM38: 18.59 | AN38: 18.59 | AO38: 18.59 | AP38: 18.59 | AQ38: 18.59 | AR38: 18.59 | AS38: 18.59 | AT38: 18.59 | AU38: 18.59 | AV38: 18.59 | AW38: 18.59 | AX38: 18.59 | AY38: 18.59 | AZ38: 18.59 | BA38: 18.59 | BB38: 18.59 | BC38: 19.48 | BD38: 19.87179487 | BE38: 19.87179487 | BF38: 19.87179487 | BG38: 19.87179487 | BH38: 19.87179487
A39: Tiuguinal | B39: 01°22'00.30''S | C39: 79°00'25.10''W | D39: Guaranda | E39: 4126 | G39: 0 | H39: 0 | I39: 0 | J39: 0 | K39: 0 | L39: 0 | M39: 0 | N39: 0 | O39: 0 | P39: 0 | Q39: 0 | R39: 0 | S39: 0 | T39: 0 | U39: 0 | V39: 0 | W39: 0 | X39: 0 | Y39: 0 | Z39: 0 | AA39: 0 | AB39: 0 | AC39: 0 | AD39: 0 | AE39: 0 | AF39: 0 | AG39: 0 | AH39: 0 | AI39: 0 | AJ39: 0 | AK39: 0 | AL39: 0 | AM39: 0 | AN39: 0 | AO39: 0 | AP39: 0 | AQ39: 0 | AR39: 0 | AS39: 0 | AT39: 0 | AU39: 0 | AV39: 0 | AW39: 0 | AX39: 0 | AY39: 0 | AZ39: 0 | BA39: 0 | BB39: 0 | BC39: 0 | BD39: 0 | BE39: 0 | BF39: 0 | BG39: 0 | BH39: 0
A40: Biblian (Sagrado Corazón) | B40: 02°43'07.70''S | C40: 78°52'53.40''W | D40: Biblián | E40: 2878 | G40: 4.090577064 | H40: 4.090577064 | I40: 4.090577064 | J40: 4.090577064 | K40: 4.090577064 | L40: 4.090577064 | M40: 14.1025641 | N40: 14.1025641 | O40: 14.1025641 | P40: 13.78205128 | Q40: 13.78205128 | R40: 13.78205128 | S40: 14.1025641 | T40: 14.1025641 | U40: 14.1025641 | V40: 23.07692308 | W40: 23.07692308 | X40: 23.07692308 | Y40: 23.07692308 | Z40: 23.07692308 | AA40: 23.07692308 | AB40: 23.07692308 | AC40: 23.07692308 | AD40: 23.07692308 | AE40: 23.07692308 | AF40: 23.07692308 | AG40: 23.07692308 | AH40: 23.08 | AI40: 23.08 | AJ40: 23.08 | AK40: 23.08 | AL40: 23.08 | AM40: 23.08 | AN40: 23.08 | AO40: 23.08 | AP40: 23.08 | AQ40: 23.08 | AR40: 23.08 | AS40: 23.08 | AT40: 23.08 | AU40: 23.08 | AV40: 23.08 | AW40: 23.08 | AX40: 23.08 | AY40: 23.08 | AZ40: 23.08 | BA40: 23.08 | BB40: 23.08 | BC40: 23.97 | BD40: 25.64102564 | BE40: 25.64102564 | BF40: 25.64102564 | BG40: 25.64102564 | BH40: 25.64102564
A41: Cerro Altar Urcu | B41: 02°28'48.90''S | C41: 78°59'36.30''W | D41: Cañar | E41: 3215 | G41: 20.02644266 | H41: 20.02644266 | I41: 20.02644266 | J41: 20.02644266 | K41: 20.02644266 | L41: 20.02644266 | M41: 36.85897436 | N41: 36.85897436 | O41: 36.85897436 | P41: 36.53846154 | Q41: 36.53846154 | R41: 36.53846154 | S41: 36.85897436 | T41: 36.85897436 | U41: 36.85897436 | V41: 36.85897436 | W41: 36.85897436 | X41: 36.85897436 | Y41: 34.29487179 | Z41: 34.29487179 | AA41: 34.29487179 | AB41: 34.29487179 | AC41: 34.29487179 | AD41: 34.29487179 | AE41: 34.29487179 | AF41: 34.29487179 | AG41: 34.29487179 | AH41: 34.29 | AI41: 34.29 | AJ41: 34.29 | AK41: 34.29 | AL41: 34.29 | AM41: 34.29 | AN41: 34.29 | AO41: 34.29 | AP41: 34.29 | AQ41: 34.29 | AR41: 34.29 | AS41: 34.29 | AT41: 34.29 | AU41: 34.29 | AV41: 34.29 | AW41: 34.29 | AX41: 34.29 | AY41: 34.29 | AZ41: 34.29 | BA41: 34.29 | BB41: 34.29 | BC41: 35.18 | BD41: 30.12820513 | BE41: 51.28205128 | BF41: 30.12820513 | BG41: 52.88461538 | BH41: 30.12820513
A42: Cerro Buerán | B42: 02°36'31.10''S | C42: 78°55'50.90''W | D42: Biblián | E42: 3816 | G42: 76.8871439 | H42: 76.8871439 | I42: 76.8871439 | J42: 77.83674215 | K42: 77.83674215 | L42: 77.83674215 | M42: 97.11538462 | N42: 97.11538462 | O42: 97.11538462 | P42: 97.11538462 | Q42: 97.11538462 | R42: 97.11538462 | S42: 99.03846154 | T42: 99.03846154 | U42: 99.03846154 | V42: 99.67948718 | W42: 99.67948718 | X42: 99.67948718 | Y42: 93.91025641 | Z42: 93.91025641 | AA42: 93.91025641 | AB42: 93.91025641 | AC42: 92.30769231 | AD42: 92.30769231 | AE42: 92.30769231 | AF42: 92.30769231 | AG42: 93.26923077 | AH42: 93.27 | AI42: 93.27 | AJ42: 93.27 | AK42: 93.27 | AL42: 93.27 | AM42: 93.27 | AN42: 93.27 | AO42: 93.27 | AP42: 93.27 | AQ42: 93.27 | AR42: 93.27 | AS42: 93.27 | AT42: 93.27 | AU42: 93.27 | AV42: 93.27 | AW42: 93.27 | AX42: 93.27 | AY42: 93.27 | AZ42: 93.27 | BA42: 93.27 | BB42: 95.15 | BC42: 96.04 | BD42: 98.07692308 | BE42: 99.67948718 | BF42: 98.3974359 | BG42: 99.03846154 | BH42: 97.43589744
A43: Cerro Buerán(Tierras Negras) | B43: 02°35'59.40''S | C43: 78°55'44.40''W | D43: Biblián | E43: 3828 | G43: 53.80168006 | H43: 53.80168006 | I43: 53.80168006 | J43: 53.80168006 | K43: 53.80168006 | L43: 53.80168006 | M43: 85.25641026 | N43: 85.25641026 | O43: 85.25641026 | P43: 85.25641026 | Q43: 85.25641026 | R43: 85.25641026 | S43: 87.17948718 | T43: 87.17948718 | U43: 87.17948718 | V43: 87.17948718 | W43: 87.17948718 | X43: 87.17948718 | Y43: 79.80769231 | Z43: 79.80769231 | AA43: 79.80769231 | AB43: 79.80769231 | AC43: 79.80769231 | AD43: 79.80769231 | AE43: 79.80769231 | AF43: 79.80769231 | AG43: 81.08974359 | AH43: 81.09 | AI43: 81.09 | AJ43: 81.09 | AK43: 81.09 | AL43: 81.09 | AM43: 81.09 | AN43: 81.09 | AO43: 81.09 | AP43: 81.09 | AQ43: 81.09 | AR43: 81.09 | AS43: 81.09 | AT43: 81.09 | AU43: 81.09 | AV43: 81.09 | AW43: 81.09 | AX43: 81.09 | AY43: 81.09 | AZ43: 81.09 | BA43: 81.09 | BB43: 88.45 | BC43: 89.34 | BD43: 86.53846154 | BE43: 87.82051282 | BF43: 86.85897436 | BG43: 87.5 | BH43: 86.85897436
A44: Cerro Carshao | B44: 02°26'23.20''S | C44: 78°57'03.80''W | D44: Cañar | E44: 4017 | G44: 70.53981008 | H44: 70.53981008 | I44: 70.53981008 | J44: 75.14170928 | K44: 75.14170928 | L44: 75.14170928 | M44: 96.47435897 | N44: 96.47435897 | O44: 96.47435897 | P44: 96.47435897 | Q44: 96.47435897 | R44: 96.47435897 | S44: 97.43589744 | T44: 97.43589744 | U44: 97.43589744 | V44: 97.11538462 | W44: 97.11538462 | X44: 97.43589744 | Y44: 97.43589744 | Z44: 97.43589744 | AA44: 97.43589744 | AB44: 97.43589744 | AC44: 97.43589744 | AD44: 97.43589744 | AE44: 97.43589744 | AF44: 97.43589744 | AG44: 97.43589744 | AH44: 97.44 | AI44: 97.44 | AJ44: 97.44 | AK44: 97.44 | AL44: 97.44 | AM44: 97.44 | AN44: 97.44 | AO44: 97.44 | AP44: 97.44 | AQ44: 97.44 | AR44: 97.44 | AS44: 97.44 | AT44: 97.44 | AU44: 97.44 | AV44: 97.44 | AW44: 97.44 | AX44: 97.44 | AY44: 97.44 | AZ44: 97.44 | BA44: 97.44 | BB44: 99.56 | BC44: 0 | BD44: 98.71794872 | BE44: 98.71794872 | BF44: 98.71794872 | BG44: 98.07692308 | BH44: 98.71794872
A45: Cerro Carshao Bajo | B45: 02°26'08.10''S | C45: 78°56'52.20''W | D45: Cañar | E45: 4003 | G45: 70.53981008 | H45: 70.53981008 | I45: 70.53981008 | J45: 75.14170928 | K45: 75.14170928 | L45: 75.14170928 | M45: 96.47435897 | N45: 96.47435897 | O45: 96.47435897 | P45: 96.47435897 | Q45: 96.47435897 | R45: 96.47435897 | S45: 97.43589744 | T45: 97.43589744 | U45: 97.43589744 | V45: 97.11538462 | W45: 97.11538462 | X45: 97.43589744 | Y45: 97.43589744 | Z45: 97.43589744 | AA45: 97.43589744 | AB45: 97.43589744 | AC45: 97.43589744 | AD45: 97.43589744 | AE45: 97.43589744 | AF45: 97.43589744 | AG45: 97.43589744 | AH45: 97.44 | AI45: 97.44 | AJ45: 97.44 | AK45: 97.44 | AL45: 97.44 | AM45: 97.44 | AN45: 97.44 | AO45: 97.44 | AP45: 97.44 | AQ45: 97.44 | AR45: 97.44 | AS45: 97.44 | AT45: 97.44 | AU45: 97.44 | AV45: 97.44 | AW45: 97.44 | AX45: 97.44 | AY45: 97.44 | AZ45: 97.44 | BA45: 97.44 | BB45: 98.57 | BC45: 99.46 | BD45: 98.71794872 | BE45: 98.71794872 | BF45: 98.71794872 | BG45: 98.07692308 | BH45: 98.71794872
A46: Cerro Cojitambo | B46: 02°45'40.70''S | C46: 78°53'16.40''W | D46: Azoguez | E46: 3106 | G46: 0 | H46: 0 | I46: 0 | J46: 0 | K46: 0 | L46: 0 | M46: 0 | N46: 0 | O46: 0 | P46: 0 | Q46: 0 | R46: 0 | S46: 0 | T46: 0 | U46: 0 | V46: 0 | W46: 0 | X46: 0 | Y46: 0 | Z46: 0 | AA46: 0 | AB46: 0 | AC46: 0 | AD46: 0 | AE46: 0 | AF46: 0 | AG46: 0 | AH46: 0 | AI46: 0 | AJ46: 0 | AK46: 0 | AL46: 0 | AM46: 0 | AN46: 0 | AO46: 0 | AP46: 0 | AQ46: 0 | AR46: 0 | AS46: 0 | AT46: 0 | AU46: 0 | AV46: 0 | AW46: 0 | AX46: 0 | AY46: 0 | AZ46: 0 | BA46: 0 | BB46: 0 | BC46: 0 | BD46: 0 | BE46: 0 | BF46: 0 | BG46: 0 | BH46: 0
A47: Cerro Villaflor | B47: 02°49'44.60''S | C47: 78°48'12.30''W | D47: Azoguez | E47: 3042 | G47: 13.29437546 | H47: 17.89627465 | I47: 17.89627465 | J47: 17.89627465 | K47: 17.89627465 | L47: 17.89627465 | M47: 35.25641026 | N47: 35.25641026 | O47: 35.25641026 | P47: 35.25641026 | Q47: 35.25641026 | R47: 35.25641026 | S47: 35.25641026 | T47: 35.25641026 | U47: 35.25641026 | V47: 35.25641026 | W47: 36.21794872 | X47: 36.21794872 | Y47: 41.98717949 | Z47: 46.79487179 | AA47: 46.79487179 | AB47: 46.79487179 | AC47: 44.23076923 | AD47: 44.23076923 | AE47: 49.35897436 | AF47: 49.35897436 | AG47: 49.35897436 | AH47: 49.36 | AI47: 49.36 | AJ47: 49.36 | AK47: 49.36 | AL47: 49.36 | AM47: 49.36 | AN47: 49.36 | AO47: 49.36 | AP47: 49.36 | AQ47: 49.36 | AR47: 49.36 | AS47: 49.36 | AT47: 49.36 | AU47: 49.36 | AV47: 49.36 | AW47: 49.36 | AX47: 49.36 | AY47: 49.36 | AZ47: 49.36 | BA47: 49.36 | BB47: 49.36 | BC47: 50.25 | BD47: 44.55128205 | BE47: 49.35897436 | BF47: 49.35897436 | BG47: 44.55128205 | BH47: 49.35897436
A48: Cerro Troya | B48: 00°44'24.50''N | C48: 77°41'48.70''W | D48: Tulcán | E48: 3529 | G48: 50.5606282 | H48: 50.5606282 | I48: 50.5606282 | J48: 50.5606282 | K48: 50.5606282 | L48: 50.5606282 | M48: 80.76923077 | N48: 80.76923077 | O48: 80.76923077 | P48: 80.76923077 | Q48: 80.76923077 | R48: 80.76923077 | S48: 80.76923077 | T48: 80.76923077 | U48: 80.76923077 | V48: 82.37179487 | W48: 82.37179487 | X48: 82.37179487 | Y48: 92.94871795 | Z48: 92.94871795 | AA48: 92.94871795 | AB48: 92.94871795 | AC48: 91.34615385 | AD48: 91.34615385 | AE48: 91.34615385 | AF48: 91.34615385 | AG48: 91.34615385 | AH48: 91.35 | AI48: 91.35 | AJ48: 92.31 | AK48: 92.31 | AL48: 92.31 | AM48: 92.31 | AN48: 92.31 | AO48: 92.31 | AP48: 92.31 | AQ48: 92.31 | AR48: 92.31 | AS48: 92.31 | AT48: 92.31 | AU48: 92.31 | AV48: 92.31 | AW48: 92.31 | AX48: 92.31 | AY48: 92.31 | AZ48: 92.31 | BA48: 92.31 | BB48: 95.36 | BC48: 96.25 | BD48: 92.62820513 | BE48: 94.87179487 | BF48: 94.87179487 | BG48: 94.87179487 | BH48: 94.87179487
A49: Cerro Troya Bajo | B49: 00°44'09.50''N | C49: 77°42'22.80''W | D49: Tulcán | E49: 3418 | G49: 2.045288532 | H49: 2.045288532 | I49: 2.045288532 | J49: 2.045288532 | K49: 2.045288532 | L49: 2.045288532 | M49: 15.06410256 | N49: 15.06410256 | O49: 15.06410256 | P49: 14.42307692 | Q49: 14.42307692 | R49: 14.42307692 | S49: 15.06410256 | T49: 15.06410256 | U49: 15.06410256 | V49: 15.06410256 | W49: 15.06410256 | X49: 15.06410256 | Y49: 25.32051282 | Z49: 25.32051282 | AA49: 25.32051282 | AB49: 25.32051282 | AC49: 25.32051282 | AD49: 25.32051282 | AE49: 25.32051282 | AF49: 25.32051282 | AG49: 25.32051282 | AH49: 25.32 | AI49: 25.32 | AJ49: 13.46 | AK49: 13.46 | AL49: 13.46 | AM49: 13.46 | AN49: 13.46 | AO49: 13.46 | AP49: 13.46 | AQ49: 13.46 | AR49: 13.46 | AS49: 13.46 | AT49: 13.46 | AU49: 13.46 | AV49: 13.46 | AW49: 13.46 | AX49: 13.46 | AY49: 13.46 | AZ49: 13.46 | BA49: 13.46 | BB49: 13.46 | BC49: 14.35 | BD49: 0 | BE49: 0 | BF49: 0 | BG49: 0 | BH49: 0
A50: Cerro Cabras | B50: 00°28'15.00''N | C50: 77°57'50.70''W | D50: Bolívar | E50: 2904 | G50: 27.94010226 | H50: 26.917458 | I50: 26.917458 | J50: 26.917458 | K50: 26.917458 | L50: 32.03067933 | M50: 67.30769231 | N50: 67.30769231 | O50: 67.30769231 | P50: 67.30769231 | Q50: 66.66666667 | R50: 66.66666667 | S50: 66.66666667 | T50: 66.66666667 | U50: 66.66666667 | V50: 68.26923077 | W50: 68.26923077 | X50: 68.26923077 | Y50: 75 | Z50: 80.12820513 | AA50: 80.12820513 | AB50: 80.12820513 | AC50: 75.32051282 | AD50: 75.32051282 | AE50: 75.32051282 | AF50: 76.6025641 | AG50: 76.6025641 | AH50: 76.6 | AI50: 76.6 | AJ50: 76.6 | AK50: 76.6 | AL50: 76.6 | AM50: 76.6 | AN50: 76.6 | AO50: 76.6 | AP50: 76.6 | AQ50: 76.6 | AR50: 76.6 | AS50: 76.6 | AT50: 76.6 | AU50: 76.6 | AV50: 76.6 | AW50: 76.6 | AX50: 76.6 | AY50: 76.6 | AZ50: 76.6 | BA50: 76.6 | BB50: 76.6 | BC50: 77.49 | BD50: 83.33333333 | BE50: 83.33333333 | BF50: 83.33333333 | BG50: 83.33333333 | BH50: 83.33333333
A51: Cerro Chiles Alto | B51: 00°35'14.40''N | C51: 77°51'04.00''W | D51: Montúfar | E51: 3093 | G51: 0 | H51: 0 | I51: 0 | J51: 0 | K51: 0 | L51: 0 | M51: 0 | N51: 0 | O51: 0 | P51: 0 | Q51: 0 | R51: 0 | S51: 0 | T51: 0 | U51: 0 | V51: 0 | W51: 0 | X51: 0 | Y51: 0 | Z51: 0 | AA51: 0 | AB51: 0 | AC51: 0 | AD51: 0 | AE51: 0 | AF51: 0 | AG51: 0 | AH51: 0 | AI51: 0 | AJ51: 0 | AK51: 0 | AL51: 0 | AM51: 0 | AN51: 0 | AO51: 0 | AP51: 0 | AQ51: 0 | AR51: 0 | AS51: 0 | AT51: 0 | AU51: 0 | AV51: 0 | AW51: 0 | AX51: 0 | AY51: 0 | AZ51: 0 | BA51: 0 | BB51: 0 | BC51: 0 | BD51: 0 | BE51: 0 | BF51: 0 | BG51: 0 | BH51: 0
A52: Agua Santa | B52: 01°41'46.80''S | C52: 78°39'59.80''W | D52: Riobamba | E52: 3006 | G52: 24.22717312 | H52: 24.22717312 | I52: 25.04207451 | J52: 25.04207451 | K52: 25.04207451 | L52: 25.04207451 | M52: 36.53846154 | N52: 36.53846154 | O52: 36.53846154 | P52: 36.53846154 | Q52: 37.17948718 | R52: 37.17948718 | S52: 39.42307692 | T52: 39.42307692 | U52: 39.42307692 | V52: 45.51282051 | W52: 46.79487179 | X52: 46.79487179 | Y52: 64.1025641 | Z52: 64.1025641 | AA52: 64.1025641 | AB52: 64.1025641 | AC52: 64.1025641 | AD52: 64.1025641 | AE52: 64.1025641 | AF52: 64.1025641 | AG52: 64.1025641 | AH52: 64.1 | AI52: 64.1 | AJ52: 64.1 | AK52: 64.1 | AL52: 64.1 | AM52: 64.1 | AN52: 64.1 | AO52: 64.1 | AP52: 64.1 | AQ52: 64.1 | AR52: 64.1 | AS52: 64.1 | AT52: 64.1 | AU52: 64.1 | AV52: 64.1 | AW52: 64.1 | AX52: 64.1 | AY52: 64.1 | AZ52: 64.1 | BA52: 64.1 | BB52: 64.1 | BC52: 64.99 | BD52: 66.34615385 | BE52: 66.34615385 | BF52: 66.34615385 | BG52: 66.34615385 | BH52: 66.34615385
A53: Cerro Amula Rayoloma | B53: 01°41'22.10''S | C53: 78°43'45.70''W | D53: Colta | E53: 3485 | G53: 0 | H53: 0 | I53: 0 | J53: 0 | K53: 0 | L53: 0 | M53: 0 | N53: 0 | O53: 0 | P53: 0 | Q53: 0 | R53: 0 | S53: 0 | T53: 0 | U53: 0 | V53: 0 | W53: 0 | X53: 0 | Y53: 0 | Z53: 0 | AA53: 0 | AB53: 0 | AC53: 0 | AD53: 0 | AE53: 0 | AF53: 0 | AG53: 0 | AH53: 0 | AI53: 0 | AJ53: 0 | AK53: 0 | AL53: 0 | AM53: 0 | AN53: 0 | AO53: 0 | AP53: 0 | AQ53: 0 | AR53: 0 | AS53: 0 | AT53: 0 | AU53: 0 | AV53: 0 | AW53: 0 | AX53: 0 | AY53: 0 | AZ53: 0 | BA53: 0 | BB53: 0 | BC53: 0 | BD53: 0 | BE53: 0 | BF53: 0 | BG53: 0 | BH53: 0
A54: Cerro Gatazo Grande | B54: 01°39'41.30''S | C54: 78°45'00.80''W | D54: Colta | E54: 3188 | G54: 6.135865595 | H54: 6.135865595 | I54: 6.135865595 | J54: 6.135865595 | K54: 6.135865595 | L54: 6.135865595 | M54: 16.66666667 | N54: 16.66666667 | O54: 16.66666667 | P54: 11.21794872 | Q54: 11.21794872 | R54: 11.21794872 | S54: 16.66666667 | T54: 16.66666667 | U54: 16.66666667 | V54: 16.66666667 | W54: 16.66666667 | X54: 16.66666667 | Y54: 16.66666667 | Z54: 16.66666667 | AA54: 16.66666667 | AB54: 16.66666667 | AC54: 16.66666667 | AD54: 16.66666667 | AE54: 16.66666667 | AF54: 16.66666667 | AG54: 16.66666667 | AH54: 16.67 | AI54: 16.67 | AJ54: 16.67 | AK54: 16.67 | AL54: 16.67 | AM54: 16.67 | AN54: 16.67 | AO54: 16.67 | AP54: 16.67 | AQ54: 16.67 | AR54: 16.67 | AS54: 16.67 | AT54: 16.67 | AU54: 16.67 | AV54: 16.67 | AW54: 16.67 | AX54: 16.67 | AY54: 16.67 | AZ54: 16.67 | BA54: 16.67 | BB54: 16.67 | BC54: 17.56 | BD54: 16.66666667 | BE54: 16.66666667 | BF54: 16.66666667 | BG54: 16.66666667 | BH54: 16.66666667
A55: Cerro Higno Cacha | B55: 01°41'31.90''S | C55: 78°42'58.60''W | D55: Riobamba | E55: 3567 | G55: 4.090577064 | H55: 4.090577064 | I55: 4.090577064 | J55: 4.090577064 | K55: 4.090577064 | L55: 5.113221329 | M55: 19.87179487 | N55: 19.87179487 | O55: 19.87179487 | P55: 19.55128205 | Q55: 19.55128205 | R55: 19.55128205 | S55: 19.87179487 | T55: 19.87179487 | U55: 19.87179487 | V55: 19.87179487 | W55: 19.87179487 | X55: 19.87179487 | Y55: 19.87179487 | Z55: 19.87179487 | AA55: 19.87179487 | AB55: 19.87179487 | AC55: 19.87179487 | AD55: 19.87179487 | AE55: 19.87179487 | AF55: 19.87179487 | AG55: 19.87179487 | AH55: 19.87 | AI55: 19.87 | AJ55: 19.87 | AK55: 19.87 | AL55: 19.87 | AM55: 19.87 | AN55: 19.87 | AO55: 19.87 | AP55: 19.87 | AQ55: 19.87 | AR55: 19.87 | AS55: 19.87 | AT55: 19.87 | AU55: 19.87 | AV55: 19.87 | AW55: 19.87 | AX55: 19.87 | AY55: 19.87 | AZ55: 19.87 | BA55: 19.87 | BB55: 19.87 | BC55: 20.76 | BD55: 19.87179487 | BE55: 19.87179487 | BF55: 19.87179487 | BG55: 19.87179487 | BH55: 19.87179487
A56: Cerro La Mira | B56: 01°30'32.70''S | C56: 78°35'05.20''W | D56: Guano | E56: 3881 | G56: 86.51658145 | H56: 87.02790358 | I56: 87.02790358 | J56: 87.02790358 | K56: 87.02790358 | L56: 87.02790358 | M56: 100 | N56: 100 | O56: 100 | P56: 100 | Q56: 100 | R56: 100 | S56: 100 | T56: 100 | U56: 100 | V56: 100 | W56: 100 | X56: 100 | Y56: 100 | Z56: 100 | AA56: 100 | AB56: 100 | AC56: 100 | AD56: 100 | AE56: 100 | AF56: 100 | AG56: 100 | AH56: 100 | AI56: 100 | AJ56: 100 | AK56: 100 | AL56: 100 | AM56: 100 | AN56: 100 | AO56: 100 | AP56: 100 | AQ56: 100 | AR56: 100 | AS56: 100 | AT56: 100 | AU56: 100 | AV56: 100 | AW56: 100 | AX56: 100 | AY56: 100 | AZ56: 100 | BA56: 100 | BB56: 100 | BC56: 100 | BD56: 100 | BE56: 100 | BF56: 100 | BG56: 100 | BH56: 100
A57: Cerro La Mira (Senincahuan) | B57: 01°41'31.90''S | C57: 78°42'58.60''W | D57: Riobamba | E57: 3947 | G57: 4.090577064 | H57: 4.090577064 | I57: 4.090577064 | J57: 4.090577064 | K57: 4.090577064 | L57: 5.113221329 | M57: 19.87179487 | N57: 19.87179487 | O57: 19.87179487 | P57: 19.55128205 | Q57: 19.55128205 | R57: 19.55128205 | S57: 19.87179487 | T57: 19.87179487 | U57: 19.87179487 | V57: 19.87179487 | W57: 19.87179487 | X57: 19.87179487 | Y57: 19.87179487 | Z57: 19.87179487 | AA57: 19.87179487 | AB57: 19.87179487 | AC57: 19.87179487 | AD57: 19.87179487 | AE57: 19.87179487 | AF57: 19.87179487 | AG57: 19.87179487 | AH57: 19.87 | AI57: 19.87 | AJ57: 19.87 | AK57: 19.87 | AL57: 19.87 | AM57: 19.87 | AN57: 19.87 | AO57: 19.87 | AP57: 19.87 | AQ57: 19.87 | AR57: 19.87 | AS57: 19.87 | AT57: 19.87 | AU57: 19.87 | AV57: 19.87 | AW57: 19.87 | AX57: 19.87 | AY57: 19.87 | AZ57: 19.87 | BA57: 19.87 | BB57: 19.87 | BC57: 20.76 | BD57: 19.87179487 | BE57: 19.87179487 | BF57: 19.87179487 | BG57: 19.87179487 | BH57: 19.87179487
A58: Cerro Achayandi | B58: 00°57'07.70''S | C58: 78°55'32.90''W | D58: Pujulí | E58: 4102 | G58: 20.45288532 | H58: 20.45288532 | I58: 20.45288532 | J58: 20.45288532 | K58: 20.45288532 | L58: 20.45288532 | M58: 44.87179487 | N58: 44.87179487 | O58: 44.87179487 | P58: 44.87179487 | Q58: 44.87179487 | R58: 44.87179487 | S58: 44.87179487 | T58: 44.87179487 | U58: 44.87179487 | V58: 44.87179487 | W58: 44.87179487 | X58: 44.87179487 | Y58: 44.87179487 | Z58: 44.87179487 | AA58: 44.87179487 | AB58: 44.87179487 | AC58: 47.43589744 | AD58: 47.43589744 | AE58: 47.43589744 | AF58: 47.43589744 | AG58: 47.43589744 | AH58: 47.44 | AI58: 47.44 | AJ58: 56.73 | AK58: 56.73 | AL58: 56.73 | AM58: 56.73 | AN58: 56.73 | AO58: 56.73 | AP58: 56.73 | AQ58: 56.73 | AR58: 56.73 | AS58: 56.73 | AT58: 56.73 | AU58: 56.73 | AV58: 56.73 | AW58: 56.73 | AX58: 56.73 | AY58: 56.73 | AZ58: 56.73 | BA58: 56.73 | BB58: 56.73 | BC58: 57.62 | BD58: 51.6025641 | BE58: 51.6025641 | BF58: 51.6025641 | BG58: 51.6025641 | BH58: 51.6025641
A59: Cerro Apagua | B59: 00°58'32.00''S | C59: 78°56'58.00''W | D59: Pujulí | E59: 4032 | G59: 0 | H59: 0 | I59: 0 | J59: 0 | K59: 0 | L59: 0 | M59: 0 | N59: 0 | O59: 0 | P59: 0 | Q59: 0 | R59: 0 | S59: 0 | T59: 0 | U59: 0 | V59: 0 | W59: 0 | X59: 0 | Y59: 0 | Z59: 0 | AA59: 0 | AB59: 0 | AC59: 0 | AD59: 0 | AE59: 0 | AF59: 0 | AG59: 0 | AH59: 0 | AI59: 0 | AJ59: 0 | AK59: 0 | AL59: 0 | AM59: 0 | AN59: 0 | AO59: 0 | AP59: 0 | AQ59: 0 | AR59: 0 | AS59: 0 | AT59: 0 | AU59: 0 | AV59: 0 | AW59: 0 | AX59: 0 | AY59: 0 | AZ59: 0 | BA59: 0 | BB59: 0 | BC59: 0 | BD59: 0 | BE59: 0 | BF59: 0 | BG59: 0 | BH59: 0
A60: Cerro Putzalagua | B60: 00°57'56.00''S | C60: 78°33'42.70''W | D60: Latacunga | E60: 3531 | G60: 40.31307524 | H60: 40.31307524 | I60: 40.31307524 | J60: 48.20204529 | K60: 50.24733382 | L60: 50.24733382 | M60: 87.82051282 | N60: 87.82051282 | O60: 87.82051282 | P60: 87.82051282 | Q60: 88.46153846 | R60: 88.46153846 | S60: 88.46153846 | T60: 0 | U60: 0 | V60: 88.46153846 | W60: 88.46153846 | X60: 81.41025641 | Y60: 81.41025641 | Z60: 81.41025641 | AA60: 81.41025641 | AB60: 81.41025641 | AC60: 81.41025641 | AD60: 81.41025641 | AE60: 83.01282051 | AF60: 83.01282051 | AG60: 83.01282051 | AH60: 83.01 | AI60: 83.01 | AJ60: 83.01 | AK60: 83.01 | AL60: 83.01 | AM60: 83.01 | AN60: 83.01 | AO60: 83.01 | AP60: 83.01 | AQ60: 83.01 | AR60: 83.01 | AS60: 83.01 | AT60: 83.01 | AU60: 83.01 | AV60: 83.01 | AW60: 83.01 | AX60: 83.01 | AY60: 83.01 | AZ60: 83.01 | BA60: 83.01 | BB60: 83.01 | BC60: 83.9 | BD60: 72.75641026 | BE60: 79.16666667 | BF60: 79.16666667 | BG60: 79.16666667 | BH60: 79.16666667
A61: Chasqui | B61: 00°37'15.30''S | C61: 78°35'37.20''W | D61: Latacunga | E61: 3532 | G61: 61.10233747 | H61: 61.10233747 | I61: 61.10233747 | J61: 61.10233747 | K61: 61.10233747 | L61: 61.10233747 | M61: 75.32051282 | N61: 75.32051282 | O61: 75.32051282 | P61: 75.32051282 | Q61: 75.32051282 | R61: 75.32051282 | S61: 75.32051282 | T61: 75.32051282 | U61: 75.32051282 | V61: 75.32051282 | W61: 75.32051282 | X61: 65.06410256 | Y61: 65.06410256 | Z61: 65.06410256 | AA61: 65.06410256 | AB61: 65.06410256 | AC61: 65.06410256 | AD61: 65.06410256 | AE61: 65.06410256 | AF61: 65.06410256 | AG61: 65.06410256 | AH61: 65.06 | AI61: 65.06 | AJ61: 65.06 | AK61: 65.06 | AL61: 65.06 | AM61: 65.06 | AN61: 65.06 | AO61: 65.06 | AP61: 65.06 | AQ61: 65.06 | AR61: 65.06 | AS61: 65.06 | AT61: 65.06 | AU61: 65.06 | AV61: 65.06 | AW61: 65.06 | AX61: 65.06 | AY61: 65.06 | AZ61: 65.06 | BA61: 65.06 | BB61: 72.89 | BC61: 73.78 | BD61: 71.47435897 | BE61: 83.97435897 | BF61: 77.88461538 | BG61: 83.97435897 | BH61: 77.88461538
A62: Cerro Chilla | B62: 03°29'09.70''S | C62: 79°36'04.70''W | D62: Chilla | E62: 3450 | G62: 0 | H62: 0 | I62: 0 | J62: 0 | K62: 0 | L62: 0 | M62: 0 | N62: 0 | O62: 0 | P62: 0 | Q62: 0 | R62: 0 | S62: 0 | T62: 0 | U62: 0 | V62: 0 | W62: 0 | X62: 0 | Y62: 0 | Z62: 0 | AA62: 0 | AB62: 0 | AC62: 0 | AD62: 0 | AE62: 0 | AF62: 0 | AG62: 0 | AH62: 0 | AI62: 0 | AJ62: 0 | AK62: 0 | AL62: 0 | AM62: 0 | AN62: 0 | AO62: 0 | AP62: 0 | AQ62: 0 | AR62: 0 | AS62: 0 | AT62: 0 | AU62: 0 | AV62: 0 | AW62: 0 | AX62: 0 | AY62: 0 | AZ62: 0 | BA62: 0 | BB62: 0 | BC62: 0 | BD62: 0 | BE62: 0 | BF62: 0 | BG62: 0 | BH62: 0
A63: Cerro Chilola | B63: 03°30'00.90''S | C63: 79°37'52.50''W | D63: Chilla | E63: 3596 | G63: 23.09437546 | H63: 23.09437546 | I63: 28.07582177 | J63: 28.07582177 | K63: 28.07582177 | L63: 28.07582177 | M63: 53.52564103 | N63: 53.52564103 | O63: 53.52564103 | P63: 58.33333333 | Q63: 75 | R63: 75 | S63: 75 | T63: 75 | U63: 75 | V63: 75 | W63: 75 | X63: 75 | Y63: 75.96153846 | Z63: 79.16666667 | AA63: 79.16666667 | AB63: 79.16666667 | AC63: 79.48717949 | AD63: 79.48717949 | AE63: 79.48717949 | AF63: 79.48717949 | AG63: 79.48717949 | AH63: 79.49 | AI63: 79.49 | AJ63: 79.49 | AK63: 79.49 | AL63: 79.49 | AM63: 79.49 | AN63: 79.49 | AO63: 79.49 | AP63: 79.49 | AQ63: 79.49 | AR63: 79.49 | AS63: 79.49 | AT63: 79.49 | AU63: 79.49 | AV63: 79.49 | AW63: 79.49 | AX63: 79.49 | AY63: 79.49 | AZ63: 79.49 | BA63: 79.49 | BB63: 79.49 | BC63: 80.38 | BD63: 85.57692308 | BE63: 89.42307692 | BF63: 85.57692308 | BG63: 89.42307692 | BH63: 85.57692308
A64: Cerro El Trigal | B64: 03°41'23.20''S | C64: 79°39'33.90''W | D64: Piñas | E64: 1292 | G64: 13.80569759 | H64: 13.80569759 | I64: 16.36230825 | J64: 16.36230825 | K64: 16.36230825 | L64: 16.36230825 | M64: 31.41025641 | N64: 31.41025641 | O64: 31.41025641 | P64: 31.41025641 | Q64: 31.41025641 | R64: 31.41025641 | S64: 31.41025641 | T64: 31.41025641 | U64: 31.41025641 | V64: 35.25641026 | W64: 35.25641026 | X64: 35.25641026 | Y64: 37.5 | Z64: 37.5 | AA64: 37.5 | AB64: 37.5 | AC64: 37.5 | AD64: 37.5 | AE64: 37.5 | AF64: 37.5 | AG64: 37.5 | AH64: 31.41 | AI64: 31.41 | AJ64: 31.41 | AK64: 31.41 | AL64: 31.41 | AM64: 31.41 | AN64: 31.41 | AO64: 31.41 | AP64: 31.41 | AQ64: 31.41 | AR64: 31.41 | AS64: 31.41 | AT64: 31.41 | AU64: 31.41 | AV64: 31.41 | AW64: 31.41 | AX64: 31.41 | AY64: 31.41 | AZ64: 31.41 | BA64: 31.41 | BB64: 31.41 | BC64: 32.3 | BD64: 31.41025641 | BE64: 31.41025641 | BF64: 36.21794872 | BG64: 36.21794872 | BH64: 36.21794872
A65: Cerro Guirillio | B65: 03°09'57.50''S | C65: 79°36'20.40''W | D65: El Guabo | E65: 3192 | G65: 0 | H65: 0 | I65: 0 | J65: 0 | K65: 0 | L65: 0 | M65: 0 | N65: 0 | O65: 0 | P65: 0 | Q65: 0 | R65: 0 | S65: 0 | T65: 0 | U65: 0 | V65: 0 | W65: 0 | X65: 0 | Y65: 0 | Z65: 0 | AA65: 0 | AB65: 0 | AC65: 0 | AD65: 0 | AE65: 0 | AF65: 0 | AG65: 0 | AH65: 0 | AI65: 0 | AJ65: 0 | AK65: 0 | AL65: 0 | AM65: 0 | AN65: 0 | AO65: 0 | AP65: 0 | AQ65: 0 | AR65: 0 | AS65: 0 | AT65: 0 | AU65: 0 | AV65: 0 | AW65: 0 | AX65: 0 | AY65: 0 | AZ65: 0 | BA65: 0 | BB65: 0 | BC65: 0 | BD65: 0 | BE65: 0 | BF65: 0 | BG65: 0 | BH65: 0
